{"text_format":"1","workbook":"xlsx","n_sheets":9,"sheets":["Read Me","Instructions","CFP Quantification","3.1.1 Lime Production & Flaring","Customized Embodied EF","Customized Process Factors","Customized Fuel EF","Customized Fuel LHV","Default EF&LHV References "],"not_rendered":{"charts":0,"images":1,"macros":1,"external_links":0,"defined_names":137,"comments":3,"pivot_tables":0},"unopened":[],"bounds":{"document_bytes":16777216,"sheet_cells":100000,"rows_first":2000,"rows_last":500,"rows_between":2000,"halvings":0,"cell_chars":16384,"cell_head_chars":4096},"cells_cut":0,"cells_raw":0,"read":"whole","date_system":"1900"}

{"sheet":"Read Me","index":0,"n_rows":40,"n_cols":4,"rows_kept":40,"cut":false,"hidden":false,"merged":[[24,1,24,7],[21,1,21,7],[22,1,22,7],[23,1,23,7],[0,1,0,7],[2,1,2,7],[6,3,6,6],[18,1,18,7],[19,1,19,7],[20,1,20,7]]}
[null,"CFP Quantification Tool - Reinforcing Bar & Structural Steel"]
[]
[null,"Colour Codes, Notes & FAQ"]
[]
[]
[null,"Tool Sections :"]
[null,"G : General Information Section ","=","General information of the certifying Reinforcing Bar & Structural Steel product(s) that required user input"]
[null,"A : Assessment Section","=","Calculation of the carbon emission for each Reinforcing Bar & Structural Steel product"]
[null,"P : Performance Section ","=","Summary of each of the Reinforcing Bar & Structural Steel Carbon emission performance "]
[]
[null,"Colour Code of Cells :",null,"Colour Code of Sheets :"]
[null,"Input cell",null,"Instruction"]
[null,"Calculated value",null,"Calculation Tool"]
[null,"Information ( Title , units, item nos. etc)",null," Factor for Calculation"]
[null,"Not used ",null,"Default Factor References"]
[null,"Click me"]
[]
["Notes to users:"]
["-","Users should refer to the relevant Assessment Guide issued by the Construction Industry Council's (CIC) for the principles, requirements, and guides for the quantification and reporting the carbon footprint of products (CFP) under the CIC Green Product Certification.  Any manufacturers applying for the CIC's  Green Product Certification should comply with all relevant requirements on CFP quantification stated in the Assessment Guide."]
["-","The goal of carrying out a CFP quantification is to calculate the potential contribution of a particular product to global warming expressed as CO2e by quantifying all significant GHG emissions and removals over the product’s life cycle."]
["- ","This CFP quantification tool is currently applicable to two product categories according to their individual functions,  (i) reinforcing bar; (ii) structural steel as described in the Assessment Guide.  The structural steel can be classified  in to six sub-categories, including (ii)(i) steel section (incl. universal beam / column, H section, I section, bearing pile.); (ii)(ii) hollow section, (ii)(iii) bar section (incl. flat bar, square bar, round bar, tee bar), (ii)(iv)steel pipe, (ii)(v) steel plate; and (ii) (vi)others (channel, angle, Z section, mesh). The tool is developed with reference to ISO 14067:2018."]
["- ","According to the principles of the LCA methodology provided in ISO 14040:2006 with Amendment 1:2020 and ISO 14044:2006 with Amendment 2:2020, the quantification and reporting of a CFP should be relevant, complete, consistent, accurate and transparent. The assessment of carbon footprint of Reinforcing Bar & Structural Steel under the CIC Green Product Certification shall be based on a “cradle-to-site” approach, covering all GHG emissions and removals arising from raw material acquisition through production, transportation of the raw materials to the plant, manufacturing processes, and transportation of the steel products to the border of Hong Kong."]
["-","Users are required to complete the worksheet \"CFP Quantification\" to access the product's carbon footprint. Guides are provided in the \"Instruction\" worksheet. Please ensure ALL input cells (i.e. empty light green cells) in the \"CFP Quantification\" are filled out. User shall fill the worksheet from top to bottom."]
["-","All the units of \"t/reporting period\" in this tool refers to \"tonne/year\", where 1 tonne = 1000 kg."]
["-","If \"Default\" factor is selected, Applicants shall review the references of the default values to ensure their applicability prior to use.\n\nApplicants are encouraged to prioritize the use of specific life cycle data. In cases where such data is not readily accessible, data from national databases, regional databases, or other recognized sources may be utilized. "]
["Frequently Asked Questions:"]
["-","Question: \"Why do many self-calculating cells in my worksheet display a calculation error (for example, \"#VALUE\" displayed)?"]
[null,"Answer: \"#VALUE\" appears as long as some necessary input cells have not been completed (i.e., some cells have been left blank)."]
["-","Question: \"Why do many self-calculating cells in my worksheet display a \"Factor error\" ?"]
[null,"Answer: \"Factor error\" appears as the energy commodity / material was not found in the factor sheets."]
[]
[null,"© 2025 All rights reserved by CIC"]
[]
[null,"Scheme Owned by Construction Industry Council"]
[null,"38/F, COS Centre, 56 Tsun Yip Street, Kwun Tong, Kowloon, Hong Kong"]
[]
[null,"Operated by Hong Kong Green Building Council"]
[null,"1/F, Jockey Club Environmental Building, 77 Tat Chee Avenue, Kowloon Tong, Hong Kong"]
[null,"Phone: +852 3994 8888"]
[null,"Email: cicgpc@hkgbc.org.hk"]

{"sheet":"Instructions","index":1,"n_rows":207,"n_cols":18,"rows_kept":207,"cut":false,"hidden":false,"merged":[[106,5,107,6],[108,5,109,6],[110,5,111,6],[0,0,0,17],[2,8,2,9],[3,8,3,9],[5,1,6,1],[5,2,6,17],[7,1,18,1],[7,2,7,9],[7,10,7,17],[8,5,8,9],[13,10,18,17],[13,6,18,9],[12,5,12,9],[12,10,12,17],[9,5,9,9],[10,5,10,9],[11,5,11,9],[8,10,10,17],[11,10,11,17],[26,5,26,7],[26,8,26,9],[27,1,29,1],[19,1,26,1],[19,2,19,17],[20,5,20,7],[20,8,20,9],[21,5,21,7],[21,8,21,9],[38,10,38,11],[39,10,39,11],[40,5,40,6],[27,2,27,8],[27,10,27,11],[28,10,28,11],[29,10,29,11],[20,10,26,17],[28,12,28,17],[24,5,24,7],[24,8,24,9],[25,5,25,7],[25,8,25,9],[22,5,22,7],[22,8,22,9],[23,5,23,7],[23,8,23,9],[41,10,41,11],[42,10,42,11],[43,10,43,11],[30,1,49,1],[30,2,30,8],[30,10,30,11],[31,10,31,11],[32,10,32,11],[33,10,33,11],[34,10,34,11],[35,10,35,11],[36,10,36,11],[37,10,37,11],[38,5,39,5],[52,12,52,17],[53,1,96,1],[53,2,53,8],[53,10,53,11],[55,5,55,6],[44,5,44,6],[45,5,45,6],[46,5,46,6],[50,1,52,1],[50,2,50,8],[50,10,50,11],[51,10,51,11],[52,10,52,11],[72,5,72,6],[76,5,76,6],[73,10,74,11],[68,10,71,11],[68,5,71,6],[62,5,62,6],[67,5,67,6],[63,10,65,11],[56,10,61,11],[57,5,61,6],[90,5,90,6],[91,5,91,6],[92,5,92,6],[93,5,93,6],[91,10,94,11],[85,5,85,6],[77,10,84,11],[86,10,88,11],[77,5,84,6],[101,5,101,8],[101,10,101,11],[102,2,102,3],[102,5,102,6],[102,7,102,8],[103,10,103,11],[94,5,94,6],[96,10,96,11],[97,1,97,17],[98,2,98,17],[99,1,120,1],[99,2,99,17],[100,2,100,8],[100,10,100,11],[101,2,101,3],[113,2,113,3],[113,5,113,6],[113,7,113,8],[114,10,114,11],[115,10,115,11],[110,10,110,11],[111,10,111,11],[112,2,112,3],[112,5,112,8],[112,10,112,11],[110,7,111,7],[107,10,107,11],[108,10,108,11],[109,10,109,11],[104,10,104,11],[105,10,105,11],[106,10,106,11],[121,1,125,1],[121,2,121,17],[122,2,122,8],[122,10,122,11],[123,2,123,3],[116,10,116,11],[117,10,117,11],[118,10,118,11],[114,5,119,6],[114,8,119,8],[123,5,123,8],[124,5,124,8],[124,10,124,11],[125,2,125,3],[125,5,125,7],[125,10,125,11],[119,10,119,11],[103,5,105,6],[126,1,189,1],[126,2,126,17],[127,2,127,8],[127,10,127,11],[128,2,128,3],[128,5,128,8],[128,10,128,11],[129,10,129,11],[135,10,135,11],[136,10,136,11],[137,10,137,11],[133,5,137,6],[132,7,137,7],[130,5,130,6],[131,5,131,6],[132,10,132,11],[133,10,133,11],[134,10,134,11],[144,5,144,6],[138,5,138,6],[139,10,139,11],[140,10,140,11],[141,10,141,11],[142,10,142,11],[143,5,143,6],[139,7,141,7],[120,2,120,3],[120,5,120,7],[120,10,120,11],[153,5,153,6],[154,5,154,6],[155,10,155,11],[156,10,156,11],[148,10,148,11],[149,5,149,6],[150,10,150,11],[151,10,151,11],[152,10,152,11],[145,7,148,7],[145,5,148,6],[145,10,145,11],[146,10,146,11],[147,10,147,11],[164,10,164,11],[165,10,165,11],[166,10,166,11],[167,10,167,11],[168,5,168,6],[160,10,160,11],[161,10,161,11],[162,10,162,11],[157,10,157,11],[158,10,158,11],[159,10,159,11],[183,2,183,3],[183,5,183,8],[183,10,183,11],[184,7,184,8],[181,5,182,5],[181,6,182,6],[181,7,182,8],[178,10,178,11],[179,2,179,3],[179,5,179,8],[179,10,179,11],[180,7,180,8],[181,10,181,11],[188,2,188,3],[188,5,188,8],[188,10,188,11],[189,2,189,3],[189,5,189,7],[189,10,189,11],[185,10,185,11],[186,10,186,11],[187,2,187,3],[187,5,187,8],[187,10,187,11],[185,5,186,5],[185,6,186,6],[185,7,186,8],[194,5,194,7],[194,10,194,11],[196,2,196,8],[196,10,196,11],[197,1,206,1],[197,10,197,11],[198,5,198,8],[198,10,198,11],[199,5,199,8],[199,10,199,11],[190,1,194,1],[190,2,190,17],[191,2,191,8],[191,10,191,11],[192,2,192,3],[192,5,192,8],[192,10,192,17],[193,5,193,8],[193,10,193,11],[194,2,194,3],[204,5,204,8],[204,10,204,11],[205,5,205,8],[205,10,205,11],[206,5,206,8],[206,10,206,11],[200,5,200,8],[200,10,200,11],[201,5,201,8],[201,10,201,11],[202,10,202,11],[203,5,203,8],[203,10,203,11],[193,12,193,17],[124,12,124,17],[155,5,162,6],[155,7,162,7],[164,7,166,7],[170,5,173,6],[170,7,173,7],[31,12,39,17],[41,8,43,8],[45,8,46,8],[48,8,49,8],[45,10,46,10],[48,12,49,17],[182,10,182,11],[173,10,173,11],[174,5,174,6],[175,10,175,11],[176,10,176,11],[177,10,177,11],[169,5,169,6],[170,10,170,11],[171,10,171,11],[172,10,172,11],[163,5,163,6]]}
["CFP Quantification -  Reinforcing Bar & Structural Steel"]
["Product category 1: Reinforcing bar "]
["Product category 2: Structural steel  ","Date of latest update",null,null,null,null,null,null,"2025-03-24"]
[null,"Reporting period",null,null,null,null,null,null,"Please provide corresponding information"]
[]
[null,"G","GENERAL INFORMATION"]
[]
[null,"G1","G1 General Plant Information",null,null,null,null,null,null,null,"Description"]
[null,null,{"$f":"LEFT($C$8,2)&\".\"","v":"G1."},1,null,"Plant"]
[null,null,"G1.",2,null,"Company"]
[null,null,"G1.",3,null,"Country / Region"]
[null,null,"G1.",4,null,"Steel product route: \n  (i) BF-BOF; \n  (ii) Scraped-based EAF; \n  (iii) DRI-EAF; \n  (iv) Other [please specify]",null,null,null,null,"Please provide product route for the product(s)."]
[null,null,"G1.",5,null,"Recycling content",null,null,null,null,"Please provide recycling content of the product(s)"]
[null,null,"G1.",6,null,"Product 1","Please select product category:\n1) Product category 1: Reinforcing bar\n2) Product category 2: Structural steel  ",null,null,null,"Please provide corresponding product information (name, strength grade, etc.) to be applied under this category.\nExample: Grade 500B Steel Reinforcing Bar"]
[null,null,"G1.",7,null,"Product 2"]
[null,null,"G1.",8,null,"Product 3"]
[null,null,"G1.",9,null,"Product 4"]
[null,null,"G1.",10,null,"Product 5"]
[null,null,"G1.",11,null,"Product 6"]
[null,"G2","G2 System Boundary"]
[null,null,{"$f":"LEFT($C$20,2)&\".\"","v":"G2."},1,null,"Raw Material extraction and upstream production",null,null,"[yes, no or n.a.]",null,"\"Yes\" means that the GHG emissions arising from the process are reported.\n\"No\" means that the associated data are not reported. Please provide explanation in a note in the cell for why \"No\" was selected.\n\"n.a.\" (not applicable) means that emissions are never generated from this source, or the source does not exist at this plant."]
[null,null,{"$f":"LEFT($C$20,2)&\".\"","v":"G2."},2,null,"Off-site transportation of raw materials to manufacturing plant",null,null,"[yes, no or n.a.]"]
[null,null,{"$f":"LEFT($C$20,2)&\".\"","v":"G2."},3,null,"Product manufacturing - stationary combustion",null,null,"[yes, no or n.a.]"]
[null,null,{"$f":"LEFT($C$20,2)&\".\"","v":"G2."},4,null,"Product manufacturing - mobile combustion ",null,null,"[yes, no or n.a.]"]
[null,null,{"$f":"LEFT($C$20,2)&\".\"","v":"G2."},5,null,"Indirect emission from purchased energy ",null,null,"[yes, no or n.a.]"]
[null,null,{"$f":"LEFT($C$20,2)&\".\"","v":"G2."},6,null,"Off-site transportation of  product to border of HK",null,null,"[yes, no or n.a.]"]
[null,null,"G2.",7,null,"(add other processes as appropriate)",null,null,"[yes, no or n.a.]"]
[null,"G3","G3 Structural Steel & Reinforcing Bar Production",null,null,null,null,null,null,"unit","Total",null,"Product 1","Product 2","Product 3","Product 4","Product 5","Product 6"]
[null,null,{"$f":"LEFT($C$28,2)&\".\"","v":"G3."},1,null,"Structural steel & reinforcing bar production in weight",null,null,null,"[t/reporting period]",{"$f":"IF(SUM(M29:R29)=0,\"\",SUM(M29:R29))","v":""},null,"Quantity in weight of each product produced. If there are more than six products within any category, feel free to add additional columns as needed. To add more products, simply copy the entire columns of the last category and insert them between the product columns."]
[null,null,{"$f":"LEFT($C$28,2)&\".\"","v":"G3."},2,null,"Proportion",null,null,null,"%",{"$f":"IF(SUM(M30:R30)=0,\"\",SUM(M30:R30))","v":{"$error":"#VALUE!"}},null,{"$f":"IF(M29=\"\",\"\",M29/$K$29)","v":{"$error":"#VALUE!"}},"","","","",""]
[null,"G4","G4 Raw Materials Used to Produce Structural Steel & Reinforcing Bar Products (only purchased materials shall be included)",null,null,null,null,null,null,"unit","Total",null,"Product 1","Product 2","Product 3","Product 4","Product 5","Product 6"]
[null,null,{"$f":"LEFT($C$31,2)&\".\"","v":"G4."},1,null,"Dolomite",null,null,null,"[t/reporting period, dry weight]",{"$f":"IF(SUM(M32:R32)=0,\"\",SUM(M32:R32))","v":""},null,"Please input the consumption of bought raw materials for the production of each product. On-site produced materials shall be excluded, to avoid double counting."]
[null,null,"G4.",2,null,"Limestone",null,null,null,"[t/reporting period, dry weight]",{"$f":"IF(SUM(M33:R33)=0,\"\",SUM(M33:R33))","v":""}]
[null,null,"G4.",3,null,"Iron ore (lump / fine)",null,null,null,"[t/reporting period, dry weight]",""]
[null,null,"G4.",4,null,"Scrap steel",null,null,null,"[t/reporting period, dry weight]",""]
[null,null,"G4.",5,null,"Coke","purchased / produced offsite (on-site produced materials are excluded)",null,null,"[t/reporting period, dry weight]",""]
[null,null,"G4.",6,null,"Coal",null,null,null,"[t/reporting period, dry weight]",""]
[null,null,"G4.",7,null,"Coating material",null,null,null,"[t/reporting period, dry weight]",""]
[null,null,"G4.",8,null,"Applicant can add raw materials, if applicable.\n\nApplicants shall include customized raw materials for calculation purposes in the worksheet titled \"Customized Embodied EF\" ","Others, if applicable","[refer to \"Customized Embodied EF\"]",null,"[t/reporting period, dry weight]",""]
[null,null,"G4.",9,null,null,"Others, if applicable","[refer to \"Customized Embodied EF\"]",null,null,{"$f":"IF(SUM(M40:R40)=0,\"\",SUM(M40:R40))","v":""}]
[null,null,"G4.",10,null,"Energy commodity used in industrial processes"]
[null,null,"G4.",{"$f":"D41","v":10},".1","Stationary combustion sources",null,"Energy commodity :","Please select the appropriate type of energy commodity.\n\nApplicants are permitted to include customized energy commodities for calculation purposes in the worksheets titled \"Customized Embodied EF,\" \"Customized Fuel EF,\" \"Customized Fuel LHV\", and \"Customized Process Factors\".\n\nIf additional energy commodities need to be included, kindly insert more rows as necessary.","[t/reporting period]",4360,null,{"$f":"IFERROR(IF($K42=\"\",\"\",$K42*M$30),\"\")","v":""},"","","","",""]
[null,null,"G4.",{"$f":"D42","v":10},".2","Stationary combustion sources",null,"Energy commodity :",null,"[t/reporting period]",null,null,"","","","","",""]
[null,null,"G4.",{"$f":"D43","v":10},".3","Stationary combustion sources",null,"Energy commodity :",null,"[t/reporting period]",null,null,"","","","","",""]
[null,null,"G4.",11,null,"Energy commodity used in stationary combustion and not covered in industrial processes",null,"Energy Commodity usage type : ","Proportionally Allocated"]
[null,null,"G4.",{"$f":"D45","v":11},".1","Other stationary combustion source NOT covered in industrial processes",null,"Energy commodity :","Please select the appropriate type of energy commodity.\n\nApplicants are permitted to include customized energy commodities for calculation purposes in the worksheets titled \"Customized Embodied EF,\" \"Customized Fuel EF,\" and \"Customized Fuel LHV.\" \n\nIf additional energy commodities need to be included, kindly insert more rows as necessary.","[t/reporting period]","If \"Proportionally Allocated\" is selected, please enter the total consumption for each of the energy commodity.",{"$f":"IF(I$45=\"user input\",SUM(M46:R46),\"\")","v":""},{"$f":"IFERROR(IF($I$45=\"Proportionally Allocated\", $K46*$M30, \"\"),\"\")","v":""},{"$f":"IFERROR(IF($I$45=\"Proportionally Allocated\", $K46*$N30, \"\"),\"\")","v":""},{"$f":"IFERROR(IF($I$45=\"Proportionally Allocated\", $K46*$O30, \"\"),\"\")","v":""},{"$f":"IFERROR(IF($I$45=\"Proportionally Allocated\", $K46*$P30, \"\"),\"\")","v":""},{"$f":"IFERROR(IF($I$45=\"Proportionally Allocated\", $K46*$Q30, \"\"),\"\")","v":""},{"$f":"IFERROR(IF($I$45=\"Proportionally Allocated\", $K46*$R30, \"\"),\"\")","v":""}]
[null,null,"G4.",{"$f":"D46","v":11},".2","Other stationary combustion source NOT covered in industrial processes",null,"Energy commodity :",null,"[t/reporting period]",null,{"$f":"IF(I$45=\"user input\",SUM(M47:R47),\"\")","v":""},{"$f":"IFERROR(IF($I$48=\"Proportionally Allocated\", $K50*$M30, \"\"),\"\")","v":""},{"$f":"IFERROR(IF($I$48=\"Proportionally Allocated\", $K50*$N30, \"\"),\"\")","v":""},{"$f":"IFERROR(IF($I$48=\"Proportionally Allocated\", $K50*$O30, \"\"),\"\")","v":""},null,{"$f":"IFERROR(IF($I$48=\"Proportionally Allocated\", $K50*$Q30, \"\"),\"\")","v":""},{"$f":"IFERROR(IF($I$48=\"Proportionally Allocated\", $K50*$R30, \"\"),\"\")","v":""}]
[null,null,"G4.",12,null,"On-site transportation",null,"Energy Commodity usage type : ","User Input"]
[null,null,"G4.",{"$f":"D48","v":12},".1","Mobile combustion source",null,"Energy commodity :","Please select the appropriate type of energy commodity.\n\nApplicants are permitted to include customized energy commodities for calculation purposes in the worksheets titled \"Customized Embodied EF,\" \"Customized Fuel EF,\" and \"Customized Fuel LHV.\" \n\nIf additional energy commodities need to be included, kindly insert more rows as necessary.","[t/reporting period]",null,null,"If \"User Input\" is selected, please enter the individual consumption energy commodity for each product."]
[null,null,"G4.",{"$f":"D49","v":12},".2","Mobile combustion source",null,"Energy commodity :",null,"[t/reporting period]"]
[null,"G5","G5. Power Consumption of Purchased Energy",null,null,null,null,null,null,"unit","Total",null,"Product 1","Product 2","Product 3","Product 4","Product 5","Product 6"]
[null,null,{"$f":"LEFT($C$51,2)&\".\"","v":"G5."},1,null,"Consumption of electricity produced externally",null,null,null,"[MWh/reporting period]","Please enter the total consumption of electricity produced externally ",null,{"$f":"IFERROR(IF($K52=\"\",\"\",$K52*M30),\"\")","v":""},"","","","",""]
[null,null,{"$f":"LEFT($C$51,2)&\".\"","v":"G5."},2,null,"CO2e per unit of electricity produced externally",null,null,null,"[kg CO2e/MWh]","Please enter the specific carbon emission factor for electricity produced externally. \n\nApplicants may obtain the carbon emission factor from their power supplier or from relevant national authorities."]
[null,"G6","G6 Inputs & Outputs of Industrial Processes",null,null,null,null,null,null,"unit","Total",null,"Product 1","Product 2","Product 3","Product 4","Product 5","Product 6"]
[null,null,{"$f":"LEFT($C$54,2)&\".\"","v":"G6."},1,null,"Industrial processes - Coking production"]
[null,null,"G6.",{"$f":"D55","v":1},".1","Inputs"]
[null,null,"G6.",{"$f":"D56&E56","v":"1.1"},".1","Blast furnace gas","consumed at on-site facility",null,null,"[t/reporting period]","Please enter the total consumption of each process material in each of the industrial facility. \n\nIf the described industrial process does not in the production route, please leave it blank. ",null,{"$f":"IFERROR(IF($K57=\"\",\"\",$K57*M$30),\"\")","v":""},"","","","",""]
[null,null,"G6.",{"$f":"D57","v":"1.1"},".2","Please select the process materials.\n\nApplicants are permitted to include customized process materials for calculation purposes in the worksheet titled \"Customized Process Factors\".\n\nIf additional process materials need to be included, kindly insert more rows as necessary.",null,null,null,"[t/reporting period]",null,null,"","","","","",""]
[null,null,"G6.","1.1",".3",null,null,null,null,"[t/reporting period]",null,null,"","","","","",""]
[null,null,"G6.","1.1",".4",null,null,null,null,"[t/reporting period]",null,null,"","","","","",""]
[null,null,"G6.","1.1",".5",null,null,null,null,"[t/reporting period]",null,null,"","","","","",""]
[null,null,"G6.","1.1",".6",null,null,null,null,"[t/reporting period]",null,null,"","","","","",""]
[null,null,"G6.",1,".2","Outputs"]
[null,null,"G6.",{"$f":"D63&E63","v":"1.2"},".1","Coke","Please select the coke is produced at facility or produced offsite",null,null,"[t/reporting period]","Please enter the total quantity for each of the end product / output in each of the industrial facility. \n\nIf the end product / output would NOT be transferred offsite, please enter 0",null,{"$f":"IFERROR(IF($K64=\"\",\"\",$K64*M$30),\"\")","v":""},"","","","",""]
[null,null,"G6.",{"$f":"D64","v":"1.2"},".2","Coke oven gas","transferred offsite",null,null,"[t/reporting period]",null,null,"","","","","",""]
[null,null,"G6.",{"$f":"D65","v":"1.2"},".3","Coke-oven byproducts","transferred offsite",null,null,"[t/reporting period]",null,null,"","","","","",""]
[null,null,"G6.",2,null,"Industrial processes - Sinter production"]
[null,null,"G6.",{"$f":"D67","v":2},".1","Inputs"]
[null,null,"G6.",{"$f":"D68&E68","v":"2.1"},".1","Please select the process materials.\n\nApplicants are permitted to include customized process materials for calculation purposes in the worksheet titled \"Customized Process Factors\".\n\nIf additional process materials need to be included, kindly insert more rows as necessary.",null,null,null,"[t/reporting period]","Please enter the total consumption of each process material in each of the industrial facility. \n\nIf the described industrial process does not in the production route, please leave it blank. ",null,{"$f":"IFERROR(IF($K69=\"\",\"\",$K69*M$30),\"\")","v":""},"","","","",""]
[null,null,"G6.",{"$f":"D69","v":"2.1"},".2",null,null,null,null,"[t/reporting period]",null,null,"","","","","",""]
[null,null,"G6.","2.1",".3",null,null,null,null,"[t/reporting period]",null,null,"","","","","",""]
[null,null,"G6.","2.1",".4",null,null,null,null,"[t/reporting period]",null,null,"","","","","",""]
[null,null,"G6.",{"$f":"D67","v":2},".2","Outputs"]
[null,null,"G6.",{"$f":"D73&E73","v":"2.2"},".1","Sinter","produced",null,null,"[t/reporting period]","Please enter the total quantity for each of the end product / output in each of the industrial facility. \n\nIf the end product / output would NOT be transferred offsite, please enter 0",null,{"$f":"IFERROR(IF($K74=\"\",\"\",$K74*M$30),\"\")","v":""},"","","","",""]
[null,null,"G6.",{"$f":"D74","v":"2.2"},".2","Sinter off gas","transferred offsite",null,null,"[t/reporting period]",null,null,"","","","","",""]
[null,null,"G6.",3,null,"Industrial processes - Iron and Steel production"]
[null,null,"G6.",3,".1","Inputs"]
[null,null,"G6.",{"$f":"D77&E77","v":"3.1"},".1","Please select the process materials.\n\nApplicants are permitted to include customized process materials for calculation purposes in the worksheet titled \"Customized Process Factors\".\n\nIf additional process materials need to be included, kindly insert more rows as necessary.",null,null,null,"[t/reporting period]","Please enter the total consumption of each process material in each of the industrial facility. \n\nIf the described industrial process does not in the production route, please leave it blank. ",null,{"$f":"IFERROR(IF($K78=\"\",\"\",$K78*M$30),\"\")","v":""},"","","","",""]
[null,null,"G6.",{"$f":"D78","v":"3.1"},".2",null,null,null,null,"[t/reporting period]",null,null,"","","","","",""]
[null,null,"G6.","3.1",".3",null,null,null,null,"[t/reporting period]",null,null,"","","","","",""]
[null,null,"G6.","3.1",".4",null,null,null,null,"[t/reporting period]",null,null,"","","","","",""]
[null,null,"G6.","3.1",".5",null,null,null,null,"[t/reporting period]",null,null,"","","","","",""]
[null,null,"G6.","3.1",".6",null,null,null,null,"[t/reporting period]",null,null,"","","","","",""]
[null,null,"G6.","3.1",".7",null,null,null,null,"[t/reporting period]",null,null,"","","","","",""]
[null,null,"G6.","3.1",".8",null,null,null,null,"[t/reporting period]",null,null,"","","","","",""]
[null,null,"G6.",3,".2","Outputs"]
[null,null,"G6.",{"$f":"D86&E86","v":"3.2"},".1","Steel","produced at facility",null,null,"[t/reporting period]","Please enter the total quantity for each of the end product / output in each of the industrial facility. \n\nIf the end product / output would NOT be transferred offsite, please enter 0.",null,{"$f":"IFERROR(IF($K87=\"\",\"\",$K87*M$30),\"\")","v":""},"","","","",""]
[null,null,"G6.",{"$f":"D87","v":"3.2"},".2","Iron","produced and not converted into steel",null,null,"[t/reporting period]",null,null,"","","","","",""]
[null,null,"G6.","3.2",".3","Blast furnace gas","transferred offsite",null,null,"[t/reporting period]",null,null,"","","","","",""]
[null,null,"G6.",4,null,"Industrial processes - DRI production"]
[null,null,"G6.",4,".1","Inputs"]
[null,null,"G6.",{"$f":"D91&E91","v":"4.1"},".1","Natural gas",null,null,null,"[t/reporting period]","Please enter the total consumption of each process material in each of the industrial facility. \n\nIf the described industrial process does not in the production route, please leave it blank. ",null,{"$f":"IFERROR(IF($K92=\"\",\"\",$K92*M$30),\"\")","v":""},"","","","",""]
[null,null,"G6.",{"$f":"D92","v":"4.1"},".2","Coke breeze",null,null,null,"[t/reporting period]",null,null,"","","","","",""]
[null,null,"G6.",{"$f":"D93","v":"4.1"},".3","Coke",null,null,null,"[t/reporting period]",null,null,"","","","","",""]
[null,null,"G6.",{"$f":"D94","v":"4.1"},".4"," Please select the process materials, if applicable.\n\nApplicants are permitted to include customized process materials for calculation purposes in the worksheet titled \"Customized Process Factors\".\n\nIf additional process materials need to be included, kindly insert more rows as necessary.",null,null,null,"[t/reporting period]",null,null,"","","","","",""]
[null,null,"G6.",4,".2","Outputs"]
[null,null,"G6.",{"$f":"D96&E96","v":"4.2"},".1","DRI","produced at facility",null,null,"[t/reporting period]","Please enter the total quantity for each of the end product / output in each of the industrial facility. \n\nIf the described industrial process does not in the production route, please leave it blank. ",null,{"$f":"IFERROR(IF($K97=\"\",\"\",$K97*M$30),\"\")","v":""},"","","","",""]
[]
[null,"A","ASSESSMENT"]
[null,"A1","PROJECT LIFE CYCLE STAGE : A1 RAW MATERIAL EXTRACTION AND UPSTREAM PRODUCTION"]
[null,null,"A1.1 CO2e EMISSIONS ",null,null,null,null,null,null,"unit","Total",null,"Product 1","Product 2","Product 3","Product 4","Product 5","Product 6"]
[null,null,"A1.1.1",null,null,"CO2e from bought raw materials",null,null,null,"[t CO2e/reporting period]"]
[null,null,null,null,null,"Adopting CO2e Factors "]
[null,null,null,{"$f":"C102","v":"A1.1.1"},".1","Select the type of embodied emissions factor (EF) for calculation:\n1) Default \n2) Customized\n\nIf \"Customized\" is selected, please enter / add customized EF for each of the product under worksheet \"Customized Embodied EF\".\n\nIf \"Default\" is selected, Applicants shall review the references of the default values to ensure their applicability prior to use.\n\nApplicants are encouraged to prioritize the use of specific life cycle data. In cases where such data is not readily accessible, data from national databases, regional databases, or other recognized sources may be utilized. ",null,{"$f":"F32","v":"Dolomite"},null,"[t CO2e/reporting period]"]
[null,null,null,{"$f":"C102","v":"A1.1.1"},".2",null,null,"Limestone",null,"[t CO2e/reporting period]"]
[null,null,null,{"$f":"C102","v":"A1.1.1"},".3",null,null,"Iron ore (lump / fine)",null,"[t CO2e/reporting period]"]
[null,null,null,{"$f":"C102","v":"A1.1.1"},".4","No defalut embodied carbon emissions factor (EF) is provided.\nOnly customized embodied carbon EF can can be selected.\n\nIf \"Customized\" is selected, please enter / add customized EF for each of the product under worksheet \"Customized Embodied EF\".\n\nApplicants are encouraged to prioritize the use of specific life cycle data. In cases where such data is not readily accessible, data from national databases, regional databases, or other recognized sources may be utilized. ",null,"Scrap steel",null,"[t CO2e/reporting period]"]
[null,null,null,{"$f":"D107","v":"A1.1.1"},".5",null,null,"Coke",{"$f":"G36","v":"purchased / produced offsite (on-site produced materials are excluded)"},"[t CO2e/reporting period]"]
[null,null,null,{"$f":"D108","v":"A1.1.1"},".6","Select the type of embodied emissions factor (EF) for calculation:\n1) Default \n2) Customized\n\nIf \"Customized\" is selected, please enter / add customized EF for each of the product under worksheet \"Customized Embodied EF\".\n\nIf \"Default\" is selected, Applicants shall review the references of the default values to ensure their applicability prior to use.\n\nApplicants are encouraged to prioritize the use of specific life cycle data. In cases where such data is not readily accessible, data from national databases, regional databases, or other recognized sources may be utilized. ",null,"Coal",null,"[t CO2e/reporting period]"]
[null,null,null,{"$f":"D109","v":"A1.1.1"},".7",null,null,"Coating material",null,"[t CO2e/reporting period]"]
[null,null,null,{"$f":"D110","v":"A1.1.1"},".8","No defalut embodied carbon emissions factor (EF) is provided.\nOnly customized embodied carbon EF can can be selected.\n\nIf \"Customized\" is selected, please enter / add customized EF for each of the product under worksheet \"Customized Embodied EF\".\n\nApplicants are encouraged to prioritize the use of specific life cycle data. In cases where such data is not readily accessible, data from national databases, regional databases, or other recognized sources may be utilized. ",null,"Applicant can add bought raw materials, if applicable","[refer to section G4.8]","[t CO2e/reporting period]"]
[null,null,null,"A1.1.1",".9",null,null,null,"[refer to section G4.9]","[t CO2e/reporting period]"]
[null,null,"A1.1.2",null,null,"CO2e from bought energy commodity",null,null,null,"[t CO2e/reporting period]"]
[null,null,null,null,null,"Adopting CO2e Factors ",null,"[Please insert additional rows if more energy commodities are included]"]
[null,null,null,{"$f":"C113","v":"A1.1.2"},".1","Select the type of embodied EF for calculation:\n1) Default \n2) Customized\n\nIf \"Customized\" is selected, please enter / add customized EF for each of the product under worksheet \"Customized Embodied EF\".\n\nIf \"Default\" is selected, Applicants shall review the references of the default values to ensure their applicability prior to use.\n\nApplicants are encouraged to prioritize the use of specific life cycle data. In cases where such data is not readily accessible, data from national databases, regional databases, or other recognized sources may be utilized. ",null,{"$f":"H49","v":"Energy commodity :"},"Please copy energy commodity from G4.10 to G4.12.\n\nPlease insert additional rows if more energy commodities are included","[t CO2e/reporting period]"]
[null,null,null,{"$f":"D115","v":"A1.1.2"},".2",null,null,{"$f":"H50","v":"Energy commodity :"},null,"[t CO2e/reporting period]"]
[null,null,null,{"$f":"D116","v":"A1.1.2"},".3",null,null,{"$f":"H116","v":"Energy commodity :"},null,"[t CO2e/reporting period]"]
[null,null,null,{"$f":"D117","v":"A1.1.2"},".4",null,null,{"$f":"H117","v":"Energy commodity :"},null,"[t CO2e/reporting period]"]
[null,null,null,"A1.1.2",".5",null,null,"Energy commodity :",null,"[t CO2e/reporting period]"]
[null,null,null,{"$f":"D119","v":"A1.1.2"},".6",null,null,{"$f":"H50","v":"Energy commodity :"},null,"[t CO2e/reporting period]"]
[null,null,"A1.2.5",null,null,null,null,null,"Total CO2e in Stage A1","[t CO2e/reporting period]"]
[null,"A2","PROJECT LIFE CYCLE STAGE: A2 OFF-SITE TRANSPORTATION OF RAW MATERIALS TO MANUFACTURING PLANT"]
[null,null,"A2.1 CO2e EMISSIONS ",null,null,null,null,null,null,"unit","Total",null,"Product 1","Product 2","Product 3","Product 4","Product 5","Product 6"]
[null,null,"A2.1.1",null,null,"CO2e from off-site transportation of raw material to manufacturing plant"]
[null,null,null,{"$f":"C124","v":"A2.1.1"},".1","CO2e calculated using either 1) WRI & WBCSD's protocol OR 2) EPD & EMSD's carbon audit tool)",null,null,null,"[t CO2e/reporting period]",null,null,"Please enter the GHG emission from stage A2 (from off-site transportation of raw material to manufacturing plant) for each of the product. \n\nGHG emission can be calculated by required information such as mode of transport, travelled distance, fuel used with following tool:\n1) WRI & WBCSD's protocol, namely “GHG Emissions from Transport or Mobile Sources” which can be accessible at: https://ghgprotocol.org/calculation-tools-and-guidance, or \n2) EPD & EMSD carbon audit tool, which can be accessible at: https://cnsd.gov.hk/en/green-business-and-industry/carbon-audit/\n\nIf the travelled distance needs to be entered into a separate tool, please use the actual travelled distance rather than the straight-line distance. Additionally, kindly provide supporting documentation, such as a map indicating the distance, for verification purposes."]
[null,null,"A2.1.2",null,null,null,null,null,"Total CO2e in Stage A2","[t CO2e/reporting period]",null,null,null,{"$f":"IF(AND(N125=\"\"),\"\",(N125))","v":""},{"$f":"IF(AND(O125=\"\"),\"\",(O125))","v":""},"","",""]
[null,"A3","PROJECT LIFE CYCLE STAGE: A3 PRODUCT MANUFACTURING AND FABRICATION (WITHOUT WASTAGE)"]
[null,null,"A3.1 CO2e EMISSIONS ",null,null,null,null,null,null,"unit","Total",null,"Product 1","Product 2","Product 3","Product 4","Product 5","Product 6"]
[null,null,"A3.1.1",null,null,"CO2e from industrial processes"]
[null,null,null,{"$f":"C129","v":"A3.1.1"},".1","CO2e from coke production",null,null,null,"[t CO2e/reporting period]"]
[null,null,null,null,null,"[Please insert additional rows if more materials are included]"]
[null,null,null,{"$f":"D130&E130","v":"A3.1.1.1"},".1","Inputs",null,"Adopting C Content"]
[null,null,null,{"$f":"D132&E132","v":"A3.1.1.1.1"},".1",{"$f":"F57","v":"Blast furnace gas"},{"$f":"G57","v":"consumed at on-site facility"},"Select the type of carbon content for calculation:\n1) Default \n2) Customized\n\nIf \"Customized\" is selected, please enter / add customized EF for each of the product under worksheet \"Customized Process Factors\".\n\nIf \"Default\" is selected, Applicants shall review the references of the default values to ensure their applicability prior to use.\n\nApplicants are encouraged to prioritize the use of specific life cycle data. In cases where such data is not readily accessible, data from national databases, regional databases, or other recognized sources may be utilized. ",null,"[t CO2e/reporting period]"]
[null,null,null,{"$f":"D133","v":"A3.1.1.1.1"},".2","Please copy process materials from G6.1.1\n\nPlease insert additional rows if more energy commodities are included",null,null,null,"[t CO2e/reporting period]"]
[null,null,null,{"$f":"D134","v":"A3.1.1.1.1"},".3",null,null,null,null,"[t CO2e/reporting period]"]
[null,null,null,{"$f":"D135","v":"A3.1.1.1.1"},".4",null,null,null,null,"[t CO2e/reporting period]"]
[null,null,null,{"$f":"D136","v":"A3.1.1.1.1"},".5",null,null,null,null,"[t CO2e/reporting period]"]
[null,null,null,{"$f":"D137","v":"A3.1.1.1.1"},".6",null,null,null,null,"[t CO2e/reporting period]"]
[null,null,null,{"$f":"D132","v":"A3.1.1.1"},".2","Outputs",null,"Adopting C Content","Adopting CH4 Emission Factor"]
[null,null,null,{"$f":"D139&E139","v":"A3.1.1.1.2"},".1",{"$f":"F64","v":"Coke"},"Please select the coke is produced at facility or produced offsite","Select the type of carbon content for calculation:\n1) Default \n2) Customized\n\nIf \"Customized\" is selected, please enter / add customized EF for each of the product under worksheet \"Customized Process Factors\".\n\nIf \"Default\" is selected, Applicants shall review the references of the default values to ensure their applicability prior to use.\n\nApplicants are encouraged to prioritize the use of specific life cycle data. In cases where such data is not readily accessible, data from national databases, regional databases, or other recognized sources may be utilized. ","Select the type of methane emission factor for calculation:\n1) Default \n2) Customized\n\nIf \"Customized\" is selected, please enter / add customized EF for each of the product under worksheet \"Customized Process Factors\".\n\nIf \"Default\" is selected, Applicants shall review the references of the default values to ensure their applicability prior to use.\n\nApplicants are encouraged to prioritize the use of specific life cycle data. In cases where such data is not readily accessible, data from national databases, regional databases, or other recognized sources may be utilized. ","[t CO2e/reporting period]"]
[null,null,null,{"$f":"D140","v":"A3.1.1.1.2"},".2","Coke oven gas","transferred offsite",null,null,"[t CO2e/reporting period]"]
[null,null,null,{"$f":"D140","v":"A3.1.1.1.2"},".3","Coke-oven byproducts","transferred offsite",null,null,"[t CO2e/reporting period]"]
[null,null,null,{"$f":"D130","v":"A3.1.1"},".2","CO2e from sinter production"]
[null,null,null,null,null,"[Please insert additional rows if more materials are included]"]
[null,null,null,{"$f":"D143&E143","v":"A3.1.1.2"},".1","Inputs",null,"Adopting C Content"]
[null,null,null,{"$f":"D145&E145","v":"A3.1.1.2.1"},".1","Please copy process materials from G6.2.1\n\nPlease insert additional rows if more energy commodities are included",null,"Select the type of carbon content for calculation:\n1) Default \n2) Customized\n\nIf \"Customized\" is selected, please enter / add customized EF for each of the product under worksheet \"Customized Process Factors\".\n\nIf \"Default\" is selected, Applicants shall review the references of the default values to ensure their applicability prior to use.\n\nApplicants are encouraged to prioritize the use of specific life cycle data. In cases where such data is not readily accessible, data from national databases, regional databases, or other recognized sources may be utilized. ",null,"[t CO2e/reporting period]"]
[null,null,null,{"$f":"D146","v":"A3.1.1.2.1"},".2",null,null,null,null,"[t CO2e/reporting period]"]
[null,null,null,{"$f":"D147","v":"A3.1.1.2.1"},".3",null,null,null,null,"[t CO2e/reporting period]"]
[null,null,null,"A3.1.1.2.1",".4",null,null,null,null,"[t CO2e/reporting period]"]
[null,null,null,{"$f":"D145","v":"A3.1.1.2"},".2","Outputs",null,"Adopting C Content","Adopting CH4 Emission Factor"]
[null,null,null,{"$f":"D150&E150","v":"A3.1.1.2.2"},".1",{"$f":"F74","v":"Sinter"},{"$f":"G74","v":"produced"},null,"Select the type of methane emission factor for calculation:\n1) Default \n2) Customized\n\nIf \"Customized\" is selected, please enter / add customized EF for each of the product under worksheet \"Customized Process Factors\".\n\nIf \"Default\" is selected, Applicants shall review the references of the default values to ensure their applicability prior to use.\n\nApplicants are encouraged to prioritize the use of specific life cycle data. In cases where such data is not readily accessible, data from national databases, regional databases, or other recognized sources may be utilized. ","[t CO2e/reporting period]"]
[null,null,null,{"$f":"D151","v":"A3.1.1.2.2"},".2",{"$f":"F75","v":"Sinter off gas"},{"$f":"G75","v":"transferred offsite"},"Select the type of carbon content for calculation:\n1) Default \n2) Customized\n\nIf \"Customized\" is selected, please enter / add customized EF for each of the product under worksheet \"Customized Process Factors\".\n\nIf \"Default\" is selected, Applicants shall review the references of the default values to ensure their applicability prior to use.\n\nApplicants are encouraged to prioritize the use of specific life cycle data. In cases where such data is not readily accessible, data from national databases, regional databases, or other recognized sources may be utilized. ",null,"[t CO2e/reporting period]"]
[null,null,null,{"$f":"D143","v":"A3.1.1"},".3","CO2e from iron and steel production"]
[null,null,null,null,null,"[Please insert additional rows if more materials are included]"]
[null,null,null,{"$f":"D153&E153","v":"A3.1.1.3"},".1","Inputs",null,"Adopting C Content"]
[null,null,null,{"$f":"D155&E155","v":"A3.1.1.3.1"},".1","Please copy process materials from G6.3.1\n\nPlease insert additional rows if more energy commodities are included",null,"Select the type of carbon content for calculation:\n1) Default \n2) Customized\n\nIf \"Customized\" is selected, please enter / add customized EF for each of the product under worksheet \"Customized Process Factors\".\n\nIf \"Default\" is selected, Applicants shall review the references of the default values to ensure their applicability prior to use.\n\nApplicants are encouraged to prioritize the use of specific life cycle data. In cases where such data is not readily accessible, data from national databases, regional databases, or other recognized sources may be utilized. ",null,"[t CO2e/reporting period]"]
[null,null,null,{"$f":"D156","v":"A3.1.1.3.1"},".2",null,null,null,null,"[t CO2e/reporting period]"]
[null,null,null,{"$f":"D157","v":"A3.1.1.3.1"},".3",null,null,null,null,"[t CO2e/reporting period]"]
[null,null,null,"A3.1.1.3.1",".4",null,null,null,null,"[t CO2e/reporting period]"]
[null,null,null,"A3.1.1.3.1",".5",null,null,null,null,"[t CO2e/reporting period]"]
[null,null,null,"A3.1.1.3.1",".6",null,null,null,null,"[t CO2e/reporting period]"]
[null,null,null,"A3.1.1.3.1",".7",null,null,null,null,"[t CO2e/reporting period]"]
[null,null,null,"A3.1.1.3.1",".8",null,null,null,null,"[t CO2e/reporting period]"]
[null,null,null,{"$f":"D155","v":"A3.1.1.3"},".2","Outputs",null,"Adopting C Content"]
[null,null,null,{"$f":"D164&E164","v":"A3.1.1.3.2"},".1","Steel","produced at facility","Select the type of carbon content for calculation:\n1) Default \n2) Customized\n\nIf \"Customized\" is selected, please enter / add customized EF for each of the product under worksheet \"Customized Process Factors\".\n\nIf \"Default\" is selected, Applicants shall review the references of the default values to ensure their applicability prior to use.\n\nApplicants are encouraged to prioritize the use of specific life cycle data. In cases where such data is not readily accessible, data from national databases, regional databases, or other recognized sources may be utilized. ",null,"[t CO2e/reporting period]"]
[null,null,null,{"$f":"D165","v":"A3.1.1.3.2"},".2","Iron","not converted into steel",null,null,"[t CO2e/reporting period]"]
[null,null,null,{"$f":"D166","v":"A3.1.1.3.2"},".3","Blast furnace gas","transferred offsite",null,null,"[t CO2e/reporting period]"]
[null,null,null,{"$f":"C$129","v":"A3.1.1"},".4","CO2e from DRI production",null,null,null,"[t CO2e/reporting period]"]
[null,null,null,null,null,"[Please insert additional rows if more materials are included]"]
[null,null,null,{"$f":"D168&E168","v":"A3.1.1.4"},".1","Inputs",null,"Adopting C Content"]
[null,null,null,{"$f":"D170&E170","v":"A3.1.1.4.1"},".1","Please copy process materials from G6.4.1\n\nPlease insert additional rows if more energy commodities are included",null,"Select the type of carbon content for calculation:\n1) Default \n2) Customized\n\nIf \"Customized\" is selected, please enter / add customized EF for each of the product under worksheet \"Customized Process Factors\".\n\nIf \"Default\" is selected, Applicants shall review the references of the default values to ensure their applicability prior to use.\n\nApplicants are encouraged to prioritize the use of specific life cycle data. In cases where such data is not readily accessible, data from national databases, regional databases, or other recognized sources may be utilized. ",null,"[t CO2e/reporting period]"]
[null,null,null,{"$f":"D171","v":"A3.1.1.4.1"},".2",null,null,null,null,"[t CO2e/reporting period]"]
[null,null,null,"A3.1.1.4.1",".3",null,null,null,null,"[t CO2e/reporting period]"]
[null,null,null,"A3.1.1.4.1",".4",null,null,null,null,"[t CO2e/reporting period]"]
[null,null,null,{"$f":"D170","v":"A3.1.1.4"},".2","Outputs",null,null,"Adopting CH4 Emission Factor"]
[null,null,null,{"$f":"D175&E175","v":"A3.1.1.4.2"},".1","DRI","produced at facility",null,"Select the type of methane emission factor for calculation:\n1) Default \n2) Customized\n\nIf \"Customized\" is selected, please enter / add customized EF for each of the product under worksheet \"Customized Process Factors\".\n\nIf \"Default\" is selected, Applicants shall review the references of the default values to ensure their applicability prior to use.\n\nApplicants are encouraged to prioritize the use of specific life cycle data. In cases where such data is not readily accessible, data from national databases, regional databases, or other recognized sources may be utilized. "]
[null,null,null,{"$f":"C$129","v":"A3.1.1"},".5","CO2e from onsite lime production",null,"[please refer to worksheet \"3.1.1 Lime Production & Flaring\"]",null,"[t CO2e/reporting period]"]
[null,null,null,{"$f":"C$129","v":"A3.1.1"},".6","CO2e from offsite lime production",null,"[please refer to worksheet \"3.1.1 Lime Production & Flaring\"]",null,"[t CO2e/reporting period]"]
[null,null,null,{"$f":"C$129","v":"A3.1.1"},".7","CO2e from flaring",null,"[please refer to worksheet \"3.1.1 Lime Production & Flaring\"]",null,"[t CO2e/reporting period]"]
[null,null,"A3.1.3",null,null,"CO2e from product manufacturing (other stationary combustion sources NOT covered in industrial processes)",null,null,null,"[t CO2e/reporting period]"]
[null,null,null,null,null,"Adopting CO2e Factors ","Adopting LHV Factors ","[Please insert additional rows if more energy commodities are included]"]
[null,null,null,{"$f":"C180","v":"A3.1.3"},".1","Select the type of EF for calculation:\n1) Default \n2) Customized\n\nIf \"Customized\" is selected, please enter / add customized EF for each of the product under worksheet \"Customized Fuel EF\".\n\nIf \"Default\" is selected, Applicants shall review the references of the default values to ensure their applicability prior to use.\n\nApplicants are encouraged to prioritize the use of specific life cycle data. In cases where such data is not readily accessible, data from national databases, regional databases, or other recognized sources may be utilized. ","Select the type of LHV factor for calculation:\n1) Default \n2) Customized\n\nIf \"Customized\" is selected, please enter / add customized LHV for each of the product under worksheet \"Customized Fuel LHV\".\n\nIf \"Default\" is selected, Applicants shall review the references of the default values to ensure their applicability prior to use.\n\nApplicants are encouraged to prioritize the use of specific life cycle data. In cases where such data is not readily accessible, data from national databases, regional databases, or other recognized sources may be utilized. ","Please enter the type of energy commodity utilized from other stationary combustion sources which are not covered in industrial processes for production manufacturing, including but not limited to, on-site power generation, on-site gas generation, re-heating furnaces, equipment, and room heating / cooling",null,"[t CO2e/reporting period]"]
[null,null,null,{"$f":"C180","v":"A3.1.3"},".2",null,null,null,null,"[t CO2e/reporting period]"]
[null,null,"A3.1.4",null,null,"CO2e from on-site transportation (mobile combustion sources)",null,"CO2e from on-site power generation","CO2e from on-site power generation","[t CO2e/reporting period]"]
[null,null,null,null,null,"Adopting CO2e Factors ","Adopting LHV Factors ","[Please insert additional rows if more energy commodities are included]"]
[null,null,null,{"$f":"C184","v":"A3.1.4"},".1","Select the type of EF for calculation:\n1) Default \n2) Customized\n\nIf \"Customized\" is selected, please enter / add customized EF for each of the product under worksheet \"Customized Fuel EF\".\n\nIf \"Default\" is selected, Applicants shall review the references of the default values to ensure their applicability prior to use.\n\nApplicants are encouraged to prioritize the use of specific life cycle data. In cases where such data is not readily accessible, data from national databases, regional databases, or other recognized sources may be utilized. ","Select the type of LHV factor for calculation:\n1) Default \n2) Customized\n\nIf \"Customized\" is selected, please enter / add customized LHV for each of the product under worksheet \"Customized Fuel LHV\".\n\nIf \"Default\" is selected, Applicants shall review the references of the default values to ensure their applicability prior to use.\n\nApplicants are encouraged to prioritize the use of specific life cycle data. In cases where such data is not readily accessible, data from national databases, regional databases, or other recognized sources may be utilized. ","Please enter the type of energy commodity utilized from mobile combustion sources for on-site transportation.",null,"[t CO2e/reporting period]"]
[null,null,null,{"$f":"C184","v":"A3.1.4"},".2",null,null,null,null,"[t CO2e/reporting period]"]
[null,null,"A3.1.5",null,null,"Total CO2e from fuels combustion",null,null,null,"[t CO2e/reporting period]"]
[null,null,"A3.1.6",null,null,"CO2e from external electricity production",null,null,null,"[t CO2e/reporting period]"]
[null,null,"A3.1.8",null,null,null,null,null,"Total CO2e in Stage A3","[t CO2e/reporting period]"]
[null,"A4","PROJECT LIFE CYCLE STAGE: A4 OFF-SITE TRANSPORTATION OF PRODUCT TO BORDER OF HK"]
[null,null,"A4.1 CO2e EMISSIONS ",null,null,null,null,null,null,"unit","Total",null,"Product 1","Product 2","Product 3","Product 4","Product 5","Product 6"]
[null,null,"A4.1.1",null,null,"CO2e from off-site transportation of product to border of HK"]
[null,null,null,{"$f":"C193","v":"A4.1.1"},".1","CO2e calculated using either 1) WRI & WBCSD's protocol OR 2) EPD & EMSD's carbon audit tool)",null,null,null,"[t CO2e/reporting period]",null,null,"Please enter the GHG emission from stage A4 (from off-site transportation of product to border of HK) for each of the product. \n\nGHG emission can be calculated by required information such as mode of transport, travelled distance, fuel used with following tool:\n1) WRI & WBCSD's protocol, namely “GHG Emissions from Transport or Mobile Sources” which can be accessible at: https://ghgprotocol.org/calculation-tools-and-guidance, or\n2) EPD & EMSD carbon audit tool, which can be accessible at: https://cnsd.gov.hk/en/green-business-and-industry/carbon-audit/\n\nIf the travelled distance needs to be entered into a separate tool, please use the actual travelled distance rather than the straight-line distance. Additionally, kindly provide supporting documentation, such as a map indicating the distance, for verification purposes."]
[null,null,"A4.1.2",null,null,null,null,null,"Total CO2e in Stage A4","[t CO2e/reporting period]",null,null,null,{"$f":"IFERROR(IF(N194=\"\",\"\",N194),\"\")","v":""},"","","",""]
[]
[null,"P ","PERFORMANCE INDICATORS",null,null,null,null,null,null,"unit","Total",null,"Product 1","Product 2","Product 3","Product 4","Product 5","Product 6"]
[null,"P",{"$f":"LEFT($B$197,2)","v":"P "},1,null,"Gross CO2e (A1-A4)",null,null,null,"[t CO2e/reporting period]"]
[null,null,"P ",{"$f":"D198","v":1},".1","A1 Raw material extraction and upstream production",null,null,null,"[t CO2e/reporting period]"]
[null,null,"P ",{"$f":"D199","v":1},".2","A2 Off-site transportation of raw materials to manufacturing plant",null,null,null,"[t CO2e/reporting period]"]
[null,null,"P ",{"$f":"D200","v":1},".3","A3 Product manufacturing and fabrication (without wastage)",null,null,null,"[t CO2e/reporting period]"]
[null,null,"P ",{"$f":"D201","v":1},".4","A4 Off-site transportation of product to border of HK",null,null,null,"[t CO2e/reporting period]"]
[null,null,"P ",2,null,"Specific gross CO2e per t of rebar / steel produced (A1-A4)",null,null,null,"[t CO2e/t steel prod]",{"$f":"IF(K198=\"\",\"\",(K198/$K$29))","v":""},null,{"$f":"IF(M$29=0,\"n.a.\",IF(M198=\"\",\"\",(M198/M$29)))","v":""},{"$f":"IF(N$29=0,\"n.a.\",IF(N198=\"\",\"\",(N198/N$29)))","v":"n.a."},"n.a.","n.a.","n.a.","n.a."]
[null,null,"P ",{"$f":"D203","v":2},".1","A1 Raw material extraction and upstream production",null,null,null,"[t CO2e/t steel prod]"]
[null,null,"P ",{"$f":"D204","v":2},".2","A2 Off-site transportation of raw materials to manufacturing plant",null,null,null,"[t CO2e/t steel prod]"]
[null,null,"P ",{"$f":"D204","v":2},".3","A3 Product manufacturing and fabrication (without wastage)",null,null,null,"[t CO2e/t steel prod]"]
[null,null,"P ",{"$f":"D205","v":2},".4","A4 Off-site transportation of product to border of HK",null,null,null,"[t CO2e/t steel prod]"]

{"sheet":"CFP Quantification","index":2,"n_rows":207,"n_cols":18,"rows_kept":207,"cut":false,"hidden":false,"merged":[[9,5,9,9],[10,5,10,9],[11,5,11,9],[0,0,0,17],[2,8,2,9],[3,8,3,9],[5,1,6,1],[5,2,6,17],[7,1,18,1],[7,2,7,9],[7,10,7,17],[8,5,8,9],[8,10,8,17],[9,10,9,17],[10,10,10,17],[13,10,13,17],[11,10,11,13],[11,14,11,17],[13,6,13,9],[14,6,14,9],[15,6,15,9],[12,5,12,9],[12,10,12,17],[16,6,16,9],[27,1,29,1],[27,2,27,8],[22,8,22,9],[22,10,22,17],[23,8,23,9],[23,10,23,17],[24,8,24,9],[24,10,24,17],[19,1,26,1],[19,2,19,17],[20,8,20,9],[20,10,20,17],[21,8,21,9],[21,10,21,17],[20,5,20,7],[21,5,21,7],[22,5,22,7],[23,5,23,7],[24,5,24,7],[26,5,26,7],[28,10,28,11],[27,10,27,11],[50,1,52,1],[61,10,61,11],[63,10,63,11],[64,10,64,11],[71,10,71,11],[77,10,77,11],[78,10,78,11],[79,10,79,11],[29,10,29,11],[30,1,49,1],[53,2,53,8],[53,10,53,11],[30,2,30,8],[30,10,30,11],[37,10,37,11],[38,10,38,11],[40,5,40,6],[61,5,61,6],[55,5,55,6],[62,5,62,6],[67,5,67,6],[68,5,68,6],[45,5,45,6],[46,5,46,6],[101,2,101,3],[101,5,101,8],[101,10,101,11],[102,2,102,3],[102,5,102,6],[102,7,102,8],[97,1,97,17],[98,2,98,17],[99,1,120,1],[99,2,99,17],[100,2,100,8],[100,10,100,11],[114,5,114,6],[114,10,114,11],[119,5,119,6],[119,10,119,11],[120,5,120,7],[109,5,109,6],[109,10,109,11],[110,5,110,6],[110,10,110,11],[117,5,117,6],[112,5,112,8],[112,10,112,11],[128,2,128,3],[128,10,128,11],[126,1,189,1],[126,2,126,17],[127,2,127,8],[127,10,127,11],[123,2,123,3],[123,5,123,8],[121,1,125,1],[121,2,121,17],[122,2,122,8],[122,10,122,11],[183,2,183,3],[183,5,183,8],[183,10,183,11],[179,2,179,3],[179,5,179,8],[162,10,162,11],[167,10,167,11],[176,10,176,11],[124,5,124,8],[124,10,124,11],[146,10,146,11],[147,10,147,11],[190,1,194,1],[190,2,190,17],[191,2,191,8],[191,10,191,11],[193,5,193,8],[193,10,193,11],[125,2,125,3],[125,5,125,7],[125,10,125,11],[188,2,188,3],[188,5,188,8],[188,10,188,11],[189,2,189,3],[189,5,189,7],[189,10,189,11],[184,7,184,8],[185,7,185,8],[185,10,185,11],[186,7,186,8],[186,10,186,11],[187,2,187,3],[187,5,187,8],[187,10,187,11],[180,7,180,8],[194,2,194,3],[194,5,194,7],[194,10,194,11],[196,2,196,8],[196,10,196,11],[192,2,192,3],[192,5,192,8],[206,5,206,8],[206,10,206,11],[200,10,200,11],[192,10,192,17],[197,1,206,1],[197,10,197,11],[198,5,198,8],[198,10,198,11],[199,5,199,8],[199,10,199,11],[200,5,200,8],[204,5,204,8],[204,10,204,11],[205,5,205,8],[205,10,205,11],[201,5,201,8],[201,10,201,11],[202,10,202,11],[203,5,203,8],[203,10,203,11],[133,10,133,11],[134,10,134,11],[135,10,135,11],[179,10,179,11],[136,10,136,11],[142,10,142,11],[145,10,145,11],[148,10,148,11],[141,10,141,11],[181,7,181,8],[181,10,181,11],[182,7,182,8],[182,10,182,11],[177,10,177,11],[178,10,178,11],[128,5,128,8],[129,10,129,11],[172,5,172,6],[163,5,163,6],[173,5,173,6],[174,5,174,6],[168,5,168,6],[162,5,162,6],[170,5,170,6],[171,5,171,6],[158,5,158,6],[159,5,159,6],[160,5,160,6],[161,5,161,6],[153,5,153,6],[155,5,155,6],[156,5,156,6],[157,5,157,6],[120,2,120,3],[112,2,112,3],[113,2,113,3],[107,5,107,6],[107,10,107,11],[108,5,108,6],[108,10,108,11],[105,5,105,6],[105,10,105,11],[106,5,106,6],[106,10,106,11],[115,5,115,6],[116,5,116,6],[113,5,113,6],[113,7,113,8],[111,5,111,6],[120,10,120,11],[103,5,103,6],[103,10,103,11],[104,5,104,6],[104,10,104,11],[57,5,57,6],[80,10,80,11],[81,10,81,11],[82,10,82,11],[83,10,83,11],[84,10,84,11],[58,5,58,6],[59,5,59,6],[60,5,60,6],[74,10,74,11],[50,2,50,8],[50,10,50,11],[91,10,91,11],[56,10,56,11],[57,10,57,11],[58,10,58,11],[59,10,59,11],[60,10,60,11],[68,10,68,11],[69,10,69,11],[70,10,70,11],[76,5,76,6],[77,5,77,6],[78,5,78,6],[69,5,69,6],[51,10,51,11],[52,10,52,11],[53,1,96,1],[86,10,86,11],[87,10,87,11],[88,10,88,11],[94,10,94,11],[96,10,96,11],[85,5,85,6],[91,5,91,6],[92,5,92,6],[93,5,93,6],[90,5,90,6],[94,5,94,6],[79,5,79,6],[80,5,80,6],[81,5,81,6],[82,5,82,6],[83,5,83,6],[84,5,84,6],[70,5,70,6],[71,5,71,6],[72,5,72,6],[73,10,73,11],[92,10,92,11],[93,10,93,11],[146,5,146,6],[175,10,175,11],[43,10,43,11],[65,10,65,11],[39,10,39,11],[111,10,111,11],[161,10,161,11],[170,10,170,11],[171,10,171,11],[172,10,172,11],[173,10,173,11],[166,10,166,11],[159,10,159,11],[160,10,160,11],[164,10,164,11],[165,10,165,11],[152,10,152,11],[155,10,155,11],[156,10,156,11],[157,10,157,11],[158,10,158,11],[132,10,132,11],[140,10,140,11],[139,10,139,11],[131,5,131,6],[138,5,138,6],[144,5,144,6],[154,5,154,6],[169,5,169,6],[118,5,118,6],[115,10,115,11],[116,10,116,11],[117,10,117,11],[118,10,118,11],[137,10,137,11],[137,5,137,6],[149,5,149,6],[147,5,147,6],[148,5,148,6],[143,5,143,6],[145,5,145,6],[136,5,136,6],[151,10,151,11],[150,10,150,11],[130,5,130,6],[133,5,133,6],[134,5,134,6],[135,5,135,6],[44,5,44,6],[17,6,17,9],[18,6,18,9],[14,10,14,17],[15,10,15,17],[16,10,16,17],[17,10,17,17],[18,10,18,17],[25,5,25,7],[25,8,25,9],[25,10,25,17],[26,8,26,9],[26,10,26,17],[52,12,52,17],[41,10,41,11],[42,10,42,11],[31,10,31,11],[32,10,32,11],[33,10,33,11],[34,10,34,11],[35,10,35,11],[36,10,36,11]]}
["CFP Quantification -  Reinforcing Bar & Structural Steel"]
["Product category 1: Reinforcing bar "]
["Product category 2: Structural steel  ","Date of latest update",null,null,null,null,null,null,"2025-03-24"]
[null,"Reporting period"]
[]
[null,"G","GENERAL INFORMATION"]
[]
[null,"G1","G1 General Plant Information",null,null,null,null,null,null,null,"Description"]
[null,null,{"$f":"LEFT($C$8,2)&\".\"","v":"G1."},1,null,"Plant"]
[null,null,"G1.",2,null,"Company"]
[null,null,"G1.",3,null,"Country / Region"]
[null,null,"G1.",4,null,"Steel product route: \n  (i) BF-BOF; \n  (ii) Scraped-based EAF; \n  (iii) DRI-EAF; \n  (iv) Other [please specify]"]
[null,null,"G1.",5,null,"Recycling content"]
[null,null,"G1.",6,null,"Product 1"]
[null,null,"G1.",7,null,"Product 2"]
[null,null,"G1.",8,null,"Product 3"]
[null,null,"G1.",9,null,"Product 4"]
[null,null,"G1.",10,null,"Product 5"]
[null,null,"G1.",11,null,"Product 6"]
[null,"G2","G2 System Boundary"]
[null,null,{"$f":"LEFT($C$20,2)&\".\"","v":"G2."},1,null,"Raw Material extraction and upstream production",null,null,"[yes, no or n.a.]"]
[null,null,{"$f":"LEFT($C$20,2)&\".\"","v":"G2."},2,null,"Off-site transportation of raw materials to manufacturing plant",null,null,"[yes, no or n.a.]"]
[null,null,{"$f":"LEFT($C$20,2)&\".\"","v":"G2."},3,null,"Product manufacturing - stationary combustion",null,null,"[yes, no or n.a.]"]
[null,null,{"$f":"LEFT($C$20,2)&\".\"","v":"G2."},4,null,"Product manufacturing - mobile combustion ",null,null,"[yes, no or n.a.]"]
[null,null,{"$f":"LEFT($C$20,2)&\".\"","v":"G2."},5,null,"Indirect emission from purchased energy ",null,null,"[yes, no or n.a.]"]
[null,null,{"$f":"LEFT($C$20,2)&\".\"","v":"G2."},6,null,"Off-site transportation of  product to border of HK",null,null,"[yes, no or n.a.]"]
[null,null,"G2.",7,null,"(add other processes as appropriate)",null,null,"[yes, no or n.a.]"]
[null,"G3","G3 Structural Steel & Reinforcing Bar Production",null,null,null,null,null,null,"unit","Total",null,"Product 1","Product 2","Product 3","Product 4","Product 5","Product 6"]
[null,null,{"$f":"LEFT($C$28,2)&\".\"","v":"G3."},1,null,"Structural steel & reinforcing bar production in weight",null,null,null,"[t/reporting period]",{"$f":"IF(SUM(M29:R29)=0,\"\",SUM(M29:R29))","v":""}]
[null,null,{"$f":"LEFT($C$28,2)&\".\"","v":"G3."},2,null,"Proportion",null,null,null,"%",{"$f":"IF(SUM(M30:R30)=0,\"\",SUM(M30:R30))","v":""},null,{"$f":"IF(M29=\"\",\"\",M29/$K$29)","v":""},"","","","",""]
[null,"G4","G4 Purchased Raw Materials Used to Produce Structural Steel & Reinforcing Bar Products (only purchased materials shall be included)",null,null,null,null,null,null,"unit","Total",null,"Product 1","Product 2","Product 3","Product 4","Product 5","Product 6"]
[null,null,{"$f":"LEFT($C$31,2)&\".\"","v":"G4."},1,null,"Dolomite",null,null,null,"[t/reporting period, dry weight]",{"$f":"IF(SUM(M32:R32)=0,\"\",SUM(M32:R32))","v":""}]
[null,null,"G4.",2,null,"Limestone",null,null,null,"[t/reporting period, dry weight]",{"$f":"IF(SUM(M33:R33)=0,\"\",SUM(M33:R33))","v":""}]
[null,null,"G4.",3,null,"Iron ore (lump / fine)",null,null,null,"[t/reporting period, dry weight]",""]
[null,null,"G4.",4,null,"Scrap steel",null,null,null,"[t/reporting period, dry weight]",""]
[null,null,"G4.",5,null,"Coke","purchased / produced offsite (on-site produced materials are excluded)",null,null,"[t/reporting period, dry weight]",""]
[null,null,"G4.",6,null,"Coal",null,null,null,"[t/reporting period, dry weight]",{"$f":"IF(SUM(M37:R37)=0,\"\",SUM(M37:R37))","v":""}]
[null,null,"G4.",7,null,"Coating material",null,null,null,"[t/reporting period, dry weight]",""]
[null,null,"G4.",8,null,null,"Others, if applicable","[refer to \"Customized Embodied EF\"]",null,"[t/reporting period, dry weight]",""]
[null,null,"G4.",9,null,null,"Others, if applicable","[refer to \"Customized Embodied EF\"]",null,"[t/reporting period, dry weight]",{"$f":"IF(SUM(M40:R40)=0,\"\",SUM(M40:R40))","v":""}]
[null,null,"G4.",10,null,"Energy commodity used in industrial processes"]
[null,null,"G4.",{"$f":"D41","v":10},".1","Stationary combustion sources",null,"Energy commodity :",null,"[t/reporting period]",null,null,{"$f":"IFERROR(IF($K42=\"\",\"\",$K42*M$30),\"\")","v":""},"","","","",""]
[null,null,"G4.",{"$f":"D42","v":10},".2","Stationary combustion sources",null,"Energy commodity :",null,"[t/reporting period]",null,null,"","","",{"$f":"IFERROR(IF($K43=\"\",\"\",$K43*P$30),\"\")","v":""},"",""]
[null,null,"G4.",{"$f":"D43","v":10},".3","Stationary combustion sources",null,"Energy commodity :",null,"[t/reporting period]",null,null,"","","","","",""]
[null,null,"G4.",11,null,"Energy commodity used in stationary combustion and not covered in industrial processes",null,"Energy Commodity usage type : "]
[null,null,"G4.",{"$f":"D45","v":11},".1","Other stationary combustion source NOT covered in industrial processes",null,"Energy commodity :",null,"[t/reporting period]",null,{"$f":"IF(I$45=\"user input\",SUM(M46:R46),\"\")","v":""}]
[null,null,"G4.",{"$f":"D46","v":11},".2","Other stationary combustion source NOT covered in industrial processes",null,"Energy commodity :",null,"[t/reporting period]",null,{"$f":"IF(I$45=\"user input\",SUM(M47:R47),\"\")","v":""}]
[null,null,"G4.",12,null,"On-site transportation",null,"Energy Commodity usage type : "]
[null,null,"G4.",{"$f":"D48","v":12},".1","Mobile combustion source",null,"Energy commodity :",null,"[t/reporting period]",null,{"$f":"IF(I$48=\"user input\",SUM(M49:R49),\"\")","v":""}]
[null,null,"G4.",{"$f":"D49","v":12},".2","Mobile combustion source",null,"Energy commodity :",null,"[t/reporting period]",null,{"$f":"IF(I$48=\"user input\",SUM(M50:R50),\"\")","v":""}]
[null,"G5","G5. Power Consumption of Purchased Energy",null,null,null,null,null,null,"unit","Total",null,"Product 1","Product 2","Product 3","Product 4","Product 5","Product 6"]
[null,null,{"$f":"LEFT($C$51,2)&\".\"","v":"G5."},1,null,"Consumption of electricity produced externally",null,null,null,"[MWh/reporting period]",null,null,{"$f":"IFERROR(IF($K52=\"\",\"\",$K52*M30),\"\")","v":""},{"$f":"IFERROR(IF($K52=\"\",\"\",$K52*N30),\"\")","v":""},"","","",""]
[null,null,{"$f":"LEFT($C$51,2)&\".\"","v":"G5."},2,null,"CO2e per unit of electricity produced externally",null,null,null,"[kg CO2e/MWh]"]
[null,"G6","G6 Inputs & Outputs of Industrial Processes",null,null,null,null,null,null,"unit","Total",null,"Product 1","Product 2","Product 3","Product 4","Product 5","Product 6"]
[null,null,{"$f":"LEFT($C$54,2)&\".\"","v":"G6."},1,null,"Industrial processes - Coking production"]
[null,null,"G6.",{"$f":"D55","v":1},".1","Inputs"]
[null,null,"G6.",{"$f":"D56&E56","v":"1.1"},".1","Blast furnace gas","consumed at on-site facility",null,null,"[t/reporting period]",null,null,{"$f":"IFERROR(IF($K57=\"\",\"\",$K57*M$30),\"\")","v":""},{"$f":"IFERROR(IF($K57=\"\",\"\",$K57*N$30),\"\")","v":""},"","","",""]
[null,null,"G6.",{"$f":"D57","v":"1.1"},".2",null,null,null,null,"[t/reporting period]",null,null,"","","","","",""]
[null,null,"G6.","1.1",".3",null,null,null,null,"[t/reporting period]",null,null,"","","","","",""]
[null,null,"G6.","1.1",".4",null,null,null,null,"[t/reporting period]",null,null,{"$f":"IFERROR(IF($K60=\"\",\"\",$K60*M$30),\"\")","v":""},"","","","",""]
[null,null,"G6.","1.1",".5",null,null,null,null,"[t/reporting period]",null,null,{"$f":"IFERROR(IF($K61=\"\",\"\",$K61*M$30),\"\")","v":""},"","","","",""]
[null,null,"G6.","1.1",".6",null,null,null,null,"[t/reporting period]",null,null,"","","","","",{"$f":"IFERROR(IF($K62=\"\",\"\",$K62*R$30),\"\")","v":""}]
[null,null,"G6.",1,".2","Outputs"]
[null,null,"G6.",{"$f":"D63&E63","v":"1.2"},".1","Coke","produced",null,null,"[t/reporting period]",null,null,{"$f":"IFERROR(IF($K64=\"\",\"\",$K64*M$30),\"\")","v":""},"","","","",""]
[null,null,"G6.",{"$f":"D64","v":"1.2"},".2","Coke oven gas","transferred offsite",null,null,"[t/reporting period]",null,null,"","","","","",""]
[null,null,"G6.",{"$f":"D65","v":"1.2"},".3","Coke-oven byproducts","transferred offsite",null,null,"[t/reporting period]",null,null,"","","","","",""]
[null,null,"G6.",2,null,"Industrial processes - Sinter production"]
[null,null,"G6.",{"$f":"D67","v":2},".1","Inputs"]
[null,null,"G6.",{"$f":"D68&E68","v":"2.1"},".1",null,null,null,null,"[t/reporting period]",null,null,{"$f":"IFERROR(IF($K69=\"\",\"\",$K69*M$30),\"\")","v":""},"","","","",""]
[null,null,"G6.",{"$f":"D69","v":"2.1"},".2",null,null,null,null,"[t/reporting period]",null,null,"","","","","",""]
[null,null,"G6.","2.1",".3",null,null,null,null,"[t/reporting period]",null,null,"","","","","",""]
[null,null,"G6.","2.1",".4",null,null,null,null,"[t/reporting period]",null,null,"","","","","",""]
[null,null,"G6.",{"$f":"D67","v":2},".2","Outputs"]
[null,null,"G6.",{"$f":"D73&E73","v":"2.2"},".1","Sinter","produced",null,null,"[t/reporting period]",null,null,{"$f":"IFERROR(IF($K74=\"\",\"\",$K74*M$30),\"\")","v":""},"","","","",""]
[null,null,"G6.",{"$f":"D74","v":"2.2"},".2","Sinter off gas","transferred offsite",null,null,"[t/reporting period]",null,null,"","","","","",""]
[null,null,"G6.",3,null,"Industrial processes - Iron and Steel production"]
[null,null,"G6.",3,".1","Inputs"]
[null,null,"G6.",{"$f":"D77&E77","v":"3.1"},".1",null,null,null,null,"[t/reporting period]",null,null,{"$f":"IFERROR(IF($K78=\"\",\"\",$K78*M$30),\"\")","v":""},"","","","",""]
[null,null,"G6.",{"$f":"D78","v":"3.1"},".2",null,null,null,null,"[t/reporting period]",null,null,"","","","","",""]
[null,null,"G6.","3.1",".3",null,null,null,null,"[t/reporting period]",null,null,"","","","","",""]
[null,null,"G6.","3.1",".4",null,null,null,null,"[t/reporting period]",null,null,"","","","","",""]
[null,null,"G6.","3.1",".5",null,null,null,null,"[t/reporting period]",null,null,"","","","","",""]
[null,null,"G6.","3.1",".6",null,null,null,null,"[t/reporting period]",null,null,"","","","","",""]
[null,null,"G6.","3.1",".7",null,null,null,null,"[t/reporting period]",null,null,"","","","","",""]
[null,null,"G6.","3.1",".8"," ",null,null,null,"[t/reporting period]",null,null,"","","","","",""]
[null,null,"G6.",3,".2","Outputs"]
[null,null,"G6.",{"$f":"D86&E86","v":"3.2"},".1","Steel","produced at facility",null,null,"[t/reporting period]",{"$f":"K29","v":""},null,{"$f":"IFERROR(IF($K87=\"\",\"\",$K87*M$30),\"\")","v":""},"","","","",""]
[null,null,"G6.",{"$f":"D87","v":"3.2"},".2","Iron","produced and not converted into steel",null,null,"[t/reporting period]",null,null,"","","","","",""]
[null,null,"G6.","3.2",".3","Blast furnace gas","transferred offsite",null,null,"[t/reporting period]",null,null,"","","","","",""]
[null,null,"G6.",4,null,"Industrial processes - DRI production"]
[null,null,"G6.",4,".1","Inputs"]
[null,null,"G6.",{"$f":"D91&E91","v":"4.1"},".1","Natural gas",null,null,null,"[t/reporting period]",null,null,{"$f":"IFERROR(IF($K92=\"\",\"\",$K92*M$30),\"\")","v":""},"","","","",""]
[null,null,"G6.",{"$f":"D92","v":"4.1"},".2","Coke breeze",null,null,null,"[t/reporting period]",null,null,"","","","","",""]
[null,null,"G6.",{"$f":"D93","v":"4.1"},".3","Coke",null,null,null,"[t/reporting period]",null,null,"","","","","",""]
[null,null,"G6.",{"$f":"D94","v":"4.1"},".4",null,null,null,null,"[t/reporting period]",null,null,"","","","","",""]
[null,null,"G6.",4,".2","Outputs"]
[null,null,"G6.",{"$f":"D96&E96","v":"4.2"},".1","DRI","produced at facility",null,null,"[t/reporting period]",null,null,{"$f":"IFERROR(IF($K97=\"\",\"\",$K97*M$30),\"\")","v":""},"","","","",""]
[]
[null,"A","ASSESSMENT"]
[null,"A1","PROJECT LIFE CYCLE STAGE : A1 RAW MATERIAL EXTRACTION AND UPSTREAM PRODUCTION"]
[null,null,"A1.1 CO2e EMISSIONS ",null,null,null,null,null,null,"unit","Total",null,"Product 1","Product 2","Product 3","Product 4","Product 5","Product 6"]
[null,null,"A1.1.1",null,null,"CO2e from bought raw materials",null,null,null,"[t CO2e/reporting period]",{"$f":"SUM(M102:R102)","v":0},null,{"$f":"SUMIF($D:$D,$C102,M:M)","v":0},0,0,0,0,0]
[null,null,null,null,null,"Adopting CO2e Factors "]
[null,null,null,{"$f":"C102","v":"A1.1.1"},".1",null,null,{"$f":"F32","v":"Dolomite"},null,"[t CO2e/reporting period]",{"$f":"IF(SUM(M104:R104)=0,\"\",SUM(M104:R104))","v":""},null,{"$f":"IFERROR(IF(OR($H104='Customized Embodied EF'!$B:$B),SUMIFS(M:M,$F:$F,$H104,$C:$C,\"G4.\")*IF($F104=\"Customized\",\nIF(_xlfn.XLOOKUP($H104,'Customized Embodied EF'!$B:$B,'Customized Embodied EF'!E:E,\"error\",0)=\"\",\"Factor error\",_xlfn.XLOOKUP($H104,'Customized Embodied EF'!$B:$B,'Customized Embodied EF'!E:E,\"error\",0)),_xlfn.XLOOKUP($H104,'Customized Embodied EF'!$B:$B,'Customized Embodied EF'!$D:$D,\"error\",0)),\"Factor error\"),\"Factor error\")","v":"Factor error"},{"$f":"IFERROR(IF(OR($H104='Customized Embodied EF'!$B:$B),SUMIFS(N:N,$F:$F,$H104,$C:$C,\"G4.\")*IF($F104=\"Customized\",\nIF(_xlfn.XLOOKUP($H104,'Customized Embodied EF'!$B:$B,'Customized Embodied EF'!F:F,\"error\",0)=\"\",\"Factor error\",_xlfn.XLOOKUP($H104,'Customized Embodied EF'!$B:$B,'Customized Embodied EF'!F:F,\"error\",0)),_xlfn.XLOOKUP($H104,'Customized Embodied EF'!$B:$B,'Customized Embodied EF'!$D:$D,\"error\",0)),\"Factor error\"),\"Factor error\")","v":"Factor error"},{"$f":"IFERROR(IF(OR($H104='Customized Embodied EF'!$B:$B),SUMIFS(O:O,$F:$F,$H104,$C:$C,\"G4.\")*IF($F104=\"Customized\",\nIF(_xlfn.XLOOKUP($H104,'Customized Embodied EF'!$B:$B,'Customized Embodied EF'!G:G,\"error\",0)=\"\",\"Factor error\",_xlfn.XLOOKUP($H104,'Customized Embodied EF'!$B:$B,'Customized Embodied EF'!G:G,\"error\",0)),_xlfn.XLOOKUP($H104,'Customized Embodied EF'!$B:$B,'Customized Embodied EF'!$D:$D,\"error\",0)),\"Factor error\"),\"Factor error\")","v":"Factor error"},{"$f":"IFERROR(IF(OR($H104='Customized Embodied EF'!$B:$B),SUMIFS(P:P,$F:$F,$H104,$C:$C,\"G4.\")*IF($F104=\"Customized\",\nIF(_xlfn.XLOOKUP($H104,'Customized Embodied EF'!$B:$B,'Customized Embodied EF'!H:H,\"error\",0)=\"\",\"Factor error\",_xlfn.XLOOKUP($H104,'Customized Embodied EF'!$B:$B,'Customized Embodied EF'!H:H,\"error\",0)),_xlfn.XLOOKUP($H104,'Customized Embodied EF'!$B:$B,'Customized Embodied EF'!$D:$D,\"error\",0)),\"Factor error\"),\"Factor error\")","v":"Factor error"},{"$f":"IFERROR(IF(OR($H104='Customized Embodied EF'!$B:$B),SUMIFS(Q:Q,$F:$F,$H104,$C:$C,\"G4.\")*IF($F104=\"Customized\",\nIF(_xlfn.XLOOKUP($H104,'Customized Embodied EF'!$B:$B,'Customized Embodied EF'!I:I,\"error\",0)=\"\",\"Factor error\",_xlfn.XLOOKUP($H104,'Customized Embodied EF'!$B:$B,'Customized Embodied EF'!I:I,\"error\",0)),_xlfn.XLOOKUP($H104,'Customized Embodied EF'!$B:$B,'Customized Embodied EF'!$D:$D,\"error\",0)),\"Factor error\"),\"Factor error\")","v":"Factor error"},{"$f":"IFERROR(IF(OR($H104='Customized Embodied EF'!$B:$B),SUMIFS(R:R,$F:$F,$H104,$C:$C,\"G4.\")*IF($F104=\"Customized\",\nIF(_xlfn.XLOOKUP($H104,'Customized Embodied EF'!$B:$B,'Customized Embodied EF'!J:J,\"error\",0)=\"\",\"Factor error\",_xlfn.XLOOKUP($H104,'Customized Embodied EF'!$B:$B,'Customized Embodied EF'!J:J,\"error\",0)),_xlfn.XLOOKUP($H104,'Customized Embodied EF'!$B:$B,'Customized Embodied EF'!$D:$D,\"error\",0)),\"Factor error\"),\"Factor error\")","v":"Factor error"}]
[null,null,null,{"$f":"C102","v":"A1.1.1"},".2",null,null,"Limestone",null,"[t CO2e/reporting period]","",null,{"$f":"IFERROR(IF(OR($H105='Customized Embodied EF'!$B:$B),SUMIFS(M:M,$F:$F,$H105,$C:$C,\"G4.\")*IF($F105=\"Customized\",\nIF(_xlfn.XLOOKUP($H105,'Customized Embodied EF'!$B:$B,'Customized Embodied EF'!E:E,\"error\",0)=\"\",\"Factor error\",_xlfn.XLOOKUP($H105,'Customized Embodied EF'!$B:$B,'Customized Embodied EF'!E:E,\"error\",0)),_xlfn.XLOOKUP($H105,'Customized Embodied EF'!$B:$B,'Customized Embodied EF'!$D:$D,\"error\",0)),\"Factor error\"),\"Factor error\")","v":"Factor error"},{"$f":"IFERROR(IF(OR($H105='Customized Embodied EF'!$B:$B),SUMIFS(N:N,$F:$F,$H105,$C:$C,\"G4.\")*IF($F105=\"Customized\",\nIF(_xlfn.XLOOKUP($H105,'Customized Embodied EF'!$B:$B,'Customized Embodied EF'!F:F,\"error\",0)=\"\",\"Factor error\",_xlfn.XLOOKUP($H105,'Customized Embodied EF'!$B:$B,'Customized Embodied EF'!F:F,\"error\",0)),_xlfn.XLOOKUP($H105,'Customized Embodied EF'!$B:$B,'Customized Embodied EF'!$D:$D,\"error\",0)),\"Factor error\"),\"Factor error\")","v":"Factor error"},{"$f":"IFERROR(IF(OR($H105='Customized Embodied EF'!$B:$B),SUMIFS(O:O,$F:$F,$H105,$C:$C,\"G4.\")*IF($F105=\"Customized\",\nIF(_xlfn.XLOOKUP($H105,'Customized Embodied EF'!$B:$B,'Customized Embodied EF'!G:G,\"error\",0)=\"\",\"Factor error\",_xlfn.XLOOKUP($H105,'Customized Embodied EF'!$B:$B,'Customized Embodied EF'!G:G,\"error\",0)),_xlfn.XLOOKUP($H105,'Customized Embodied EF'!$B:$B,'Customized Embodied EF'!$D:$D,\"error\",0)),\"Factor error\"),\"Factor error\")","v":"Factor error"},{"$f":"IFERROR(IF(OR($H105='Customized Embodied EF'!$B:$B),SUMIFS(P:P,$F:$F,$H105,$C:$C,\"G4.\")*IF($F105=\"Customized\",\nIF(_xlfn.XLOOKUP($H105,'Customized Embodied EF'!$B:$B,'Customized Embodied EF'!H:H,\"error\",0)=\"\",\"Factor error\",_xlfn.XLOOKUP($H105,'Customized Embodied EF'!$B:$B,'Customized Embodied EF'!H:H,\"error\",0)),_xlfn.XLOOKUP($H105,'Customized Embodied EF'!$B:$B,'Customized Embodied EF'!$D:$D,\"error\",0)),\"Factor error\"),\"Factor error\")","v":"Factor error"},{"$f":"IFERROR(IF(OR($H105='Customized Embodied EF'!$B:$B),SUMIFS(Q:Q,$F:$F,$H105,$C:$C,\"G4.\")*IF($F105=\"Customized\",\nIF(_xlfn.XLOOKUP($H105,'Customized Embodied EF'!$B:$B,'Customized Embodied EF'!I:I,\"error\",0)=\"\",\"Factor error\",_xlfn.XLOOKUP($H105,'Customized Embodied EF'!$B:$B,'Customized Embodied EF'!I:I,\"error\",0)),_xlfn.XLOOKUP($H105,'Customized Embodied EF'!$B:$B,'Customized Embodied EF'!$D:$D,\"error\",0)),\"Factor error\"),\"Factor error\")","v":"Factor error"},{"$f":"IFERROR(IF(OR($H105='Customized Embodied EF'!$B:$B),SUMIFS(R:R,$F:$F,$H105,$C:$C,\"G4.\")*IF($F105=\"Customized\",\nIF(_xlfn.XLOOKUP($H105,'Customized Embodied EF'!$B:$B,'Customized Embodied EF'!J:J,\"error\",0)=\"\",\"Factor error\",_xlfn.XLOOKUP($H105,'Customized Embodied EF'!$B:$B,'Customized Embodied EF'!J:J,\"error\",0)),_xlfn.XLOOKUP($H105,'Customized Embodied EF'!$B:$B,'Customized Embodied EF'!$D:$D,\"error\",0)),\"Factor error\"),\"Factor error\")","v":"Factor error"}]
[null,null,null,{"$f":"C102","v":"A1.1.1"},".3",null,null,"Iron ore (lump / fine)",null,"[t CO2e/reporting period]","",null,{"$f":"IFERROR(IF(OR($H106='Customized Embodied EF'!$B:$B),SUMIFS(M:M,$F:$F,$H106,$C:$C,\"G4.\")*IF($F106=\"Customized\",\nIF(_xlfn.XLOOKUP($H106,'Customized Embodied EF'!$B:$B,'Customized Embodied EF'!E:E,\"error\",0)=\"\",\"Factor error\",_xlfn.XLOOKUP($H106,'Customized Embodied EF'!$B:$B,'Customized Embodied EF'!E:E,\"error\",0)),_xlfn.XLOOKUP($H106,'Customized Embodied EF'!$B:$B,'Customized Embodied EF'!$D:$D,\"error\",0)),\"Factor error\"),\"Factor error\")","v":"Factor error"},{"$f":"IFERROR(IF(OR($H106='Customized Embodied EF'!$B:$B),SUMIFS(N:N,$F:$F,$H106,$C:$C,\"G4.\")*IF($F106=\"Customized\",\nIF(_xlfn.XLOOKUP($H106,'Customized Embodied EF'!$B:$B,'Customized Embodied EF'!F:F,\"error\",0)=\"\",\"Factor error\",_xlfn.XLOOKUP($H106,'Customized Embodied EF'!$B:$B,'Customized Embodied EF'!F:F,\"error\",0)),_xlfn.XLOOKUP($H106,'Customized Embodied EF'!$B:$B,'Customized Embodied EF'!$D:$D,\"error\",0)),\"Factor error\"),\"Factor error\")","v":"Factor error"},{"$f":"IFERROR(IF(OR($H106='Customized Embodied EF'!$B:$B),SUMIFS(O:O,$F:$F,$H106,$C:$C,\"G4.\")*IF($F106=\"Customized\",\nIF(_xlfn.XLOOKUP($H106,'Customized Embodied EF'!$B:$B,'Customized Embodied EF'!G:G,\"error\",0)=\"\",\"Factor error\",_xlfn.XLOOKUP($H106,'Customized Embodied EF'!$B:$B,'Customized Embodied EF'!G:G,\"error\",0)),_xlfn.XLOOKUP($H106,'Customized Embodied EF'!$B:$B,'Customized Embodied EF'!$D:$D,\"error\",0)),\"Factor error\"),\"Factor error\")","v":"Factor error"},{"$f":"IFERROR(IF(OR($H106='Customized Embodied EF'!$B:$B),SUMIFS(P:P,$F:$F,$H106,$C:$C,\"G4.\")*IF($F106=\"Customized\",\nIF(_xlfn.XLOOKUP($H106,'Customized Embodied EF'!$B:$B,'Customized Embodied EF'!H:H,\"error\",0)=\"\",\"Factor error\",_xlfn.XLOOKUP($H106,'Customized Embodied EF'!$B:$B,'Customized Embodied EF'!H:H,\"error\",0)),_xlfn.XLOOKUP($H106,'Customized Embodied EF'!$B:$B,'Customized Embodied EF'!$D:$D,\"error\",0)),\"Factor error\"),\"Factor error\")","v":"Factor error"},{"$f":"IFERROR(IF(OR($H106='Customized Embodied EF'!$B:$B),SUMIFS(Q:Q,$F:$F,$H106,$C:$C,\"G4.\")*IF($F106=\"Customized\",\nIF(_xlfn.XLOOKUP($H106,'Customized Embodied EF'!$B:$B,'Customized Embodied EF'!I:I,\"error\",0)=\"\",\"Factor error\",_xlfn.XLOOKUP($H106,'Customized Embodied EF'!$B:$B,'Customized Embodied EF'!I:I,\"error\",0)),_xlfn.XLOOKUP($H106,'Customized Embodied EF'!$B:$B,'Customized Embodied EF'!$D:$D,\"error\",0)),\"Factor error\"),\"Factor error\")","v":"Factor error"},{"$f":"IFERROR(IF(OR($H106='Customized Embodied EF'!$B:$B),SUMIFS(R:R,$F:$F,$H106,$C:$C,\"G4.\")*IF($F106=\"Customized\",\nIF(_xlfn.XLOOKUP($H106,'Customized Embodied EF'!$B:$B,'Customized Embodied EF'!J:J,\"error\",0)=\"\",\"Factor error\",_xlfn.XLOOKUP($H106,'Customized Embodied EF'!$B:$B,'Customized Embodied EF'!J:J,\"error\",0)),_xlfn.XLOOKUP($H106,'Customized Embodied EF'!$B:$B,'Customized Embodied EF'!$D:$D,\"error\",0)),\"Factor error\"),\"Factor error\")","v":"Factor error"}]
[null,null,null,{"$f":"C102","v":"A1.1.1"},".4",null,null,"Scrap steel",null,"[t CO2e/reporting period]","",null,{"$f":"IFERROR(IF(SUMIFS(M:M,$F:$F,$H107,$C:$C,\"G4.\")=0,0,IF(OR($H107='Customized Embodied EF'!$B:$B),SUMIFS(M:M,$F:$F,$H107,$C:$C,\"G4.\")*IF($F107=\"Customized\",\nIF(_xlfn.XLOOKUP($H107,'Customized Embodied EF'!$B:$B,'Customized Embodied EF'!E:E,\"error\",0)=\"\",\"Factor error\",_xlfn.XLOOKUP($H107,'Customized Embodied EF'!$B:$B,'Customized Embodied EF'!E:E,\"error\",0)),_xlfn.XLOOKUP($H107,'Customized Embodied EF'!$B:$B,'Customized Embodied EF'!$D:$D,\"error\",0)),\"Factor error\")),\"Factor error\")","v":0},{"$f":"IFERROR(IF(SUMIFS(N:N,$F:$F,$H107,$C:$C,\"G4.\")=0,0,IF(OR($H107='Customized Embodied EF'!$B:$B),SUMIFS(N:N,$F:$F,$H107,$C:$C,\"G4.\")*IF($F107=\"Customized\",\nIF(_xlfn.XLOOKUP($H107,'Customized Embodied EF'!$B:$B,'Customized Embodied EF'!F:F,\"error\",0)=\"\",\"Factor error\",_xlfn.XLOOKUP($H107,'Customized Embodied EF'!$B:$B,'Customized Embodied EF'!F:F,\"error\",0)),_xlfn.XLOOKUP($H107,'Customized Embodied EF'!$B:$B,'Customized Embodied EF'!$D:$D,\"error\",0)),\"Factor error\")),\"Factor error\")","v":0},{"$f":"IFERROR(IF(SUMIFS(O:O,$F:$F,$H107,$C:$C,\"G4.\")=0,0,IF(OR($H107='Customized Embodied EF'!$B:$B),SUMIFS(O:O,$F:$F,$H107,$C:$C,\"G4.\")*IF($F107=\"Customized\",\nIF(_xlfn.XLOOKUP($H107,'Customized Embodied EF'!$B:$B,'Customized Embodied EF'!G:G,\"error\",0)=\"\",\"Factor error\",_xlfn.XLOOKUP($H107,'Customized Embodied EF'!$B:$B,'Customized Embodied EF'!G:G,\"error\",0)),_xlfn.XLOOKUP($H107,'Customized Embodied EF'!$B:$B,'Customized Embodied EF'!$D:$D,\"error\",0)),\"Factor error\")),\"Factor error\")","v":0},{"$f":"IFERROR(IF(SUMIFS(P:P,$F:$F,$H107,$C:$C,\"G4.\")=0,0,IF(OR($H107='Customized Embodied EF'!$B:$B),SUMIFS(P:P,$F:$F,$H107,$C:$C,\"G4.\")*IF($F107=\"Customized\",\nIF(_xlfn.XLOOKUP($H107,'Customized Embodied EF'!$B:$B,'Customized Embodied EF'!H:H,\"error\",0)=\"\",\"Factor error\",_xlfn.XLOOKUP($H107,'Customized Embodied EF'!$B:$B,'Customized Embodied EF'!H:H,\"error\",0)),_xlfn.XLOOKUP($H107,'Customized Embodied EF'!$B:$B,'Customized Embodied EF'!$D:$D,\"error\",0)),\"Factor error\")),\"Factor error\")","v":0},{"$f":"IFERROR(IF(SUMIFS(Q:Q,$F:$F,$H107,$C:$C,\"G4.\")=0,0,IF(OR($H107='Customized Embodied EF'!$B:$B),SUMIFS(Q:Q,$F:$F,$H107,$C:$C,\"G4.\")*IF($F107=\"Customized\",\nIF(_xlfn.XLOOKUP($H107,'Customized Embodied EF'!$B:$B,'Customized Embodied EF'!I:I,\"error\",0)=\"\",\"Factor error\",_xlfn.XLOOKUP($H107,'Customized Embodied EF'!$B:$B,'Customized Embodied EF'!I:I,\"error\",0)),_xlfn.XLOOKUP($H107,'Customized Embodied EF'!$B:$B,'Customized Embodied EF'!$D:$D,\"error\",0)),\"Factor error\")),\"Factor error\")","v":0},{"$f":"IFERROR(IF(SUMIFS(R:R,$F:$F,$H107,$C:$C,\"G4.\")=0,0,IF(OR($H107='Customized Embodied EF'!$B:$B),SUMIFS(R:R,$F:$F,$H107,$C:$C,\"G4.\")*IF($F107=\"Customized\",\nIF(_xlfn.XLOOKUP($H107,'Customized Embodied EF'!$B:$B,'Customized Embodied EF'!J:J,\"error\",0)=\"\",\"Factor error\",_xlfn.XLOOKUP($H107,'Customized Embodied EF'!$B:$B,'Customized Embodied EF'!J:J,\"error\",0)),_xlfn.XLOOKUP($H107,'Customized Embodied EF'!$B:$B,'Customized Embodied EF'!$D:$D,\"error\",0)),\"Factor error\")),\"Factor error\")","v":0}]
[null,null,null,{"$f":"D107","v":"A1.1.1"},".5",null,null,"Coke",{"$f":"G36","v":"purchased / produced offsite (on-site produced materials are excluded)"},"[t CO2e/reporting period]","",null,{"$f":"IFERROR(IF(SUMIFS(M:M,$F:$F,$H108,$C:$C,\"G4.\")=0,0,IF(OR($H108='Customized Embodied EF'!$B:$B),SUMIFS(M:M,$F:$F,$H108,$C:$C,\"G4.\")*IF($F108=\"Customized\",\nIF(_xlfn.XLOOKUP($H108,'Customized Embodied EF'!$B:$B,'Customized Embodied EF'!E:E,\"error\",0)=\"\",\"Factor error\",_xlfn.XLOOKUP($H108,'Customized Embodied EF'!$B:$B,'Customized Embodied EF'!E:E,\"error\",0)),_xlfn.XLOOKUP($H108,'Customized Embodied EF'!$B:$B,'Customized Embodied EF'!$D:$D,\"error\",0)),\"Factor error\")),\"Factor error\")","v":0},{"$f":"IFERROR(IF(SUMIFS(N:N,$F:$F,$H108,$C:$C,\"G4.\")=0,0,IF(OR($H108='Customized Embodied EF'!$B:$B),SUMIFS(N:N,$F:$F,$H108,$C:$C,\"G4.\")*IF($F108=\"Customized\",\nIF(_xlfn.XLOOKUP($H108,'Customized Embodied EF'!$B:$B,'Customized Embodied EF'!F:F,\"error\",0)=\"\",\"Factor error\",_xlfn.XLOOKUP($H108,'Customized Embodied EF'!$B:$B,'Customized Embodied EF'!F:F,\"error\",0)),_xlfn.XLOOKUP($H108,'Customized Embodied EF'!$B:$B,'Customized Embodied EF'!$D:$D,\"error\",0)),\"Factor error\")),\"Factor error\")","v":0},{"$f":"IFERROR(IF(SUMIFS(O:O,$F:$F,$H108,$C:$C,\"G4.\")=0,0,IF(OR($H108='Customized Embodied EF'!$B:$B),SUMIFS(O:O,$F:$F,$H108,$C:$C,\"G4.\")*IF($F108=\"Customized\",\nIF(_xlfn.XLOOKUP($H108,'Customized Embodied EF'!$B:$B,'Customized Embodied EF'!G:G,\"error\",0)=\"\",\"Factor error\",_xlfn.XLOOKUP($H108,'Customized Embodied EF'!$B:$B,'Customized Embodied EF'!G:G,\"error\",0)),_xlfn.XLOOKUP($H108,'Customized Embodied EF'!$B:$B,'Customized Embodied EF'!$D:$D,\"error\",0)),\"Factor error\")),\"Factor error\")","v":0},{"$f":"IFERROR(IF(SUMIFS(P:P,$F:$F,$H108,$C:$C,\"G4.\")=0,0,IF(OR($H108='Customized Embodied EF'!$B:$B),SUMIFS(P:P,$F:$F,$H108,$C:$C,\"G4.\")*IF($F108=\"Customized\",\nIF(_xlfn.XLOOKUP($H108,'Customized Embodied EF'!$B:$B,'Customized Embodied EF'!H:H,\"error\",0)=\"\",\"Factor error\",_xlfn.XLOOKUP($H108,'Customized Embodied EF'!$B:$B,'Customized Embodied EF'!H:H,\"error\",0)),_xlfn.XLOOKUP($H108,'Customized Embodied EF'!$B:$B,'Customized Embodied EF'!$D:$D,\"error\",0)),\"Factor error\")),\"Factor error\")","v":0},{"$f":"IFERROR(IF(SUMIFS(Q:Q,$F:$F,$H108,$C:$C,\"G4.\")=0,0,IF(OR($H108='Customized Embodied EF'!$B:$B),SUMIFS(Q:Q,$F:$F,$H108,$C:$C,\"G4.\")*IF($F108=\"Customized\",\nIF(_xlfn.XLOOKUP($H108,'Customized Embodied EF'!$B:$B,'Customized Embodied EF'!I:I,\"error\",0)=\"\",\"Factor error\",_xlfn.XLOOKUP($H108,'Customized Embodied EF'!$B:$B,'Customized Embodied EF'!I:I,\"error\",0)),_xlfn.XLOOKUP($H108,'Customized Embodied EF'!$B:$B,'Customized Embodied EF'!$D:$D,\"error\",0)),\"Factor error\")),\"Factor error\")","v":0},{"$f":"IFERROR(IF(SUMIFS(R:R,$F:$F,$H108,$C:$C,\"G4.\")=0,0,IF(OR($H108='Customized Embodied EF'!$B:$B),SUMIFS(R:R,$F:$F,$H108,$C:$C,\"G4.\")*IF($F108=\"Customized\",\nIF(_xlfn.XLOOKUP($H108,'Customized Embodied EF'!$B:$B,'Customized Embodied EF'!J:J,\"error\",0)=\"\",\"Factor error\",_xlfn.XLOOKUP($H108,'Customized Embodied EF'!$B:$B,'Customized Embodied EF'!J:J,\"error\",0)),_xlfn.XLOOKUP($H108,'Customized Embodied EF'!$B:$B,'Customized Embodied EF'!$D:$D,\"error\",0)),\"Factor error\")),\"Factor error\")","v":0}]
[null,null,null,{"$f":"D108","v":"A1.1.1"},".6",null,null,"Coal",null,"[t CO2e/reporting period]","",null,{"$f":"IFERROR(IF(OR($H109='Customized Embodied EF'!$B:$B),SUMIFS(M:M,$F:$F,$H109,$C:$C,\"G4.\")*IF($F109=\"Customized\",\nIF(_xlfn.XLOOKUP($H109,'Customized Embodied EF'!$B:$B,'Customized Embodied EF'!E:E,\"error\",0)=\"\",\"Factor error\",_xlfn.XLOOKUP($H109,'Customized Embodied EF'!$B:$B,'Customized Embodied EF'!E:E,\"error\",0)),_xlfn.XLOOKUP($H109,'Customized Embodied EF'!$B:$B,'Customized Embodied EF'!$D:$D,\"error\",0)),\"Factor error\"),\"Factor error\")","v":"Factor error"},{"$f":"IFERROR(IF(OR($H109='Customized Embodied EF'!$B:$B),SUMIFS(N:N,$F:$F,$H109,$C:$C,\"G4.\")*IF($F109=\"Customized\",\nIF(_xlfn.XLOOKUP($H109,'Customized Embodied EF'!$B:$B,'Customized Embodied EF'!F:F,\"error\",0)=\"\",\"Factor error\",_xlfn.XLOOKUP($H109,'Customized Embodied EF'!$B:$B,'Customized Embodied EF'!F:F,\"error\",0)),_xlfn.XLOOKUP($H109,'Customized Embodied EF'!$B:$B,'Customized Embodied EF'!$D:$D,\"error\",0)),\"Factor error\"),\"Factor error\")","v":"Factor error"},{"$f":"IFERROR(IF(OR($H109='Customized Embodied EF'!$B:$B),SUMIFS(O:O,$F:$F,$H109,$C:$C,\"G4.\")*IF($F109=\"Customized\",\nIF(_xlfn.XLOOKUP($H109,'Customized Embodied EF'!$B:$B,'Customized Embodied EF'!G:G,\"error\",0)=\"\",\"Factor error\",_xlfn.XLOOKUP($H109,'Customized Embodied EF'!$B:$B,'Customized Embodied EF'!G:G,\"error\",0)),_xlfn.XLOOKUP($H109,'Customized Embodied EF'!$B:$B,'Customized Embodied EF'!$D:$D,\"error\",0)),\"Factor error\"),\"Factor error\")","v":"Factor error"},{"$f":"IFERROR(IF(OR($H109='Customized Embodied EF'!$B:$B),SUMIFS(P:P,$F:$F,$H109,$C:$C,\"G4.\")*IF($F109=\"Customized\",\nIF(_xlfn.XLOOKUP($H109,'Customized Embodied EF'!$B:$B,'Customized Embodied EF'!H:H,\"error\",0)=\"\",\"Factor error\",_xlfn.XLOOKUP($H109,'Customized Embodied EF'!$B:$B,'Customized Embodied EF'!H:H,\"error\",0)),_xlfn.XLOOKUP($H109,'Customized Embodied EF'!$B:$B,'Customized Embodied EF'!$D:$D,\"error\",0)),\"Factor error\"),\"Factor error\")","v":"Factor error"},{"$f":"IFERROR(IF(OR($H109='Customized Embodied EF'!$B:$B),SUMIFS(Q:Q,$F:$F,$H109,$C:$C,\"G4.\")*IF($F109=\"Customized\",\nIF(_xlfn.XLOOKUP($H109,'Customized Embodied EF'!$B:$B,'Customized Embodied EF'!I:I,\"error\",0)=\"\",\"Factor error\",_xlfn.XLOOKUP($H109,'Customized Embodied EF'!$B:$B,'Customized Embodied EF'!I:I,\"error\",0)),_xlfn.XLOOKUP($H109,'Customized Embodied EF'!$B:$B,'Customized Embodied EF'!$D:$D,\"error\",0)),\"Factor error\"),\"Factor error\")","v":"Factor error"},{"$f":"IFERROR(IF(OR($H109='Customized Embodied EF'!$B:$B),SUMIFS(R:R,$F:$F,$H109,$C:$C,\"G4.\")*IF($F109=\"Customized\",\nIF(_xlfn.XLOOKUP($H109,'Customized Embodied EF'!$B:$B,'Customized Embodied EF'!J:J,\"error\",0)=\"\",\"Factor error\",_xlfn.XLOOKUP($H109,'Customized Embodied EF'!$B:$B,'Customized Embodied EF'!J:J,\"error\",0)),_xlfn.XLOOKUP($H109,'Customized Embodied EF'!$B:$B,'Customized Embodied EF'!$D:$D,\"error\",0)),\"Factor error\"),\"Factor error\")","v":"Factor error"}]
[null,null,null,{"$f":"D109","v":"A1.1.1"},".7",null,null,"Coating material",null,"[t CO2e/reporting period]","",null,{"$f":"IFERROR(IF(OR($H110='Customized Embodied EF'!$B:$B),SUMIFS(M:M,$F:$F,$H110,$C:$C,\"G4.\")*IF($F110=\"Customized\",\nIF(_xlfn.XLOOKUP($H110,'Customized Embodied EF'!$B:$B,'Customized Embodied EF'!E:E,\"error\",0)=\"\",\"Factor error\",_xlfn.XLOOKUP($H110,'Customized Embodied EF'!$B:$B,'Customized Embodied EF'!E:E,\"error\",0)),_xlfn.XLOOKUP($H110,'Customized Embodied EF'!$B:$B,'Customized Embodied EF'!$D:$D,\"error\",0)),\"Factor error\"),\"Factor error\")","v":"Factor error"},{"$f":"IFERROR(IF(OR($H110='Customized Embodied EF'!$B:$B),SUMIFS(N:N,$F:$F,$H110,$C:$C,\"G4.\")*IF($F110=\"Customized\",\nIF(_xlfn.XLOOKUP($H110,'Customized Embodied EF'!$B:$B,'Customized Embodied EF'!F:F,\"error\",0)=\"\",\"Factor error\",_xlfn.XLOOKUP($H110,'Customized Embodied EF'!$B:$B,'Customized Embodied EF'!F:F,\"error\",0)),_xlfn.XLOOKUP($H110,'Customized Embodied EF'!$B:$B,'Customized Embodied EF'!$D:$D,\"error\",0)),\"Factor error\"),\"Factor error\")","v":"Factor error"},{"$f":"IFERROR(IF(OR($H110='Customized Embodied EF'!$B:$B),SUMIFS(O:O,$F:$F,$H110,$C:$C,\"G4.\")*IF($F110=\"Customized\",\nIF(_xlfn.XLOOKUP($H110,'Customized Embodied EF'!$B:$B,'Customized Embodied EF'!G:G,\"error\",0)=\"\",\"Factor error\",_xlfn.XLOOKUP($H110,'Customized Embodied EF'!$B:$B,'Customized Embodied EF'!G:G,\"error\",0)),_xlfn.XLOOKUP($H110,'Customized Embodied EF'!$B:$B,'Customized Embodied EF'!$D:$D,\"error\",0)),\"Factor error\"),\"Factor error\")","v":"Factor error"},{"$f":"IFERROR(IF(OR($H110='Customized Embodied EF'!$B:$B),SUMIFS(P:P,$F:$F,$H110,$C:$C,\"G4.\")*IF($F110=\"Customized\",\nIF(_xlfn.XLOOKUP($H110,'Customized Embodied EF'!$B:$B,'Customized Embodied EF'!H:H,\"error\",0)=\"\",\"Factor error\",_xlfn.XLOOKUP($H110,'Customized Embodied EF'!$B:$B,'Customized Embodied EF'!H:H,\"error\",0)),_xlfn.XLOOKUP($H110,'Customized Embodied EF'!$B:$B,'Customized Embodied EF'!$D:$D,\"error\",0)),\"Factor error\"),\"Factor error\")","v":"Factor error"},{"$f":"IFERROR(IF(OR($H110='Customized Embodied EF'!$B:$B),SUMIFS(Q:Q,$F:$F,$H110,$C:$C,\"G4.\")*IF($F110=\"Customized\",\nIF(_xlfn.XLOOKUP($H110,'Customized Embodied EF'!$B:$B,'Customized Embodied EF'!I:I,\"error\",0)=\"\",\"Factor error\",_xlfn.XLOOKUP($H110,'Customized Embodied EF'!$B:$B,'Customized Embodied EF'!I:I,\"error\",0)),_xlfn.XLOOKUP($H110,'Customized Embodied EF'!$B:$B,'Customized Embodied EF'!$D:$D,\"error\",0)),\"Factor error\"),\"Factor error\")","v":"Factor error"},{"$f":"IFERROR(IF(OR($H110='Customized Embodied EF'!$B:$B),SUMIFS(R:R,$F:$F,$H110,$C:$C,\"G4.\")*IF($F110=\"Customized\",\nIF(_xlfn.XLOOKUP($H110,'Customized Embodied EF'!$B:$B,'Customized Embodied EF'!J:J,\"error\",0)=\"\",\"Factor error\",_xlfn.XLOOKUP($H110,'Customized Embodied EF'!$B:$B,'Customized Embodied EF'!J:J,\"error\",0)),_xlfn.XLOOKUP($H110,'Customized Embodied EF'!$B:$B,'Customized Embodied EF'!$D:$D,\"error\",0)),\"Factor error\"),\"Factor error\")","v":"Factor error"}]
[null,null,null,{"$f":"D110","v":"A1.1.1"},".8",null,null,{"$f":"IF(F39=\"\",\"\",F39)","v":""},"[refer to section G4.8]","[t CO2e/reporting period]","",null,{"$f":"IFERROR(IF(SUMIFS(M:M,$F:$F,$H111,$C:$C,\"G4.\")=0,0,IF(OR($H111='Customized Embodied EF'!$B:$B),SUMIFS(M:M,$F:$F,$H111,$C:$C,\"G4.\")*IF($F111=\"Customized\",\nIF(_xlfn.XLOOKUP($H111,'Customized Embodied EF'!$B:$B,'Customized Embodied EF'!E:E,\"error\",0)=\"\",\"Factor error\",_xlfn.XLOOKUP($H111,'Customized Embodied EF'!$B:$B,'Customized Embodied EF'!E:E,\"error\",0)),_xlfn.XLOOKUP($H111,'Customized Embodied EF'!$B:$B,'Customized Embodied EF'!$D:$D,\"error\",0)),\"Factor error\")),\"Factor error\")","v":0},{"$f":"IFERROR(IF(SUMIFS(N:N,$F:$F,$H111,$C:$C,\"G4.\")=0,0,IF(OR($H111='Customized Embodied EF'!$B:$B),SUMIFS(N:N,$F:$F,$H111,$C:$C,\"G4.\")*IF($F111=\"Customized\",\nIF(_xlfn.XLOOKUP($H111,'Customized Embodied EF'!$B:$B,'Customized Embodied EF'!F:F,\"error\",0)=\"\",\"Factor error\",_xlfn.XLOOKUP($H111,'Customized Embodied EF'!$B:$B,'Customized Embodied EF'!F:F,\"error\",0)),_xlfn.XLOOKUP($H111,'Customized Embodied EF'!$B:$B,'Customized Embodied EF'!$D:$D,\"error\",0)),\"Factor error\")),\"Factor error\")","v":0},{"$f":"IFERROR(IF(SUMIFS(O:O,$F:$F,$H111,$C:$C,\"G4.\")=0,0,IF(OR($H111='Customized Embodied EF'!$B:$B),SUMIFS(O:O,$F:$F,$H111,$C:$C,\"G4.\")*IF($F111=\"Customized\",\nIF(_xlfn.XLOOKUP($H111,'Customized Embodied EF'!$B:$B,'Customized Embodied EF'!G:G,\"error\",0)=\"\",\"Factor error\",_xlfn.XLOOKUP($H111,'Customized Embodied EF'!$B:$B,'Customized Embodied EF'!G:G,\"error\",0)),_xlfn.XLOOKUP($H111,'Customized Embodied EF'!$B:$B,'Customized Embodied EF'!$D:$D,\"error\",0)),\"Factor error\")),\"Factor error\")","v":0},{"$f":"IFERROR(IF(SUMIFS(P:P,$F:$F,$H111,$C:$C,\"G4.\")=0,0,IF(OR($H111='Customized Embodied EF'!$B:$B),SUMIFS(P:P,$F:$F,$H111,$C:$C,\"G4.\")*IF($F111=\"Customized\",\nIF(_xlfn.XLOOKUP($H111,'Customized Embodied EF'!$B:$B,'Customized Embodied EF'!H:H,\"error\",0)=\"\",\"Factor error\",_xlfn.XLOOKUP($H111,'Customized Embodied EF'!$B:$B,'Customized Embodied EF'!H:H,\"error\",0)),_xlfn.XLOOKUP($H111,'Customized Embodied EF'!$B:$B,'Customized Embodied EF'!$D:$D,\"error\",0)),\"Factor error\")),\"Factor error\")","v":0},{"$f":"IFERROR(IF(SUMIFS(Q:Q,$F:$F,$H111,$C:$C,\"G4.\")=0,0,IF(OR($H111='Customized Embodied EF'!$B:$B),SUMIFS(Q:Q,$F:$F,$H111,$C:$C,\"G4.\")*IF($F111=\"Customized\",\nIF(_xlfn.XLOOKUP($H111,'Customized Embodied EF'!$B:$B,'Customized Embodied EF'!I:I,\"error\",0)=\"\",\"Factor error\",_xlfn.XLOOKUP($H111,'Customized Embodied EF'!$B:$B,'Customized Embodied EF'!I:I,\"error\",0)),_xlfn.XLOOKUP($H111,'Customized Embodied EF'!$B:$B,'Customized Embodied EF'!$D:$D,\"error\",0)),\"Factor error\")),\"Factor error\")","v":0},{"$f":"IFERROR(IF(SUMIFS(R:R,$F:$F,$H111,$C:$C,\"G4.\")=0,0,IF(OR($H111='Customized Embodied EF'!$B:$B),SUMIFS(R:R,$F:$F,$H111,$C:$C,\"G4.\")*IF($F111=\"Customized\",\nIF(_xlfn.XLOOKUP($H111,'Customized Embodied EF'!$B:$B,'Customized Embodied EF'!J:J,\"error\",0)=\"\",\"Factor error\",_xlfn.XLOOKUP($H111,'Customized Embodied EF'!$B:$B,'Customized Embodied EF'!J:J,\"error\",0)),_xlfn.XLOOKUP($H111,'Customized Embodied EF'!$B:$B,'Customized Embodied EF'!$D:$D,\"error\",0)),\"Factor error\")),\"Factor error\")","v":0}]
[null,null,null,"A1.1.1",".9",null,null,{"$f":"IF(F40=\"\",\"\",F40)","v":""},"[refer to section G4.9]","[t CO2e/reporting period]","",null,{"$f":"IFERROR(IF(SUMIFS(M:M,$F:$F,$H112,$C:$C,\"G4.\")=0,0,IF(OR($H112='Customized Embodied EF'!$B:$B),SUMIFS(M:M,$F:$F,$H112,$C:$C,\"G4.\")*IF($F112=\"Customized\",\nIF(_xlfn.XLOOKUP($H112,'Customized Embodied EF'!$B:$B,'Customized Embodied EF'!E:E,\"error\",0)=\"\",\"Factor error\",_xlfn.XLOOKUP($H112,'Customized Embodied EF'!$B:$B,'Customized Embodied EF'!E:E,\"error\",0)),_xlfn.XLOOKUP($H112,'Customized Embodied EF'!$B:$B,'Customized Embodied EF'!$D:$D,\"error\",0)),\"Factor error\")),\"Factor error\")","v":0},{"$f":"IFERROR(IF(SUMIFS(N:N,$F:$F,$H112,$C:$C,\"G4.\")=0,0,IF(OR($H112='Customized Embodied EF'!$B:$B),SUMIFS(N:N,$F:$F,$H112,$C:$C,\"G4.\")*IF($F112=\"Customized\",\nIF(_xlfn.XLOOKUP($H112,'Customized Embodied EF'!$B:$B,'Customized Embodied EF'!F:F,\"error\",0)=\"\",\"Factor error\",_xlfn.XLOOKUP($H112,'Customized Embodied EF'!$B:$B,'Customized Embodied EF'!F:F,\"error\",0)),_xlfn.XLOOKUP($H112,'Customized Embodied EF'!$B:$B,'Customized Embodied EF'!$D:$D,\"error\",0)),\"Factor error\")),\"Factor error\")","v":0},{"$f":"IFERROR(IF(SUMIFS(O:O,$F:$F,$H112,$C:$C,\"G4.\")=0,0,IF(OR($H112='Customized Embodied EF'!$B:$B),SUMIFS(O:O,$F:$F,$H112,$C:$C,\"G4.\")*IF($F112=\"Customized\",\nIF(_xlfn.XLOOKUP($H112,'Customized Embodied EF'!$B:$B,'Customized Embodied EF'!G:G,\"error\",0)=\"\",\"Factor error\",_xlfn.XLOOKUP($H112,'Customized Embodied EF'!$B:$B,'Customized Embodied EF'!G:G,\"error\",0)),_xlfn.XLOOKUP($H112,'Customized Embodied EF'!$B:$B,'Customized Embodied EF'!$D:$D,\"error\",0)),\"Factor error\")),\"Factor error\")","v":0},{"$f":"IFERROR(IF(SUMIFS(P:P,$F:$F,$H112,$C:$C,\"G4.\")=0,0,IF(OR($H112='Customized Embodied EF'!$B:$B),SUMIFS(P:P,$F:$F,$H112,$C:$C,\"G4.\")*IF($F112=\"Customized\",\nIF(_xlfn.XLOOKUP($H112,'Customized Embodied EF'!$B:$B,'Customized Embodied EF'!H:H,\"error\",0)=\"\",\"Factor error\",_xlfn.XLOOKUP($H112,'Customized Embodied EF'!$B:$B,'Customized Embodied EF'!H:H,\"error\",0)),_xlfn.XLOOKUP($H112,'Customized Embodied EF'!$B:$B,'Customized Embodied EF'!$D:$D,\"error\",0)),\"Factor error\")),\"Factor error\")","v":0},{"$f":"IFERROR(IF(SUMIFS(Q:Q,$F:$F,$H112,$C:$C,\"G4.\")=0,0,IF(OR($H112='Customized Embodied EF'!$B:$B),SUMIFS(Q:Q,$F:$F,$H112,$C:$C,\"G4.\")*IF($F112=\"Customized\",\nIF(_xlfn.XLOOKUP($H112,'Customized Embodied EF'!$B:$B,'Customized Embodied EF'!I:I,\"error\",0)=\"\",\"Factor error\",_xlfn.XLOOKUP($H112,'Customized Embodied EF'!$B:$B,'Customized Embodied EF'!I:I,\"error\",0)),_xlfn.XLOOKUP($H112,'Customized Embodied EF'!$B:$B,'Customized Embodied EF'!$D:$D,\"error\",0)),\"Factor error\")),\"Factor error\")","v":0},{"$f":"IFERROR(IF(SUMIFS(R:R,$F:$F,$H112,$C:$C,\"G4.\")=0,0,IF(OR($H112='Customized Embodied EF'!$B:$B),SUMIFS(R:R,$F:$F,$H112,$C:$C,\"G4.\")*IF($F112=\"Customized\",\nIF(_xlfn.XLOOKUP($H112,'Customized Embodied EF'!$B:$B,'Customized Embodied EF'!J:J,\"error\",0)=\"\",\"Factor error\",_xlfn.XLOOKUP($H112,'Customized Embodied EF'!$B:$B,'Customized Embodied EF'!J:J,\"error\",0)),_xlfn.XLOOKUP($H112,'Customized Embodied EF'!$B:$B,'Customized Embodied EF'!$D:$D,\"error\",0)),\"Factor error\")),\"Factor error\")","v":0}]
[null,null,"A1.1.2",null,null,"CO2e from bought energy commodity",null,null,null,"[t CO2e/reporting period]",{"$f":"SUM(M113:R113)","v":0},null,{"$f":"SUMIF($D:$D,$C113,M:M)","v":0},0,0,0,0,0]
[null,null,null,null,null,"Adopting CO2e Factors ",null,"[Please insert additional rows if more energy commodities are included]"]
[null,null,null,{"$f":"C113","v":"A1.1.2"},".1",null,null,{"$f":"H49","v":"Energy commodity :"},null,"[t CO2e/reporting period]",{"$f":"SUM(M115:R115)","v":0},null,{"$f":"IFERROR(IF(OR($I115='Customized Embodied EF'!$B:$B),SUMIFS(M:M,$I:$I,$I115,$C:$C,\"G4.\")*IF($F115=\"Customized\",\nIF(_xlfn.XLOOKUP($I115,'Customized Embodied EF'!$B:$B,'Customized Embodied EF'!E:E,\"error\",0)=\"\",\"Factor error\",_xlfn.XLOOKUP($I115,'Customized Embodied EF'!$B:$B,'Customized Embodied EF'!E:E,\"error\",0)),_xlfn.XLOOKUP($I115,'Customized Embodied EF'!$B:$B,'Customized Embodied EF'!$D:$D,\"error\",0)),\"Factor error\"),\"Factor error\")","v":"Factor error"},{"$f":"IFERROR(IF(OR($I115='Customized Embodied EF'!$B:$B),SUMIFS(N:N,$I:$I,$I115,$C:$C,\"G4.\")*IF($F115=\"Customized\",\nIF(_xlfn.XLOOKUP($I115,'Customized Embodied EF'!$B:$B,'Customized Embodied EF'!F:F,\"error\",0)=\"\",\"Factor error\",_xlfn.XLOOKUP($I115,'Customized Embodied EF'!$B:$B,'Customized Embodied EF'!F:F,\"error\",0)),_xlfn.XLOOKUP($I115,'Customized Embodied EF'!$B:$B,'Customized Embodied EF'!$D:$D,\"error\",0)),\"Factor error\"),\"Factor error\")","v":"Factor error"},{"$f":"IFERROR(IF(OR($I115='Customized Embodied EF'!$B:$B),SUMIFS(O:O,$I:$I,$I115,$C:$C,\"G4.\")*IF($F115=\"Customized\",\nIF(_xlfn.XLOOKUP($I115,'Customized Embodied EF'!$B:$B,'Customized Embodied EF'!G:G,\"error\",0)=\"\",\"Factor error\",_xlfn.XLOOKUP($I115,'Customized Embodied EF'!$B:$B,'Customized Embodied EF'!G:G,\"error\",0)),_xlfn.XLOOKUP($I115,'Customized Embodied EF'!$B:$B,'Customized Embodied EF'!$D:$D,\"error\",0)),\"Factor error\"),\"Factor error\")","v":"Factor error"},{"$f":"IFERROR(IF(OR($I115='Customized Embodied EF'!$B:$B),SUMIFS(P:P,$I:$I,$I115,$C:$C,\"G4.\")*IF($F115=\"Customized\",\nIF(_xlfn.XLOOKUP($I115,'Customized Embodied EF'!$B:$B,'Customized Embodied EF'!H:H,\"error\",0)=\"\",\"Factor error\",_xlfn.XLOOKUP($I115,'Customized Embodied EF'!$B:$B,'Customized Embodied EF'!H:H,\"error\",0)),_xlfn.XLOOKUP($I115,'Customized Embodied EF'!$B:$B,'Customized Embodied EF'!$D:$D,\"error\",0)),\"Factor error\"),\"Factor error\")","v":"Factor error"},{"$f":"IFERROR(IF(OR($I115='Customized Embodied EF'!$B:$B),SUMIFS(Q:Q,$I:$I,$I115,$C:$C,\"G4.\")*IF($F115=\"Customized\",\nIF(_xlfn.XLOOKUP($I115,'Customized Embodied EF'!$B:$B,'Customized Embodied EF'!I:I,\"error\",0)=\"\",\"Factor error\",_xlfn.XLOOKUP($I115,'Customized Embodied EF'!$B:$B,'Customized Embodied EF'!I:I,\"error\",0)),_xlfn.XLOOKUP($I115,'Customized Embodied EF'!$B:$B,'Customized Embodied EF'!$D:$D,\"error\",0)),\"Factor error\"),\"Factor error\")","v":"Factor error"},{"$f":"IFERROR(IF(OR($I115='Customized Embodied EF'!$B:$B),SUMIFS(R:R,$I:$I,$I115,$C:$C,\"G4.\")*IF($F115=\"Customized\",\nIF(_xlfn.XLOOKUP($I115,'Customized Embodied EF'!$B:$B,'Customized Embodied EF'!J:J,\"error\",0)=\"\",\"Factor error\",_xlfn.XLOOKUP($I115,'Customized Embodied EF'!$B:$B,'Customized Embodied EF'!J:J,\"error\",0)),_xlfn.XLOOKUP($I115,'Customized Embodied EF'!$B:$B,'Customized Embodied EF'!$D:$D,\"error\",0)),\"Factor error\"),\"Factor error\")","v":"Factor error"}]
[null,null,null,{"$f":"D115","v":"A1.1.2"},".2",null,null,{"$f":"H50","v":"Energy commodity :"},null,"[t CO2e/reporting period]",{"$f":"SUM(M116:R116)","v":0},null,{"$f":"IFERROR(IF(OR($I116='Customized Embodied EF'!$B:$B),SUMIFS(M:M,$I:$I,$I116,$C:$C,\"G4.\")*IF($F116=\"Customized\",\nIF(_xlfn.XLOOKUP($I116,'Customized Embodied EF'!$B:$B,'Customized Embodied EF'!E:E,\"error\",0)=\"\",\"Factor error\",_xlfn.XLOOKUP($I116,'Customized Embodied EF'!$B:$B,'Customized Embodied EF'!E:E,\"error\",0)),_xlfn.XLOOKUP($I116,'Customized Embodied EF'!$B:$B,'Customized Embodied EF'!$D:$D,\"error\",0)),\"Factor error\"),\"Factor error\")","v":"Factor error"},{"$f":"IFERROR(IF(OR($I116='Customized Embodied EF'!$B:$B),SUMIFS(N:N,$I:$I,$I116,$C:$C,\"G4.\")*IF($F116=\"Customized\",\nIF(_xlfn.XLOOKUP($I116,'Customized Embodied EF'!$B:$B,'Customized Embodied EF'!F:F,\"error\",0)=\"\",\"Factor error\",_xlfn.XLOOKUP($I116,'Customized Embodied EF'!$B:$B,'Customized Embodied EF'!F:F,\"error\",0)),_xlfn.XLOOKUP($I116,'Customized Embodied EF'!$B:$B,'Customized Embodied EF'!$D:$D,\"error\",0)),\"Factor error\"),\"Factor error\")","v":"Factor error"},{"$f":"IFERROR(IF(OR($I116='Customized Embodied EF'!$B:$B),SUMIFS(O:O,$I:$I,$I116,$C:$C,\"G4.\")*IF($F116=\"Customized\",\nIF(_xlfn.XLOOKUP($I116,'Customized Embodied EF'!$B:$B,'Customized Embodied EF'!G:G,\"error\",0)=\"\",\"Factor error\",_xlfn.XLOOKUP($I116,'Customized Embodied EF'!$B:$B,'Customized Embodied EF'!G:G,\"error\",0)),_xlfn.XLOOKUP($I116,'Customized Embodied EF'!$B:$B,'Customized Embodied EF'!$D:$D,\"error\",0)),\"Factor error\"),\"Factor error\")","v":"Factor error"},{"$f":"IFERROR(IF(OR($I116='Customized Embodied EF'!$B:$B),SUMIFS(P:P,$I:$I,$I116,$C:$C,\"G4.\")*IF($F116=\"Customized\",\nIF(_xlfn.XLOOKUP($I116,'Customized Embodied EF'!$B:$B,'Customized Embodied EF'!H:H,\"error\",0)=\"\",\"Factor error\",_xlfn.XLOOKUP($I116,'Customized Embodied EF'!$B:$B,'Customized Embodied EF'!H:H,\"error\",0)),_xlfn.XLOOKUP($I116,'Customized Embodied EF'!$B:$B,'Customized Embodied EF'!$D:$D,\"error\",0)),\"Factor error\"),\"Factor error\")","v":"Factor error"},{"$f":"IFERROR(IF(OR($I116='Customized Embodied EF'!$B:$B),SUMIFS(Q:Q,$I:$I,$I116,$C:$C,\"G4.\")*IF($F116=\"Customized\",\nIF(_xlfn.XLOOKUP($I116,'Customized Embodied EF'!$B:$B,'Customized Embodied EF'!I:I,\"error\",0)=\"\",\"Factor error\",_xlfn.XLOOKUP($I116,'Customized Embodied EF'!$B:$B,'Customized Embodied EF'!I:I,\"error\",0)),_xlfn.XLOOKUP($I116,'Customized Embodied EF'!$B:$B,'Customized Embodied EF'!$D:$D,\"error\",0)),\"Factor error\"),\"Factor error\")","v":"Factor error"},{"$f":"IFERROR(IF(OR($I116='Customized Embodied EF'!$B:$B),SUMIFS(R:R,$I:$I,$I116,$C:$C,\"G4.\")*IF($F116=\"Customized\",\nIF(_xlfn.XLOOKUP($I116,'Customized Embodied EF'!$B:$B,'Customized Embodied EF'!J:J,\"error\",0)=\"\",\"Factor error\",_xlfn.XLOOKUP($I116,'Customized Embodied EF'!$B:$B,'Customized Embodied EF'!J:J,\"error\",0)),_xlfn.XLOOKUP($I116,'Customized Embodied EF'!$B:$B,'Customized Embodied EF'!$D:$D,\"error\",0)),\"Factor error\"),\"Factor error\")","v":"Factor error"}]
[null,null,null,{"$f":"D116","v":"A1.1.2"},".3",null,null,{"$f":"H116","v":"Energy commodity :"},null,"[t CO2e/reporting period]",0,null,{"$f":"IFERROR(IF(OR($I117='Customized Embodied EF'!$B:$B),SUMIFS(M:M,$I:$I,$I117,$C:$C,\"G4.\")*IF($F117=\"Customized\",\nIF(_xlfn.XLOOKUP($I117,'Customized Embodied EF'!$B:$B,'Customized Embodied EF'!E:E,\"error\",0)=\"\",\"Factor error\",_xlfn.XLOOKUP($I117,'Customized Embodied EF'!$B:$B,'Customized Embodied EF'!E:E,\"error\",0)),_xlfn.XLOOKUP($I117,'Customized Embodied EF'!$B:$B,'Customized Embodied EF'!$D:$D,\"error\",0)),\"Factor error\"),\"Factor error\")","v":"Factor error"},{"$f":"IFERROR(IF(OR($I117='Customized Embodied EF'!$B:$B),SUMIFS(N:N,$I:$I,$I117,$C:$C,\"G4.\")*IF($F117=\"Customized\",\nIF(_xlfn.XLOOKUP($I117,'Customized Embodied EF'!$B:$B,'Customized Embodied EF'!F:F,\"error\",0)=\"\",\"Factor error\",_xlfn.XLOOKUP($I117,'Customized Embodied EF'!$B:$B,'Customized Embodied EF'!F:F,\"error\",0)),_xlfn.XLOOKUP($I117,'Customized Embodied EF'!$B:$B,'Customized Embodied EF'!$D:$D,\"error\",0)),\"Factor error\"),\"Factor error\")","v":"Factor error"},{"$f":"IFERROR(IF(OR($I117='Customized Embodied EF'!$B:$B),SUMIFS(O:O,$I:$I,$I117,$C:$C,\"G4.\")*IF($F117=\"Customized\",\nIF(_xlfn.XLOOKUP($I117,'Customized Embodied EF'!$B:$B,'Customized Embodied EF'!G:G,\"error\",0)=\"\",\"Factor error\",_xlfn.XLOOKUP($I117,'Customized Embodied EF'!$B:$B,'Customized Embodied EF'!G:G,\"error\",0)),_xlfn.XLOOKUP($I117,'Customized Embodied EF'!$B:$B,'Customized Embodied EF'!$D:$D,\"error\",0)),\"Factor error\"),\"Factor error\")","v":"Factor error"},{"$f":"IFERROR(IF(OR($I117='Customized Embodied EF'!$B:$B),SUMIFS(P:P,$I:$I,$I117,$C:$C,\"G4.\")*IF($F117=\"Customized\",\nIF(_xlfn.XLOOKUP($I117,'Customized Embodied EF'!$B:$B,'Customized Embodied EF'!H:H,\"error\",0)=\"\",\"Factor error\",_xlfn.XLOOKUP($I117,'Customized Embodied EF'!$B:$B,'Customized Embodied EF'!H:H,\"error\",0)),_xlfn.XLOOKUP($I117,'Customized Embodied EF'!$B:$B,'Customized Embodied EF'!$D:$D,\"error\",0)),\"Factor error\"),\"Factor error\")","v":"Factor error"},{"$f":"IFERROR(IF(OR($I117='Customized Embodied EF'!$B:$B),SUMIFS(Q:Q,$I:$I,$I117,$C:$C,\"G4.\")*IF($F117=\"Customized\",\nIF(_xlfn.XLOOKUP($I117,'Customized Embodied EF'!$B:$B,'Customized Embodied EF'!I:I,\"error\",0)=\"\",\"Factor error\",_xlfn.XLOOKUP($I117,'Customized Embodied EF'!$B:$B,'Customized Embodied EF'!I:I,\"error\",0)),_xlfn.XLOOKUP($I117,'Customized Embodied EF'!$B:$B,'Customized Embodied EF'!$D:$D,\"error\",0)),\"Factor error\"),\"Factor error\")","v":"Factor error"},{"$f":"IFERROR(IF(OR($I117='Customized Embodied EF'!$B:$B),SUMIFS(R:R,$I:$I,$I117,$C:$C,\"G4.\")*IF($F117=\"Customized\",\nIF(_xlfn.XLOOKUP($I117,'Customized Embodied EF'!$B:$B,'Customized Embodied EF'!J:J,\"error\",0)=\"\",\"Factor error\",_xlfn.XLOOKUP($I117,'Customized Embodied EF'!$B:$B,'Customized Embodied EF'!J:J,\"error\",0)),_xlfn.XLOOKUP($I117,'Customized Embodied EF'!$B:$B,'Customized Embodied EF'!$D:$D,\"error\",0)),\"Factor error\"),\"Factor error\")","v":"Factor error"}]
[null,null,null,{"$f":"D117","v":"A1.1.2"},".4",null,null,{"$f":"H117","v":"Energy commodity :"},null,"[t CO2e/reporting period]",0,null,{"$f":"IFERROR(IF(OR($I118='Customized Embodied EF'!$B:$B),SUMIFS(M:M,$I:$I,$I118,$C:$C,\"G4.\")*IF($F118=\"Customized\",\nIF(_xlfn.XLOOKUP($I118,'Customized Embodied EF'!$B:$B,'Customized Embodied EF'!E:E,\"error\",0)=\"\",\"Factor error\",_xlfn.XLOOKUP($I118,'Customized Embodied EF'!$B:$B,'Customized Embodied EF'!E:E,\"error\",0)),_xlfn.XLOOKUP($I118,'Customized Embodied EF'!$B:$B,'Customized Embodied EF'!$D:$D,\"error\",0)),\"Factor error\"),\"Factor error\")","v":"Factor error"},{"$f":"IFERROR(IF(OR($I118='Customized Embodied EF'!$B:$B),SUMIFS(N:N,$I:$I,$I118,$C:$C,\"G4.\")*IF($F118=\"Customized\",\nIF(_xlfn.XLOOKUP($I118,'Customized Embodied EF'!$B:$B,'Customized Embodied EF'!F:F,\"error\",0)=\"\",\"Factor error\",_xlfn.XLOOKUP($I118,'Customized Embodied EF'!$B:$B,'Customized Embodied EF'!F:F,\"error\",0)),_xlfn.XLOOKUP($I118,'Customized Embodied EF'!$B:$B,'Customized Embodied EF'!$D:$D,\"error\",0)),\"Factor error\"),\"Factor error\")","v":"Factor error"},{"$f":"IFERROR(IF(OR($I118='Customized Embodied EF'!$B:$B),SUMIFS(O:O,$I:$I,$I118,$C:$C,\"G4.\")*IF($F118=\"Customized\",\nIF(_xlfn.XLOOKUP($I118,'Customized Embodied EF'!$B:$B,'Customized Embodied EF'!G:G,\"error\",0)=\"\",\"Factor error\",_xlfn.XLOOKUP($I118,'Customized Embodied EF'!$B:$B,'Customized Embodied EF'!G:G,\"error\",0)),_xlfn.XLOOKUP($I118,'Customized Embodied EF'!$B:$B,'Customized Embodied EF'!$D:$D,\"error\",0)),\"Factor error\"),\"Factor error\")","v":"Factor error"},{"$f":"IFERROR(IF(OR($I118='Customized Embodied EF'!$B:$B),SUMIFS(P:P,$I:$I,$I118,$C:$C,\"G4.\")*IF($F118=\"Customized\",\nIF(_xlfn.XLOOKUP($I118,'Customized Embodied EF'!$B:$B,'Customized Embodied EF'!H:H,\"error\",0)=\"\",\"Factor error\",_xlfn.XLOOKUP($I118,'Customized Embodied EF'!$B:$B,'Customized Embodied EF'!H:H,\"error\",0)),_xlfn.XLOOKUP($I118,'Customized Embodied EF'!$B:$B,'Customized Embodied EF'!$D:$D,\"error\",0)),\"Factor error\"),\"Factor error\")","v":"Factor error"},{"$f":"IFERROR(IF(OR($I118='Customized Embodied EF'!$B:$B),SUMIFS(Q:Q,$I:$I,$I118,$C:$C,\"G4.\")*IF($F118=\"Customized\",\nIF(_xlfn.XLOOKUP($I118,'Customized Embodied EF'!$B:$B,'Customized Embodied EF'!I:I,\"error\",0)=\"\",\"Factor error\",_xlfn.XLOOKUP($I118,'Customized Embodied EF'!$B:$B,'Customized Embodied EF'!I:I,\"error\",0)),_xlfn.XLOOKUP($I118,'Customized Embodied EF'!$B:$B,'Customized Embodied EF'!$D:$D,\"error\",0)),\"Factor error\"),\"Factor error\")","v":"Factor error"},{"$f":"IFERROR(IF(OR($I118='Customized Embodied EF'!$B:$B),SUMIFS(R:R,$I:$I,$I118,$C:$C,\"G4.\")*IF($F118=\"Customized\",\nIF(_xlfn.XLOOKUP($I118,'Customized Embodied EF'!$B:$B,'Customized Embodied EF'!J:J,\"error\",0)=\"\",\"Factor error\",_xlfn.XLOOKUP($I118,'Customized Embodied EF'!$B:$B,'Customized Embodied EF'!J:J,\"error\",0)),_xlfn.XLOOKUP($I118,'Customized Embodied EF'!$B:$B,'Customized Embodied EF'!$D:$D,\"error\",0)),\"Factor error\"),\"Factor error\")","v":"Factor error"}]
[null,null,null,"A1.1.2",".5",null,null,"Energy commodity :",null,"[t CO2e/reporting period]",0,null,{"$f":"IFERROR(IF(OR($I119='Customized Embodied EF'!$B:$B),SUMIFS(M:M,$I:$I,$I119,$C:$C,\"G4.\")*IF($F119=\"Customized\",\nIF(_xlfn.XLOOKUP($I119,'Customized Embodied EF'!$B:$B,'Customized Embodied EF'!E:E,\"error\",0)=\"\",\"Factor error\",_xlfn.XLOOKUP($I119,'Customized Embodied EF'!$B:$B,'Customized Embodied EF'!E:E,\"error\",0)),_xlfn.XLOOKUP($I119,'Customized Embodied EF'!$B:$B,'Customized Embodied EF'!$D:$D,\"error\",0)),\"Factor error\"),\"Factor error\")","v":"Factor error"},{"$f":"IFERROR(IF(OR($I119='Customized Embodied EF'!$B:$B),SUMIFS(N:N,$I:$I,$I119,$C:$C,\"G4.\")*IF($F119=\"Customized\",\nIF(_xlfn.XLOOKUP($I119,'Customized Embodied EF'!$B:$B,'Customized Embodied EF'!F:F,\"error\",0)=\"\",\"Factor error\",_xlfn.XLOOKUP($I119,'Customized Embodied EF'!$B:$B,'Customized Embodied EF'!F:F,\"error\",0)),_xlfn.XLOOKUP($I119,'Customized Embodied EF'!$B:$B,'Customized Embodied EF'!$D:$D,\"error\",0)),\"Factor error\"),\"Factor error\")","v":"Factor error"},{"$f":"IFERROR(IF(OR($I119='Customized Embodied EF'!$B:$B),SUMIFS(O:O,$I:$I,$I119,$C:$C,\"G4.\")*IF($F119=\"Customized\",\nIF(_xlfn.XLOOKUP($I119,'Customized Embodied EF'!$B:$B,'Customized Embodied EF'!G:G,\"error\",0)=\"\",\"Factor error\",_xlfn.XLOOKUP($I119,'Customized Embodied EF'!$B:$B,'Customized Embodied EF'!G:G,\"error\",0)),_xlfn.XLOOKUP($I119,'Customized Embodied EF'!$B:$B,'Customized Embodied EF'!$D:$D,\"error\",0)),\"Factor error\"),\"Factor error\")","v":"Factor error"},{"$f":"IFERROR(IF(OR($I119='Customized Embodied EF'!$B:$B),SUMIFS(P:P,$I:$I,$I119,$C:$C,\"G4.\")*IF($F119=\"Customized\",\nIF(_xlfn.XLOOKUP($I119,'Customized Embodied EF'!$B:$B,'Customized Embodied EF'!H:H,\"error\",0)=\"\",\"Factor error\",_xlfn.XLOOKUP($I119,'Customized Embodied EF'!$B:$B,'Customized Embodied EF'!H:H,\"error\",0)),_xlfn.XLOOKUP($I119,'Customized Embodied EF'!$B:$B,'Customized Embodied EF'!$D:$D,\"error\",0)),\"Factor error\"),\"Factor error\")","v":"Factor error"},{"$f":"IFERROR(IF(OR($I119='Customized Embodied EF'!$B:$B),SUMIFS(Q:Q,$I:$I,$I119,$C:$C,\"G4.\")*IF($F119=\"Customized\",\nIF(_xlfn.XLOOKUP($I119,'Customized Embodied EF'!$B:$B,'Customized Embodied EF'!I:I,\"error\",0)=\"\",\"Factor error\",_xlfn.XLOOKUP($I119,'Customized Embodied EF'!$B:$B,'Customized Embodied EF'!I:I,\"error\",0)),_xlfn.XLOOKUP($I119,'Customized Embodied EF'!$B:$B,'Customized Embodied EF'!$D:$D,\"error\",0)),\"Factor error\"),\"Factor error\")","v":"Factor error"},{"$f":"IFERROR(IF(OR($I119='Customized Embodied EF'!$B:$B),SUMIFS(R:R,$I:$I,$I119,$C:$C,\"G4.\")*IF($F119=\"Customized\",\nIF(_xlfn.XLOOKUP($I119,'Customized Embodied EF'!$B:$B,'Customized Embodied EF'!J:J,\"error\",0)=\"\",\"Factor error\",_xlfn.XLOOKUP($I119,'Customized Embodied EF'!$B:$B,'Customized Embodied EF'!J:J,\"error\",0)),_xlfn.XLOOKUP($I119,'Customized Embodied EF'!$B:$B,'Customized Embodied EF'!$D:$D,\"error\",0)),\"Factor error\"),\"Factor error\")","v":"Factor error"}]
[null,null,null,{"$f":"D119","v":"A1.1.2"},".6",null,null,{"$f":"H50","v":"Energy commodity :"},null,"[t CO2e/reporting period]",{"$f":"SUM(M120:R120)","v":0},null,{"$f":"IFERROR(IF(OR($I120='Customized Embodied EF'!$B:$B),SUMIFS(M:M,$I:$I,$I120,$C:$C,\"G4.\")*IF($F120=\"Customized\",\nIF(_xlfn.XLOOKUP($I120,'Customized Embodied EF'!$B:$B,'Customized Embodied EF'!E:E,\"error\",0)=\"\",\"Factor error\",_xlfn.XLOOKUP($I120,'Customized Embodied EF'!$B:$B,'Customized Embodied EF'!E:E,\"error\",0)),_xlfn.XLOOKUP($I120,'Customized Embodied EF'!$B:$B,'Customized Embodied EF'!$D:$D,\"error\",0)),\"Factor error\"),\"Factor error\")","v":"Factor error"},{"$f":"IFERROR(IF(OR($I120='Customized Embodied EF'!$B:$B),SUMIFS(N:N,$I:$I,$I120,$C:$C,\"G4.\")*IF($F120=\"Customized\",\nIF(_xlfn.XLOOKUP($I120,'Customized Embodied EF'!$B:$B,'Customized Embodied EF'!F:F,\"error\",0)=\"\",\"Factor error\",_xlfn.XLOOKUP($I120,'Customized Embodied EF'!$B:$B,'Customized Embodied EF'!F:F,\"error\",0)),_xlfn.XLOOKUP($I120,'Customized Embodied EF'!$B:$B,'Customized Embodied EF'!$D:$D,\"error\",0)),\"Factor error\"),\"Factor error\")","v":"Factor error"},{"$f":"IFERROR(IF(OR($I120='Customized Embodied EF'!$B:$B),SUMIFS(O:O,$I:$I,$I120,$C:$C,\"G4.\")*IF($F120=\"Customized\",\nIF(_xlfn.XLOOKUP($I120,'Customized Embodied EF'!$B:$B,'Customized Embodied EF'!G:G,\"error\",0)=\"\",\"Factor error\",_xlfn.XLOOKUP($I120,'Customized Embodied EF'!$B:$B,'Customized Embodied EF'!G:G,\"error\",0)),_xlfn.XLOOKUP($I120,'Customized Embodied EF'!$B:$B,'Customized Embodied EF'!$D:$D,\"error\",0)),\"Factor error\"),\"Factor error\")","v":"Factor error"},{"$f":"IFERROR(IF(OR($I120='Customized Embodied EF'!$B:$B),SUMIFS(P:P,$I:$I,$I120,$C:$C,\"G4.\")*IF($F120=\"Customized\",\nIF(_xlfn.XLOOKUP($I120,'Customized Embodied EF'!$B:$B,'Customized Embodied EF'!H:H,\"error\",0)=\"\",\"Factor error\",_xlfn.XLOOKUP($I120,'Customized Embodied EF'!$B:$B,'Customized Embodied EF'!H:H,\"error\",0)),_xlfn.XLOOKUP($I120,'Customized Embodied EF'!$B:$B,'Customized Embodied EF'!$D:$D,\"error\",0)),\"Factor error\"),\"Factor error\")","v":"Factor error"},{"$f":"IFERROR(IF(OR($I120='Customized Embodied EF'!$B:$B),SUMIFS(Q:Q,$I:$I,$I120,$C:$C,\"G4.\")*IF($F120=\"Customized\",\nIF(_xlfn.XLOOKUP($I120,'Customized Embodied EF'!$B:$B,'Customized Embodied EF'!I:I,\"error\",0)=\"\",\"Factor error\",_xlfn.XLOOKUP($I120,'Customized Embodied EF'!$B:$B,'Customized Embodied EF'!I:I,\"error\",0)),_xlfn.XLOOKUP($I120,'Customized Embodied EF'!$B:$B,'Customized Embodied EF'!$D:$D,\"error\",0)),\"Factor error\"),\"Factor error\")","v":"Factor error"},{"$f":"IFERROR(IF(OR($I120='Customized Embodied EF'!$B:$B),SUMIFS(R:R,$I:$I,$I120,$C:$C,\"G4.\")*IF($F120=\"Customized\",\nIF(_xlfn.XLOOKUP($I120,'Customized Embodied EF'!$B:$B,'Customized Embodied EF'!J:J,\"error\",0)=\"\",\"Factor error\",_xlfn.XLOOKUP($I120,'Customized Embodied EF'!$B:$B,'Customized Embodied EF'!J:J,\"error\",0)),_xlfn.XLOOKUP($I120,'Customized Embodied EF'!$B:$B,'Customized Embodied EF'!$D:$D,\"error\",0)),\"Factor error\"),\"Factor error\")","v":"Factor error"}]
[null,null,"A1.2.5",null,null,null,null,null,"Total CO2e in Stage A1","[t CO2e/reporting period]",{"$f":"SUM(M121:R121)","v":0},null,{"$f":"IF(AND(M102=\"\",M113=\"\"),\"\",(M102+M113))","v":0},0,0,0,0,0]
[null,"A2","PROJECT LIFE CYCLE STAGE: A2 OFF-SITE TRANSPORTATION OF RAW MATERIALS TO MANUFACTURING PLANT"]
[null,null,"A2.1 CO2e EMISSIONS ",null,null,null,null,null,null,"unit","Total",null,"Product 1","Product 2","Product 3","Product 4","Product 5","Product 6"]
[null,null,"A2.1.1",null,null,"CO2e from off-site transportation of raw material to manufacturing plant"]
[null,null,null,{"$f":"C124","v":"A2.1.1"},".1","CO2e calculated using either 1) WRI & WBCSD's protocol OR 2) EPD & EMSD's carbon audit tool)",null,null,null,"[t CO2e/reporting period]",{"$f":"SUM(M125:R125)","v":0}]
[null,null,"A2.1.2",null,null,null,null,null,"Total CO2e in Stage A2","[t CO2e/reporting period]",{"$f":"IF(AND(K125=\"\"),\"\",(K125))","v":0},null,{"$f":"IF(AND(M125=\"\"),\"\",(M125))","v":""},{"$f":"IF(AND(N125=\"\"),\"\",(N125))","v":""},{"$f":"IF(AND(O125=\"\"),\"\",(O125))","v":""},"","",""]
[null,"A3","PROJECT LIFE CYCLE STAGE: A3 PRODUCT MANUFACTURING AND FABRICATION (WITHOUT WASTAGE)"]
[null,null,"A3.1 CO2e EMISSIONS ",null,null,null,null,null,null,"unit","Total",null,"Product 1","Product 2","Product 3","Product 4","Product 5","Product 6"]
[null,null,"A3.1.1",null,null,"CO2e from industrial processes",null,null,null,null,{"$f":"SUM(M129:R129)","v":0},null,{"$f":"SUMIF($D:$D,$C129,M:M)","v":0},{"$f":"SUMIF($D:$D,$C129,N:N)","v":0},0,0,0,0]
[null,null,null,{"$f":"C129","v":"A3.1.1"},".1","CO2e from coke production",null,null,null,"[t CO2e/reporting period]",{"$f":"SUM(M130:R130)","v":0},null,{"$f":"SUMIF($D:$D,$D133,M:M)+SUMIF($D:$D,$D140,M:M)","v":0},0,0,0,0,0]
[null,null,null,null,null,"[Please insert additional rows if more materials are included]"]
[null,null,null,{"$f":"D130&E130","v":"A3.1.1.1"},".1","Inputs",null,"Adopting C Content"]
[null,null,null,{"$f":"D132&E132","v":"A3.1.1.1.1"},".1",{"$f":"F57","v":"Blast furnace gas"},{"$f":"G57","v":"consumed at on-site facility"},null,null,"[t CO2e/reporting period]",{"$f":"SUM(M133:R133)","v":0},null,{"$f":"IF($H133=\"\",0,IFERROR(IF(OR($F133='Customized Process Factors'!$B:$B),(SUMIFS(M:M,$D:$D,$D$57,$F:$F,$F133))*IF($H133=\"Customized\",\nIF(_xlfn.XLOOKUP($F133,'Customized Process Factors'!$B:$B,'Customized Process Factors'!E:E,\"No C Content\",0)=\"\",\"factor error\",_xlfn.XLOOKUP($F133,'Customized Process Factors'!$B:$B,'Customized Process Factors'!E:E,\"No C Content\",0)),_xlfn.XLOOKUP($F133,'Customized Process Factors'!$B:$B,'Customized Process Factors'!$D:$D,\"No C Content\",0))*44/12,\"Factor error\"),\"Factor error\"))","v":0},{"$f":"IF($H133=\"\",0,IFERROR(IF(OR($F133='Customized Process Factors'!$B:$B),(SUMIFS(N:N,$D:$D,$D$57,$F:$F,$F133))*IF($H133=\"Customized\",\nIF(_xlfn.XLOOKUP($F133,'Customized Process Factors'!$B:$B,'Customized Process Factors'!F:F,\"No C Content\",0)=\"\",\"factor error\",_xlfn.XLOOKUP($F133,'Customized Process Factors'!$B:$B,'Customized Process Factors'!F:F,\"No C Content\",0)),_xlfn.XLOOKUP($F133,'Customized Process Factors'!$B:$B,'Customized Process Factors'!$D:$D,\"No C Content\",0))*44/12,\"Factor error\"),\"Factor error\"))","v":0},{"$f":"IF($H133=\"\",0,IFERROR(IF(OR($F133='Customized Process Factors'!$B:$B),(SUMIFS(O:O,$D:$D,$D$57,$F:$F,$F133))*IF($H133=\"Customized\",\nIF(_xlfn.XLOOKUP($F133,'Customized Process Factors'!$B:$B,'Customized Process Factors'!G:G,\"No C Content\",0)=\"\",\"factor error\",_xlfn.XLOOKUP($F133,'Customized Process Factors'!$B:$B,'Customized Process Factors'!G:G,\"No C Content\",0)),_xlfn.XLOOKUP($F133,'Customized Process Factors'!$B:$B,'Customized Process Factors'!$D:$D,\"No C Content\",0))*44/12,\"Factor error\"),\"Factor error\"))","v":0},{"$f":"IF($H133=\"\",0,IFERROR(IF(OR($F133='Customized Process Factors'!$B:$B),(SUMIFS(P:P,$D:$D,$D$57,$F:$F,$F133))*IF($H133=\"Customized\",\nIF(_xlfn.XLOOKUP($F133,'Customized Process Factors'!$B:$B,'Customized Process Factors'!H:H,\"No C Content\",0)=\"\",\"factor error\",_xlfn.XLOOKUP($F133,'Customized Process Factors'!$B:$B,'Customized Process Factors'!H:H,\"No C Content\",0)),_xlfn.XLOOKUP($F133,'Customized Process Factors'!$B:$B,'Customized Process Factors'!$D:$D,\"No C Content\",0))*44/12,\"Factor error\"),\"Factor error\"))","v":0},{"$f":"IF($H133=\"\",0,IFERROR(IF(OR($F133='Customized Process Factors'!$B:$B),(SUMIFS(Q:Q,$D:$D,$D$57,$F:$F,$F133))*IF($H133=\"Customized\",\nIF(_xlfn.XLOOKUP($F133,'Customized Process Factors'!$B:$B,'Customized Process Factors'!I:I,\"No C Content\",0)=\"\",\"factor error\",_xlfn.XLOOKUP($F133,'Customized Process Factors'!$B:$B,'Customized Process Factors'!I:I,\"No C Content\",0)),_xlfn.XLOOKUP($F133,'Customized Process Factors'!$B:$B,'Customized Process Factors'!$D:$D,\"No C Content\",0))*44/12,\"Factor error\"),\"Factor error\"))","v":0},{"$f":"IF($H133=\"\",0,IFERROR(IF(OR($F133='Customized Process Factors'!$B:$B),(SUMIFS(R:R,$D:$D,$D$57,$F:$F,$F133))*IF($H133=\"Customized\",\nIF(_xlfn.XLOOKUP($F133,'Customized Process Factors'!$B:$B,'Customized Process Factors'!J:J,\"No C Content\",0)=\"\",\"factor error\",_xlfn.XLOOKUP($F133,'Customized Process Factors'!$B:$B,'Customized Process Factors'!J:J,\"No C Content\",0)),_xlfn.XLOOKUP($F133,'Customized Process Factors'!$B:$B,'Customized Process Factors'!$D:$D,\"No C Content\",0))*44/12,\"Factor error\"),\"Factor error\"))","v":0}]
[null,null,null,{"$f":"D133","v":"A3.1.1.1.1"},".2",{"$f":"IF(F58=\"\",\"\",F58)","v":""},null,null,null,"[t CO2e/reporting period]",0,null,{"$f":"IF($H134=\"\",0,IFERROR(IF(OR($F134='Customized Process Factors'!$B:$B),(SUMIFS(M:M,$D:$D,$D$57,$F:$F,$F134))*IF($H134=\"Customized\",\nIF(_xlfn.XLOOKUP($F134,'Customized Process Factors'!$B:$B,'Customized Process Factors'!E:E,\"No C Content\",0)=\"\",\"factor error\",_xlfn.XLOOKUP($F134,'Customized Process Factors'!$B:$B,'Customized Process Factors'!E:E,\"No C Content\",0)),_xlfn.XLOOKUP($F134,'Customized Process Factors'!$B:$B,'Customized Process Factors'!$D:$D,\"No C Content\",0))*44/12,\"Factor error\"),\"Factor error\"))","v":0},{"$f":"IF($H134=\"\",0,IFERROR(IF(OR($F134='Customized Process Factors'!$B:$B),(SUMIFS(N:N,$D:$D,$D$57,$F:$F,$F134))*IF($H134=\"Customized\",\nIF(_xlfn.XLOOKUP($F134,'Customized Process Factors'!$B:$B,'Customized Process Factors'!F:F,\"No C Content\",0)=\"\",\"factor error\",_xlfn.XLOOKUP($F134,'Customized Process Factors'!$B:$B,'Customized Process Factors'!F:F,\"No C Content\",0)),_xlfn.XLOOKUP($F134,'Customized Process Factors'!$B:$B,'Customized Process Factors'!$D:$D,\"No C Content\",0))*44/12,\"Factor error\"),\"Factor error\"))","v":0},{"$f":"IF($H134=\"\",0,IFERROR(IF(OR($F134='Customized Process Factors'!$B:$B),(SUMIFS(O:O,$D:$D,$D$57,$F:$F,$F134))*IF($H134=\"Customized\",\nIF(_xlfn.XLOOKUP($F134,'Customized Process Factors'!$B:$B,'Customized Process Factors'!G:G,\"No C Content\",0)=\"\",\"factor error\",_xlfn.XLOOKUP($F134,'Customized Process Factors'!$B:$B,'Customized Process Factors'!G:G,\"No C Content\",0)),_xlfn.XLOOKUP($F134,'Customized Process Factors'!$B:$B,'Customized Process Factors'!$D:$D,\"No C Content\",0))*44/12,\"Factor error\"),\"Factor error\"))","v":0},{"$f":"IF($H134=\"\",0,IFERROR(IF(OR($F134='Customized Process Factors'!$B:$B),(SUMIFS(P:P,$D:$D,$D$57,$F:$F,$F134))*IF($H134=\"Customized\",\nIF(_xlfn.XLOOKUP($F134,'Customized Process Factors'!$B:$B,'Customized Process Factors'!H:H,\"No C Content\",0)=\"\",\"factor error\",_xlfn.XLOOKUP($F134,'Customized Process Factors'!$B:$B,'Customized Process Factors'!H:H,\"No C Content\",0)),_xlfn.XLOOKUP($F134,'Customized Process Factors'!$B:$B,'Customized Process Factors'!$D:$D,\"No C Content\",0))*44/12,\"Factor error\"),\"Factor error\"))","v":0},{"$f":"IF($H134=\"\",0,IFERROR(IF(OR($F134='Customized Process Factors'!$B:$B),(SUMIFS(Q:Q,$D:$D,$D$57,$F:$F,$F134))*IF($H134=\"Customized\",\nIF(_xlfn.XLOOKUP($F134,'Customized Process Factors'!$B:$B,'Customized Process Factors'!I:I,\"No C Content\",0)=\"\",\"factor error\",_xlfn.XLOOKUP($F134,'Customized Process Factors'!$B:$B,'Customized Process Factors'!I:I,\"No C Content\",0)),_xlfn.XLOOKUP($F134,'Customized Process Factors'!$B:$B,'Customized Process Factors'!$D:$D,\"No C Content\",0))*44/12,\"Factor error\"),\"Factor error\"))","v":0},{"$f":"IF($H134=\"\",0,IFERROR(IF(OR($F134='Customized Process Factors'!$B:$B),(SUMIFS(R:R,$D:$D,$D$57,$F:$F,$F134))*IF($H134=\"Customized\",\nIF(_xlfn.XLOOKUP($F134,'Customized Process Factors'!$B:$B,'Customized Process Factors'!J:J,\"No C Content\",0)=\"\",\"factor error\",_xlfn.XLOOKUP($F134,'Customized Process Factors'!$B:$B,'Customized Process Factors'!J:J,\"No C Content\",0)),_xlfn.XLOOKUP($F134,'Customized Process Factors'!$B:$B,'Customized Process Factors'!$D:$D,\"No C Content\",0))*44/12,\"Factor error\"),\"Factor error\"))","v":0}]
[null,null,null,{"$f":"D134","v":"A3.1.1.1.1"},".3",{"$f":"IF(F59=\"\",\"\",F59)","v":""},null,null,null,"[t CO2e/reporting period]",0,null,{"$f":"IF($H135=\"\",0,IFERROR(IF(OR($F135='Customized Process Factors'!$B:$B),(SUMIFS(M:M,$D:$D,$D$57,$F:$F,$F135))*IF($H135=\"Customized\",\nIF(_xlfn.XLOOKUP($F135,'Customized Process Factors'!$B:$B,'Customized Process Factors'!E:E,\"No C Content\",0)=\"\",\"factor error\",_xlfn.XLOOKUP($F135,'Customized Process Factors'!$B:$B,'Customized Process Factors'!E:E,\"No C Content\",0)),_xlfn.XLOOKUP($F135,'Customized Process Factors'!$B:$B,'Customized Process Factors'!$D:$D,\"No C Content\",0))*44/12,\"Factor error\"),\"Factor error\"))","v":0},{"$f":"IF($H135=\"\",0,IFERROR(IF(OR($F135='Customized Process Factors'!$B:$B),(SUMIFS(N:N,$D:$D,$D$57,$F:$F,$F135))*IF($H135=\"Customized\",\nIF(_xlfn.XLOOKUP($F135,'Customized Process Factors'!$B:$B,'Customized Process Factors'!F:F,\"No C Content\",0)=\"\",\"factor error\",_xlfn.XLOOKUP($F135,'Customized Process Factors'!$B:$B,'Customized Process Factors'!F:F,\"No C Content\",0)),_xlfn.XLOOKUP($F135,'Customized Process Factors'!$B:$B,'Customized Process Factors'!$D:$D,\"No C Content\",0))*44/12,\"Factor error\"),\"Factor error\"))","v":0},{"$f":"IF($H135=\"\",0,IFERROR(IF(OR($F135='Customized Process Factors'!$B:$B),(SUMIFS(O:O,$D:$D,$D$57,$F:$F,$F135))*IF($H135=\"Customized\",\nIF(_xlfn.XLOOKUP($F135,'Customized Process Factors'!$B:$B,'Customized Process Factors'!G:G,\"No C Content\",0)=\"\",\"factor error\",_xlfn.XLOOKUP($F135,'Customized Process Factors'!$B:$B,'Customized Process Factors'!G:G,\"No C Content\",0)),_xlfn.XLOOKUP($F135,'Customized Process Factors'!$B:$B,'Customized Process Factors'!$D:$D,\"No C Content\",0))*44/12,\"Factor error\"),\"Factor error\"))","v":0},{"$f":"IF($H135=\"\",0,IFERROR(IF(OR($F135='Customized Process Factors'!$B:$B),(SUMIFS(P:P,$D:$D,$D$57,$F:$F,$F135))*IF($H135=\"Customized\",\nIF(_xlfn.XLOOKUP($F135,'Customized Process Factors'!$B:$B,'Customized Process Factors'!H:H,\"No C Content\",0)=\"\",\"factor error\",_xlfn.XLOOKUP($F135,'Customized Process Factors'!$B:$B,'Customized Process Factors'!H:H,\"No C Content\",0)),_xlfn.XLOOKUP($F135,'Customized Process Factors'!$B:$B,'Customized Process Factors'!$D:$D,\"No C Content\",0))*44/12,\"Factor error\"),\"Factor error\"))","v":0},{"$f":"IF($H135=\"\",0,IFERROR(IF(OR($F135='Customized Process Factors'!$B:$B),(SUMIFS(Q:Q,$D:$D,$D$57,$F:$F,$F135))*IF($H135=\"Customized\",\nIF(_xlfn.XLOOKUP($F135,'Customized Process Factors'!$B:$B,'Customized Process Factors'!I:I,\"No C Content\",0)=\"\",\"factor error\",_xlfn.XLOOKUP($F135,'Customized Process Factors'!$B:$B,'Customized Process Factors'!I:I,\"No C Content\",0)),_xlfn.XLOOKUP($F135,'Customized Process Factors'!$B:$B,'Customized Process Factors'!$D:$D,\"No C Content\",0))*44/12,\"Factor error\"),\"Factor error\"))","v":0},{"$f":"IF($H135=\"\",0,IFERROR(IF(OR($F135='Customized Process Factors'!$B:$B),(SUMIFS(R:R,$D:$D,$D$57,$F:$F,$F135))*IF($H135=\"Customized\",\nIF(_xlfn.XLOOKUP($F135,'Customized Process Factors'!$B:$B,'Customized Process Factors'!J:J,\"No C Content\",0)=\"\",\"factor error\",_xlfn.XLOOKUP($F135,'Customized Process Factors'!$B:$B,'Customized Process Factors'!J:J,\"No C Content\",0)),_xlfn.XLOOKUP($F135,'Customized Process Factors'!$B:$B,'Customized Process Factors'!$D:$D,\"No C Content\",0))*44/12,\"Factor error\"),\"Factor error\"))","v":0}]
[null,null,null,{"$f":"D135","v":"A3.1.1.1.1"},".4",{"$f":"IF(F60=\"\",\"\",F60)","v":""},null,null,null,"[t CO2e/reporting period]",0,null,{"$f":"IF($H136=\"\",0,IFERROR(IF(OR($F136='Customized Process Factors'!$B:$B),(SUMIFS(M:M,$D:$D,$D$57,$F:$F,$F136))*IF($H136=\"Customized\",\nIF(_xlfn.XLOOKUP($F136,'Customized Process Factors'!$B:$B,'Customized Process Factors'!E:E,\"No C Content\",0)=\"\",\"factor error\",_xlfn.XLOOKUP($F136,'Customized Process Factors'!$B:$B,'Customized Process Factors'!E:E,\"No C Content\",0)),_xlfn.XLOOKUP($F136,'Customized Process Factors'!$B:$B,'Customized Process Factors'!$D:$D,\"No C Content\",0))*44/12,\"Factor error\"),\"Factor error\"))","v":0},{"$f":"IF($H136=\"\",0,IFERROR(IF(OR($F136='Customized Process Factors'!$B:$B),(SUMIFS(N:N,$D:$D,$D$57,$F:$F,$F136))*IF($H136=\"Customized\",\nIF(_xlfn.XLOOKUP($F136,'Customized Process Factors'!$B:$B,'Customized Process Factors'!F:F,\"No C Content\",0)=\"\",\"factor error\",_xlfn.XLOOKUP($F136,'Customized Process Factors'!$B:$B,'Customized Process Factors'!F:F,\"No C Content\",0)),_xlfn.XLOOKUP($F136,'Customized Process Factors'!$B:$B,'Customized Process Factors'!$D:$D,\"No C Content\",0))*44/12,\"Factor error\"),\"Factor error\"))","v":0},{"$f":"IF($H136=\"\",0,IFERROR(IF(OR($F136='Customized Process Factors'!$B:$B),(SUMIFS(O:O,$D:$D,$D$57,$F:$F,$F136))*IF($H136=\"Customized\",\nIF(_xlfn.XLOOKUP($F136,'Customized Process Factors'!$B:$B,'Customized Process Factors'!G:G,\"No C Content\",0)=\"\",\"factor error\",_xlfn.XLOOKUP($F136,'Customized Process Factors'!$B:$B,'Customized Process Factors'!G:G,\"No C Content\",0)),_xlfn.XLOOKUP($F136,'Customized Process Factors'!$B:$B,'Customized Process Factors'!$D:$D,\"No C Content\",0))*44/12,\"Factor error\"),\"Factor error\"))","v":0},{"$f":"IF($H136=\"\",0,IFERROR(IF(OR($F136='Customized Process Factors'!$B:$B),(SUMIFS(P:P,$D:$D,$D$57,$F:$F,$F136))*IF($H136=\"Customized\",\nIF(_xlfn.XLOOKUP($F136,'Customized Process Factors'!$B:$B,'Customized Process Factors'!H:H,\"No C Content\",0)=\"\",\"factor error\",_xlfn.XLOOKUP($F136,'Customized Process Factors'!$B:$B,'Customized Process Factors'!H:H,\"No C Content\",0)),_xlfn.XLOOKUP($F136,'Customized Process Factors'!$B:$B,'Customized Process Factors'!$D:$D,\"No C Content\",0))*44/12,\"Factor error\"),\"Factor error\"))","v":0},{"$f":"IF($H136=\"\",0,IFERROR(IF(OR($F136='Customized Process Factors'!$B:$B),(SUMIFS(Q:Q,$D:$D,$D$57,$F:$F,$F136))*IF($H136=\"Customized\",\nIF(_xlfn.XLOOKUP($F136,'Customized Process Factors'!$B:$B,'Customized Process Factors'!I:I,\"No C Content\",0)=\"\",\"factor error\",_xlfn.XLOOKUP($F136,'Customized Process Factors'!$B:$B,'Customized Process Factors'!I:I,\"No C Content\",0)),_xlfn.XLOOKUP($F136,'Customized Process Factors'!$B:$B,'Customized Process Factors'!$D:$D,\"No C Content\",0))*44/12,\"Factor error\"),\"Factor error\"))","v":0},{"$f":"IF($H136=\"\",0,IFERROR(IF(OR($F136='Customized Process Factors'!$B:$B),(SUMIFS(R:R,$D:$D,$D$57,$F:$F,$F136))*IF($H136=\"Customized\",\nIF(_xlfn.XLOOKUP($F136,'Customized Process Factors'!$B:$B,'Customized Process Factors'!J:J,\"No C Content\",0)=\"\",\"factor error\",_xlfn.XLOOKUP($F136,'Customized Process Factors'!$B:$B,'Customized Process Factors'!J:J,\"No C Content\",0)),_xlfn.XLOOKUP($F136,'Customized Process Factors'!$B:$B,'Customized Process Factors'!$D:$D,\"No C Content\",0))*44/12,\"Factor error\"),\"Factor error\"))","v":0}]
[null,null,null,{"$f":"D136","v":"A3.1.1.1.1"},".5",{"$f":"IF(F61=\"\",\"\",F61)","v":""},null,null,null,"[t CO2e/reporting period]",0,null,{"$f":"IF($H137=\"\",0,IFERROR(IF(OR($F137='Customized Process Factors'!$B:$B),(SUMIFS(M:M,$D:$D,$D$57,$F:$F,$F137))*IF($H137=\"Customized\",\nIF(_xlfn.XLOOKUP($F137,'Customized Process Factors'!$B:$B,'Customized Process Factors'!E:E,\"No C Content\",0)=\"\",\"factor error\",_xlfn.XLOOKUP($F137,'Customized Process Factors'!$B:$B,'Customized Process Factors'!E:E,\"No C Content\",0)),_xlfn.XLOOKUP($F137,'Customized Process Factors'!$B:$B,'Customized Process Factors'!$D:$D,\"No C Content\",0))*44/12,\"Factor error\"),\"Factor error\"))","v":0},{"$f":"IF($H137=\"\",0,IFERROR(IF(OR($F137='Customized Process Factors'!$B:$B),(SUMIFS(N:N,$D:$D,$D$57,$F:$F,$F137))*IF($H137=\"Customized\",\nIF(_xlfn.XLOOKUP($F137,'Customized Process Factors'!$B:$B,'Customized Process Factors'!F:F,\"No C Content\",0)=\"\",\"factor error\",_xlfn.XLOOKUP($F137,'Customized Process Factors'!$B:$B,'Customized Process Factors'!F:F,\"No C Content\",0)),_xlfn.XLOOKUP($F137,'Customized Process Factors'!$B:$B,'Customized Process Factors'!$D:$D,\"No C Content\",0))*44/12,\"Factor error\"),\"Factor error\"))","v":0},{"$f":"IF($H137=\"\",0,IFERROR(IF(OR($F137='Customized Process Factors'!$B:$B),(SUMIFS(O:O,$D:$D,$D$57,$F:$F,$F137))*IF($H137=\"Customized\",\nIF(_xlfn.XLOOKUP($F137,'Customized Process Factors'!$B:$B,'Customized Process Factors'!G:G,\"No C Content\",0)=\"\",\"factor error\",_xlfn.XLOOKUP($F137,'Customized Process Factors'!$B:$B,'Customized Process Factors'!G:G,\"No C Content\",0)),_xlfn.XLOOKUP($F137,'Customized Process Factors'!$B:$B,'Customized Process Factors'!$D:$D,\"No C Content\",0))*44/12,\"Factor error\"),\"Factor error\"))","v":0},{"$f":"IF($H137=\"\",0,IFERROR(IF(OR($F137='Customized Process Factors'!$B:$B),(SUMIFS(P:P,$D:$D,$D$57,$F:$F,$F137))*IF($H137=\"Customized\",\nIF(_xlfn.XLOOKUP($F137,'Customized Process Factors'!$B:$B,'Customized Process Factors'!H:H,\"No C Content\",0)=\"\",\"factor error\",_xlfn.XLOOKUP($F137,'Customized Process Factors'!$B:$B,'Customized Process Factors'!H:H,\"No C Content\",0)),_xlfn.XLOOKUP($F137,'Customized Process Factors'!$B:$B,'Customized Process Factors'!$D:$D,\"No C Content\",0))*44/12,\"Factor error\"),\"Factor error\"))","v":0},{"$f":"IF($H137=\"\",0,IFERROR(IF(OR($F137='Customized Process Factors'!$B:$B),(SUMIFS(Q:Q,$D:$D,$D$57,$F:$F,$F137))*IF($H137=\"Customized\",\nIF(_xlfn.XLOOKUP($F137,'Customized Process Factors'!$B:$B,'Customized Process Factors'!I:I,\"No C Content\",0)=\"\",\"factor error\",_xlfn.XLOOKUP($F137,'Customized Process Factors'!$B:$B,'Customized Process Factors'!I:I,\"No C Content\",0)),_xlfn.XLOOKUP($F137,'Customized Process Factors'!$B:$B,'Customized Process Factors'!$D:$D,\"No C Content\",0))*44/12,\"Factor error\"),\"Factor error\"))","v":0},{"$f":"IF($H137=\"\",0,IFERROR(IF(OR($F137='Customized Process Factors'!$B:$B),(SUMIFS(R:R,$D:$D,$D$57,$F:$F,$F137))*IF($H137=\"Customized\",\nIF(_xlfn.XLOOKUP($F137,'Customized Process Factors'!$B:$B,'Customized Process Factors'!J:J,\"No C Content\",0)=\"\",\"factor error\",_xlfn.XLOOKUP($F137,'Customized Process Factors'!$B:$B,'Customized Process Factors'!J:J,\"No C Content\",0)),_xlfn.XLOOKUP($F137,'Customized Process Factors'!$B:$B,'Customized Process Factors'!$D:$D,\"No C Content\",0))*44/12,\"Factor error\"),\"Factor error\"))","v":0}]
[null,null,null,{"$f":"D137","v":"A3.1.1.1.1"},".6",{"$f":"IF(F62=\"\",\"\",F62)","v":""},null,null,null,"[t CO2e/reporting period]",{"$f":"SUM(M138:R138)","v":0},null,{"$f":"IF($H138=\"\",0,IFERROR(IF(OR($F138='Customized Process Factors'!$B:$B),(SUMIFS(M:M,$D:$D,$D$57,$F:$F,$F138))*IF($H138=\"Customized\",\nIF(_xlfn.XLOOKUP($F138,'Customized Process Factors'!$B:$B,'Customized Process Factors'!E:E,\"No C Content\",0)=\"\",\"factor error\",_xlfn.XLOOKUP($F138,'Customized Process Factors'!$B:$B,'Customized Process Factors'!E:E,\"No C Content\",0)),_xlfn.XLOOKUP($F138,'Customized Process Factors'!$B:$B,'Customized Process Factors'!$D:$D,\"No C Content\",0))*44/12,\"Factor error\"),\"Factor error\"))","v":0},{"$f":"IF($H138=\"\",0,IFERROR(IF(OR($F138='Customized Process Factors'!$B:$B),(SUMIFS(N:N,$D:$D,$D$57,$F:$F,$F138))*IF($H138=\"Customized\",\nIF(_xlfn.XLOOKUP($F138,'Customized Process Factors'!$B:$B,'Customized Process Factors'!F:F,\"No C Content\",0)=\"\",\"factor error\",_xlfn.XLOOKUP($F138,'Customized Process Factors'!$B:$B,'Customized Process Factors'!F:F,\"No C Content\",0)),_xlfn.XLOOKUP($F138,'Customized Process Factors'!$B:$B,'Customized Process Factors'!$D:$D,\"No C Content\",0))*44/12,\"Factor error\"),\"Factor error\"))","v":0},{"$f":"IF($H138=\"\",0,IFERROR(IF(OR($F138='Customized Process Factors'!$B:$B),(SUMIFS(O:O,$D:$D,$D$57,$F:$F,$F138))*IF($H138=\"Customized\",\nIF(_xlfn.XLOOKUP($F138,'Customized Process Factors'!$B:$B,'Customized Process Factors'!G:G,\"No C Content\",0)=\"\",\"factor error\",_xlfn.XLOOKUP($F138,'Customized Process Factors'!$B:$B,'Customized Process Factors'!G:G,\"No C Content\",0)),_xlfn.XLOOKUP($F138,'Customized Process Factors'!$B:$B,'Customized Process Factors'!$D:$D,\"No C Content\",0))*44/12,\"Factor error\"),\"Factor error\"))","v":0},{"$f":"IF($H138=\"\",0,IFERROR(IF(OR($F138='Customized Process Factors'!$B:$B),(SUMIFS(P:P,$D:$D,$D$57,$F:$F,$F138))*IF($H138=\"Customized\",\nIF(_xlfn.XLOOKUP($F138,'Customized Process Factors'!$B:$B,'Customized Process Factors'!H:H,\"No C Content\",0)=\"\",\"factor error\",_xlfn.XLOOKUP($F138,'Customized Process Factors'!$B:$B,'Customized Process Factors'!H:H,\"No C Content\",0)),_xlfn.XLOOKUP($F138,'Customized Process Factors'!$B:$B,'Customized Process Factors'!$D:$D,\"No C Content\",0))*44/12,\"Factor error\"),\"Factor error\"))","v":0},{"$f":"IF($H138=\"\",0,IFERROR(IF(OR($F138='Customized Process Factors'!$B:$B),(SUMIFS(Q:Q,$D:$D,$D$57,$F:$F,$F138))*IF($H138=\"Customized\",\nIF(_xlfn.XLOOKUP($F138,'Customized Process Factors'!$B:$B,'Customized Process Factors'!I:I,\"No C Content\",0)=\"\",\"factor error\",_xlfn.XLOOKUP($F138,'Customized Process Factors'!$B:$B,'Customized Process Factors'!I:I,\"No C Content\",0)),_xlfn.XLOOKUP($F138,'Customized Process Factors'!$B:$B,'Customized Process Factors'!$D:$D,\"No C Content\",0))*44/12,\"Factor error\"),\"Factor error\"))","v":0},{"$f":"IF($H138=\"\",0,IFERROR(IF(OR($F138='Customized Process Factors'!$B:$B),(SUMIFS(R:R,$D:$D,$D$57,$F:$F,$F138))*IF($H138=\"Customized\",\nIF(_xlfn.XLOOKUP($F138,'Customized Process Factors'!$B:$B,'Customized Process Factors'!J:J,\"No C Content\",0)=\"\",\"factor error\",_xlfn.XLOOKUP($F138,'Customized Process Factors'!$B:$B,'Customized Process Factors'!J:J,\"No C Content\",0)),_xlfn.XLOOKUP($F138,'Customized Process Factors'!$B:$B,'Customized Process Factors'!$D:$D,\"No C Content\",0))*44/12,\"Factor error\"),\"Factor error\"))","v":0}]
[null,null,null,{"$f":"D132","v":"A3.1.1.1"},".2","Outputs",null,"Adopting C Content","Adopting CH4 Emission Factor"]
[null,null,null,{"$f":"D139&E139","v":"A3.1.1.1.2"},".1",{"$f":"F64","v":"Coke"},"produced",null,null,"[t CO2e/reporting period]",0,null,{"$f":"IFERROR(-IF($H140=\"\",0,IF(OR($F140='Customized Process Factors'!$B:$B),(SUMIFS(M:M,$D:$D,$D$64,$F:$F,$F140))*IF($H140=\"Customized\",\nIF(_xlfn.XLOOKUP($F140,'Customized Process Factors'!$B:$B,'Customized Process Factors'!E:E,\"No C Content\",0)=\"\",\"factor error\",_xlfn.XLOOKUP($F140,'Customized Process Factors'!$B:$B,'Customized Process Factors'!E:E,\"No C Content\",0)),\n_xlfn.XLOOKUP($F140,'Customized Process Factors'!$B:$B,'Customized Process Factors'!$D:$D,\"No C Content\",0))*44/12,\"Factor error\"))\n\n+IF($I140=\"\",0,IF(OR($F140='Customized Process Factors'!$A:$A),(SUMIFS(M:M,$D:$D,$D$64,$F:$F,$F140))*IF($I140=\"Customized\",\nIF(_xlfn.XLOOKUP($F140,'Customized Process Factors'!$A:$A,'Customized Process Factors'!E:E,\"No CH4 Content\",0)=\"\",\"factor error\",_xlfn.XLOOKUP($F140,'Customized Process Factors'!$A:$A,'Customized Process Factors'!E:E,\"No CH4 Content\",0)),\n_xlfn.XLOOKUP($F140,'Customized Process Factors'!$A:$A,'Customized Process Factors'!$D:$D,\"No CH4 Content\",0))*'Customized Process Factors'!$D$109,\"Factor error\")),\"Factor error\")","v":0},{"$f":"IFERROR(-IF($H140=\"\",0,IF(OR($F140='Customized Process Factors'!$B:$B),(SUMIFS(N:N,$D:$D,$D$64,$F:$F,$F140))*IF($H140=\"Customized\",\nIF(_xlfn.XLOOKUP($F140,'Customized Process Factors'!$B:$B,'Customized Process Factors'!F:F,\"No C Content\",0)=\"\",\"factor error\",_xlfn.XLOOKUP($F140,'Customized Process Factors'!$B:$B,'Customized Process Factors'!F:F,\"No C Content\",0)),\n_xlfn.XLOOKUP($F140,'Customized Process Factors'!$B:$B,'Customized Process Factors'!$D:$D,\"No C Content\",0))*44/12,\"Factor error\"))\n\n+IF($I140=\"\",0,IF(OR($F140='Customized Process Factors'!$A:$A),(SUMIFS(N:N,$D:$D,$D$64,$F:$F,$F140))*IF($I140=\"Customized\",\nIF(_xlfn.XLOOKUP($F140,'Customized Process Factors'!$A:$A,'Customized Process Factors'!F:F,\"No CH4 Content\",0)=\"\",\"factor error\",_xlfn.XLOOKUP($F140,'Customized Process Factors'!$A:$A,'Customized Process Factors'!F:F,\"No CH4 Content\",0)),\n_xlfn.XLOOKUP($F140,'Customized Process Factors'!$A:$A,'Customized Process Factors'!$D:$D,\"No CH4 Content\",0))*'Customized Process Factors'!$D$109,\"Factor error\")),\"Factor error\")","v":0},{"$f":"IFERROR(-IF($H140=\"\",0,IF(OR($F140='Customized Process Factors'!$B:$B),(SUMIFS(O:O,$D:$D,$D$64,$F:$F,$F140))*IF($H140=\"Customized\",\nIF(_xlfn.XLOOKUP($F140,'Customized Process Factors'!$B:$B,'Customized Process Factors'!G:G,\"No C Content\",0)=\"\",\"factor error\",_xlfn.XLOOKUP($F140,'Customized Process Factors'!$B:$B,'Customized Process Factors'!G:G,\"No C Content\",0)),\n_xlfn.XLOOKUP($F140,'Customized Process Factors'!$B:$B,'Customized Process Factors'!$D:$D,\"No C Content\",0))*44/12,\"Factor error\"))\n\n+IF($I140=\"\",0,IF(OR($F140='Customized Process Factors'!$A:$A),(SUMIFS(O:O,$D:$D,$D$64,$F:$F,$F140))*IF($I140=\"Customized\",\nIF(_xlfn.XLOOKUP($F140,'Customized Process Factors'!$A:$A,'Customized Process Factors'!G:G,\"No CH4 Content\",0)=\"\",\"factor error\",_xlfn.XLOOKUP($F140,'Customized Process Factors'!$A:$A,'Customized Process Factors'!G:G,\"No CH4 Content\",0)),\n_xlfn.XLOOKUP($F140,'Customized Process Factors'!$A:$A,'Customized Process Factors'!$D:$D,\"No CH4 Content\",0))*'Customized Process Factors'!$D$109,\"Factor error\")),\"Factor error\")","v":0},{"$f":"IFERROR(-IF($H140=\"\",0,IF(OR($F140='Customized Process Factors'!$B:$B),(SUMIFS(P:P,$D:$D,$D$64,$F:$F,$F140))*IF($H140=\"Customized\",\nIF(_xlfn.XLOOKUP($F140,'Customized Process Factors'!$B:$B,'Customized Process Factors'!H:H,\"No C Content\",0)=\"\",\"factor error\",_xlfn.XLOOKUP($F140,'Customized Process Factors'!$B:$B,'Customized Process Factors'!H:H,\"No C Content\",0)),\n_xlfn.XLOOKUP($F140,'Customized Process Factors'!$B:$B,'Customized Process Factors'!$D:$D,\"No C Content\",0))*44/12,\"Factor error\"))\n\n+IF($I140=\"\",0,IF(OR($F140='Customized Process Factors'!$A:$A),(SUMIFS(P:P,$D:$D,$D$64,$F:$F,$F140))*IF($I140=\"Customized\",\nIF(_xlfn.XLOOKUP($F140,'Customized Process Factors'!$A:$A,'Customized Process Factors'!H:H,\"No CH4 Content\",0)=\"\",\"factor error\",_xlfn.XLOOKUP($F140,'Customized Process Factors'!$A:$A,'Customized Process Factors'!H:H,\"No CH4 Content\",0)),\n_xlfn.XLOOKUP($F140,'Customized Process Factors'!$A:$A,'Customized Process Factors'!$D:$D,\"No CH4 Content\",0))*'Customized Process Factors'!$D$109,\"Factor error\")),\"Factor error\")","v":0},{"$f":"IFERROR(-IF($H140=\"\",0,IF(OR($F140='Customized Process Factors'!$B:$B),(SUMIFS(Q:Q,$D:$D,$D$64,$F:$F,$F140))*IF($H140=\"Customized\",\nIF(_xlfn.XLOOKUP($F140,'Customized Process Factors'!$B:$B,'Customized Process Factors'!I:I,\"No C Content\",0)=\"\",\"factor error\",_xlfn.XLOOKUP($F140,'Customized Process Factors'!$B:$B,'Customized Process Factors'!I:I,\"No C Content\",0)),\n_xlfn.XLOOKUP($F140,'Customized Process Factors'!$B:$B,'Customized Process Factors'!$D:$D,\"No C Content\",0))*44/12,\"Factor error\"))\n\n+IF($I140=\"\",0,IF(OR($F140='Customized Process Factors'!$A:$A),(SUMIFS(Q:Q,$D:$D,$D$64,$F:$F,$F140))*IF($I140=\"Customized\",\nIF(_xlfn.XLOOKUP($F140,'Customized Process Factors'!$A:$A,'Customized Process Factors'!I:I,\"No CH4 Content\",0)=\"\",\"factor error\",_xlfn.XLOOKUP($F140,'Customized Process Factors'!$A:$A,'Customized Process Factors'!I:I,\"No CH4 Content\",0)),\n_xlfn.XLOOKUP($F140,'Customized Process Factors'!$A:$A,'Customized Process Factors'!$D:$D,\"No CH4 Content\",0))*'Customized Process Factors'!$D$109,\"Factor error\")),\"Factor error\")","v":0},{"$f":"IFERROR(-IF($H140=\"\",0,IF(OR($F140='Customized Process Factors'!$B:$B),(SUMIFS(R:R,$D:$D,$D$64,$F:$F,$F140))*IF($H140=\"Customized\",\nIF(_xlfn.XLOOKUP($F140,'Customized Process Factors'!$B:$B,'Customized Process Factors'!J:J,\"No C Content\",0)=\"\",\"factor error\",_xlfn.XLOOKUP($F140,'Customized Process Factors'!$B:$B,'Customized Process Factors'!J:J,\"No C Content\",0)),\n_xlfn.XLOOKUP($F140,'Customized Process Factors'!$B:$B,'Customized Process Factors'!$D:$D,\"No C Content\",0))*44/12,\"Factor error\"))\n\n+IF($I140=\"\",0,IF(OR($F140='Customized Process Factors'!$A:$A),(SUMIFS(R:R,$D:$D,$D$64,$F:$F,$F140))*IF($I140=\"Customized\",\nIF(_xlfn.XLOOKUP($F140,'Customized Process Factors'!$A:$A,'Customized Process Factors'!J:J,\"No CH4 Content\",0)=\"\",\"factor error\",_xlfn.XLOOKUP($F140,'Customized Process Factors'!$A:$A,'Customized Process Factors'!J:J,\"No CH4 Content\",0)),\n_xlfn.XLOOKUP($F140,'Customized Process Factors'!$A:$A,'Customized Process Factors'!$D:$D,\"No CH4 Content\",0))*'Customized Process Factors'!$D$109,\"Factor error\")),\"Factor error\")","v":0}]
[null,null,null,{"$f":"D140","v":"A3.1.1.1.2"},".2","Coke oven gas","transferred offsite",null,null,"[t CO2e/reporting period]",0,null,{"$f":"IFERROR(-IF($H141=\"\",0,IF(OR($F141='Customized Process Factors'!$B:$B),(SUMIFS(M:M,$D:$D,$D$64,$F:$F,$F141))*IF($H141=\"Customized\",\nIF(_xlfn.XLOOKUP($F141,'Customized Process Factors'!$B:$B,'Customized Process Factors'!E:E,\"No C Content\",0)=\"\",\"Factor error\",_xlfn.XLOOKUP($F141,'Customized Process Factors'!$B:$B,'Customized Process Factors'!E:E,\"No C Content\",0)),\n_xlfn.XLOOKUP($F141,'Customized Process Factors'!$B:$B,'Customized Process Factors'!$D:$D,\"No C Content\",0))*44/12,\"Factor error\")),\"Factor error\")","v":0},{"$f":"IFERROR(-IF($H141=\"\",0,IF(OR($F141='Customized Process Factors'!$B:$B),(SUMIFS(N:N,$D:$D,$D$64,$F:$F,$F141))*IF($H141=\"Customized\",\nIF(_xlfn.XLOOKUP($F141,'Customized Process Factors'!$B:$B,'Customized Process Factors'!F:F,\"No C Content\",0)=\"\",\"Factor error\",_xlfn.XLOOKUP($F141,'Customized Process Factors'!$B:$B,'Customized Process Factors'!F:F,\"No C Content\",0)),\n_xlfn.XLOOKUP($F141,'Customized Process Factors'!$B:$B,'Customized Process Factors'!$D:$D,\"No C Content\",0))*44/12,\"Factor error\")),\"Factor error\")","v":0},{"$f":"IFERROR(-IF($H141=\"\",0,IF(OR($F141='Customized Process Factors'!$B:$B),(SUMIFS(O:O,$D:$D,$D$64,$F:$F,$F141))*IF($H141=\"Customized\",\nIF(_xlfn.XLOOKUP($F141,'Customized Process Factors'!$B:$B,'Customized Process Factors'!G:G,\"No C Content\",0)=\"\",\"Factor error\",_xlfn.XLOOKUP($F141,'Customized Process Factors'!$B:$B,'Customized Process Factors'!G:G,\"No C Content\",0)),\n_xlfn.XLOOKUP($F141,'Customized Process Factors'!$B:$B,'Customized Process Factors'!$D:$D,\"No C Content\",0))*44/12,\"Factor error\")),\"Factor error\")","v":0},{"$f":"IFERROR(-IF($H141=\"\",0,IF(OR($F141='Customized Process Factors'!$B:$B),(SUMIFS(P:P,$D:$D,$D$64,$F:$F,$F141))*IF($H141=\"Customized\",\nIF(_xlfn.XLOOKUP($F141,'Customized Process Factors'!$B:$B,'Customized Process Factors'!H:H,\"No C Content\",0)=\"\",\"Factor error\",_xlfn.XLOOKUP($F141,'Customized Process Factors'!$B:$B,'Customized Process Factors'!H:H,\"No C Content\",0)),\n_xlfn.XLOOKUP($F141,'Customized Process Factors'!$B:$B,'Customized Process Factors'!$D:$D,\"No C Content\",0))*44/12,\"Factor error\")),\"Factor error\")","v":0},{"$f":"IFERROR(-IF($H141=\"\",0,IF(OR($F141='Customized Process Factors'!$B:$B),(SUMIFS(Q:Q,$D:$D,$D$64,$F:$F,$F141))*IF($H141=\"Customized\",\nIF(_xlfn.XLOOKUP($F141,'Customized Process Factors'!$B:$B,'Customized Process Factors'!I:I,\"No C Content\",0)=\"\",\"Factor error\",_xlfn.XLOOKUP($F141,'Customized Process Factors'!$B:$B,'Customized Process Factors'!I:I,\"No C Content\",0)),\n_xlfn.XLOOKUP($F141,'Customized Process Factors'!$B:$B,'Customized Process Factors'!$D:$D,\"No C Content\",0))*44/12,\"Factor error\")),\"Factor error\")","v":0},{"$f":"IFERROR(-IF($H141=\"\",0,IF(OR($F141='Customized Process Factors'!$B:$B),(SUMIFS(R:R,$D:$D,$D$64,$F:$F,$F141))*IF($H141=\"Customized\",\nIF(_xlfn.XLOOKUP($F141,'Customized Process Factors'!$B:$B,'Customized Process Factors'!J:J,\"No C Content\",0)=\"\",\"Factor error\",_xlfn.XLOOKUP($F141,'Customized Process Factors'!$B:$B,'Customized Process Factors'!J:J,\"No C Content\",0)),\n_xlfn.XLOOKUP($F141,'Customized Process Factors'!$B:$B,'Customized Process Factors'!$D:$D,\"No C Content\",0))*44/12,\"Factor error\")),\"Factor error\")","v":0}]
[null,null,null,{"$f":"D140","v":"A3.1.1.1.2"},".3","Coke-oven byproducts","transferred offsite",null,null,"[t CO2e/reporting period]",0,null,{"$f":"IFERROR(-IF($H142=\"\",0,IF(OR($F142='Customized Process Factors'!$B:$B),(SUMIFS(M:M,$D:$D,$D$64,$F:$F,$F142))*IF($H142=\"Customized\",\nIF(_xlfn.XLOOKUP($F142,'Customized Process Factors'!$B:$B,'Customized Process Factors'!E:E,\"No C Content\",0)=\"\",\"Factor error\",_xlfn.XLOOKUP($F142,'Customized Process Factors'!$B:$B,'Customized Process Factors'!E:E,\"No C Content\",0)),\n_xlfn.XLOOKUP($F142,'Customized Process Factors'!$B:$B,'Customized Process Factors'!$D:$D,\"No C Content\",0))*44/12,\"Factor error\")),\"Factor error\")","v":0},{"$f":"IFERROR(-IF($H142=\"\",0,IF(OR($F142='Customized Process Factors'!$B:$B),(SUMIFS(N:N,$D:$D,$D$64,$F:$F,$F142))*IF($H142=\"Customized\",\nIF(_xlfn.XLOOKUP($F142,'Customized Process Factors'!$B:$B,'Customized Process Factors'!F:F,\"No C Content\",0)=\"\",\"Factor error\",_xlfn.XLOOKUP($F142,'Customized Process Factors'!$B:$B,'Customized Process Factors'!F:F,\"No C Content\",0)),\n_xlfn.XLOOKUP($F142,'Customized Process Factors'!$B:$B,'Customized Process Factors'!$D:$D,\"No C Content\",0))*44/12,\"Factor error\")),\"Factor error\")","v":0},{"$f":"IFERROR(-IF($H142=\"\",0,IF(OR($F142='Customized Process Factors'!$B:$B),(SUMIFS(O:O,$D:$D,$D$64,$F:$F,$F142))*IF($H142=\"Customized\",\nIF(_xlfn.XLOOKUP($F142,'Customized Process Factors'!$B:$B,'Customized Process Factors'!G:G,\"No C Content\",0)=\"\",\"Factor error\",_xlfn.XLOOKUP($F142,'Customized Process Factors'!$B:$B,'Customized Process Factors'!G:G,\"No C Content\",0)),\n_xlfn.XLOOKUP($F142,'Customized Process Factors'!$B:$B,'Customized Process Factors'!$D:$D,\"No C Content\",0))*44/12,\"Factor error\")),\"Factor error\")","v":0},{"$f":"IFERROR(-IF($H142=\"\",0,IF(OR($F142='Customized Process Factors'!$B:$B),(SUMIFS(P:P,$D:$D,$D$64,$F:$F,$F142))*IF($H142=\"Customized\",\nIF(_xlfn.XLOOKUP($F142,'Customized Process Factors'!$B:$B,'Customized Process Factors'!H:H,\"No C Content\",0)=\"\",\"Factor error\",_xlfn.XLOOKUP($F142,'Customized Process Factors'!$B:$B,'Customized Process Factors'!H:H,\"No C Content\",0)),\n_xlfn.XLOOKUP($F142,'Customized Process Factors'!$B:$B,'Customized Process Factors'!$D:$D,\"No C Content\",0))*44/12,\"Factor error\")),\"Factor error\")","v":0},{"$f":"IFERROR(-IF($H142=\"\",0,IF(OR($F142='Customized Process Factors'!$B:$B),(SUMIFS(Q:Q,$D:$D,$D$64,$F:$F,$F142))*IF($H142=\"Customized\",\nIF(_xlfn.XLOOKUP($F142,'Customized Process Factors'!$B:$B,'Customized Process Factors'!I:I,\"No C Content\",0)=\"\",\"Factor error\",_xlfn.XLOOKUP($F142,'Customized Process Factors'!$B:$B,'Customized Process Factors'!I:I,\"No C Content\",0)),\n_xlfn.XLOOKUP($F142,'Customized Process Factors'!$B:$B,'Customized Process Factors'!$D:$D,\"No C Content\",0))*44/12,\"Factor error\")),\"Factor error\")","v":0},{"$f":"IFERROR(-IF($H142=\"\",0,IF(OR($F142='Customized Process Factors'!$B:$B),(SUMIFS(R:R,$D:$D,$D$64,$F:$F,$F142))*IF($H142=\"Customized\",\nIF(_xlfn.XLOOKUP($F142,'Customized Process Factors'!$B:$B,'Customized Process Factors'!J:J,\"No C Content\",0)=\"\",\"Factor error\",_xlfn.XLOOKUP($F142,'Customized Process Factors'!$B:$B,'Customized Process Factors'!J:J,\"No C Content\",0)),\n_xlfn.XLOOKUP($F142,'Customized Process Factors'!$B:$B,'Customized Process Factors'!$D:$D,\"No C Content\",0))*44/12,\"Factor error\")),\"Factor error\")","v":0}]
[null,null,null,{"$f":"D130","v":"A3.1.1"},".2","CO2e from sinter production",null,null,null,null,{"$f":"SUM(M143:R143)","v":0},null,{"$f":"SUMIF($D:$D,$D146,M:M)+SUMIF($D:$D,$D151,M:M)","v":0},0,0,0,0,0]
[null,null,null,null,null,"[Please insert additional rows if more materials are included]"]
[null,null,null,{"$f":"D143&E143","v":"A3.1.1.2"},".1","Inputs",null,"Adopting C Content"]
[null,null,null,{"$f":"D145&E145","v":"A3.1.1.2.1"},".1",{"$f":"IF(F69=\"\",\"\",F69)","v":""},null,null,null,"[t CO2e/reporting period]",0,null,{"$f":"IFERROR(IF($H146=\"\",0,IF(OR($F146='Customized Process Factors'!$B:$B),(SUMIFS(M:M,$D:$D,$D$69,$F:$F,$F146))*IF($H146=\"Customized\",\nIF(_xlfn.XLOOKUP($F146,'Customized Process Factors'!$B:$B,'Customized Process Factors'!E:E,\"No C Content\",0)=\"\",\"Factor error\",_xlfn.XLOOKUP($F146,'Customized Process Factors'!$B:$B,'Customized Process Factors'!E:E,\"No C Content\",0)),_xlfn.XLOOKUP($F146,'Customized Process Factors'!$B:$B,'Customized Process Factors'!$D:$D,\"No C Content\",0))*44/12,\"Factor error\")),\"Factor error\")","v":0},{"$f":"IFERROR(IF($H146=\"\",0,IF(OR($F146='Customized Process Factors'!$B:$B),(SUMIFS(N:N,$D:$D,$D$69,$F:$F,$F146))*IF($H146=\"Customized\",\nIF(_xlfn.XLOOKUP($F146,'Customized Process Factors'!$B:$B,'Customized Process Factors'!F:F,\"No C Content\",0)=\"\",\"Factor error\",_xlfn.XLOOKUP($F146,'Customized Process Factors'!$B:$B,'Customized Process Factors'!F:F,\"No C Content\",0)),_xlfn.XLOOKUP($F146,'Customized Process Factors'!$B:$B,'Customized Process Factors'!$D:$D,\"No C Content\",0))*44/12,\"Factor error\")),\"Factor error\")","v":0},{"$f":"IFERROR(IF($H146=\"\",0,IF(OR($F146='Customized Process Factors'!$B:$B),(SUMIFS(O:O,$D:$D,$D$69,$F:$F,$F146))*IF($H146=\"Customized\",\nIF(_xlfn.XLOOKUP($F146,'Customized Process Factors'!$B:$B,'Customized Process Factors'!G:G,\"No C Content\",0)=\"\",\"Factor error\",_xlfn.XLOOKUP($F146,'Customized Process Factors'!$B:$B,'Customized Process Factors'!G:G,\"No C Content\",0)),_xlfn.XLOOKUP($F146,'Customized Process Factors'!$B:$B,'Customized Process Factors'!$D:$D,\"No C Content\",0))*44/12,\"Factor error\")),\"Factor error\")","v":0},{"$f":"IFERROR(IF($H146=\"\",0,IF(OR($F146='Customized Process Factors'!$B:$B),(SUMIFS(P:P,$D:$D,$D$69,$F:$F,$F146))*IF($H146=\"Customized\",\nIF(_xlfn.XLOOKUP($F146,'Customized Process Factors'!$B:$B,'Customized Process Factors'!H:H,\"No C Content\",0)=\"\",\"Factor error\",_xlfn.XLOOKUP($F146,'Customized Process Factors'!$B:$B,'Customized Process Factors'!H:H,\"No C Content\",0)),_xlfn.XLOOKUP($F146,'Customized Process Factors'!$B:$B,'Customized Process Factors'!$D:$D,\"No C Content\",0))*44/12,\"Factor error\")),\"Factor error\")","v":0},{"$f":"IFERROR(IF($H146=\"\",0,IF(OR($F146='Customized Process Factors'!$B:$B),(SUMIFS(Q:Q,$D:$D,$D$69,$F:$F,$F146))*IF($H146=\"Customized\",\nIF(_xlfn.XLOOKUP($F146,'Customized Process Factors'!$B:$B,'Customized Process Factors'!I:I,\"No C Content\",0)=\"\",\"Factor error\",_xlfn.XLOOKUP($F146,'Customized Process Factors'!$B:$B,'Customized Process Factors'!I:I,\"No C Content\",0)),_xlfn.XLOOKUP($F146,'Customized Process Factors'!$B:$B,'Customized Process Factors'!$D:$D,\"No C Content\",0))*44/12,\"Factor error\")),\"Factor error\")","v":0},{"$f":"IFERROR(IF($H146=\"\",0,IF(OR($F146='Customized Process Factors'!$B:$B),(SUMIFS(R:R,$D:$D,$D$69,$F:$F,$F146))*IF($H146=\"Customized\",\nIF(_xlfn.XLOOKUP($F146,'Customized Process Factors'!$B:$B,'Customized Process Factors'!J:J,\"No C Content\",0)=\"\",\"Factor error\",_xlfn.XLOOKUP($F146,'Customized Process Factors'!$B:$B,'Customized Process Factors'!J:J,\"No C Content\",0)),_xlfn.XLOOKUP($F146,'Customized Process Factors'!$B:$B,'Customized Process Factors'!$D:$D,\"No C Content\",0))*44/12,\"Factor error\")),\"Factor error\")","v":0}]
[null,null,null,{"$f":"D146","v":"A3.1.1.2.1"},".2",{"$f":"IF(F70=\"\",\"\",F70)","v":""},null,null,null,"[t CO2e/reporting period]",0,null,{"$f":"IFERROR(IF($H147=\"\",0,IF(OR($F147='Customized Process Factors'!$B:$B),(SUMIFS(M:M,$D:$D,$D$69,$F:$F,$F147))*IF($H147=\"Customized\",\nIF(_xlfn.XLOOKUP($F147,'Customized Process Factors'!$B:$B,'Customized Process Factors'!E:E,\"No C Content\",0)=\"\",\"Factor error\",_xlfn.XLOOKUP($F147,'Customized Process Factors'!$B:$B,'Customized Process Factors'!E:E,\"No C Content\",0)),_xlfn.XLOOKUP($F147,'Customized Process Factors'!$B:$B,'Customized Process Factors'!$D:$D,\"No C Content\",0))*44/12,\"Factor error\")),\"Factor error\")","v":0},{"$f":"IFERROR(IF($H147=\"\",0,IF(OR($F147='Customized Process Factors'!$B:$B),(SUMIFS(N:N,$D:$D,$D$69,$F:$F,$F147))*IF($H147=\"Customized\",\nIF(_xlfn.XLOOKUP($F147,'Customized Process Factors'!$B:$B,'Customized Process Factors'!F:F,\"No C Content\",0)=\"\",\"Factor error\",_xlfn.XLOOKUP($F147,'Customized Process Factors'!$B:$B,'Customized Process Factors'!F:F,\"No C Content\",0)),_xlfn.XLOOKUP($F147,'Customized Process Factors'!$B:$B,'Customized Process Factors'!$D:$D,\"No C Content\",0))*44/12,\"Factor error\")),\"Factor error\")","v":0},{"$f":"IFERROR(IF($H147=\"\",0,IF(OR($F147='Customized Process Factors'!$B:$B),(SUMIFS(O:O,$D:$D,$D$69,$F:$F,$F147))*IF($H147=\"Customized\",\nIF(_xlfn.XLOOKUP($F147,'Customized Process Factors'!$B:$B,'Customized Process Factors'!G:G,\"No C Content\",0)=\"\",\"Factor error\",_xlfn.XLOOKUP($F147,'Customized Process Factors'!$B:$B,'Customized Process Factors'!G:G,\"No C Content\",0)),_xlfn.XLOOKUP($F147,'Customized Process Factors'!$B:$B,'Customized Process Factors'!$D:$D,\"No C Content\",0))*44/12,\"Factor error\")),\"Factor error\")","v":0},{"$f":"IFERROR(IF($H147=\"\",0,IF(OR($F147='Customized Process Factors'!$B:$B),(SUMIFS(P:P,$D:$D,$D$69,$F:$F,$F147))*IF($H147=\"Customized\",\nIF(_xlfn.XLOOKUP($F147,'Customized Process Factors'!$B:$B,'Customized Process Factors'!H:H,\"No C Content\",0)=\"\",\"Factor error\",_xlfn.XLOOKUP($F147,'Customized Process Factors'!$B:$B,'Customized Process Factors'!H:H,\"No C Content\",0)),_xlfn.XLOOKUP($F147,'Customized Process Factors'!$B:$B,'Customized Process Factors'!$D:$D,\"No C Content\",0))*44/12,\"Factor error\")),\"Factor error\")","v":0},{"$f":"IFERROR(IF($H147=\"\",0,IF(OR($F147='Customized Process Factors'!$B:$B),(SUMIFS(Q:Q,$D:$D,$D$69,$F:$F,$F147))*IF($H147=\"Customized\",\nIF(_xlfn.XLOOKUP($F147,'Customized Process Factors'!$B:$B,'Customized Process Factors'!I:I,\"No C Content\",0)=\"\",\"Factor error\",_xlfn.XLOOKUP($F147,'Customized Process Factors'!$B:$B,'Customized Process Factors'!I:I,\"No C Content\",0)),_xlfn.XLOOKUP($F147,'Customized Process Factors'!$B:$B,'Customized Process Factors'!$D:$D,\"No C Content\",0))*44/12,\"Factor error\")),\"Factor error\")","v":0},{"$f":"IFERROR(IF($H147=\"\",0,IF(OR($F147='Customized Process Factors'!$B:$B),(SUMIFS(R:R,$D:$D,$D$69,$F:$F,$F147))*IF($H147=\"Customized\",\nIF(_xlfn.XLOOKUP($F147,'Customized Process Factors'!$B:$B,'Customized Process Factors'!J:J,\"No C Content\",0)=\"\",\"Factor error\",_xlfn.XLOOKUP($F147,'Customized Process Factors'!$B:$B,'Customized Process Factors'!J:J,\"No C Content\",0)),_xlfn.XLOOKUP($F147,'Customized Process Factors'!$B:$B,'Customized Process Factors'!$D:$D,\"No C Content\",0))*44/12,\"Factor error\")),\"Factor error\")","v":0}]
[null,null,null,{"$f":"D147","v":"A3.1.1.2.1"},".3",{"$f":"IF(F71=\"\",\"\",F71)","v":""},null,null,null,"[t CO2e/reporting period]",0,null,{"$f":"IFERROR(IF($H148=\"\",0,IF(OR($F148='Customized Process Factors'!$B:$B),(SUMIFS(M:M,$D:$D,$D$69,$F:$F,$F148))*IF($H148=\"Customized\",\nIF(_xlfn.XLOOKUP($F148,'Customized Process Factors'!$B:$B,'Customized Process Factors'!E:E,\"No C Content\",0)=\"\",\"Factor error\",_xlfn.XLOOKUP($F148,'Customized Process Factors'!$B:$B,'Customized Process Factors'!E:E,\"No C Content\",0)),_xlfn.XLOOKUP($F148,'Customized Process Factors'!$B:$B,'Customized Process Factors'!$D:$D,\"No C Content\",0))*44/12,\"Factor error\")),\"Factor error\")","v":0},{"$f":"IFERROR(IF($H148=\"\",0,IF(OR($F148='Customized Process Factors'!$B:$B),(SUMIFS(N:N,$D:$D,$D$69,$F:$F,$F148))*IF($H148=\"Customized\",\nIF(_xlfn.XLOOKUP($F148,'Customized Process Factors'!$B:$B,'Customized Process Factors'!F:F,\"No C Content\",0)=\"\",\"Factor error\",_xlfn.XLOOKUP($F148,'Customized Process Factors'!$B:$B,'Customized Process Factors'!F:F,\"No C Content\",0)),_xlfn.XLOOKUP($F148,'Customized Process Factors'!$B:$B,'Customized Process Factors'!$D:$D,\"No C Content\",0))*44/12,\"Factor error\")),\"Factor error\")","v":0},{"$f":"IFERROR(IF($H148=\"\",0,IF(OR($F148='Customized Process Factors'!$B:$B),(SUMIFS(O:O,$D:$D,$D$69,$F:$F,$F148))*IF($H148=\"Customized\",\nIF(_xlfn.XLOOKUP($F148,'Customized Process Factors'!$B:$B,'Customized Process Factors'!G:G,\"No C Content\",0)=\"\",\"Factor error\",_xlfn.XLOOKUP($F148,'Customized Process Factors'!$B:$B,'Customized Process Factors'!G:G,\"No C Content\",0)),_xlfn.XLOOKUP($F148,'Customized Process Factors'!$B:$B,'Customized Process Factors'!$D:$D,\"No C Content\",0))*44/12,\"Factor error\")),\"Factor error\")","v":0},{"$f":"IFERROR(IF($H148=\"\",0,IF(OR($F148='Customized Process Factors'!$B:$B),(SUMIFS(P:P,$D:$D,$D$69,$F:$F,$F148))*IF($H148=\"Customized\",\nIF(_xlfn.XLOOKUP($F148,'Customized Process Factors'!$B:$B,'Customized Process Factors'!H:H,\"No C Content\",0)=\"\",\"Factor error\",_xlfn.XLOOKUP($F148,'Customized Process Factors'!$B:$B,'Customized Process Factors'!H:H,\"No C Content\",0)),_xlfn.XLOOKUP($F148,'Customized Process Factors'!$B:$B,'Customized Process Factors'!$D:$D,\"No C Content\",0))*44/12,\"Factor error\")),\"Factor error\")","v":0},{"$f":"IFERROR(IF($H148=\"\",0,IF(OR($F148='Customized Process Factors'!$B:$B),(SUMIFS(Q:Q,$D:$D,$D$69,$F:$F,$F148))*IF($H148=\"Customized\",\nIF(_xlfn.XLOOKUP($F148,'Customized Process Factors'!$B:$B,'Customized Process Factors'!I:I,\"No C Content\",0)=\"\",\"Factor error\",_xlfn.XLOOKUP($F148,'Customized Process Factors'!$B:$B,'Customized Process Factors'!I:I,\"No C Content\",0)),_xlfn.XLOOKUP($F148,'Customized Process Factors'!$B:$B,'Customized Process Factors'!$D:$D,\"No C Content\",0))*44/12,\"Factor error\")),\"Factor error\")","v":0},{"$f":"IFERROR(IF($H148=\"\",0,IF(OR($F148='Customized Process Factors'!$B:$B),(SUMIFS(R:R,$D:$D,$D$69,$F:$F,$F148))*IF($H148=\"Customized\",\nIF(_xlfn.XLOOKUP($F148,'Customized Process Factors'!$B:$B,'Customized Process Factors'!J:J,\"No C Content\",0)=\"\",\"Factor error\",_xlfn.XLOOKUP($F148,'Customized Process Factors'!$B:$B,'Customized Process Factors'!J:J,\"No C Content\",0)),_xlfn.XLOOKUP($F148,'Customized Process Factors'!$B:$B,'Customized Process Factors'!$D:$D,\"No C Content\",0))*44/12,\"Factor error\")),\"Factor error\")","v":0}]
[null,null,null,"A3.1.1.2.1",".4",{"$f":"IF(F72=\"\",\"\",F72)","v":""},null,null,null,"[t CO2e/reporting period]",0,null,{"$f":"IFERROR(IF($H149=\"\",0,IF(OR($F149='Customized Process Factors'!$B:$B),(SUMIFS(M:M,$D:$D,$D$69,$F:$F,$F149))*IF($H149=\"Customized\",\nIF(_xlfn.XLOOKUP($F149,'Customized Process Factors'!$B:$B,'Customized Process Factors'!E:E,\"No C Content\",0)=\"\",\"Factor error\",_xlfn.XLOOKUP($F149,'Customized Process Factors'!$B:$B,'Customized Process Factors'!E:E,\"No C Content\",0)),_xlfn.XLOOKUP($F149,'Customized Process Factors'!$B:$B,'Customized Process Factors'!$D:$D,\"No C Content\",0))*44/12,\"Factor error\")),\"Factor error\")","v":0},{"$f":"IFERROR(IF($H149=\"\",0,IF(OR($F149='Customized Process Factors'!$B:$B),(SUMIFS(N:N,$D:$D,$D$69,$F:$F,$F149))*IF($H149=\"Customized\",\nIF(_xlfn.XLOOKUP($F149,'Customized Process Factors'!$B:$B,'Customized Process Factors'!F:F,\"No C Content\",0)=\"\",\"Factor error\",_xlfn.XLOOKUP($F149,'Customized Process Factors'!$B:$B,'Customized Process Factors'!F:F,\"No C Content\",0)),_xlfn.XLOOKUP($F149,'Customized Process Factors'!$B:$B,'Customized Process Factors'!$D:$D,\"No C Content\",0))*44/12,\"Factor error\")),\"Factor error\")","v":0},{"$f":"IFERROR(IF($H149=\"\",0,IF(OR($F149='Customized Process Factors'!$B:$B),(SUMIFS(O:O,$D:$D,$D$69,$F:$F,$F149))*IF($H149=\"Customized\",\nIF(_xlfn.XLOOKUP($F149,'Customized Process Factors'!$B:$B,'Customized Process Factors'!G:G,\"No C Content\",0)=\"\",\"Factor error\",_xlfn.XLOOKUP($F149,'Customized Process Factors'!$B:$B,'Customized Process Factors'!G:G,\"No C Content\",0)),_xlfn.XLOOKUP($F149,'Customized Process Factors'!$B:$B,'Customized Process Factors'!$D:$D,\"No C Content\",0))*44/12,\"Factor error\")),\"Factor error\")","v":0},{"$f":"IFERROR(IF($H149=\"\",0,IF(OR($F149='Customized Process Factors'!$B:$B),(SUMIFS(P:P,$D:$D,$D$69,$F:$F,$F149))*IF($H149=\"Customized\",\nIF(_xlfn.XLOOKUP($F149,'Customized Process Factors'!$B:$B,'Customized Process Factors'!H:H,\"No C Content\",0)=\"\",\"Factor error\",_xlfn.XLOOKUP($F149,'Customized Process Factors'!$B:$B,'Customized Process Factors'!H:H,\"No C Content\",0)),_xlfn.XLOOKUP($F149,'Customized Process Factors'!$B:$B,'Customized Process Factors'!$D:$D,\"No C Content\",0))*44/12,\"Factor error\")),\"Factor error\")","v":0},{"$f":"IFERROR(IF($H149=\"\",0,IF(OR($F149='Customized Process Factors'!$B:$B),(SUMIFS(Q:Q,$D:$D,$D$69,$F:$F,$F149))*IF($H149=\"Customized\",\nIF(_xlfn.XLOOKUP($F149,'Customized Process Factors'!$B:$B,'Customized Process Factors'!I:I,\"No C Content\",0)=\"\",\"Factor error\",_xlfn.XLOOKUP($F149,'Customized Process Factors'!$B:$B,'Customized Process Factors'!I:I,\"No C Content\",0)),_xlfn.XLOOKUP($F149,'Customized Process Factors'!$B:$B,'Customized Process Factors'!$D:$D,\"No C Content\",0))*44/12,\"Factor error\")),\"Factor error\")","v":0},{"$f":"IFERROR(IF($H149=\"\",0,IF(OR($F149='Customized Process Factors'!$B:$B),(SUMIFS(R:R,$D:$D,$D$69,$F:$F,$F149))*IF($H149=\"Customized\",\nIF(_xlfn.XLOOKUP($F149,'Customized Process Factors'!$B:$B,'Customized Process Factors'!J:J,\"No C Content\",0)=\"\",\"Factor error\",_xlfn.XLOOKUP($F149,'Customized Process Factors'!$B:$B,'Customized Process Factors'!J:J,\"No C Content\",0)),_xlfn.XLOOKUP($F149,'Customized Process Factors'!$B:$B,'Customized Process Factors'!$D:$D,\"No C Content\",0))*44/12,\"Factor error\")),\"Factor error\")","v":0}]
[null,null,null,{"$f":"D145","v":"A3.1.1.2"},".2","Outputs",null,"Adopting C Content","Adopting CH4 Emission Factor"]
[null,null,null,{"$f":"D150&E150","v":"A3.1.1.2.2"},".1",{"$f":"F74","v":"Sinter"},{"$f":"G74","v":"produced"},null,null,"[t CO2e/reporting period]",0,null,{"$f":"IFERROR(+IF($I151=\"\",0,IF(OR($F151='Customized Process Factors'!$A:$A),(SUMIFS(M:M,$D:$D,$D$74,$F:$F,$F151))*IF($I151=\"Customized\",\nIF(_xlfn.XLOOKUP($F151,'Customized Process Factors'!$A:$A,'Customized Process Factors'!E:E,\"No CH4 Content\",0)=\"\",\"Factor error\",_xlfn.XLOOKUP($F151,'Customized Process Factors'!$A:$A,'Customized Process Factors'!E:E,\"No CH4 Content\",0)),\n_xlfn.XLOOKUP($F151,'Customized Process Factors'!$A:$A,'Customized Process Factors'!$D:$D,\"No CH4 Content\",0))*'Customized Process Factors'!$D$109,\"Factor error\")),\"Factor error\")","v":0},{"$f":"IFERROR(+IF($I151=\"\",0,IF(OR($F151='Customized Process Factors'!$A:$A),(SUMIFS(N:N,$D:$D,$D$74,$F:$F,$F151))*IF($I151=\"Customized\",\nIF(_xlfn.XLOOKUP($F151,'Customized Process Factors'!$A:$A,'Customized Process Factors'!F:F,\"No CH4 Content\",0)=\"\",\"Factor error\",_xlfn.XLOOKUP($F151,'Customized Process Factors'!$A:$A,'Customized Process Factors'!F:F,\"No CH4 Content\",0)),\n_xlfn.XLOOKUP($F151,'Customized Process Factors'!$A:$A,'Customized Process Factors'!$D:$D,\"No CH4 Content\",0))*'Customized Process Factors'!$D$109,\"Factor error\")),\"Factor error\")","v":0},{"$f":"IFERROR(+IF($I151=\"\",0,IF(OR($F151='Customized Process Factors'!$A:$A),(SUMIFS(O:O,$D:$D,$D$74,$F:$F,$F151))*IF($I151=\"Customized\",\nIF(_xlfn.XLOOKUP($F151,'Customized Process Factors'!$A:$A,'Customized Process Factors'!G:G,\"No CH4 Content\",0)=\"\",\"Factor error\",_xlfn.XLOOKUP($F151,'Customized Process Factors'!$A:$A,'Customized Process Factors'!G:G,\"No CH4 Content\",0)),\n_xlfn.XLOOKUP($F151,'Customized Process Factors'!$A:$A,'Customized Process Factors'!$D:$D,\"No CH4 Content\",0))*'Customized Process Factors'!$D$109,\"Factor error\")),\"Factor error\")","v":0},{"$f":"IFERROR(+IF($I151=\"\",0,IF(OR($F151='Customized Process Factors'!$A:$A),(SUMIFS(P:P,$D:$D,$D$74,$F:$F,$F151))*IF($I151=\"Customized\",\nIF(_xlfn.XLOOKUP($F151,'Customized Process Factors'!$A:$A,'Customized Process Factors'!H:H,\"No CH4 Content\",0)=\"\",\"Factor error\",_xlfn.XLOOKUP($F151,'Customized Process Factors'!$A:$A,'Customized Process Factors'!H:H,\"No CH4 Content\",0)),\n_xlfn.XLOOKUP($F151,'Customized Process Factors'!$A:$A,'Customized Process Factors'!$D:$D,\"No CH4 Content\",0))*'Customized Process Factors'!$D$109,\"Factor error\")),\"Factor error\")","v":0},{"$f":"IFERROR(+IF($I151=\"\",0,IF(OR($F151='Customized Process Factors'!$A:$A),(SUMIFS(Q:Q,$D:$D,$D$74,$F:$F,$F151))*IF($I151=\"Customized\",\nIF(_xlfn.XLOOKUP($F151,'Customized Process Factors'!$A:$A,'Customized Process Factors'!I:I,\"No CH4 Content\",0)=\"\",\"Factor error\",_xlfn.XLOOKUP($F151,'Customized Process Factors'!$A:$A,'Customized Process Factors'!I:I,\"No CH4 Content\",0)),\n_xlfn.XLOOKUP($F151,'Customized Process Factors'!$A:$A,'Customized Process Factors'!$D:$D,\"No CH4 Content\",0))*'Customized Process Factors'!$D$109,\"Factor error\")),\"Factor error\")","v":0},{"$f":"IFERROR(+IF($I151=\"\",0,IF(OR($F151='Customized Process Factors'!$A:$A),(SUMIFS(R:R,$D:$D,$D$74,$F:$F,$F151))*IF($I151=\"Customized\",\nIF(_xlfn.XLOOKUP($F151,'Customized Process Factors'!$A:$A,'Customized Process Factors'!J:J,\"No CH4 Content\",0)=\"\",\"Factor error\",_xlfn.XLOOKUP($F151,'Customized Process Factors'!$A:$A,'Customized Process Factors'!J:J,\"No CH4 Content\",0)),\n_xlfn.XLOOKUP($F151,'Customized Process Factors'!$A:$A,'Customized Process Factors'!$D:$D,\"No CH4 Content\",0))*'Customized Process Factors'!$D$109,\"Factor error\")),\"Factor error\")","v":0}]
[null,null,null,{"$f":"D151","v":"A3.1.1.2.2"},".2",{"$f":"F75","v":"Sinter off gas"},{"$f":"G75","v":"transferred offsite"},null,null,"[t CO2e/reporting period]",0,null,{"$f":"IFERROR(-IF($H152=\"\",0,IF(OR($F152='Customized Process Factors'!$B:$B),(SUMIFS(M:M,$D:$D,$D$74,$F:$F,$F152))*IF($H152=\"Customized\",\nIF(_xlfn.XLOOKUP($F152,'Customized Process Factors'!$B:$B,'Customized Process Factors'!E:E,\"No C Content\",0)=\"\",\"Factor error\",_xlfn.XLOOKUP($F152,'Customized Process Factors'!$B:$B,'Customized Process Factors'!E:E,\"No C Content\",0)),\n_xlfn.XLOOKUP($F152,'Customized Process Factors'!$B:$B,'Customized Process Factors'!$D:$D,\"No C Content\",0))*44/12,\"Factor error\")),\"Factor error\")","v":0},{"$f":"IFERROR(-IF($H152=\"\",0,IF(OR($F152='Customized Process Factors'!$B:$B),(SUMIFS(N:N,$D:$D,$D$74,$F:$F,$F152))*IF($H152=\"Customized\",\nIF(_xlfn.XLOOKUP($F152,'Customized Process Factors'!$B:$B,'Customized Process Factors'!F:F,\"No C Content\",0)=\"\",\"Factor error\",_xlfn.XLOOKUP($F152,'Customized Process Factors'!$B:$B,'Customized Process Factors'!F:F,\"No C Content\",0)),\n_xlfn.XLOOKUP($F152,'Customized Process Factors'!$B:$B,'Customized Process Factors'!$D:$D,\"No C Content\",0))*44/12,\"Factor error\")),\"Factor error\")","v":0},{"$f":"IFERROR(-IF($H152=\"\",0,IF(OR($F152='Customized Process Factors'!$B:$B),(SUMIFS(O:O,$D:$D,$D$74,$F:$F,$F152))*IF($H152=\"Customized\",\nIF(_xlfn.XLOOKUP($F152,'Customized Process Factors'!$B:$B,'Customized Process Factors'!G:G,\"No C Content\",0)=\"\",\"Factor error\",_xlfn.XLOOKUP($F152,'Customized Process Factors'!$B:$B,'Customized Process Factors'!G:G,\"No C Content\",0)),\n_xlfn.XLOOKUP($F152,'Customized Process Factors'!$B:$B,'Customized Process Factors'!$D:$D,\"No C Content\",0))*44/12,\"Factor error\")),\"Factor error\")","v":0},{"$f":"IFERROR(-IF($H152=\"\",0,IF(OR($F152='Customized Process Factors'!$B:$B),(SUMIFS(P:P,$D:$D,$D$74,$F:$F,$F152))*IF($H152=\"Customized\",\nIF(_xlfn.XLOOKUP($F152,'Customized Process Factors'!$B:$B,'Customized Process Factors'!H:H,\"No C Content\",0)=\"\",\"Factor error\",_xlfn.XLOOKUP($F152,'Customized Process Factors'!$B:$B,'Customized Process Factors'!H:H,\"No C Content\",0)),\n_xlfn.XLOOKUP($F152,'Customized Process Factors'!$B:$B,'Customized Process Factors'!$D:$D,\"No C Content\",0))*44/12,\"Factor error\")),\"Factor error\")","v":0},{"$f":"IFERROR(-IF($H152=\"\",0,IF(OR($F152='Customized Process Factors'!$B:$B),(SUMIFS(Q:Q,$D:$D,$D$74,$F:$F,$F152))*IF($H152=\"Customized\",\nIF(_xlfn.XLOOKUP($F152,'Customized Process Factors'!$B:$B,'Customized Process Factors'!I:I,\"No C Content\",0)=\"\",\"Factor error\",_xlfn.XLOOKUP($F152,'Customized Process Factors'!$B:$B,'Customized Process Factors'!I:I,\"No C Content\",0)),\n_xlfn.XLOOKUP($F152,'Customized Process Factors'!$B:$B,'Customized Process Factors'!$D:$D,\"No C Content\",0))*44/12,\"Factor error\")),\"Factor error\")","v":0},{"$f":"IFERROR(-IF($H152=\"\",0,IF(OR($F152='Customized Process Factors'!$B:$B),(SUMIFS(R:R,$D:$D,$D$74,$F:$F,$F152))*IF($H152=\"Customized\",\nIF(_xlfn.XLOOKUP($F152,'Customized Process Factors'!$B:$B,'Customized Process Factors'!J:J,\"No C Content\",0)=\"\",\"Factor error\",_xlfn.XLOOKUP($F152,'Customized Process Factors'!$B:$B,'Customized Process Factors'!J:J,\"No C Content\",0)),\n_xlfn.XLOOKUP($F152,'Customized Process Factors'!$B:$B,'Customized Process Factors'!$D:$D,\"No C Content\",0))*44/12,\"Factor error\")),\"Factor error\")","v":0}]
[null,null,null,{"$f":"D143","v":"A3.1.1"},".3","CO2e from iron and steel production",null,null,null,null,{"$f":"SUM(M153:R153)","v":0},null,{"$f":"SUMIF($D:$D,$D156,M:M)+SUMIF($D:$D,$D165,M:M)","v":0},0,0,0,0,0]
[null,null,null,null,null,"[Please insert additional rows if more materials are included]"]
[null,null,null,{"$f":"D153&E153","v":"A3.1.1.3"},".1","Inputs",null,"Adopting C Content"]
[null,null,null,{"$f":"D155&E155","v":"A3.1.1.3.1"},".1",{"$f":"IF(F78=\"\",\"\",F78)","v":""},null,null,null,"[t CO2e/reporting period]",0,null,{"$f":"IFERROR(IF($H156=\"\",0,IF(OR($F156='Customized Process Factors'!$B:$B),(SUMIFS(M:M,$D:$D,$D$78,$F:$F,$F156))*IF($H156=\"Customized\",\nIF(_xlfn.XLOOKUP($F156,'Customized Process Factors'!$B:$B,'Customized Process Factors'!E:E,\"No C Content\",0)=\"\",\"Factor error\",_xlfn.XLOOKUP($F156,'Customized Process Factors'!$B:$B,'Customized Process Factors'!E:E,\"No C Content\",0)),\n_xlfn.XLOOKUP($F156,'Customized Process Factors'!$B:$B,'Customized Process Factors'!$D:$D,\"No C Content\",0))*44/12,\"Factor error\")),\"Factor error\")","v":0},{"$f":"IFERROR(IF($H156=\"\",0,IF(OR($F156='Customized Process Factors'!$B:$B),(SUMIFS(N:N,$D:$D,$D$78,$F:$F,$F156))*IF($H156=\"Customized\",\nIF(_xlfn.XLOOKUP($F156,'Customized Process Factors'!$B:$B,'Customized Process Factors'!F:F,\"No C Content\",0)=\"\",\"Factor error\",_xlfn.XLOOKUP($F156,'Customized Process Factors'!$B:$B,'Customized Process Factors'!F:F,\"No C Content\",0)),\n_xlfn.XLOOKUP($F156,'Customized Process Factors'!$B:$B,'Customized Process Factors'!$D:$D,\"No C Content\",0))*44/12,\"Factor error\")),\"Factor error\")","v":0},{"$f":"IFERROR(IF($H156=\"\",0,IF(OR($F156='Customized Process Factors'!$B:$B),(SUMIFS(O:O,$D:$D,$D$78,$F:$F,$F156))*IF($H156=\"Customized\",\nIF(_xlfn.XLOOKUP($F156,'Customized Process Factors'!$B:$B,'Customized Process Factors'!G:G,\"No C Content\",0)=\"\",\"Factor error\",_xlfn.XLOOKUP($F156,'Customized Process Factors'!$B:$B,'Customized Process Factors'!G:G,\"No C Content\",0)),\n_xlfn.XLOOKUP($F156,'Customized Process Factors'!$B:$B,'Customized Process Factors'!$D:$D,\"No C Content\",0))*44/12,\"Factor error\")),\"Factor error\")","v":0},{"$f":"IFERROR(IF($H156=\"\",0,IF(OR($F156='Customized Process Factors'!$B:$B),(SUMIFS(P:P,$D:$D,$D$78,$F:$F,$F156))*IF($H156=\"Customized\",\nIF(_xlfn.XLOOKUP($F156,'Customized Process Factors'!$B:$B,'Customized Process Factors'!H:H,\"No C Content\",0)=\"\",\"Factor error\",_xlfn.XLOOKUP($F156,'Customized Process Factors'!$B:$B,'Customized Process Factors'!H:H,\"No C Content\",0)),\n_xlfn.XLOOKUP($F156,'Customized Process Factors'!$B:$B,'Customized Process Factors'!$D:$D,\"No C Content\",0))*44/12,\"Factor error\")),\"Factor error\")","v":0},{"$f":"IFERROR(IF($H156=\"\",0,IF(OR($F156='Customized Process Factors'!$B:$B),(SUMIFS(Q:Q,$D:$D,$D$78,$F:$F,$F156))*IF($H156=\"Customized\",\nIF(_xlfn.XLOOKUP($F156,'Customized Process Factors'!$B:$B,'Customized Process Factors'!I:I,\"No C Content\",0)=\"\",\"Factor error\",_xlfn.XLOOKUP($F156,'Customized Process Factors'!$B:$B,'Customized Process Factors'!I:I,\"No C Content\",0)),\n_xlfn.XLOOKUP($F156,'Customized Process Factors'!$B:$B,'Customized Process Factors'!$D:$D,\"No C Content\",0))*44/12,\"Factor error\")),\"Factor error\")","v":0},{"$f":"IFERROR(IF($H156=\"\",0,IF(OR($F156='Customized Process Factors'!$B:$B),(SUMIFS(R:R,$D:$D,$D$78,$F:$F,$F156))*IF($H156=\"Customized\",\nIF(_xlfn.XLOOKUP($F156,'Customized Process Factors'!$B:$B,'Customized Process Factors'!J:J,\"No C Content\",0)=\"\",\"Factor error\",_xlfn.XLOOKUP($F156,'Customized Process Factors'!$B:$B,'Customized Process Factors'!J:J,\"No C Content\",0)),\n_xlfn.XLOOKUP($F156,'Customized Process Factors'!$B:$B,'Customized Process Factors'!$D:$D,\"No C Content\",0))*44/12,\"Factor error\")),\"Factor error\")","v":0}]
[null,null,null,{"$f":"D156","v":"A3.1.1.3.1"},".2","",null,null,null,"[t CO2e/reporting period]",0,null,{"$f":"IFERROR(IF($H157=\"\",0,IF(OR($F157='Customized Process Factors'!$B:$B),(SUMIFS(M:M,$D:$D,$D$78,$F:$F,$F157))*IF($H157=\"Customized\",\nIF(_xlfn.XLOOKUP($F157,'Customized Process Factors'!$B:$B,'Customized Process Factors'!E:E,\"No C Content\",0)=\"\",\"Factor error\",_xlfn.XLOOKUP($F157,'Customized Process Factors'!$B:$B,'Customized Process Factors'!E:E,\"No C Content\",0)),\n_xlfn.XLOOKUP($F157,'Customized Process Factors'!$B:$B,'Customized Process Factors'!$D:$D,\"No C Content\",0))*44/12,\"Factor error\")),\"Factor error\")","v":0},{"$f":"IFERROR(IF($H157=\"\",0,IF(OR($F157='Customized Process Factors'!$B:$B),(SUMIFS(N:N,$D:$D,$D$78,$F:$F,$F157))*IF($H157=\"Customized\",\nIF(_xlfn.XLOOKUP($F157,'Customized Process Factors'!$B:$B,'Customized Process Factors'!F:F,\"No C Content\",0)=\"\",\"Factor error\",_xlfn.XLOOKUP($F157,'Customized Process Factors'!$B:$B,'Customized Process Factors'!F:F,\"No C Content\",0)),\n_xlfn.XLOOKUP($F157,'Customized Process Factors'!$B:$B,'Customized Process Factors'!$D:$D,\"No C Content\",0))*44/12,\"Factor error\")),\"Factor error\")","v":0},{"$f":"IFERROR(IF($H157=\"\",0,IF(OR($F157='Customized Process Factors'!$B:$B),(SUMIFS(O:O,$D:$D,$D$78,$F:$F,$F157))*IF($H157=\"Customized\",\nIF(_xlfn.XLOOKUP($F157,'Customized Process Factors'!$B:$B,'Customized Process Factors'!G:G,\"No C Content\",0)=\"\",\"Factor error\",_xlfn.XLOOKUP($F157,'Customized Process Factors'!$B:$B,'Customized Process Factors'!G:G,\"No C Content\",0)),\n_xlfn.XLOOKUP($F157,'Customized Process Factors'!$B:$B,'Customized Process Factors'!$D:$D,\"No C Content\",0))*44/12,\"Factor error\")),\"Factor error\")","v":0},{"$f":"IFERROR(IF($H157=\"\",0,IF(OR($F157='Customized Process Factors'!$B:$B),(SUMIFS(P:P,$D:$D,$D$78,$F:$F,$F157))*IF($H157=\"Customized\",\nIF(_xlfn.XLOOKUP($F157,'Customized Process Factors'!$B:$B,'Customized Process Factors'!H:H,\"No C Content\",0)=\"\",\"Factor error\",_xlfn.XLOOKUP($F157,'Customized Process Factors'!$B:$B,'Customized Process Factors'!H:H,\"No C Content\",0)),\n_xlfn.XLOOKUP($F157,'Customized Process Factors'!$B:$B,'Customized Process Factors'!$D:$D,\"No C Content\",0))*44/12,\"Factor error\")),\"Factor error\")","v":0},{"$f":"IFERROR(IF($H157=\"\",0,IF(OR($F157='Customized Process Factors'!$B:$B),(SUMIFS(Q:Q,$D:$D,$D$78,$F:$F,$F157))*IF($H157=\"Customized\",\nIF(_xlfn.XLOOKUP($F157,'Customized Process Factors'!$B:$B,'Customized Process Factors'!I:I,\"No C Content\",0)=\"\",\"Factor error\",_xlfn.XLOOKUP($F157,'Customized Process Factors'!$B:$B,'Customized Process Factors'!I:I,\"No C Content\",0)),\n_xlfn.XLOOKUP($F157,'Customized Process Factors'!$B:$B,'Customized Process Factors'!$D:$D,\"No C Content\",0))*44/12,\"Factor error\")),\"Factor error\")","v":0},{"$f":"IFERROR(IF($H157=\"\",0,IF(OR($F157='Customized Process Factors'!$B:$B),(SUMIFS(R:R,$D:$D,$D$78,$F:$F,$F157))*IF($H157=\"Customized\",\nIF(_xlfn.XLOOKUP($F157,'Customized Process Factors'!$B:$B,'Customized Process Factors'!J:J,\"No C Content\",0)=\"\",\"Factor error\",_xlfn.XLOOKUP($F157,'Customized Process Factors'!$B:$B,'Customized Process Factors'!J:J,\"No C Content\",0)),\n_xlfn.XLOOKUP($F157,'Customized Process Factors'!$B:$B,'Customized Process Factors'!$D:$D,\"No C Content\",0))*44/12,\"Factor error\")),\"Factor error\")","v":0}]
[null,null,null,{"$f":"D157","v":"A3.1.1.3.1"},".3","",null,null,null,"[t CO2e/reporting period]",0,null,{"$f":"IFERROR(IF($H158=\"\",0,IF(OR($F158='Customized Process Factors'!$B:$B),(SUMIFS(M:M,$D:$D,$D$78,$F:$F,$F158))*IF($H158=\"Customized\",\nIF(_xlfn.XLOOKUP($F158,'Customized Process Factors'!$B:$B,'Customized Process Factors'!E:E,\"No C Content\",0)=\"\",\"Factor error\",_xlfn.XLOOKUP($F158,'Customized Process Factors'!$B:$B,'Customized Process Factors'!E:E,\"No C Content\",0)),\n_xlfn.XLOOKUP($F158,'Customized Process Factors'!$B:$B,'Customized Process Factors'!$D:$D,\"No C Content\",0))*44/12,\"Factor error\")),\"Factor error\")","v":0},{"$f":"IFERROR(IF($H158=\"\",0,IF(OR($F158='Customized Process Factors'!$B:$B),(SUMIFS(N:N,$D:$D,$D$78,$F:$F,$F158))*IF($H158=\"Customized\",\nIF(_xlfn.XLOOKUP($F158,'Customized Process Factors'!$B:$B,'Customized Process Factors'!F:F,\"No C Content\",0)=\"\",\"Factor error\",_xlfn.XLOOKUP($F158,'Customized Process Factors'!$B:$B,'Customized Process Factors'!F:F,\"No C Content\",0)),\n_xlfn.XLOOKUP($F158,'Customized Process Factors'!$B:$B,'Customized Process Factors'!$D:$D,\"No C Content\",0))*44/12,\"Factor error\")),\"Factor error\")","v":0},{"$f":"IFERROR(IF($H158=\"\",0,IF(OR($F158='Customized Process Factors'!$B:$B),(SUMIFS(O:O,$D:$D,$D$78,$F:$F,$F158))*IF($H158=\"Customized\",\nIF(_xlfn.XLOOKUP($F158,'Customized Process Factors'!$B:$B,'Customized Process Factors'!G:G,\"No C Content\",0)=\"\",\"Factor error\",_xlfn.XLOOKUP($F158,'Customized Process Factors'!$B:$B,'Customized Process Factors'!G:G,\"No C Content\",0)),\n_xlfn.XLOOKUP($F158,'Customized Process Factors'!$B:$B,'Customized Process Factors'!$D:$D,\"No C Content\",0))*44/12,\"Factor error\")),\"Factor error\")","v":0},{"$f":"IFERROR(IF($H158=\"\",0,IF(OR($F158='Customized Process Factors'!$B:$B),(SUMIFS(P:P,$D:$D,$D$78,$F:$F,$F158))*IF($H158=\"Customized\",\nIF(_xlfn.XLOOKUP($F158,'Customized Process Factors'!$B:$B,'Customized Process Factors'!H:H,\"No C Content\",0)=\"\",\"Factor error\",_xlfn.XLOOKUP($F158,'Customized Process Factors'!$B:$B,'Customized Process Factors'!H:H,\"No C Content\",0)),\n_xlfn.XLOOKUP($F158,'Customized Process Factors'!$B:$B,'Customized Process Factors'!$D:$D,\"No C Content\",0))*44/12,\"Factor error\")),\"Factor error\")","v":0},{"$f":"IFERROR(IF($H158=\"\",0,IF(OR($F158='Customized Process Factors'!$B:$B),(SUMIFS(Q:Q,$D:$D,$D$78,$F:$F,$F158))*IF($H158=\"Customized\",\nIF(_xlfn.XLOOKUP($F158,'Customized Process Factors'!$B:$B,'Customized Process Factors'!I:I,\"No C Content\",0)=\"\",\"Factor error\",_xlfn.XLOOKUP($F158,'Customized Process Factors'!$B:$B,'Customized Process Factors'!I:I,\"No C Content\",0)),\n_xlfn.XLOOKUP($F158,'Customized Process Factors'!$B:$B,'Customized Process Factors'!$D:$D,\"No C Content\",0))*44/12,\"Factor error\")),\"Factor error\")","v":0},{"$f":"IFERROR(IF($H158=\"\",0,IF(OR($F158='Customized Process Factors'!$B:$B),(SUMIFS(R:R,$D:$D,$D$78,$F:$F,$F158))*IF($H158=\"Customized\",\nIF(_xlfn.XLOOKUP($F158,'Customized Process Factors'!$B:$B,'Customized Process Factors'!J:J,\"No C Content\",0)=\"\",\"Factor error\",_xlfn.XLOOKUP($F158,'Customized Process Factors'!$B:$B,'Customized Process Factors'!J:J,\"No C Content\",0)),\n_xlfn.XLOOKUP($F158,'Customized Process Factors'!$B:$B,'Customized Process Factors'!$D:$D,\"No C Content\",0))*44/12,\"Factor error\")),\"Factor error\")","v":0}]
[null,null,null,"A3.1.1.3.1",".4","",null,null,null,"[t CO2e/reporting period]",0,null,{"$f":"IFERROR(IF($H159=\"\",0,IF(OR($F159='Customized Process Factors'!$B:$B),(SUMIFS(M:M,$D:$D,$D$78,$F:$F,$F159))*IF($H159=\"Customized\",\nIF(_xlfn.XLOOKUP($F159,'Customized Process Factors'!$B:$B,'Customized Process Factors'!E:E,\"No C Content\",0)=\"\",\"Factor error\",_xlfn.XLOOKUP($F159,'Customized Process Factors'!$B:$B,'Customized Process Factors'!E:E,\"No C Content\",0)),\n_xlfn.XLOOKUP($F159,'Customized Process Factors'!$B:$B,'Customized Process Factors'!$D:$D,\"No C Content\",0))*44/12,\"Factor error\")),\"Factor error\")","v":0},{"$f":"IFERROR(IF($H159=\"\",0,IF(OR($F159='Customized Process Factors'!$B:$B),(SUMIFS(N:N,$D:$D,$D$78,$F:$F,$F159))*IF($H159=\"Customized\",\nIF(_xlfn.XLOOKUP($F159,'Customized Process Factors'!$B:$B,'Customized Process Factors'!F:F,\"No C Content\",0)=\"\",\"Factor error\",_xlfn.XLOOKUP($F159,'Customized Process Factors'!$B:$B,'Customized Process Factors'!F:F,\"No C Content\",0)),\n_xlfn.XLOOKUP($F159,'Customized Process Factors'!$B:$B,'Customized Process Factors'!$D:$D,\"No C Content\",0))*44/12,\"Factor error\")),\"Factor error\")","v":0},{"$f":"IFERROR(IF($H159=\"\",0,IF(OR($F159='Customized Process Factors'!$B:$B),(SUMIFS(O:O,$D:$D,$D$78,$F:$F,$F159))*IF($H159=\"Customized\",\nIF(_xlfn.XLOOKUP($F159,'Customized Process Factors'!$B:$B,'Customized Process Factors'!G:G,\"No C Content\",0)=\"\",\"Factor error\",_xlfn.XLOOKUP($F159,'Customized Process Factors'!$B:$B,'Customized Process Factors'!G:G,\"No C Content\",0)),\n_xlfn.XLOOKUP($F159,'Customized Process Factors'!$B:$B,'Customized Process Factors'!$D:$D,\"No C Content\",0))*44/12,\"Factor error\")),\"Factor error\")","v":0},{"$f":"IFERROR(IF($H159=\"\",0,IF(OR($F159='Customized Process Factors'!$B:$B),(SUMIFS(P:P,$D:$D,$D$78,$F:$F,$F159))*IF($H159=\"Customized\",\nIF(_xlfn.XLOOKUP($F159,'Customized Process Factors'!$B:$B,'Customized Process Factors'!H:H,\"No C Content\",0)=\"\",\"Factor error\",_xlfn.XLOOKUP($F159,'Customized Process Factors'!$B:$B,'Customized Process Factors'!H:H,\"No C Content\",0)),\n_xlfn.XLOOKUP($F159,'Customized Process Factors'!$B:$B,'Customized Process Factors'!$D:$D,\"No C Content\",0))*44/12,\"Factor error\")),\"Factor error\")","v":0},{"$f":"IFERROR(IF($H159=\"\",0,IF(OR($F159='Customized Process Factors'!$B:$B),(SUMIFS(Q:Q,$D:$D,$D$78,$F:$F,$F159))*IF($H159=\"Customized\",\nIF(_xlfn.XLOOKUP($F159,'Customized Process Factors'!$B:$B,'Customized Process Factors'!I:I,\"No C Content\",0)=\"\",\"Factor error\",_xlfn.XLOOKUP($F159,'Customized Process Factors'!$B:$B,'Customized Process Factors'!I:I,\"No C Content\",0)),\n_xlfn.XLOOKUP($F159,'Customized Process Factors'!$B:$B,'Customized Process Factors'!$D:$D,\"No C Content\",0))*44/12,\"Factor error\")),\"Factor error\")","v":0},{"$f":"IFERROR(IF($H159=\"\",0,IF(OR($F159='Customized Process Factors'!$B:$B),(SUMIFS(R:R,$D:$D,$D$78,$F:$F,$F159))*IF($H159=\"Customized\",\nIF(_xlfn.XLOOKUP($F159,'Customized Process Factors'!$B:$B,'Customized Process Factors'!J:J,\"No C Content\",0)=\"\",\"Factor error\",_xlfn.XLOOKUP($F159,'Customized Process Factors'!$B:$B,'Customized Process Factors'!J:J,\"No C Content\",0)),\n_xlfn.XLOOKUP($F159,'Customized Process Factors'!$B:$B,'Customized Process Factors'!$D:$D,\"No C Content\",0))*44/12,\"Factor error\")),\"Factor error\")","v":0}]
[null,null,null,"A3.1.1.3.1",".5","",null,null,null,"[t CO2e/reporting period]",0,null,{"$f":"IFERROR(IF($H160=\"\",0,IF(OR($F160='Customized Process Factors'!$B:$B),(SUMIFS(M:M,$D:$D,$D$78,$F:$F,$F160))*IF($H160=\"Customized\",\nIF(_xlfn.XLOOKUP($F160,'Customized Process Factors'!$B:$B,'Customized Process Factors'!E:E,\"No C Content\",0)=\"\",\"Factor error\",_xlfn.XLOOKUP($F160,'Customized Process Factors'!$B:$B,'Customized Process Factors'!E:E,\"No C Content\",0)),\n_xlfn.XLOOKUP($F160,'Customized Process Factors'!$B:$B,'Customized Process Factors'!$D:$D,\"No C Content\",0))*44/12,\"Factor error\")),\"Factor error\")","v":0},{"$f":"IFERROR(IF($H160=\"\",0,IF(OR($F160='Customized Process Factors'!$B:$B),(SUMIFS(N:N,$D:$D,$D$78,$F:$F,$F160))*IF($H160=\"Customized\",\nIF(_xlfn.XLOOKUP($F160,'Customized Process Factors'!$B:$B,'Customized Process Factors'!F:F,\"No C Content\",0)=\"\",\"Factor error\",_xlfn.XLOOKUP($F160,'Customized Process Factors'!$B:$B,'Customized Process Factors'!F:F,\"No C Content\",0)),\n_xlfn.XLOOKUP($F160,'Customized Process Factors'!$B:$B,'Customized Process Factors'!$D:$D,\"No C Content\",0))*44/12,\"Factor error\")),\"Factor error\")","v":0},{"$f":"IFERROR(IF($H160=\"\",0,IF(OR($F160='Customized Process Factors'!$B:$B),(SUMIFS(O:O,$D:$D,$D$78,$F:$F,$F160))*IF($H160=\"Customized\",\nIF(_xlfn.XLOOKUP($F160,'Customized Process Factors'!$B:$B,'Customized Process Factors'!G:G,\"No C Content\",0)=\"\",\"Factor error\",_xlfn.XLOOKUP($F160,'Customized Process Factors'!$B:$B,'Customized Process Factors'!G:G,\"No C Content\",0)),\n_xlfn.XLOOKUP($F160,'Customized Process Factors'!$B:$B,'Customized Process Factors'!$D:$D,\"No C Content\",0))*44/12,\"Factor error\")),\"Factor error\")","v":0},{"$f":"IFERROR(IF($H160=\"\",0,IF(OR($F160='Customized Process Factors'!$B:$B),(SUMIFS(P:P,$D:$D,$D$78,$F:$F,$F160))*IF($H160=\"Customized\",\nIF(_xlfn.XLOOKUP($F160,'Customized Process Factors'!$B:$B,'Customized Process Factors'!H:H,\"No C Content\",0)=\"\",\"Factor error\",_xlfn.XLOOKUP($F160,'Customized Process Factors'!$B:$B,'Customized Process Factors'!H:H,\"No C Content\",0)),\n_xlfn.XLOOKUP($F160,'Customized Process Factors'!$B:$B,'Customized Process Factors'!$D:$D,\"No C Content\",0))*44/12,\"Factor error\")),\"Factor error\")","v":0},{"$f":"IFERROR(IF($H160=\"\",0,IF(OR($F160='Customized Process Factors'!$B:$B),(SUMIFS(Q:Q,$D:$D,$D$78,$F:$F,$F160))*IF($H160=\"Customized\",\nIF(_xlfn.XLOOKUP($F160,'Customized Process Factors'!$B:$B,'Customized Process Factors'!I:I,\"No C Content\",0)=\"\",\"Factor error\",_xlfn.XLOOKUP($F160,'Customized Process Factors'!$B:$B,'Customized Process Factors'!I:I,\"No C Content\",0)),\n_xlfn.XLOOKUP($F160,'Customized Process Factors'!$B:$B,'Customized Process Factors'!$D:$D,\"No C Content\",0))*44/12,\"Factor error\")),\"Factor error\")","v":0},{"$f":"IFERROR(IF($H160=\"\",0,IF(OR($F160='Customized Process Factors'!$B:$B),(SUMIFS(R:R,$D:$D,$D$78,$F:$F,$F160))*IF($H160=\"Customized\",\nIF(_xlfn.XLOOKUP($F160,'Customized Process Factors'!$B:$B,'Customized Process Factors'!J:J,\"No C Content\",0)=\"\",\"Factor error\",_xlfn.XLOOKUP($F160,'Customized Process Factors'!$B:$B,'Customized Process Factors'!J:J,\"No C Content\",0)),\n_xlfn.XLOOKUP($F160,'Customized Process Factors'!$B:$B,'Customized Process Factors'!$D:$D,\"No C Content\",0))*44/12,\"Factor error\")),\"Factor error\")","v":0}]
[null,null,null,"A3.1.1.3.1",".6","",null,null,null,"[t CO2e/reporting period]",0,null,{"$f":"IFERROR(IF($H161=\"\",0,IF(OR($F161='Customized Process Factors'!$B:$B),(SUMIFS(M:M,$D:$D,$D$78,$F:$F,$F161))*IF($H161=\"Customized\",\nIF(_xlfn.XLOOKUP($F161,'Customized Process Factors'!$B:$B,'Customized Process Factors'!E:E,\"No C Content\",0)=\"\",\"Factor error\",_xlfn.XLOOKUP($F161,'Customized Process Factors'!$B:$B,'Customized Process Factors'!E:E,\"No C Content\",0)),\n_xlfn.XLOOKUP($F161,'Customized Process Factors'!$B:$B,'Customized Process Factors'!$D:$D,\"No C Content\",0))*44/12,\"Factor error\")),\"Factor error\")","v":0},{"$f":"IFERROR(IF($H161=\"\",0,IF(OR($F161='Customized Process Factors'!$B:$B),(SUMIFS(N:N,$D:$D,$D$78,$F:$F,$F161))*IF($H161=\"Customized\",\nIF(_xlfn.XLOOKUP($F161,'Customized Process Factors'!$B:$B,'Customized Process Factors'!F:F,\"No C Content\",0)=\"\",\"Factor error\",_xlfn.XLOOKUP($F161,'Customized Process Factors'!$B:$B,'Customized Process Factors'!F:F,\"No C Content\",0)),\n_xlfn.XLOOKUP($F161,'Customized Process Factors'!$B:$B,'Customized Process Factors'!$D:$D,\"No C Content\",0))*44/12,\"Factor error\")),\"Factor error\")","v":0},{"$f":"IFERROR(IF($H161=\"\",0,IF(OR($F161='Customized Process Factors'!$B:$B),(SUMIFS(O:O,$D:$D,$D$78,$F:$F,$F161))*IF($H161=\"Customized\",\nIF(_xlfn.XLOOKUP($F161,'Customized Process Factors'!$B:$B,'Customized Process Factors'!G:G,\"No C Content\",0)=\"\",\"Factor error\",_xlfn.XLOOKUP($F161,'Customized Process Factors'!$B:$B,'Customized Process Factors'!G:G,\"No C Content\",0)),\n_xlfn.XLOOKUP($F161,'Customized Process Factors'!$B:$B,'Customized Process Factors'!$D:$D,\"No C Content\",0))*44/12,\"Factor error\")),\"Factor error\")","v":0},{"$f":"IFERROR(IF($H161=\"\",0,IF(OR($F161='Customized Process Factors'!$B:$B),(SUMIFS(P:P,$D:$D,$D$78,$F:$F,$F161))*IF($H161=\"Customized\",\nIF(_xlfn.XLOOKUP($F161,'Customized Process Factors'!$B:$B,'Customized Process Factors'!H:H,\"No C Content\",0)=\"\",\"Factor error\",_xlfn.XLOOKUP($F161,'Customized Process Factors'!$B:$B,'Customized Process Factors'!H:H,\"No C Content\",0)),\n_xlfn.XLOOKUP($F161,'Customized Process Factors'!$B:$B,'Customized Process Factors'!$D:$D,\"No C Content\",0))*44/12,\"Factor error\")),\"Factor error\")","v":0},{"$f":"IFERROR(IF($H161=\"\",0,IF(OR($F161='Customized Process Factors'!$B:$B),(SUMIFS(Q:Q,$D:$D,$D$78,$F:$F,$F161))*IF($H161=\"Customized\",\nIF(_xlfn.XLOOKUP($F161,'Customized Process Factors'!$B:$B,'Customized Process Factors'!I:I,\"No C Content\",0)=\"\",\"Factor error\",_xlfn.XLOOKUP($F161,'Customized Process Factors'!$B:$B,'Customized Process Factors'!I:I,\"No C Content\",0)),\n_xlfn.XLOOKUP($F161,'Customized Process Factors'!$B:$B,'Customized Process Factors'!$D:$D,\"No C Content\",0))*44/12,\"Factor error\")),\"Factor error\")","v":0},{"$f":"IFERROR(IF($H161=\"\",0,IF(OR($F161='Customized Process Factors'!$B:$B),(SUMIFS(R:R,$D:$D,$D$78,$F:$F,$F161))*IF($H161=\"Customized\",\nIF(_xlfn.XLOOKUP($F161,'Customized Process Factors'!$B:$B,'Customized Process Factors'!J:J,\"No C Content\",0)=\"\",\"Factor error\",_xlfn.XLOOKUP($F161,'Customized Process Factors'!$B:$B,'Customized Process Factors'!J:J,\"No C Content\",0)),\n_xlfn.XLOOKUP($F161,'Customized Process Factors'!$B:$B,'Customized Process Factors'!$D:$D,\"No C Content\",0))*44/12,\"Factor error\")),\"Factor error\")","v":0}]
[null,null,null,"A3.1.1.3.1",".7","",null,null,null,"[t CO2e/reporting period]",0,null,{"$f":"IFERROR(IF($H162=\"\",0,IF(OR($F162='Customized Process Factors'!$B:$B),(SUMIFS(M:M,$D:$D,$D$78,$F:$F,$F162))*IF($H162=\"Customized\",\nIF(_xlfn.XLOOKUP($F162,'Customized Process Factors'!$B:$B,'Customized Process Factors'!E:E,\"No C Content\",0)=\"\",\"Factor error\",_xlfn.XLOOKUP($F162,'Customized Process Factors'!$B:$B,'Customized Process Factors'!E:E,\"No C Content\",0)),\n_xlfn.XLOOKUP($F162,'Customized Process Factors'!$B:$B,'Customized Process Factors'!$D:$D,\"No C Content\",0))*44/12,\"Factor error\")),\"Factor error\")","v":0},{"$f":"IFERROR(IF($H162=\"\",0,IF(OR($F162='Customized Process Factors'!$B:$B),(SUMIFS(N:N,$D:$D,$D$78,$F:$F,$F162))*IF($H162=\"Customized\",\nIF(_xlfn.XLOOKUP($F162,'Customized Process Factors'!$B:$B,'Customized Process Factors'!F:F,\"No C Content\",0)=\"\",\"Factor error\",_xlfn.XLOOKUP($F162,'Customized Process Factors'!$B:$B,'Customized Process Factors'!F:F,\"No C Content\",0)),\n_xlfn.XLOOKUP($F162,'Customized Process Factors'!$B:$B,'Customized Process Factors'!$D:$D,\"No C Content\",0))*44/12,\"Factor error\")),\"Factor error\")","v":0},{"$f":"IFERROR(IF($H162=\"\",0,IF(OR($F162='Customized Process Factors'!$B:$B),(SUMIFS(O:O,$D:$D,$D$78,$F:$F,$F162))*IF($H162=\"Customized\",\nIF(_xlfn.XLOOKUP($F162,'Customized Process Factors'!$B:$B,'Customized Process Factors'!G:G,\"No C Content\",0)=\"\",\"Factor error\",_xlfn.XLOOKUP($F162,'Customized Process Factors'!$B:$B,'Customized Process Factors'!G:G,\"No C Content\",0)),\n_xlfn.XLOOKUP($F162,'Customized Process Factors'!$B:$B,'Customized Process Factors'!$D:$D,\"No C Content\",0))*44/12,\"Factor error\")),\"Factor error\")","v":0},{"$f":"IFERROR(IF($H162=\"\",0,IF(OR($F162='Customized Process Factors'!$B:$B),(SUMIFS(P:P,$D:$D,$D$78,$F:$F,$F162))*IF($H162=\"Customized\",\nIF(_xlfn.XLOOKUP($F162,'Customized Process Factors'!$B:$B,'Customized Process Factors'!H:H,\"No C Content\",0)=\"\",\"Factor error\",_xlfn.XLOOKUP($F162,'Customized Process Factors'!$B:$B,'Customized Process Factors'!H:H,\"No C Content\",0)),\n_xlfn.XLOOKUP($F162,'Customized Process Factors'!$B:$B,'Customized Process Factors'!$D:$D,\"No C Content\",0))*44/12,\"Factor error\")),\"Factor error\")","v":0},{"$f":"IFERROR(IF($H162=\"\",0,IF(OR($F162='Customized Process Factors'!$B:$B),(SUMIFS(Q:Q,$D:$D,$D$78,$F:$F,$F162))*IF($H162=\"Customized\",\nIF(_xlfn.XLOOKUP($F162,'Customized Process Factors'!$B:$B,'Customized Process Factors'!I:I,\"No C Content\",0)=\"\",\"Factor error\",_xlfn.XLOOKUP($F162,'Customized Process Factors'!$B:$B,'Customized Process Factors'!I:I,\"No C Content\",0)),\n_xlfn.XLOOKUP($F162,'Customized Process Factors'!$B:$B,'Customized Process Factors'!$D:$D,\"No C Content\",0))*44/12,\"Factor error\")),\"Factor error\")","v":0},{"$f":"IFERROR(IF($H162=\"\",0,IF(OR($F162='Customized Process Factors'!$B:$B),(SUMIFS(R:R,$D:$D,$D$78,$F:$F,$F162))*IF($H162=\"Customized\",\nIF(_xlfn.XLOOKUP($F162,'Customized Process Factors'!$B:$B,'Customized Process Factors'!J:J,\"No C Content\",0)=\"\",\"Factor error\",_xlfn.XLOOKUP($F162,'Customized Process Factors'!$B:$B,'Customized Process Factors'!J:J,\"No C Content\",0)),\n_xlfn.XLOOKUP($F162,'Customized Process Factors'!$B:$B,'Customized Process Factors'!$D:$D,\"No C Content\",0))*44/12,\"Factor error\")),\"Factor error\")","v":0}]
[null,null,null,"A3.1.1.3.1",".8"," ",null,null,null,"[t CO2e/reporting period]",0,null,{"$f":"IFERROR(IF($H163=\"\",0,IF(OR($F163='Customized Process Factors'!$B:$B),(SUMIFS(M:M,$D:$D,$D$78,$F:$F,$F163))*IF($H163=\"Customized\",\nIF(_xlfn.XLOOKUP($F163,'Customized Process Factors'!$B:$B,'Customized Process Factors'!E:E,\"No C Content\",0)=\"\",\"Factor error\",_xlfn.XLOOKUP($F163,'Customized Process Factors'!$B:$B,'Customized Process Factors'!E:E,\"No C Content\",0)),\n_xlfn.XLOOKUP($F163,'Customized Process Factors'!$B:$B,'Customized Process Factors'!$D:$D,\"No C Content\",0))*44/12,\"Factor error\")),\"Factor error\")","v":0},{"$f":"IFERROR(IF($H163=\"\",0,IF(OR($F163='Customized Process Factors'!$B:$B),(SUMIFS(N:N,$D:$D,$D$78,$F:$F,$F163))*IF($H163=\"Customized\",\nIF(_xlfn.XLOOKUP($F163,'Customized Process Factors'!$B:$B,'Customized Process Factors'!F:F,\"No C Content\",0)=\"\",\"Factor error\",_xlfn.XLOOKUP($F163,'Customized Process Factors'!$B:$B,'Customized Process Factors'!F:F,\"No C Content\",0)),\n_xlfn.XLOOKUP($F163,'Customized Process Factors'!$B:$B,'Customized Process Factors'!$D:$D,\"No C Content\",0))*44/12,\"Factor error\")),\"Factor error\")","v":0},{"$f":"IFERROR(IF($H163=\"\",0,IF(OR($F163='Customized Process Factors'!$B:$B),(SUMIFS(O:O,$D:$D,$D$78,$F:$F,$F163))*IF($H163=\"Customized\",\nIF(_xlfn.XLOOKUP($F163,'Customized Process Factors'!$B:$B,'Customized Process Factors'!G:G,\"No C Content\",0)=\"\",\"Factor error\",_xlfn.XLOOKUP($F163,'Customized Process Factors'!$B:$B,'Customized Process Factors'!G:G,\"No C Content\",0)),\n_xlfn.XLOOKUP($F163,'Customized Process Factors'!$B:$B,'Customized Process Factors'!$D:$D,\"No C Content\",0))*44/12,\"Factor error\")),\"Factor error\")","v":0},{"$f":"IFERROR(IF($H163=\"\",0,IF(OR($F163='Customized Process Factors'!$B:$B),(SUMIFS(P:P,$D:$D,$D$78,$F:$F,$F163))*IF($H163=\"Customized\",\nIF(_xlfn.XLOOKUP($F163,'Customized Process Factors'!$B:$B,'Customized Process Factors'!H:H,\"No C Content\",0)=\"\",\"Factor error\",_xlfn.XLOOKUP($F163,'Customized Process Factors'!$B:$B,'Customized Process Factors'!H:H,\"No C Content\",0)),\n_xlfn.XLOOKUP($F163,'Customized Process Factors'!$B:$B,'Customized Process Factors'!$D:$D,\"No C Content\",0))*44/12,\"Factor error\")),\"Factor error\")","v":0},{"$f":"IFERROR(IF($H163=\"\",0,IF(OR($F163='Customized Process Factors'!$B:$B),(SUMIFS(Q:Q,$D:$D,$D$78,$F:$F,$F163))*IF($H163=\"Customized\",\nIF(_xlfn.XLOOKUP($F163,'Customized Process Factors'!$B:$B,'Customized Process Factors'!I:I,\"No C Content\",0)=\"\",\"Factor error\",_xlfn.XLOOKUP($F163,'Customized Process Factors'!$B:$B,'Customized Process Factors'!I:I,\"No C Content\",0)),\n_xlfn.XLOOKUP($F163,'Customized Process Factors'!$B:$B,'Customized Process Factors'!$D:$D,\"No C Content\",0))*44/12,\"Factor error\")),\"Factor error\")","v":0},{"$f":"IFERROR(IF($H163=\"\",0,IF(OR($F163='Customized Process Factors'!$B:$B),(SUMIFS(R:R,$D:$D,$D$78,$F:$F,$F163))*IF($H163=\"Customized\",\nIF(_xlfn.XLOOKUP($F163,'Customized Process Factors'!$B:$B,'Customized Process Factors'!J:J,\"No C Content\",0)=\"\",\"Factor error\",_xlfn.XLOOKUP($F163,'Customized Process Factors'!$B:$B,'Customized Process Factors'!J:J,\"No C Content\",0)),\n_xlfn.XLOOKUP($F163,'Customized Process Factors'!$B:$B,'Customized Process Factors'!$D:$D,\"No C Content\",0))*44/12,\"Factor error\")),\"Factor error\")","v":0}]
[null,null,null,{"$f":"D155","v":"A3.1.1.3"},".2","Outputs",null,"Adopting C Content"]
[null,null,null,{"$f":"D164&E164","v":"A3.1.1.3.2"},".1","Steel",{"$f":"G87","v":"produced at facility"},null,null,"[t CO2e/reporting period]",0,null,{"$f":"IFERROR(-IF($H165=\"\",0,IF(OR($F165='Customized Process Factors'!$B:$B),(SUMIFS(M:M,$D:$D,$D$87,$F:$F,$F165))*IF($H165=\"Customized\",\nIF(_xlfn.XLOOKUP($F165,'Customized Process Factors'!$B:$B,'Customized Process Factors'!E:E,\"No C Content\",0)=\"\",\"Factor error\",_xlfn.XLOOKUP($F165,'Customized Process Factors'!$B:$B,'Customized Process Factors'!E:E,\"No C Content\",0)),\n_xlfn.XLOOKUP($F165,'Customized Process Factors'!$B:$B,'Customized Process Factors'!$D:$D,\"No C Content\",0))*44/12,\"Factor error\")),\"Factor error\")","v":0},{"$f":"IFERROR(-IF($H165=\"\",0,IF(OR($F165='Customized Process Factors'!$B:$B),(SUMIFS(N:N,$D:$D,$D$87,$F:$F,$F165))*IF($H165=\"Customized\",\nIF(_xlfn.XLOOKUP($F165,'Customized Process Factors'!$B:$B,'Customized Process Factors'!F:F,\"No C Content\",0)=\"\",\"Factor error\",_xlfn.XLOOKUP($F165,'Customized Process Factors'!$B:$B,'Customized Process Factors'!F:F,\"No C Content\",0)),\n_xlfn.XLOOKUP($F165,'Customized Process Factors'!$B:$B,'Customized Process Factors'!$D:$D,\"No C Content\",0))*44/12,\"Factor error\")),\"Factor error\")","v":0},{"$f":"IFERROR(-IF($H165=\"\",0,IF(OR($F165='Customized Process Factors'!$B:$B),(SUMIFS(O:O,$D:$D,$D$87,$F:$F,$F165))*IF($H165=\"Customized\",\nIF(_xlfn.XLOOKUP($F165,'Customized Process Factors'!$B:$B,'Customized Process Factors'!G:G,\"No C Content\",0)=\"\",\"Factor error\",_xlfn.XLOOKUP($F165,'Customized Process Factors'!$B:$B,'Customized Process Factors'!G:G,\"No C Content\",0)),\n_xlfn.XLOOKUP($F165,'Customized Process Factors'!$B:$B,'Customized Process Factors'!$D:$D,\"No C Content\",0))*44/12,\"Factor error\")),\"Factor error\")","v":0},{"$f":"IFERROR(-IF($H165=\"\",0,IF(OR($F165='Customized Process Factors'!$B:$B),(SUMIFS(P:P,$D:$D,$D$87,$F:$F,$F165))*IF($H165=\"Customized\",\nIF(_xlfn.XLOOKUP($F165,'Customized Process Factors'!$B:$B,'Customized Process Factors'!H:H,\"No C Content\",0)=\"\",\"Factor error\",_xlfn.XLOOKUP($F165,'Customized Process Factors'!$B:$B,'Customized Process Factors'!H:H,\"No C Content\",0)),\n_xlfn.XLOOKUP($F165,'Customized Process Factors'!$B:$B,'Customized Process Factors'!$D:$D,\"No C Content\",0))*44/12,\"Factor error\")),\"Factor error\")","v":0},{"$f":"IFERROR(-IF($H165=\"\",0,IF(OR($F165='Customized Process Factors'!$B:$B),(SUMIFS(Q:Q,$D:$D,$D$87,$F:$F,$F165))*IF($H165=\"Customized\",\nIF(_xlfn.XLOOKUP($F165,'Customized Process Factors'!$B:$B,'Customized Process Factors'!I:I,\"No C Content\",0)=\"\",\"Factor error\",_xlfn.XLOOKUP($F165,'Customized Process Factors'!$B:$B,'Customized Process Factors'!I:I,\"No C Content\",0)),\n_xlfn.XLOOKUP($F165,'Customized Process Factors'!$B:$B,'Customized Process Factors'!$D:$D,\"No C Content\",0))*44/12,\"Factor error\")),\"Factor error\")","v":0},{"$f":"IFERROR(-IF($H165=\"\",0,IF(OR($F165='Customized Process Factors'!$B:$B),(SUMIFS(R:R,$D:$D,$D$87,$F:$F,$F165))*IF($H165=\"Customized\",\nIF(_xlfn.XLOOKUP($F165,'Customized Process Factors'!$B:$B,'Customized Process Factors'!J:J,\"No C Content\",0)=\"\",\"Factor error\",_xlfn.XLOOKUP($F165,'Customized Process Factors'!$B:$B,'Customized Process Factors'!J:J,\"No C Content\",0)),\n_xlfn.XLOOKUP($F165,'Customized Process Factors'!$B:$B,'Customized Process Factors'!$D:$D,\"No C Content\",0))*44/12,\"Factor error\")),\"Factor error\")","v":0}]
[null,null,null,{"$f":"D165","v":"A3.1.1.3.2"},".2","Iron",{"$f":"G88","v":"produced and not converted into steel"},null,null,"[t CO2e/reporting period]",0,null,{"$f":"IFERROR(-IF($H166=\"\",0,IF(OR($F166='Customized Process Factors'!$B:$B),(SUMIFS(M:M,$D:$D,$D$87,$F:$F,$F166))*IF($H166=\"Customized\",\nIF(_xlfn.XLOOKUP($F166,'Customized Process Factors'!$B:$B,'Customized Process Factors'!E:E,\"No C Content\",0)=\"\",\"Factor error\",_xlfn.XLOOKUP($F166,'Customized Process Factors'!$B:$B,'Customized Process Factors'!E:E,\"No C Content\",0)),\n_xlfn.XLOOKUP($F166,'Customized Process Factors'!$B:$B,'Customized Process Factors'!$D:$D,\"No C Content\",0))*44/12,\"Factor error\")),\"Factor error\")","v":0},{"$f":"IFERROR(-IF($H166=\"\",0,IF(OR($F166='Customized Process Factors'!$B:$B),(SUMIFS(N:N,$D:$D,$D$87,$F:$F,$F166))*IF($H166=\"Customized\",\nIF(_xlfn.XLOOKUP($F166,'Customized Process Factors'!$B:$B,'Customized Process Factors'!F:F,\"No C Content\",0)=\"\",\"Factor error\",_xlfn.XLOOKUP($F166,'Customized Process Factors'!$B:$B,'Customized Process Factors'!F:F,\"No C Content\",0)),\n_xlfn.XLOOKUP($F166,'Customized Process Factors'!$B:$B,'Customized Process Factors'!$D:$D,\"No C Content\",0))*44/12,\"Factor error\")),\"Factor error\")","v":0},{"$f":"IFERROR(-IF($H166=\"\",0,IF(OR($F166='Customized Process Factors'!$B:$B),(SUMIFS(O:O,$D:$D,$D$87,$F:$F,$F166))*IF($H166=\"Customized\",\nIF(_xlfn.XLOOKUP($F166,'Customized Process Factors'!$B:$B,'Customized Process Factors'!G:G,\"No C Content\",0)=\"\",\"Factor error\",_xlfn.XLOOKUP($F166,'Customized Process Factors'!$B:$B,'Customized Process Factors'!G:G,\"No C Content\",0)),\n_xlfn.XLOOKUP($F166,'Customized Process Factors'!$B:$B,'Customized Process Factors'!$D:$D,\"No C Content\",0))*44/12,\"Factor error\")),\"Factor error\")","v":0},{"$f":"IFERROR(-IF($H166=\"\",0,IF(OR($F166='Customized Process Factors'!$B:$B),(SUMIFS(P:P,$D:$D,$D$87,$F:$F,$F166))*IF($H166=\"Customized\",\nIF(_xlfn.XLOOKUP($F166,'Customized Process Factors'!$B:$B,'Customized Process Factors'!H:H,\"No C Content\",0)=\"\",\"Factor error\",_xlfn.XLOOKUP($F166,'Customized Process Factors'!$B:$B,'Customized Process Factors'!H:H,\"No C Content\",0)),\n_xlfn.XLOOKUP($F166,'Customized Process Factors'!$B:$B,'Customized Process Factors'!$D:$D,\"No C Content\",0))*44/12,\"Factor error\")),\"Factor error\")","v":0},{"$f":"IFERROR(-IF($H166=\"\",0,IF(OR($F166='Customized Process Factors'!$B:$B),(SUMIFS(Q:Q,$D:$D,$D$87,$F:$F,$F166))*IF($H166=\"Customized\",\nIF(_xlfn.XLOOKUP($F166,'Customized Process Factors'!$B:$B,'Customized Process Factors'!I:I,\"No C Content\",0)=\"\",\"Factor error\",_xlfn.XLOOKUP($F166,'Customized Process Factors'!$B:$B,'Customized Process Factors'!I:I,\"No C Content\",0)),\n_xlfn.XLOOKUP($F166,'Customized Process Factors'!$B:$B,'Customized Process Factors'!$D:$D,\"No C Content\",0))*44/12,\"Factor error\")),\"Factor error\")","v":0},{"$f":"IFERROR(-IF($H166=\"\",0,IF(OR($F166='Customized Process Factors'!$B:$B),(SUMIFS(R:R,$D:$D,$D$87,$F:$F,$F166))*IF($H166=\"Customized\",\nIF(_xlfn.XLOOKUP($F166,'Customized Process Factors'!$B:$B,'Customized Process Factors'!J:J,\"No C Content\",0)=\"\",\"Factor error\",_xlfn.XLOOKUP($F166,'Customized Process Factors'!$B:$B,'Customized Process Factors'!J:J,\"No C Content\",0)),\n_xlfn.XLOOKUP($F166,'Customized Process Factors'!$B:$B,'Customized Process Factors'!$D:$D,\"No C Content\",0))*44/12,\"Factor error\")),\"Factor error\")","v":0}]
[null,null,null,{"$f":"D166","v":"A3.1.1.3.2"},".3","Blast furnace gas",{"$f":"G89","v":"transferred offsite"},null,null,"[t CO2e/reporting period]",0,null,{"$f":"IFERROR(-IF($H167=\"\",0,IF(OR($F167='Customized Process Factors'!$B:$B),(SUMIFS(M:M,$D:$D,$D$87,$F:$F,$F167))*IF($H167=\"Customized\",\nIF(_xlfn.XLOOKUP($F167,'Customized Process Factors'!$B:$B,'Customized Process Factors'!E:E,\"No C Content\",0)=\"\",\"Factor error\",_xlfn.XLOOKUP($F167,'Customized Process Factors'!$B:$B,'Customized Process Factors'!E:E,\"No C Content\",0)),\n_xlfn.XLOOKUP($F167,'Customized Process Factors'!$B:$B,'Customized Process Factors'!$D:$D,\"No C Content\",0))*44/12,\"Factor error\")),\"Factor error\")","v":0},{"$f":"IFERROR(-IF($H167=\"\",0,IF(OR($F167='Customized Process Factors'!$B:$B),(SUMIFS(N:N,$D:$D,$D$87,$F:$F,$F167))*IF($H167=\"Customized\",\nIF(_xlfn.XLOOKUP($F167,'Customized Process Factors'!$B:$B,'Customized Process Factors'!F:F,\"No C Content\",0)=\"\",\"Factor error\",_xlfn.XLOOKUP($F167,'Customized Process Factors'!$B:$B,'Customized Process Factors'!F:F,\"No C Content\",0)),\n_xlfn.XLOOKUP($F167,'Customized Process Factors'!$B:$B,'Customized Process Factors'!$D:$D,\"No C Content\",0))*44/12,\"Factor error\")),\"Factor error\")","v":0},{"$f":"IFERROR(-IF($H167=\"\",0,IF(OR($F167='Customized Process Factors'!$B:$B),(SUMIFS(O:O,$D:$D,$D$87,$F:$F,$F167))*IF($H167=\"Customized\",\nIF(_xlfn.XLOOKUP($F167,'Customized Process Factors'!$B:$B,'Customized Process Factors'!G:G,\"No C Content\",0)=\"\",\"Factor error\",_xlfn.XLOOKUP($F167,'Customized Process Factors'!$B:$B,'Customized Process Factors'!G:G,\"No C Content\",0)),\n_xlfn.XLOOKUP($F167,'Customized Process Factors'!$B:$B,'Customized Process Factors'!$D:$D,\"No C Content\",0))*44/12,\"Factor error\")),\"Factor error\")","v":0},{"$f":"IFERROR(-IF($H167=\"\",0,IF(OR($F167='Customized Process Factors'!$B:$B),(SUMIFS(P:P,$D:$D,$D$87,$F:$F,$F167))*IF($H167=\"Customized\",\nIF(_xlfn.XLOOKUP($F167,'Customized Process Factors'!$B:$B,'Customized Process Factors'!H:H,\"No C Content\",0)=\"\",\"Factor error\",_xlfn.XLOOKUP($F167,'Customized Process Factors'!$B:$B,'Customized Process Factors'!H:H,\"No C Content\",0)),\n_xlfn.XLOOKUP($F167,'Customized Process Factors'!$B:$B,'Customized Process Factors'!$D:$D,\"No C Content\",0))*44/12,\"Factor error\")),\"Factor error\")","v":0},{"$f":"IFERROR(-IF($H167=\"\",0,IF(OR($F167='Customized Process Factors'!$B:$B),(SUMIFS(Q:Q,$D:$D,$D$87,$F:$F,$F167))*IF($H167=\"Customized\",\nIF(_xlfn.XLOOKUP($F167,'Customized Process Factors'!$B:$B,'Customized Process Factors'!I:I,\"No C Content\",0)=\"\",\"Factor error\",_xlfn.XLOOKUP($F167,'Customized Process Factors'!$B:$B,'Customized Process Factors'!I:I,\"No C Content\",0)),\n_xlfn.XLOOKUP($F167,'Customized Process Factors'!$B:$B,'Customized Process Factors'!$D:$D,\"No C Content\",0))*44/12,\"Factor error\")),\"Factor error\")","v":0},{"$f":"IFERROR(-IF($H167=\"\",0,IF(OR($F167='Customized Process Factors'!$B:$B),(SUMIFS(R:R,$D:$D,$D$87,$F:$F,$F167))*IF($H167=\"Customized\",\nIF(_xlfn.XLOOKUP($F167,'Customized Process Factors'!$B:$B,'Customized Process Factors'!J:J,\"No C Content\",0)=\"\",\"Factor error\",_xlfn.XLOOKUP($F167,'Customized Process Factors'!$B:$B,'Customized Process Factors'!J:J,\"No C Content\",0)),\n_xlfn.XLOOKUP($F167,'Customized Process Factors'!$B:$B,'Customized Process Factors'!$D:$D,\"No C Content\",0))*44/12,\"Factor error\")),\"Factor error\")","v":0}]
[null,null,null,{"$f":"C$129","v":"A3.1.1"},".4","CO2e from DRI production",null,null,null,"[t CO2e/reporting period]",{"$f":"SUM(M168:R168)","v":0},null,{"$f":"SUMIF($D:$D,$D171,M:M)+SUMIF($D:$D,$D176,M:M)","v":0},0,0,0,0,0]
[null,null,null,null,null,"[Please insert additional rows if more materials are included]"]
[null,null,null,{"$f":"D168&E168","v":"A3.1.1.4"},".1","Inputs",null,"Adopting C Content"]
[null,null,null,{"$f":"D170&E170","v":"A3.1.1.4.1"},".1",{"$f":"F92","v":"Natural gas"},null,null,null,"[t CO2e/reporting period]",0,null,{"$f":"IFERROR(IF($H171=\"\",0,IF(OR($F171='Customized Process Factors'!$B:$B),(SUMIFS(M:M,$D:$D,$D$92,$F:$F,$F171))*IF($H171=\"Customized\",\nIF(_xlfn.XLOOKUP($F171,'Customized Process Factors'!$B:$B,'Customized Process Factors'!E:E,\"No C Content\",0)=\"\",\"Factor error\",_xlfn.XLOOKUP($F171,'Customized Process Factors'!$B:$B,'Customized Process Factors'!E:E,\"No C Content\",0)),\n_xlfn.XLOOKUP($F171,'Customized Process Factors'!$B:$B,'Customized Process Factors'!$D:$D,\"No C Content\",0))*44/12,\"Factor error\")),\"Factor error\")","v":0},{"$f":"IFERROR(IF($H171=\"\",0,IF(OR($F171='Customized Process Factors'!$B:$B),(SUMIFS(N:N,$D:$D,$D$92,$F:$F,$F171))*IF($H171=\"Customized\",\nIF(_xlfn.XLOOKUP($F171,'Customized Process Factors'!$B:$B,'Customized Process Factors'!F:F,\"No C Content\",0)=\"\",\"Factor error\",_xlfn.XLOOKUP($F171,'Customized Process Factors'!$B:$B,'Customized Process Factors'!F:F,\"No C Content\",0)),\n_xlfn.XLOOKUP($F171,'Customized Process Factors'!$B:$B,'Customized Process Factors'!$D:$D,\"No C Content\",0))*44/12,\"Factor error\")),\"Factor error\")","v":0},{"$f":"IFERROR(IF($H171=\"\",0,IF(OR($F171='Customized Process Factors'!$B:$B),(SUMIFS(O:O,$D:$D,$D$92,$F:$F,$F171))*IF($H171=\"Customized\",\nIF(_xlfn.XLOOKUP($F171,'Customized Process Factors'!$B:$B,'Customized Process Factors'!G:G,\"No C Content\",0)=\"\",\"Factor error\",_xlfn.XLOOKUP($F171,'Customized Process Factors'!$B:$B,'Customized Process Factors'!G:G,\"No C Content\",0)),\n_xlfn.XLOOKUP($F171,'Customized Process Factors'!$B:$B,'Customized Process Factors'!$D:$D,\"No C Content\",0))*44/12,\"Factor error\")),\"Factor error\")","v":0},{"$f":"IFERROR(IF($H171=\"\",0,IF(OR($F171='Customized Process Factors'!$B:$B),(SUMIFS(P:P,$D:$D,$D$92,$F:$F,$F171))*IF($H171=\"Customized\",\nIF(_xlfn.XLOOKUP($F171,'Customized Process Factors'!$B:$B,'Customized Process Factors'!H:H,\"No C Content\",0)=\"\",\"Factor error\",_xlfn.XLOOKUP($F171,'Customized Process Factors'!$B:$B,'Customized Process Factors'!H:H,\"No C Content\",0)),\n_xlfn.XLOOKUP($F171,'Customized Process Factors'!$B:$B,'Customized Process Factors'!$D:$D,\"No C Content\",0))*44/12,\"Factor error\")),\"Factor error\")","v":0},{"$f":"IFERROR(IF($H171=\"\",0,IF(OR($F171='Customized Process Factors'!$B:$B),(SUMIFS(Q:Q,$D:$D,$D$92,$F:$F,$F171))*IF($H171=\"Customized\",\nIF(_xlfn.XLOOKUP($F171,'Customized Process Factors'!$B:$B,'Customized Process Factors'!I:I,\"No C Content\",0)=\"\",\"Factor error\",_xlfn.XLOOKUP($F171,'Customized Process Factors'!$B:$B,'Customized Process Factors'!I:I,\"No C Content\",0)),\n_xlfn.XLOOKUP($F171,'Customized Process Factors'!$B:$B,'Customized Process Factors'!$D:$D,\"No C Content\",0))*44/12,\"Factor error\")),\"Factor error\")","v":0},{"$f":"IFERROR(IF($H171=\"\",0,IF(OR($F171='Customized Process Factors'!$B:$B),(SUMIFS(R:R,$D:$D,$D$92,$F:$F,$F171))*IF($H171=\"Customized\",\nIF(_xlfn.XLOOKUP($F171,'Customized Process Factors'!$B:$B,'Customized Process Factors'!J:J,\"No C Content\",0)=\"\",\"Factor error\",_xlfn.XLOOKUP($F171,'Customized Process Factors'!$B:$B,'Customized Process Factors'!J:J,\"No C Content\",0)),\n_xlfn.XLOOKUP($F171,'Customized Process Factors'!$B:$B,'Customized Process Factors'!$D:$D,\"No C Content\",0))*44/12,\"Factor error\")),\"Factor error\")","v":0}]
[null,null,null,{"$f":"D171","v":"A3.1.1.4.1"},".2",{"$f":"F93","v":"Coke breeze"},null,null,null,"[t CO2e/reporting period]",0,null,{"$f":"IFERROR(IF($H172=\"\",0,IF(OR($F172='Customized Process Factors'!$B:$B),(SUMIFS(M:M,$D:$D,$D$92,$F:$F,$F172))*IF($H172=\"Customized\",\nIF(_xlfn.XLOOKUP($F172,'Customized Process Factors'!$B:$B,'Customized Process Factors'!E:E,\"No C Content\",0)=\"\",\"Factor error\",_xlfn.XLOOKUP($F172,'Customized Process Factors'!$B:$B,'Customized Process Factors'!E:E,\"No C Content\",0)),\n_xlfn.XLOOKUP($F172,'Customized Process Factors'!$B:$B,'Customized Process Factors'!$D:$D,\"No C Content\",0))*44/12,\"Factor error\")),\"Factor error\")","v":0},{"$f":"IFERROR(IF($H172=\"\",0,IF(OR($F172='Customized Process Factors'!$B:$B),(SUMIFS(N:N,$D:$D,$D$92,$F:$F,$F172))*IF($H172=\"Customized\",\nIF(_xlfn.XLOOKUP($F172,'Customized Process Factors'!$B:$B,'Customized Process Factors'!F:F,\"No C Content\",0)=\"\",\"Factor error\",_xlfn.XLOOKUP($F172,'Customized Process Factors'!$B:$B,'Customized Process Factors'!F:F,\"No C Content\",0)),\n_xlfn.XLOOKUP($F172,'Customized Process Factors'!$B:$B,'Customized Process Factors'!$D:$D,\"No C Content\",0))*44/12,\"Factor error\")),\"Factor error\")","v":0},{"$f":"IFERROR(IF($H172=\"\",0,IF(OR($F172='Customized Process Factors'!$B:$B),(SUMIFS(O:O,$D:$D,$D$92,$F:$F,$F172))*IF($H172=\"Customized\",\nIF(_xlfn.XLOOKUP($F172,'Customized Process Factors'!$B:$B,'Customized Process Factors'!G:G,\"No C Content\",0)=\"\",\"Factor error\",_xlfn.XLOOKUP($F172,'Customized Process Factors'!$B:$B,'Customized Process Factors'!G:G,\"No C Content\",0)),\n_xlfn.XLOOKUP($F172,'Customized Process Factors'!$B:$B,'Customized Process Factors'!$D:$D,\"No C Content\",0))*44/12,\"Factor error\")),\"Factor error\")","v":0},{"$f":"IFERROR(IF($H172=\"\",0,IF(OR($F172='Customized Process Factors'!$B:$B),(SUMIFS(P:P,$D:$D,$D$92,$F:$F,$F172))*IF($H172=\"Customized\",\nIF(_xlfn.XLOOKUP($F172,'Customized Process Factors'!$B:$B,'Customized Process Factors'!H:H,\"No C Content\",0)=\"\",\"Factor error\",_xlfn.XLOOKUP($F172,'Customized Process Factors'!$B:$B,'Customized Process Factors'!H:H,\"No C Content\",0)),\n_xlfn.XLOOKUP($F172,'Customized Process Factors'!$B:$B,'Customized Process Factors'!$D:$D,\"No C Content\",0))*44/12,\"Factor error\")),\"Factor error\")","v":0},{"$f":"IFERROR(IF($H172=\"\",0,IF(OR($F172='Customized Process Factors'!$B:$B),(SUMIFS(Q:Q,$D:$D,$D$92,$F:$F,$F172))*IF($H172=\"Customized\",\nIF(_xlfn.XLOOKUP($F172,'Customized Process Factors'!$B:$B,'Customized Process Factors'!I:I,\"No C Content\",0)=\"\",\"Factor error\",_xlfn.XLOOKUP($F172,'Customized Process Factors'!$B:$B,'Customized Process Factors'!I:I,\"No C Content\",0)),\n_xlfn.XLOOKUP($F172,'Customized Process Factors'!$B:$B,'Customized Process Factors'!$D:$D,\"No C Content\",0))*44/12,\"Factor error\")),\"Factor error\")","v":0},{"$f":"IFERROR(IF($H172=\"\",0,IF(OR($F172='Customized Process Factors'!$B:$B),(SUMIFS(R:R,$D:$D,$D$92,$F:$F,$F172))*IF($H172=\"Customized\",\nIF(_xlfn.XLOOKUP($F172,'Customized Process Factors'!$B:$B,'Customized Process Factors'!J:J,\"No C Content\",0)=\"\",\"Factor error\",_xlfn.XLOOKUP($F172,'Customized Process Factors'!$B:$B,'Customized Process Factors'!J:J,\"No C Content\",0)),\n_xlfn.XLOOKUP($F172,'Customized Process Factors'!$B:$B,'Customized Process Factors'!$D:$D,\"No C Content\",0))*44/12,\"Factor error\")),\"Factor error\")","v":0}]
[null,null,null,"A3.1.1.4.1",".3",{"$f":"F94","v":"Coke"},null,null,null,"[t CO2e/reporting period]",0,null,{"$f":"IFERROR(IF($H173=\"\",0,IF(OR($F173='Customized Process Factors'!$B:$B),(SUMIFS(M:M,$D:$D,$D$92,$F:$F,$F173))*IF($H173=\"Customized\",\nIF(_xlfn.XLOOKUP($F173,'Customized Process Factors'!$B:$B,'Customized Process Factors'!E:E,\"No C Content\",0)=\"\",\"Factor error\",_xlfn.XLOOKUP($F173,'Customized Process Factors'!$B:$B,'Customized Process Factors'!E:E,\"No C Content\",0)),\n_xlfn.XLOOKUP($F173,'Customized Process Factors'!$B:$B,'Customized Process Factors'!$D:$D,\"No C Content\",0))*44/12,\"Factor error\")),\"Factor error\")","v":0},{"$f":"IFERROR(IF($H173=\"\",0,IF(OR($F173='Customized Process Factors'!$B:$B),(SUMIFS(N:N,$D:$D,$D$92,$F:$F,$F173))*IF($H173=\"Customized\",\nIF(_xlfn.XLOOKUP($F173,'Customized Process Factors'!$B:$B,'Customized Process Factors'!F:F,\"No C Content\",0)=\"\",\"Factor error\",_xlfn.XLOOKUP($F173,'Customized Process Factors'!$B:$B,'Customized Process Factors'!F:F,\"No C Content\",0)),\n_xlfn.XLOOKUP($F173,'Customized Process Factors'!$B:$B,'Customized Process Factors'!$D:$D,\"No C Content\",0))*44/12,\"Factor error\")),\"Factor error\")","v":0},{"$f":"IFERROR(IF($H173=\"\",0,IF(OR($F173='Customized Process Factors'!$B:$B),(SUMIFS(O:O,$D:$D,$D$92,$F:$F,$F173))*IF($H173=\"Customized\",\nIF(_xlfn.XLOOKUP($F173,'Customized Process Factors'!$B:$B,'Customized Process Factors'!G:G,\"No C Content\",0)=\"\",\"Factor error\",_xlfn.XLOOKUP($F173,'Customized Process Factors'!$B:$B,'Customized Process Factors'!G:G,\"No C Content\",0)),\n_xlfn.XLOOKUP($F173,'Customized Process Factors'!$B:$B,'Customized Process Factors'!$D:$D,\"No C Content\",0))*44/12,\"Factor error\")),\"Factor error\")","v":0},{"$f":"IFERROR(IF($H173=\"\",0,IF(OR($F173='Customized Process Factors'!$B:$B),(SUMIFS(P:P,$D:$D,$D$92,$F:$F,$F173))*IF($H173=\"Customized\",\nIF(_xlfn.XLOOKUP($F173,'Customized Process Factors'!$B:$B,'Customized Process Factors'!H:H,\"No C Content\",0)=\"\",\"Factor error\",_xlfn.XLOOKUP($F173,'Customized Process Factors'!$B:$B,'Customized Process Factors'!H:H,\"No C Content\",0)),\n_xlfn.XLOOKUP($F173,'Customized Process Factors'!$B:$B,'Customized Process Factors'!$D:$D,\"No C Content\",0))*44/12,\"Factor error\")),\"Factor error\")","v":0},{"$f":"IFERROR(IF($H173=\"\",0,IF(OR($F173='Customized Process Factors'!$B:$B),(SUMIFS(Q:Q,$D:$D,$D$92,$F:$F,$F173))*IF($H173=\"Customized\",\nIF(_xlfn.XLOOKUP($F173,'Customized Process Factors'!$B:$B,'Customized Process Factors'!I:I,\"No C Content\",0)=\"\",\"Factor error\",_xlfn.XLOOKUP($F173,'Customized Process Factors'!$B:$B,'Customized Process Factors'!I:I,\"No C Content\",0)),\n_xlfn.XLOOKUP($F173,'Customized Process Factors'!$B:$B,'Customized Process Factors'!$D:$D,\"No C Content\",0))*44/12,\"Factor error\")),\"Factor error\")","v":0},{"$f":"IFERROR(IF($H173=\"\",0,IF(OR($F173='Customized Process Factors'!$B:$B),(SUMIFS(R:R,$D:$D,$D$92,$F:$F,$F173))*IF($H173=\"Customized\",\nIF(_xlfn.XLOOKUP($F173,'Customized Process Factors'!$B:$B,'Customized Process Factors'!J:J,\"No C Content\",0)=\"\",\"Factor error\",_xlfn.XLOOKUP($F173,'Customized Process Factors'!$B:$B,'Customized Process Factors'!J:J,\"No C Content\",0)),\n_xlfn.XLOOKUP($F173,'Customized Process Factors'!$B:$B,'Customized Process Factors'!$D:$D,\"No C Content\",0))*44/12,\"Factor error\")),\"Factor error\")","v":0}]
[null,null,null,"A3.1.1.4.1",".4",{"$f":"IF(F95=\"\",\"\",F95)","v":""},null,null,null,"[t CO2e/reporting period]",0,null,{"$f":"IFERROR(IF($H174=\"\",0,IF(OR($F174='Customized Process Factors'!$B:$B),(SUMIFS(M:M,$D:$D,$D$92,$F:$F,$F174))*IF($H174=\"Customized\",\nIF(_xlfn.XLOOKUP($F174,'Customized Process Factors'!$B:$B,'Customized Process Factors'!E:E,\"No C Content\",0)=\"\",\"Factor error\",_xlfn.XLOOKUP($F174,'Customized Process Factors'!$B:$B,'Customized Process Factors'!E:E,\"No C Content\",0)),\n_xlfn.XLOOKUP($F174,'Customized Process Factors'!$B:$B,'Customized Process Factors'!$D:$D,\"No C Content\",0))*44/12,\"Factor error\")),\"Factor error\")","v":0},{"$f":"IFERROR(IF($H174=\"\",0,IF(OR($F174='Customized Process Factors'!$B:$B),(SUMIFS(N:N,$D:$D,$D$92,$F:$F,$F174))*IF($H174=\"Customized\",\nIF(_xlfn.XLOOKUP($F174,'Customized Process Factors'!$B:$B,'Customized Process Factors'!F:F,\"No C Content\",0)=\"\",\"Factor error\",_xlfn.XLOOKUP($F174,'Customized Process Factors'!$B:$B,'Customized Process Factors'!F:F,\"No C Content\",0)),\n_xlfn.XLOOKUP($F174,'Customized Process Factors'!$B:$B,'Customized Process Factors'!$D:$D,\"No C Content\",0))*44/12,\"Factor error\")),\"Factor error\")","v":0},{"$f":"IFERROR(IF($H174=\"\",0,IF(OR($F174='Customized Process Factors'!$B:$B),(SUMIFS(O:O,$D:$D,$D$92,$F:$F,$F174))*IF($H174=\"Customized\",\nIF(_xlfn.XLOOKUP($F174,'Customized Process Factors'!$B:$B,'Customized Process Factors'!G:G,\"No C Content\",0)=\"\",\"Factor error\",_xlfn.XLOOKUP($F174,'Customized Process Factors'!$B:$B,'Customized Process Factors'!G:G,\"No C Content\",0)),\n_xlfn.XLOOKUP($F174,'Customized Process Factors'!$B:$B,'Customized Process Factors'!$D:$D,\"No C Content\",0))*44/12,\"Factor error\")),\"Factor error\")","v":0},{"$f":"IFERROR(IF($H174=\"\",0,IF(OR($F174='Customized Process Factors'!$B:$B),(SUMIFS(P:P,$D:$D,$D$92,$F:$F,$F174))*IF($H174=\"Customized\",\nIF(_xlfn.XLOOKUP($F174,'Customized Process Factors'!$B:$B,'Customized Process Factors'!H:H,\"No C Content\",0)=\"\",\"Factor error\",_xlfn.XLOOKUP($F174,'Customized Process Factors'!$B:$B,'Customized Process Factors'!H:H,\"No C Content\",0)),\n_xlfn.XLOOKUP($F174,'Customized Process Factors'!$B:$B,'Customized Process Factors'!$D:$D,\"No C Content\",0))*44/12,\"Factor error\")),\"Factor error\")","v":0},{"$f":"IFERROR(IF($H174=\"\",0,IF(OR($F174='Customized Process Factors'!$B:$B),(SUMIFS(Q:Q,$D:$D,$D$92,$F:$F,$F174))*IF($H174=\"Customized\",\nIF(_xlfn.XLOOKUP($F174,'Customized Process Factors'!$B:$B,'Customized Process Factors'!I:I,\"No C Content\",0)=\"\",\"Factor error\",_xlfn.XLOOKUP($F174,'Customized Process Factors'!$B:$B,'Customized Process Factors'!I:I,\"No C Content\",0)),\n_xlfn.XLOOKUP($F174,'Customized Process Factors'!$B:$B,'Customized Process Factors'!$D:$D,\"No C Content\",0))*44/12,\"Factor error\")),\"Factor error\")","v":0},{"$f":"IFERROR(IF($H174=\"\",0,IF(OR($F174='Customized Process Factors'!$B:$B),(SUMIFS(R:R,$D:$D,$D$92,$F:$F,$F174))*IF($H174=\"Customized\",\nIF(_xlfn.XLOOKUP($F174,'Customized Process Factors'!$B:$B,'Customized Process Factors'!J:J,\"No C Content\",0)=\"\",\"Factor error\",_xlfn.XLOOKUP($F174,'Customized Process Factors'!$B:$B,'Customized Process Factors'!J:J,\"No C Content\",0)),\n_xlfn.XLOOKUP($F174,'Customized Process Factors'!$B:$B,'Customized Process Factors'!$D:$D,\"No C Content\",0))*44/12,\"Factor error\")),\"Factor error\")","v":0}]
[null,null,null,{"$f":"D170","v":"A3.1.1.4"},".2","Outputs",null,null,"Adopting CH4 Emission Factor"]
[null,null,null,{"$f":"D175&E175","v":"A3.1.1.4.2"},".1","DRI","produced at facility",null,null,null,0,null,{"$f":"IFERROR(+IF($I176=\"\",0,IF(OR($F176='Customized Process Factors'!$A:$A),(SUMIFS(M:M,$D:$D,$D$97,$F:$F,$F176))*IF($I176=\"Customized\",\nIF(_xlfn.XLOOKUP($F176,'Customized Process Factors'!$A:$A,'Customized Process Factors'!E:E,\"No CH4 Content\",0)=\"\",\"Factor error\",_xlfn.XLOOKUP($F176,'Customized Process Factors'!$A:$A,'Customized Process Factors'!E:E,\"No CH4 Content\",0)),\n_xlfn.XLOOKUP($F176,'Customized Process Factors'!$A:$A,'Customized Process Factors'!$D:$D,\"No CH4 Content\",0))*'Customized Process Factors'!$D$109,\"Factor error\")),\"Factor error\")","v":0},{"$f":"IFERROR(+IF($I176=\"\",0,IF(OR($F176='Customized Process Factors'!$A:$A),(SUMIFS(N:N,$D:$D,$D$97,$F:$F,$F176))*IF($I176=\"Customized\",\nIF(_xlfn.XLOOKUP($F176,'Customized Process Factors'!$A:$A,'Customized Process Factors'!F:F,\"No CH4 Content\",0)=\"\",\"Factor error\",_xlfn.XLOOKUP($F176,'Customized Process Factors'!$A:$A,'Customized Process Factors'!F:F,\"No CH4 Content\",0)),\n_xlfn.XLOOKUP($F176,'Customized Process Factors'!$A:$A,'Customized Process Factors'!$D:$D,\"No CH4 Content\",0))*'Customized Process Factors'!$D$109,\"Factor error\")),\"Factor error\")","v":0},{"$f":"IFERROR(+IF($I176=\"\",0,IF(OR($F176='Customized Process Factors'!$A:$A),(SUMIFS(O:O,$D:$D,$D$97,$F:$F,$F176))*IF($I176=\"Customized\",\nIF(_xlfn.XLOOKUP($F176,'Customized Process Factors'!$A:$A,'Customized Process Factors'!G:G,\"No CH4 Content\",0)=\"\",\"Factor error\",_xlfn.XLOOKUP($F176,'Customized Process Factors'!$A:$A,'Customized Process Factors'!G:G,\"No CH4 Content\",0)),\n_xlfn.XLOOKUP($F176,'Customized Process Factors'!$A:$A,'Customized Process Factors'!$D:$D,\"No CH4 Content\",0))*'Customized Process Factors'!$D$109,\"Factor error\")),\"Factor error\")","v":0},{"$f":"IFERROR(+IF($I176=\"\",0,IF(OR($F176='Customized Process Factors'!$A:$A),(SUMIFS(P:P,$D:$D,$D$97,$F:$F,$F176))*IF($I176=\"Customized\",\nIF(_xlfn.XLOOKUP($F176,'Customized Process Factors'!$A:$A,'Customized Process Factors'!H:H,\"No CH4 Content\",0)=\"\",\"Factor error\",_xlfn.XLOOKUP($F176,'Customized Process Factors'!$A:$A,'Customized Process Factors'!H:H,\"No CH4 Content\",0)),\n_xlfn.XLOOKUP($F176,'Customized Process Factors'!$A:$A,'Customized Process Factors'!$D:$D,\"No CH4 Content\",0))*'Customized Process Factors'!$D$109,\"Factor error\")),\"Factor error\")","v":0},{"$f":"IFERROR(+IF($I176=\"\",0,IF(OR($F176='Customized Process Factors'!$A:$A),(SUMIFS(Q:Q,$D:$D,$D$97,$F:$F,$F176))*IF($I176=\"Customized\",\nIF(_xlfn.XLOOKUP($F176,'Customized Process Factors'!$A:$A,'Customized Process Factors'!I:I,\"No CH4 Content\",0)=\"\",\"Factor error\",_xlfn.XLOOKUP($F176,'Customized Process Factors'!$A:$A,'Customized Process Factors'!I:I,\"No CH4 Content\",0)),\n_xlfn.XLOOKUP($F176,'Customized Process Factors'!$A:$A,'Customized Process Factors'!$D:$D,\"No CH4 Content\",0))*'Customized Process Factors'!$D$109,\"Factor error\")),\"Factor error\")","v":0},{"$f":"IFERROR(+IF($I176=\"\",0,IF(OR($F176='Customized Process Factors'!$A:$A),(SUMIFS(R:R,$D:$D,$D$97,$F:$F,$F176))*IF($I176=\"Customized\",\nIF(_xlfn.XLOOKUP($F176,'Customized Process Factors'!$A:$A,'Customized Process Factors'!J:J,\"No CH4 Content\",0)=\"\",\"Factor error\",_xlfn.XLOOKUP($F176,'Customized Process Factors'!$A:$A,'Customized Process Factors'!J:J,\"No CH4 Content\",0)),\n_xlfn.XLOOKUP($F176,'Customized Process Factors'!$A:$A,'Customized Process Factors'!$D:$D,\"No CH4 Content\",0))*'Customized Process Factors'!$D$109,\"Factor error\")),\"Factor error\")","v":0}]
[null,null,null,{"$f":"C$129","v":"A3.1.1"},".5","CO2e from onsite lime production",null,"[please refer to worksheet \"3.1.1 Lime Production & Flaring\"]",null,"[t CO2e/reporting period]",{"$f":"(SUMIFS('3.1.1 Lime Production & Flaring'!$O:$O,'3.1.1 Lime Production & Flaring'!$B:$B,'3.1.1 Lime Production & Flaring'!B6,'3.1.1 Lime Production & Flaring'!$D:$D,\"Total\"))","v":0},null,{"$f":"IFERROR(IF($K177=\"\",\"\",$K177*(SUM(M$104:M$105)/SUM($K$104:$L$105))),\" \")","v":" "},{"$f":"IFERROR(IF($K177=\"\",\"\",$K177*(SUM(N$104:N$105)/SUM($K$104:$L$105))),\" \")","v":" "}," "," "," "," "]
[null,null,null,{"$f":"C$129","v":"A3.1.1"},".6","CO2e from offsite lime production",null,"[please refer to worksheet \"3.1.1 Lime Production & Flaring\"]",null,"[t CO2e/reporting period]",{"$f":"(SUMIFS('3.1.1 Lime Production & Flaring'!$O:$O,'3.1.1 Lime Production & Flaring'!$B:$B,'3.1.1 Lime Production & Flaring'!B14,'3.1.1 Lime Production & Flaring'!$D:$D,\"Total\"))","v":0},null," "," "," "," "," "," "]
[null,null,null,{"$f":"C$129","v":"A3.1.1"},".7","CO2e from flaring",null,"[please refer to worksheet \"3.1.1 Lime Production & Flaring\"]",null,"[t CO2e/reporting period]",{"$f":"(SUMIFS('3.1.1 Lime Production & Flaring'!$O:$O,'3.1.1 Lime Production & Flaring'!$B:$B,'3.1.1 Lime Production & Flaring'!B22,'3.1.1 Lime Production & Flaring'!$D:$D,\"Total\"))","v":0},null,{"$f":"IFERROR(IF($K179=\"\",\"\",$K179*M$30),\"\")","v":""},"","","","",""]
[null,null,"A3.1.3",null,null,"CO2e from product manufacturing (other stationary combustion sources NOT covered in industrial processes)",null,null,null,"[t CO2e/reporting period]",0,null,{"$f":"SUMIF($D:$D,$C180,M:M)","v":0},0,0,0,0,0]
[null,null,null,null,null,"Adopting CO2e Factors ","Adopting LHV Factors ","[Please insert additional rows if more energy commodities are included]"]
[null,null,null,{"$f":"C180","v":"A3.1.3"},".1",null,null,null,null,"[t CO2e/reporting period]",{"$f":"SUM(M182:R182)","v":0},null,{"$f":"IFERROR(IF(OR($H182='Customized Fuel EF'!$B:$B),(SUMIFS(M:M,$D:$D,$D46,$I:$I,$H182)*IF($G182=\"Customized\",\nIF(_xlfn.XLOOKUP($H182,'Customized Fuel LHV'!$B:$B,'Customized Fuel LHV'!E:E,\"No LHV\",0)=\"\",\"Factor error\",_xlfn.XLOOKUP($H182,'Customized Fuel LHV'!$B:$B,'Customized Fuel LHV'!E:E,\"No LHV\",0)),_xlfn.XLOOKUP($H182,'Customized Fuel LHV'!$B:$B,'Customized Fuel LHV'!$D:$D,\"No LHV\",0)))\n*IF($F182=\"Customized\",IF(_xlfn.XLOOKUP($H182,'Customized Fuel EF'!$B:$B,'Customized Fuel EF'!E:E,\"No EF\",0)=\"\",\"Factor error\",_xlfn.XLOOKUP($H182,'Customized Fuel EF'!$B:$B,'Customized Fuel EF'!E:E,\"No EF\",0)),\n_xlfn.XLOOKUP($H182,'Customized Fuel EF'!$B:$B,'Customized Fuel EF'!$D:$D,\"No EF\",0))/1000,\"Factor error\"),\"Factor error\")","v":"Factor error"},{"$f":"IFERROR(IF(OR($H182='Customized Fuel EF'!$B:$B),(SUMIFS(N:N,$D:$D,$D46,$I:$I,$H182)*IF($G182=\"Customized\",\nIF(_xlfn.XLOOKUP($H182,'Customized Fuel LHV'!$B:$B,'Customized Fuel LHV'!F:F,\"No LHV\",0)=\"\",\"Factor error\",_xlfn.XLOOKUP($H182,'Customized Fuel LHV'!$B:$B,'Customized Fuel LHV'!F:F,\"No LHV\",0)),_xlfn.XLOOKUP($H182,'Customized Fuel LHV'!$B:$B,'Customized Fuel LHV'!$D:$D,\"No LHV\",0)))\n*IF($F182=\"Customized\",IF(_xlfn.XLOOKUP($H182,'Customized Fuel EF'!$B:$B,'Customized Fuel EF'!F:F,\"No EF\",0)=\"\",\"Factor error\",_xlfn.XLOOKUP($H182,'Customized Fuel EF'!$B:$B,'Customized Fuel EF'!F:F,\"No EF\",0)),\n_xlfn.XLOOKUP($H182,'Customized Fuel EF'!$B:$B,'Customized Fuel EF'!$D:$D,\"No EF\",0))/1000,\"Factor error\"),\"Factor error\")","v":"Factor error"},{"$f":"IFERROR(IF(OR($H182='Customized Fuel EF'!$B:$B),(SUMIFS(O:O,$D:$D,$D46,$I:$I,$H182)*IF($G182=\"Customized\",\nIF(_xlfn.XLOOKUP($H182,'Customized Fuel LHV'!$B:$B,'Customized Fuel LHV'!G:G,\"No LHV\",0)=\"\",\"Factor error\",_xlfn.XLOOKUP($H182,'Customized Fuel LHV'!$B:$B,'Customized Fuel LHV'!G:G,\"No LHV\",0)),_xlfn.XLOOKUP($H182,'Customized Fuel LHV'!$B:$B,'Customized Fuel LHV'!$D:$D,\"No LHV\",0)))\n*IF($F182=\"Customized\",IF(_xlfn.XLOOKUP($H182,'Customized Fuel EF'!$B:$B,'Customized Fuel EF'!G:G,\"No EF\",0)=\"\",\"Factor error\",_xlfn.XLOOKUP($H182,'Customized Fuel EF'!$B:$B,'Customized Fuel EF'!G:G,\"No EF\",0)),\n_xlfn.XLOOKUP($H182,'Customized Fuel EF'!$B:$B,'Customized Fuel EF'!$D:$D,\"No EF\",0))/1000,\"Factor error\"),\"Factor error\")","v":"Factor error"},{"$f":"IFERROR(IF(OR($H182='Customized Fuel EF'!$B:$B),(SUMIFS(P:P,$D:$D,$D46,$I:$I,$H182)*IF($G182=\"Customized\",\nIF(_xlfn.XLOOKUP($H182,'Customized Fuel LHV'!$B:$B,'Customized Fuel LHV'!H:H,\"No LHV\",0)=\"\",\"Factor error\",_xlfn.XLOOKUP($H182,'Customized Fuel LHV'!$B:$B,'Customized Fuel LHV'!H:H,\"No LHV\",0)),_xlfn.XLOOKUP($H182,'Customized Fuel LHV'!$B:$B,'Customized Fuel LHV'!$D:$D,\"No LHV\",0)))\n*IF($F182=\"Customized\",IF(_xlfn.XLOOKUP($H182,'Customized Fuel EF'!$B:$B,'Customized Fuel EF'!H:H,\"No EF\",0)=\"\",\"Factor error\",_xlfn.XLOOKUP($H182,'Customized Fuel EF'!$B:$B,'Customized Fuel EF'!H:H,\"No EF\",0)),\n_xlfn.XLOOKUP($H182,'Customized Fuel EF'!$B:$B,'Customized Fuel EF'!$D:$D,\"No EF\",0))/1000,\"Factor error\"),\"Factor error\")","v":"Factor error"},{"$f":"IFERROR(IF(OR($H182='Customized Fuel EF'!$B:$B),(SUMIFS(Q:Q,$D:$D,$D46,$I:$I,$H182)*IF($G182=\"Customized\",\nIF(_xlfn.XLOOKUP($H182,'Customized Fuel LHV'!$B:$B,'Customized Fuel LHV'!I:I,\"No LHV\",0)=\"\",\"Factor error\",_xlfn.XLOOKUP($H182,'Customized Fuel LHV'!$B:$B,'Customized Fuel LHV'!I:I,\"No LHV\",0)),_xlfn.XLOOKUP($H182,'Customized Fuel LHV'!$B:$B,'Customized Fuel LHV'!$D:$D,\"No LHV\",0)))\n*IF($F182=\"Customized\",IF(_xlfn.XLOOKUP($H182,'Customized Fuel EF'!$B:$B,'Customized Fuel EF'!I:I,\"No EF\",0)=\"\",\"Factor error\",_xlfn.XLOOKUP($H182,'Customized Fuel EF'!$B:$B,'Customized Fuel EF'!I:I,\"No EF\",0)),\n_xlfn.XLOOKUP($H182,'Customized Fuel EF'!$B:$B,'Customized Fuel EF'!$D:$D,\"No EF\",0))/1000,\"Factor error\"),\"Factor error\")","v":"Factor error"},{"$f":"IFERROR(IF(OR($H182='Customized Fuel EF'!$B:$B),(SUMIFS(R:R,$D:$D,$D46,$I:$I,$H182)*IF($G182=\"Customized\",\nIF(_xlfn.XLOOKUP($H182,'Customized Fuel LHV'!$B:$B,'Customized Fuel LHV'!J:J,\"No LHV\",0)=\"\",\"Factor error\",_xlfn.XLOOKUP($H182,'Customized Fuel LHV'!$B:$B,'Customized Fuel LHV'!J:J,\"No LHV\",0)),_xlfn.XLOOKUP($H182,'Customized Fuel LHV'!$B:$B,'Customized Fuel LHV'!$D:$D,\"No LHV\",0)))\n*IF($F182=\"Customized\",IF(_xlfn.XLOOKUP($H182,'Customized Fuel EF'!$B:$B,'Customized Fuel EF'!J:J,\"No EF\",0)=\"\",\"Factor error\",_xlfn.XLOOKUP($H182,'Customized Fuel EF'!$B:$B,'Customized Fuel EF'!J:J,\"No EF\",0)),\n_xlfn.XLOOKUP($H182,'Customized Fuel EF'!$B:$B,'Customized Fuel EF'!$D:$D,\"No EF\",0))/1000,\"Factor error\"),\"Factor error\")","v":"Factor error"}]
[null,null,null,{"$f":"C180","v":"A3.1.3"},".2",null,null,null,null,"[t CO2e/reporting period]",{"$f":"SUM(M183:R183)","v":0},null,{"$f":"IFERROR(IF(OR($H183='Customized Fuel EF'!$B:$B),(SUMIFS(M:M,$D:$D,$D47,$I:$I,$H183)*IF($G183=\"Customized\",\nIF(_xlfn.XLOOKUP($H183,'Customized Fuel LHV'!$B:$B,'Customized Fuel LHV'!E:E,\"No LHV\",0)=\"\",\"Factor error\",_xlfn.XLOOKUP($H183,'Customized Fuel LHV'!$B:$B,'Customized Fuel LHV'!E:E,\"No LHV\",0)),_xlfn.XLOOKUP($H183,'Customized Fuel LHV'!$B:$B,'Customized Fuel LHV'!$D:$D,\"No LHV\",0)))\n*IF($F183=\"Customized\",IF(_xlfn.XLOOKUP($H183,'Customized Fuel EF'!$B:$B,'Customized Fuel EF'!E:E,\"No EF\",0)=\"\",\"Factor error\",_xlfn.XLOOKUP($H183,'Customized Fuel EF'!$B:$B,'Customized Fuel EF'!E:E,\"No EF\",0)),\n_xlfn.XLOOKUP($H183,'Customized Fuel EF'!$B:$B,'Customized Fuel EF'!$D:$D,\"No EF\",0))/1000,\"Factor error\"),\"Factor error\")","v":"Factor error"},{"$f":"IFERROR(IF(OR($H183='Customized Fuel EF'!$B:$B),(SUMIFS(N:N,$D:$D,$D47,$I:$I,$H183)*IF($G183=\"Customized\",\nIF(_xlfn.XLOOKUP($H183,'Customized Fuel LHV'!$B:$B,'Customized Fuel LHV'!F:F,\"No LHV\",0)=\"\",\"Factor error\",_xlfn.XLOOKUP($H183,'Customized Fuel LHV'!$B:$B,'Customized Fuel LHV'!F:F,\"No LHV\",0)),_xlfn.XLOOKUP($H183,'Customized Fuel LHV'!$B:$B,'Customized Fuel LHV'!$D:$D,\"No LHV\",0)))\n*IF($F183=\"Customized\",IF(_xlfn.XLOOKUP($H183,'Customized Fuel EF'!$B:$B,'Customized Fuel EF'!F:F,\"No EF\",0)=\"\",\"Factor error\",_xlfn.XLOOKUP($H183,'Customized Fuel EF'!$B:$B,'Customized Fuel EF'!F:F,\"No EF\",0)),\n_xlfn.XLOOKUP($H183,'Customized Fuel EF'!$B:$B,'Customized Fuel EF'!$D:$D,\"No EF\",0))/1000,\"Factor error\"),\"Factor error\")","v":"Factor error"},{"$f":"IFERROR(IF(OR($H183='Customized Fuel EF'!$B:$B),(SUMIFS(O:O,$D:$D,$D47,$I:$I,$H183)*IF($G183=\"Customized\",\nIF(_xlfn.XLOOKUP($H183,'Customized Fuel LHV'!$B:$B,'Customized Fuel LHV'!G:G,\"No LHV\",0)=\"\",\"Factor error\",_xlfn.XLOOKUP($H183,'Customized Fuel LHV'!$B:$B,'Customized Fuel LHV'!G:G,\"No LHV\",0)),_xlfn.XLOOKUP($H183,'Customized Fuel LHV'!$B:$B,'Customized Fuel LHV'!$D:$D,\"No LHV\",0)))\n*IF($F183=\"Customized\",IF(_xlfn.XLOOKUP($H183,'Customized Fuel EF'!$B:$B,'Customized Fuel EF'!G:G,\"No EF\",0)=\"\",\"Factor error\",_xlfn.XLOOKUP($H183,'Customized Fuel EF'!$B:$B,'Customized Fuel EF'!G:G,\"No EF\",0)),\n_xlfn.XLOOKUP($H183,'Customized Fuel EF'!$B:$B,'Customized Fuel EF'!$D:$D,\"No EF\",0))/1000,\"Factor error\"),\"Factor error\")","v":"Factor error"},{"$f":"IFERROR(IF(OR($H183='Customized Fuel EF'!$B:$B),(SUMIFS(P:P,$D:$D,$D47,$I:$I,$H183)*IF($G183=\"Customized\",\nIF(_xlfn.XLOOKUP($H183,'Customized Fuel LHV'!$B:$B,'Customized Fuel LHV'!H:H,\"No LHV\",0)=\"\",\"Factor error\",_xlfn.XLOOKUP($H183,'Customized Fuel LHV'!$B:$B,'Customized Fuel LHV'!H:H,\"No LHV\",0)),_xlfn.XLOOKUP($H183,'Customized Fuel LHV'!$B:$B,'Customized Fuel LHV'!$D:$D,\"No LHV\",0)))\n*IF($F183=\"Customized\",IF(_xlfn.XLOOKUP($H183,'Customized Fuel EF'!$B:$B,'Customized Fuel EF'!H:H,\"No EF\",0)=\"\",\"Factor error\",_xlfn.XLOOKUP($H183,'Customized Fuel EF'!$B:$B,'Customized Fuel EF'!H:H,\"No EF\",0)),\n_xlfn.XLOOKUP($H183,'Customized Fuel EF'!$B:$B,'Customized Fuel EF'!$D:$D,\"No EF\",0))/1000,\"Factor error\"),\"Factor error\")","v":"Factor error"},{"$f":"IFERROR(IF(OR($H183='Customized Fuel EF'!$B:$B),(SUMIFS(Q:Q,$D:$D,$D47,$I:$I,$H183)*IF($G183=\"Customized\",\nIF(_xlfn.XLOOKUP($H183,'Customized Fuel LHV'!$B:$B,'Customized Fuel LHV'!I:I,\"No LHV\",0)=\"\",\"Factor error\",_xlfn.XLOOKUP($H183,'Customized Fuel LHV'!$B:$B,'Customized Fuel LHV'!I:I,\"No LHV\",0)),_xlfn.XLOOKUP($H183,'Customized Fuel LHV'!$B:$B,'Customized Fuel LHV'!$D:$D,\"No LHV\",0)))\n*IF($F183=\"Customized\",IF(_xlfn.XLOOKUP($H183,'Customized Fuel EF'!$B:$B,'Customized Fuel EF'!I:I,\"No EF\",0)=\"\",\"Factor error\",_xlfn.XLOOKUP($H183,'Customized Fuel EF'!$B:$B,'Customized Fuel EF'!I:I,\"No EF\",0)),\n_xlfn.XLOOKUP($H183,'Customized Fuel EF'!$B:$B,'Customized Fuel EF'!$D:$D,\"No EF\",0))/1000,\"Factor error\"),\"Factor error\")","v":"Factor error"},{"$f":"IFERROR(IF(OR($H183='Customized Fuel EF'!$B:$B),(SUMIFS(R:R,$D:$D,$D47,$I:$I,$H183)*IF($G183=\"Customized\",\nIF(_xlfn.XLOOKUP($H183,'Customized Fuel LHV'!$B:$B,'Customized Fuel LHV'!J:J,\"No LHV\",0)=\"\",\"Factor error\",_xlfn.XLOOKUP($H183,'Customized Fuel LHV'!$B:$B,'Customized Fuel LHV'!J:J,\"No LHV\",0)),_xlfn.XLOOKUP($H183,'Customized Fuel LHV'!$B:$B,'Customized Fuel LHV'!$D:$D,\"No LHV\",0)))\n*IF($F183=\"Customized\",IF(_xlfn.XLOOKUP($H183,'Customized Fuel EF'!$B:$B,'Customized Fuel EF'!J:J,\"No EF\",0)=\"\",\"Factor error\",_xlfn.XLOOKUP($H183,'Customized Fuel EF'!$B:$B,'Customized Fuel EF'!J:J,\"No EF\",0)),\n_xlfn.XLOOKUP($H183,'Customized Fuel EF'!$B:$B,'Customized Fuel EF'!$D:$D,\"No EF\",0))/1000,\"Factor error\"),\"Factor error\")","v":"Factor error"}]
[null,null,"A3.1.4",null,null,"CO2e from on-site transportation (mobile combustion sources)",null,"CO2e from on-site power generation","CO2e from on-site power generation","[t CO2e/reporting period]",{"$f":"SUM(M184:R184)","v":0},null,{"$f":"SUMIF($D:$D,$C184,M:M)","v":0},{"$f":"SUMIF($D:$D,$C184,N:N)","v":0},{"$f":"SUMIF($D:$D,$C184,O:O)","v":0},{"$f":"SUMIF($D:$D,$C184,P:P)","v":0},{"$f":"SUMIF($D:$D,$C184,Q:Q)","v":0},{"$f":"SUMIF($D:$D,$C184,R:R)","v":0}]
[null,null,null,null,null,"Adopting CO2e Factors ","Adopting LHV Factors ","[Please insert additional rows if more energy commodities are included]"]
[null,null,null,{"$f":"C184","v":"A3.1.4"},".1",null,null,null,null,"[t CO2e/reporting period]",{"$f":"SUM(M186:R186)","v":0},null,{"$f":"IFERROR(IF(OR($H186='Customized Fuel EF'!$B:$B),(SUMIFS(M:M,$D:$D,$D49,$I:$I,$H186)*IF($G186=\"Customized\",\nIF(_xlfn.XLOOKUP($H186,'Customized Fuel LHV'!$B:$B,'Customized Fuel LHV'!E:E,\"No LHV\",0)=\"\",\"Factor error\",_xlfn.XLOOKUP($H186,'Customized Fuel LHV'!$B:$B,'Customized Fuel LHV'!E:E,\"No LHV\",0)),_xlfn.XLOOKUP($H186,'Customized Fuel LHV'!$B:$B,'Customized Fuel LHV'!$D:$D,\"No LHV\",0)))\n*IF($F186=\"Customized\",IF(_xlfn.XLOOKUP($H186,'Customized Fuel EF'!$B:$B,'Customized Fuel EF'!E:E,\"No EF\",0)=\"\",\"Factor error\",_xlfn.XLOOKUP($H186,'Customized Fuel EF'!$B:$B,'Customized Fuel EF'!E:E,\"No EF\",0)),_xlfn.XLOOKUP($H186,'Customized Fuel EF'!$B:$B,'Customized Fuel EF'!$D:$D,\"No EF\",0))/1000,\"Factor error\"),\"Factor error\")","v":"Factor error"},{"$f":"IFERROR(IF(OR($H186='Customized Fuel EF'!$B:$B),(SUMIFS(N:N,$D:$D,$D49,$I:$I,$H186)*IF($G186=\"Customized\",\nIF(_xlfn.XLOOKUP($H186,'Customized Fuel LHV'!$B:$B,'Customized Fuel LHV'!F:F,\"No LHV\",0)=\"\",\"Factor error\",_xlfn.XLOOKUP($H186,'Customized Fuel LHV'!$B:$B,'Customized Fuel LHV'!F:F,\"No LHV\",0)),_xlfn.XLOOKUP($H186,'Customized Fuel LHV'!$B:$B,'Customized Fuel LHV'!$D:$D,\"No LHV\",0)))\n*IF($F186=\"Customized\",IF(_xlfn.XLOOKUP($H186,'Customized Fuel EF'!$B:$B,'Customized Fuel EF'!F:F,\"No EF\",0)=\"\",\"Factor error\",_xlfn.XLOOKUP($H186,'Customized Fuel EF'!$B:$B,'Customized Fuel EF'!F:F,\"No EF\",0)),_xlfn.XLOOKUP($H186,'Customized Fuel EF'!$B:$B,'Customized Fuel EF'!$D:$D,\"No EF\",0))/1000,\"Factor error\"),\"Factor error\")","v":"Factor error"},{"$f":"IFERROR(IF(OR($H186='Customized Fuel EF'!$B:$B),(SUMIFS(O:O,$D:$D,$D49,$I:$I,$H186)*IF($G186=\"Customized\",\nIF(_xlfn.XLOOKUP($H186,'Customized Fuel LHV'!$B:$B,'Customized Fuel LHV'!G:G,\"No LHV\",0)=\"\",\"Factor error\",_xlfn.XLOOKUP($H186,'Customized Fuel LHV'!$B:$B,'Customized Fuel LHV'!G:G,\"No LHV\",0)),_xlfn.XLOOKUP($H186,'Customized Fuel LHV'!$B:$B,'Customized Fuel LHV'!$D:$D,\"No LHV\",0)))\n*IF($F186=\"Customized\",IF(_xlfn.XLOOKUP($H186,'Customized Fuel EF'!$B:$B,'Customized Fuel EF'!G:G,\"No EF\",0)=\"\",\"Factor error\",_xlfn.XLOOKUP($H186,'Customized Fuel EF'!$B:$B,'Customized Fuel EF'!G:G,\"No EF\",0)),_xlfn.XLOOKUP($H186,'Customized Fuel EF'!$B:$B,'Customized Fuel EF'!$D:$D,\"No EF\",0))/1000,\"Factor error\"),\"Factor error\")","v":"Factor error"},{"$f":"IFERROR(IF(OR($H186='Customized Fuel EF'!$B:$B),(SUMIFS(P:P,$D:$D,$D49,$I:$I,$H186)*IF($G186=\"Customized\",\nIF(_xlfn.XLOOKUP($H186,'Customized Fuel LHV'!$B:$B,'Customized Fuel LHV'!H:H,\"No LHV\",0)=\"\",\"Factor error\",_xlfn.XLOOKUP($H186,'Customized Fuel LHV'!$B:$B,'Customized Fuel LHV'!H:H,\"No LHV\",0)),_xlfn.XLOOKUP($H186,'Customized Fuel LHV'!$B:$B,'Customized Fuel LHV'!$D:$D,\"No LHV\",0)))\n*IF($F186=\"Customized\",IF(_xlfn.XLOOKUP($H186,'Customized Fuel EF'!$B:$B,'Customized Fuel EF'!H:H,\"No EF\",0)=\"\",\"Factor error\",_xlfn.XLOOKUP($H186,'Customized Fuel EF'!$B:$B,'Customized Fuel EF'!H:H,\"No EF\",0)),_xlfn.XLOOKUP($H186,'Customized Fuel EF'!$B:$B,'Customized Fuel EF'!$D:$D,\"No EF\",0))/1000,\"Factor error\"),\"Factor error\")","v":"Factor error"},{"$f":"IFERROR(IF(OR($H186='Customized Fuel EF'!$B:$B),(SUMIFS(Q:Q,$D:$D,$D49,$I:$I,$H186)*IF($G186=\"Customized\",\nIF(_xlfn.XLOOKUP($H186,'Customized Fuel LHV'!$B:$B,'Customized Fuel LHV'!I:I,\"No LHV\",0)=\"\",\"Factor error\",_xlfn.XLOOKUP($H186,'Customized Fuel LHV'!$B:$B,'Customized Fuel LHV'!I:I,\"No LHV\",0)),_xlfn.XLOOKUP($H186,'Customized Fuel LHV'!$B:$B,'Customized Fuel LHV'!$D:$D,\"No LHV\",0)))\n*IF($F186=\"Customized\",IF(_xlfn.XLOOKUP($H186,'Customized Fuel EF'!$B:$B,'Customized Fuel EF'!I:I,\"No EF\",0)=\"\",\"Factor error\",_xlfn.XLOOKUP($H186,'Customized Fuel EF'!$B:$B,'Customized Fuel EF'!I:I,\"No EF\",0)),_xlfn.XLOOKUP($H186,'Customized Fuel EF'!$B:$B,'Customized Fuel EF'!$D:$D,\"No EF\",0))/1000,\"Factor error\"),\"Factor error\")","v":"Factor error"},{"$f":"IFERROR(IF(OR($H186='Customized Fuel EF'!$B:$B),(SUMIFS(R:R,$D:$D,$D49,$I:$I,$H186)*IF($G186=\"Customized\",\nIF(_xlfn.XLOOKUP($H186,'Customized Fuel LHV'!$B:$B,'Customized Fuel LHV'!J:J,\"No LHV\",0)=\"\",\"Factor error\",_xlfn.XLOOKUP($H186,'Customized Fuel LHV'!$B:$B,'Customized Fuel LHV'!J:J,\"No LHV\",0)),_xlfn.XLOOKUP($H186,'Customized Fuel LHV'!$B:$B,'Customized Fuel LHV'!$D:$D,\"No LHV\",0)))\n*IF($F186=\"Customized\",IF(_xlfn.XLOOKUP($H186,'Customized Fuel EF'!$B:$B,'Customized Fuel EF'!J:J,\"No EF\",0)=\"\",\"Factor error\",_xlfn.XLOOKUP($H186,'Customized Fuel EF'!$B:$B,'Customized Fuel EF'!J:J,\"No EF\",0)),_xlfn.XLOOKUP($H186,'Customized Fuel EF'!$B:$B,'Customized Fuel EF'!$D:$D,\"No EF\",0))/1000,\"Factor error\"),\"Factor error\")","v":"Factor error"}]
[null,null,null,{"$f":"C184","v":"A3.1.4"},".2",null,null,null,null,"[t CO2e/reporting period]",{"$f":"SUM(M187:R187)","v":0},null,{"$f":"IFERROR(IF(OR($H187='Customized Fuel EF'!$B:$B),(SUMIFS(M:M,$D:$D,$D50,$I:$I,$H187)*IF($G187=\"Customized\",\nIF(_xlfn.XLOOKUP($H187,'Customized Fuel LHV'!$B:$B,'Customized Fuel LHV'!E:E,\"No LHV\",0)=\"\",\"Factor error\",_xlfn.XLOOKUP($H187,'Customized Fuel LHV'!$B:$B,'Customized Fuel LHV'!E:E,\"No LHV\",0)),_xlfn.XLOOKUP($H187,'Customized Fuel LHV'!$B:$B,'Customized Fuel LHV'!$D:$D,\"No LHV\",0)))\n*IF($F187=\"Customized\",IF(_xlfn.XLOOKUP($H187,'Customized Fuel EF'!$B:$B,'Customized Fuel EF'!E:E,\"No EF\",0)=\"\",\"Factor error\",_xlfn.XLOOKUP($H187,'Customized Fuel EF'!$B:$B,'Customized Fuel EF'!E:E,\"No EF\",0)),_xlfn.XLOOKUP($H187,'Customized Fuel EF'!$B:$B,'Customized Fuel EF'!$D:$D,\"No EF\",0))/1000,\"Factor error\"),\"Factor error\")","v":"Factor error"},{"$f":"IFERROR(IF(OR($H187='Customized Fuel EF'!$B:$B),(SUMIFS(N:N,$D:$D,$D50,$I:$I,$H187)*IF($G187=\"Customized\",\nIF(_xlfn.XLOOKUP($H187,'Customized Fuel LHV'!$B:$B,'Customized Fuel LHV'!F:F,\"No LHV\",0)=\"\",\"Factor error\",_xlfn.XLOOKUP($H187,'Customized Fuel LHV'!$B:$B,'Customized Fuel LHV'!F:F,\"No LHV\",0)),_xlfn.XLOOKUP($H187,'Customized Fuel LHV'!$B:$B,'Customized Fuel LHV'!$D:$D,\"No LHV\",0)))\n*IF($F187=\"Customized\",IF(_xlfn.XLOOKUP($H187,'Customized Fuel EF'!$B:$B,'Customized Fuel EF'!F:F,\"No EF\",0)=\"\",\"Factor error\",_xlfn.XLOOKUP($H187,'Customized Fuel EF'!$B:$B,'Customized Fuel EF'!F:F,\"No EF\",0)),_xlfn.XLOOKUP($H187,'Customized Fuel EF'!$B:$B,'Customized Fuel EF'!$D:$D,\"No EF\",0))/1000,\"Factor error\"),\"Factor error\")","v":"Factor error"},{"$f":"IFERROR(IF(OR($H187='Customized Fuel EF'!$B:$B),(SUMIFS(O:O,$D:$D,$D50,$I:$I,$H187)*IF($G187=\"Customized\",\nIF(_xlfn.XLOOKUP($H187,'Customized Fuel LHV'!$B:$B,'Customized Fuel LHV'!G:G,\"No LHV\",0)=\"\",\"Factor error\",_xlfn.XLOOKUP($H187,'Customized Fuel LHV'!$B:$B,'Customized Fuel LHV'!G:G,\"No LHV\",0)),_xlfn.XLOOKUP($H187,'Customized Fuel LHV'!$B:$B,'Customized Fuel LHV'!$D:$D,\"No LHV\",0)))\n*IF($F187=\"Customized\",IF(_xlfn.XLOOKUP($H187,'Customized Fuel EF'!$B:$B,'Customized Fuel EF'!G:G,\"No EF\",0)=\"\",\"Factor error\",_xlfn.XLOOKUP($H187,'Customized Fuel EF'!$B:$B,'Customized Fuel EF'!G:G,\"No EF\",0)),_xlfn.XLOOKUP($H187,'Customized Fuel EF'!$B:$B,'Customized Fuel EF'!$D:$D,\"No EF\",0))/1000,\"Factor error\"),\"Factor error\")","v":"Factor error"},{"$f":"IFERROR(IF(OR($H187='Customized Fuel EF'!$B:$B),(SUMIFS(P:P,$D:$D,$D50,$I:$I,$H187)*IF($G187=\"Customized\",\nIF(_xlfn.XLOOKUP($H187,'Customized Fuel LHV'!$B:$B,'Customized Fuel LHV'!H:H,\"No LHV\",0)=\"\",\"Factor error\",_xlfn.XLOOKUP($H187,'Customized Fuel LHV'!$B:$B,'Customized Fuel LHV'!H:H,\"No LHV\",0)),_xlfn.XLOOKUP($H187,'Customized Fuel LHV'!$B:$B,'Customized Fuel LHV'!$D:$D,\"No LHV\",0)))\n*IF($F187=\"Customized\",IF(_xlfn.XLOOKUP($H187,'Customized Fuel EF'!$B:$B,'Customized Fuel EF'!H:H,\"No EF\",0)=\"\",\"Factor error\",_xlfn.XLOOKUP($H187,'Customized Fuel EF'!$B:$B,'Customized Fuel EF'!H:H,\"No EF\",0)),_xlfn.XLOOKUP($H187,'Customized Fuel EF'!$B:$B,'Customized Fuel EF'!$D:$D,\"No EF\",0))/1000,\"Factor error\"),\"Factor error\")","v":"Factor error"},{"$f":"IFERROR(IF(OR($H187='Customized Fuel EF'!$B:$B),(SUMIFS(Q:Q,$D:$D,$D50,$I:$I,$H187)*IF($G187=\"Customized\",\nIF(_xlfn.XLOOKUP($H187,'Customized Fuel LHV'!$B:$B,'Customized Fuel LHV'!I:I,\"No LHV\",0)=\"\",\"Factor error\",_xlfn.XLOOKUP($H187,'Customized Fuel LHV'!$B:$B,'Customized Fuel LHV'!I:I,\"No LHV\",0)),_xlfn.XLOOKUP($H187,'Customized Fuel LHV'!$B:$B,'Customized Fuel LHV'!$D:$D,\"No LHV\",0)))\n*IF($F187=\"Customized\",IF(_xlfn.XLOOKUP($H187,'Customized Fuel EF'!$B:$B,'Customized Fuel EF'!I:I,\"No EF\",0)=\"\",\"Factor error\",_xlfn.XLOOKUP($H187,'Customized Fuel EF'!$B:$B,'Customized Fuel EF'!I:I,\"No EF\",0)),_xlfn.XLOOKUP($H187,'Customized Fuel EF'!$B:$B,'Customized Fuel EF'!$D:$D,\"No EF\",0))/1000,\"Factor error\"),\"Factor error\")","v":"Factor error"},{"$f":"IFERROR(IF(OR($H187='Customized Fuel EF'!$B:$B),(SUMIFS(R:R,$D:$D,$D50,$I:$I,$H187)*IF($G187=\"Customized\",\nIF(_xlfn.XLOOKUP($H187,'Customized Fuel LHV'!$B:$B,'Customized Fuel LHV'!J:J,\"No LHV\",0)=\"\",\"Factor error\",_xlfn.XLOOKUP($H187,'Customized Fuel LHV'!$B:$B,'Customized Fuel LHV'!J:J,\"No LHV\",0)),_xlfn.XLOOKUP($H187,'Customized Fuel LHV'!$B:$B,'Customized Fuel LHV'!$D:$D,\"No LHV\",0)))\n*IF($F187=\"Customized\",IF(_xlfn.XLOOKUP($H187,'Customized Fuel EF'!$B:$B,'Customized Fuel EF'!J:J,\"No EF\",0)=\"\",\"Factor error\",_xlfn.XLOOKUP($H187,'Customized Fuel EF'!$B:$B,'Customized Fuel EF'!J:J,\"No EF\",0)),_xlfn.XLOOKUP($H187,'Customized Fuel EF'!$B:$B,'Customized Fuel EF'!$D:$D,\"No EF\",0))/1000,\"Factor error\"),\"Factor error\")","v":"Factor error"}]
[null,null,"A3.1.5",null,null,"Total CO2e from fuels combustion",null,null,null,"[t CO2e/reporting period]",{"$f":"SUM(M188:R188)","v":0},null,{"$f":"IF(AND(M180=\"\",M184=\"\"),\"\",M180+M184+M129)","v":0},0,0,{"$f":"IF(AND(P180=\"\",P184=\"\"),\"\",P180+P184+P129)","v":0},0,0]
[null,null,"A3.1.6",null,null,"CO2e from external electricity production",null,null,null,"[t CO2e/reporting period]",{"$f":"SUM(M189:R189)","v":0},null,{"$f":"IFERROR(M52*$K$53/1000,\"\")","v":""},"","","","",""]
[null,null,"A3.1.8",null,null,null,null,null,"Total CO2e in Stage A3","[t CO2e/reporting period]",{"$f":"SUM(M190:R190)","v":0},null,{"$f":"IFERROR(IF(M188=\"\",\"\",M188)+IF(M189=\"\",\"\",M189),\"\")","v":""},{"$f":"IFERROR(IF(N188=\"\",\"\",N188)+IF(N189=\"\",\"\",N189),\"\")","v":""},"","","",""]
[null,"A4","PROJECT LIFE CYCLE STAGE: A4 OFF-SITE TRANSPORTATION OF PRODUCT TO BORDER OF HK"]
[null,null,"A4.1 CO2e EMISSIONS ",null,null,null,null,null,null,"unit","Total",null,"Product 1","Product 2","Product 3","Product 4","Product 5","Product 6"]
[null,null,"A4.1.1",null,null,"CO2e from off-site transportation of product to border of HK"]
[null,null,null,{"$f":"C193","v":"A4.1.1"},".1","CO2e calculated using either 1) WRI & WBCSD's protocol OR 2) EPD & EMSD's carbon audit tool)",null,null,null,"[t CO2e/reporting period]",{"$f":"SUM(M194:R194)","v":0}]
[null,null,"A4.1.2",null,null,null,null,null,"Total CO2e in Stage A4","[t CO2e/reporting period]",{"$f":"SUM(M195:R195)","v":0},null,{"$f":"IFERROR(IF(M194=\"\",\"\",M194),\"\")","v":""},"","","","",""]
[]
[null,"P ","PERFORMANCE INDICATORS",null,null,null,null,null,null,"unit","Total",null,"Product 1","Product 2","Product 3","Product 4","Product 5","Product 6"]
[null,"P",{"$f":"LEFT($B$197,2)","v":"P "},1,null,"Gross CO2e (A1-A4)",null,null,null,"[t CO2e/reporting period]",{"$f":"IF(AND(M198:R198=\"\"),\"\",SUM(M198:R198))","v":0},null,{"$f":"SUM(M199:M202)","v":0},{"$f":"SUM(N199:N202)","v":0},{"$f":"SUM(O199:O202)","v":0},0,0,0]
[null,null,"P ",{"$f":"D198","v":1},".1","A1 Raw material extraction and upstream production",null,null,null,"[t CO2e/reporting period]",{"$f":"IF(AND(M199:R199=\"\"),\"\",SUM(M199:R199))","v":0},null,{"$f":"SUMIF($I:$I,\"Total CO2e in Stage A1\",M:M)","v":0},0,0,0,0,0]
[null,null,"P ",{"$f":"D199","v":1},".2","A2 Off-site transportation of raw materials to manufacturing plant",null,null,null,"[t CO2e/reporting period]",{"$f":"IF(AND(M200:R200=\"\"),\"\",SUM(M200:R200))","v":0},null,{"$f":"SUMIF($I:$I,\"Total CO2e in Stage A2\",M:M)","v":0},0,0,0,0,0]
[null,null,"P ",{"$f":"D200","v":1},".3","A3 Product manufacturing and fabrication (without wastage)",null,null,null,"[t CO2e/reporting period]",{"$f":"IF(AND(M201:R201=\"\"),\"\",SUM(M201:R201))","v":0},null,{"$f":"SUMIF($I:$I,\"Total CO2e in Stage A3\",M:M)","v":0},0,{"$f":"SUMIF($I:$I,\"Total CO2e in Stage A3\",O:O)","v":0},0,0,0]
[null,null,"P ",{"$f":"D201","v":1},".4","A4 Off-site transportation of product to border of HK",null,null,null,"[t CO2e/reporting period]",{"$f":"IF(AND(M202:R202=\"\"),\"\",SUM(M202:R202))","v":0},null,{"$f":"SUMIF($I:$I,\"Total CO2e in Stage A4\",M:M)","v":0},0,0,0,0,0]
[null,null,"P ",2,null,"Specific gross CO2e per t of rebar / steel produced (A1-A4)",null,null,null,"[t CO2e/t steel prod]",{"$f":"IF(K198=\"\",\"\",(K198/$K$29))","v":{"$error":"#VALUE!"}},null,{"$f":"IF(M$29=0,\"n.a.\",IF(M198=\"\",\"\",(M198/M$29)))","v":"n.a."},{"$f":"IF(N$29=0,\"n.a.\",IF(N198=\"\",\"\",(N198/N$29)))","v":"n.a."},"n.a.","n.a.","n.a.","n.a."]
[null,null,"P ",{"$f":"D203","v":2},".1","A1 Raw material extraction and upstream production",null,null,null,"[t CO2e/t steel prod]",{"$f":"IF(K199=\"\",\"\",(K199/$K$29))","v":{"$error":"#VALUE!"}},null,{"$f":"IF(M$29=0,\"n.a.\",IF(M199=\"\",\"\",(M199/M$29)))","v":"n.a."},{"$f":"IF(N$29=0,\"n.a.\",IF(N199=\"\",\"\",(N199/N$29)))","v":"n.a."},"n.a.","n.a.","n.a.","n.a."]
[null,null,"P ",{"$f":"D204","v":2},".2","A2 Off-site transportation of raw materials to manufacturing plant",null,null,null,"[t CO2e/t steel prod]",{"$error":"#VALUE!"},null,{"$f":"IF(M$29=0,\"n.a.\",IF(M200=\"\",\"\",(M200/M$29)))","v":"n.a."},{"$f":"IF(N$29=0,\"n.a.\",IF(N200=\"\",\"\",(N200/N$29)))","v":"n.a."},"n.a.","n.a.","n.a.","n.a."]
[null,null,"P ",{"$f":"D204","v":2},".3","A3 Product manufacturing and fabrication (without wastage)",null,null,null,"[t CO2e/t steel prod]",{"$error":"#VALUE!"},null,{"$f":"IF(M$29=0,\"n.a.\",IF(M201=\"\",\"\",(M201/M$29)))","v":"n.a."},{"$f":"IF(N$29=0,\"n.a.\",IF(N201=\"\",\"\",(N201/N$29)))","v":"n.a."},"n.a.","n.a.","n.a.","n.a."]
[null,null,"P ",{"$f":"D205","v":2},".4","A4 Off-site transportation of product to border of HK",null,null,null,"[t CO2e/t steel prod]",{"$f":"IF(K202=\"\",\"\",(K202/$K$29))","v":{"$error":"#VALUE!"}},null,{"$f":"IF(M$29=0,\"n.a.\",IF(M202=\"\",\"\",(M202/M$29)))","v":"n.a."},{"$f":"IF(N$29=0,\"n.a.\",IF(N202=\"\",\"\",(N202/N$29)))","v":"n.a."},"n.a.","n.a.","n.a.","n.a."]

{"sheet":"3.1.1 Lime Production & Flaring","index":3,"n_rows":49,"n_cols":15,"rows_kept":49,"cut":false,"hidden":false,"merged":[[0,0,0,14],[2,5,2,6],[3,5,3,6],[6,4,7,4],[6,5,6,10],[13,2,13,14],[5,2,5,14],[14,4,15,4],[14,5,14,8],[14,9,14,13],[14,14,15,14],[15,7,15,8],[15,9,15,10],[15,11,15,12],[6,11,6,13],[6,14,7,14],[7,7,7,8],[7,9,7,10],[19,9,19,10],[19,11,19,12],[20,3,20,13],[22,4,23,4],[22,5,23,5],[21,2,21,14],[16,9,16,10],[16,11,16,12],[17,9,17,10],[17,11,17,12],[18,9,18,10],[18,11,18,12],[28,3,28,13],[33,1,33,2],[34,1,34,2],[25,12,25,13],[26,12,26,13],[27,12,27,13],[22,6,23,6],[22,7,23,7],[22,12,23,13],[22,11,23,11],[34,13,34,14],[22,14,23,14],[24,12,24,13],[22,1,23,3],[24,1,24,3],[45,1,45,4],[39,11,39,12],[40,11,40,12],[33,11,33,12],[33,3,33,4],[34,11,34,12],[35,11,35,12],[36,11,36,12],[37,11,37,12],[34,3,34,4],[35,3,35,4],[36,3,36,4],[37,3,37,4],[38,3,38,4],[39,3,39,4],[35,1,35,2],[37,1,37,2],[36,1,36,2],[38,1,38,2],[39,1,39,2],[40,1,40,2],[38,11,38,12],[40,3,40,4],[37,5,37,6],[35,13,35,14],[36,13,36,14],[37,13,37,14],[38,13,38,14],[48,13,48,14],[44,11,44,12],[45,11,45,12],[46,11,46,12],[47,11,47,12],[48,11,48,12],[44,13,44,14],[45,13,45,14],[46,13,46,14],[47,13,47,14],[48,1,48,4],[12,3,12,13],[12,1,12,2],[6,1,7,3],[8,1,8,3],[20,1,20,2],[28,1,28,2],[14,1,15,3],[16,1,16,3],[33,5,33,6],[44,1,44,4],[46,1,46,2],[47,1,47,2],[46,3,46,4],[47,3,47,4],[39,13,39,14],[40,13,40,14],[34,5,34,6],[35,5,35,6],[36,5,36,6],[38,5,38,6],[39,5,39,6],[40,5,40,6],[33,13,33,14]]}
["CFP Quantification - Reinforcing Bar & Structural Steel - Industrial Processes Emissions"]
[]
[null,"Date of latest update",null,null,null,"2025-03-24"]
[null,"Reporting period",null,null,null,{"$f":"IF('CFP Quantification'!I4=0,\"\",'CFP Quantification'!I4)","v":""}]
[]
[null,{"$f":"'CFP Quantification'!D177&'CFP Quantification'!E177","v":"A3.1.1.5"},"CO2e from onsite lime production"]
[null,"Item no.",null,null,"Facility","Carbonate Properties",null,null,null,null,null,"Lime Kiln Dust (LKD) Properties",null,null,"CO2e emissions \n(t CO2e)"]
[null,null,null,null,null,"Carbonate","Amount of carbonate used \n(t /reporting period)","Carbonate CO2 Factor",null,"Fraction calcination achieved for carbonate \n(fraction)",null,"Amount of LKD (tonnes/reporting period)","Weight fraction of original carbonate in the LKD (fraction)","Adopted Fraction calcination achieved for LKD"]
[null,"Example",null,null," Facility A","CaCO3",100,"Default",{"$f":"IF(H9=\"Customized\",_xlfn.XLOOKUP($F9,$B:$B,$J:$J),_xlfn.XLOOKUP($F9,$B:$B,$H:$H))","v":0.43970999999999999},"Default",{"$f":"IF(J9=\"Customized\",_xlfn.XLOOKUP($F9,$B:$B,$K:$K),_xlfn.XLOOKUP($F9,$B:$B,$I:$I))","v":1},80,0.9,1,{"$f":"G9*I9*K9-L9*M9*(1-N9)*I9","v":43.970999999999997}]
[null,null,{"$f":"B6","v":"A3.1.1.5"},".1",null,null,null,null,{"$f":"IF(H10=\"Customized\",_xlfn.XLOOKUP($F10,$B:$B,$J:$J),_xlfn.XLOOKUP($F10,$B:$B,$H:$H))","v":0},null,{"$f":"IF(J10=\"Customized\",_xlfn.XLOOKUP($F10,$B:$B,$K:$K),_xlfn.XLOOKUP($F10,$B:$B,$I:$I))","v":0},null,null,null,{"$f":"G10*I10*K10-L10*M10*(1-N10)*I10","v":0}]
[null,null,{"$f":"C10","v":"A3.1.1.5"},".2",null,null,null,null,0,null,0,null,null,null,{"$f":"G11*I11*K11-L11*M11*(1-N11)*I11","v":0}]
[null,null,{"$f":"C11","v":"A3.1.1.5"},".3",null,null,null,null,0,null,0,null,null,null,{"$f":"G12*I12*K12-L12*M12*(1-N12)*I12","v":0}]
[null,{"$f":"C12","v":"A3.1.1.5"},null,"Total",null,null,null,null,null,null,null,null,null,null,{"$f":"SUMIF($C:$C,C10,$O:$O)","v":0}]
[null,{"$f":"'CFP Quantification'!D178&'CFP Quantification'!E178","v":"A3.1.1.6"},"CO2e from offsite lime production"]
[null,"Item no.",null,null,"Facility","Lime Properties",null,null,null,"Correction for hydrated lime",null,null,null,null,"CO2e emissions\n(t CO2e)"]
[null,null,null,null,null,"Lime type","Amount produced \n(t /reporting period)","Lime CO2 Factor",null,"Proportion of hydrated lime produced \n(fraction)",null,"Water content of hydrated lime (fraction)",null,"Correction for LKD"]
[null,"Example",null,null,"Facility A","High calcium lime",1200,"Default",{"$f":"IF(H17=\"Customized\",_xlfn.XLOOKUP($F17,$B:$B,$K:$K),_xlfn.XLOOKUP($F17,$B:$B,$J:$J))","v":0.74575000000000002},0.1,null,0.28000000000000003,null,1.02,{"$f":"G17*I17*(1-(J17*L17))*N17","v":887.23965600000008}]
[null,null,{"$f":"B14","v":"A3.1.1.6"},".1",null,null,null,null,{"$f":"IF(H18=\"Customized\",_xlfn.XLOOKUP($F18,$B:$B,$K:$K),_xlfn.XLOOKUP($F18,$B:$B,$J:$J))","v":0},null,null,null,null,null,{"$f":"G18*I18*(1-(J18*L18))*N18","v":0}]
[null,null,{"$f":"C18","v":"A3.1.1.6"},".2",null,null,null,null,0,null,null,null,null,null,0]
[null,null,{"$f":"C19","v":"A3.1.1.6"},".3",null,null,null,null,0,null,null,null,null,null,{"$f":"G20*I20*(1-(J20*L20))*N20","v":0}]
[null,{"$f":"C20","v":"A3.1.1.6"},null,"Total",null,null,null,null,null,null,null,null,null,null,{"$f":"SUMIF($C:$C,C18,$O:$O)","v":0}]
[null,{"$f":"'CFP Quantification'!D179&'CFP Quantification'!E179","v":"A3.1.1.7"},"CO2e from flaring"]
[null,"Item no.",null,null,"Facility","Volume gas flared \n(standard cubic feet)","Carbon content of flue gas\n(lb mole C/lb mole flared gas)","Flaring combustion efficiency for CO2 (fraction)","Amount of CO2 in flared gas ","Amount of CH4 in flared gas ","Uncombusted flared gas ","CO2 emissions \n(t)","CH4 emissions \n(t)",null,"CO2e emissions \n(t CO2e)"]
[null,null,null,null,null,null,null,null,"Ratio of CO2 to the weight of flared gas\n (lb mole CO2/lb mole flared gas)","Ratio of CH4 to the weight of flared gas\n (lb mole CH4/lb mole flared gas)","Fraction of released CH4"]
[null,"Example",null,null,"Facility A",20000000,0.93899999999999995,0.98,0.12,0.8,0.02,{"$f":"F25*(1/379.3)*(G25*H25+I25)*44*(1/2204.62)","v":1094.6903408984026},{"$f":"F25*J25*K25*16*(1/379.3)*(1/2204.62)","v":6.1228465497244278},null,{"$f":"L25+M25*'Customized Process Factors'!$D$110","v":1277.1511680801905}]
[null,null,{"$f":"B22","v":"A3.1.1.7"},".1",null,null,null,null,null,null,null,{"$f":"F26*(1/379.3)*(G26*H26+I26)*44*(1/2204.62)","v":0},{"$f":"F26*J26*K26*16*(1/379.3)*(1/2204.62)","v":0},null,{"$f":"L26+M26*'Customized Process Factors'!$D$110","v":0}]
[null,null,{"$f":"C26","v":"A3.1.1.7"},".2",null,null,null,null,null,null,null,0,0,null,{"$f":"L27+M27*'Customized Process Factors'!$D$110","v":0}]
[null,null,{"$f":"C27","v":"A3.1.1.7"},".3",null,null,null,null,null,null,null,0,0,null,{"$f":"L28+M28*'Customized Process Factors'!$D$110","v":0}]
[null,{"$f":"C28","v":"A3.1.1.7"},null,"Total",null,null,null,null,null,null,null,null,null,null,{"$f":"SUMIF($C:$C,C26,$O:$O)","v":0}]
[]
[]
[null,"Table 1 : Carbonate-specific emission factors used in onsite lime production"]
[]
[null,"Carbonate",null,"Mineral name(s)",null,"Formula weight",null,"Default Emission factor (t CO2/ t carbonate)","Default Fraction calcination achieved for carbonate (fraction)","Customized Emission factor (t CO2/ t carbonate)","Customized Fraction calcination achieved for carbonate (fraction)","Supporting document ",null,"Explanation"]
[null,"CaCO3",null,"Limestone",null,100.0869,null,0.43970999999999999,1,null,null,"Default value is used"]
[null,"MgCO3",null,"Magnesite",null,84.313900000000004,null,0.52197000000000005,1,null,null,"Default value is used"]
[null,"Cam(CO3)2",null,"Dolomite",null,184.4008,null,0.47732000000000002,1,null,null,"Default value is used"]
[null,"FeCO3",null,"Siderite",null,115.8539,null,0.37986999999999999,1,null,null,"Default value is used"]
[null,"Ca(Fe,Mg,Mn)(CO3)2",null,"Ankerite",null,"185.0225 - 215.6160",null,{"$f":"AVERAGE(0.40822,0.47572)","v":0.44196999999999997},1,null,null,"Default value is used"]
[null,"MnCO3",null,"Rhodochrosite",null,114.947,null,0.38285999999999998,1,null,null,"Default value is used"]
[null,"Na2CO3",null,"Sodium carbonate or soda ash",null,106.0685,null,0.41492000000000001,1,null,null,"Default value is used"]
[]
[null,"Table 2 : Lime specific emission factors used in offsite lime production"]
[]
[null,"Lime type",null,null,null,"Stoichiometric ratio (fraction)","Range of CaO content (%)","Range of MgO content (%)","Default Value for CaO / Cao·MgO content (fraction) ","Default Lime Emission factor (t CO2/ t lime)","Customized Lime Emission factor (t CO2/ t lime)","Supporting document ",null,"Explanation"]
[null,"High calcium lime",null,null,null,0.78500000000000003,"93-98","0.3-2.5",0.95,{"$f":"F46*I46","v":0.74575000000000002},null,"Default value is used"]
[null,"Dolomitic lime",null,"(developed countries)",null,0.91300000000000003,"55-57","38-41",0.95,{"$f":"F47*I47","v":0.86734999999999995},null,"Default value is used"]
[null,"Dolomitic lime",null,"(developing countries)",null,0.91300000000000003,"55-57","38-41",0.85,{"$f":"F48*I48","v":0.77605000000000002},null,"Default value is used"]
[null,"Hydraulic lime",null,null,null,0.78500000000000003,"65-92","NA",0.75,{"$f":"F49*I49","v":0.58875},null,"Default value is used"]

{"sheet":"Customized Embodied EF","index":4,"n_rows":21,"n_cols":12,"rows_kept":21,"cut":false,"hidden":false,"merged":[[20,0,20,10],[1,4,1,11],[3,0,11,0],[12,0,18,0]]}
[]
[null,null,null,null,"Customized CO2e Emission Factors for Raw Materials"]
[null,null,null,"Default EF","Product 1","Product 2","Product 3","Product 4","Product 5","Product 6","Supporting document ","Explanation"]
["Raw material ","Dolomite","[t CO2e/ t ]",5.0000000000000001E-3,null,null,null,null,null,null,"Default value is used"]
[null,"Limestone","[t CO2e/ t ]",1.5769999999999999E-2,null,null,null,null,null,null,"Default value is used"]
[null,"Iron ore (lump / fine)","[t CO2e/ t ]",0.02,null,null,null,null,null,null,"Default value is used"]
[null,"Scrap steel","[t CO2e/ t ]","N/A",null,null,null,null,null,null,"Default value is used"]
[null,"Coke","[t CO2e/ t ]","N/A",null,null,null,null,null,null,"Default value is used"]
[null,"Coal","[t CO2e/ t ]",0.29399999999999998,null,null,null,null,null,null,"Default value is used"]
[null,"Coating material","[t CO2e/ t ]",3.028,null,null,null,null,null,null,"Default value is used"]
[null,null,"[t CO2e/ t ]","N/A"]
[null,null,"[t CO2e/ t ]","N/A"]
["Energy Commodity","Diesel oil","[t CO2e/ t ]",0.75202760000000002,null,null,null,null,null,null,"Default value is used"]
[null,"Gasoline","[t CO2e/ t ]",0.81593523000000001,null,null,null,null,null,null,"Default value is used"]
[null,"Petrol coke","[t CO2e/ t ]",0.40262468000000001,null,null,null,null,null,null,"Default value is used"]
[null,"Natural gas","[t CO2e/ t ]",0.42316367999999999,null,null,null,null,null,null,"Default value is used"]
[null,"Waste oil","[t CO2e/ t ]",1.11683712,null,null,null,null,null,null,"Default value is used"]
[null,null,"[t CO2e/ t ]","N/A"]
[null,null,"[t CO2e/ t ]","N/A"]
[]
["Factor sheet Guide :\n1. Each material with a customized EF has its own specific EF type. Even if the applicant decides that certain products will adopt the default EF value for that material, the value must be copied and displayed in the matrix.\n2. The material name must be consistent across all sheets to ensure the Excel file functions as intended.\n3. The \"Supporting Document\" column must be completed by selecting either \"Yes\" or \"No\" if a customized factor is utilized. If the customized row is not applicable, the applicant should select \"Default value is used\". If there is no supporting document , applicant can select “No (Please explain)” and provide explanation for the missing supporting documents."]

{"sheet":"Customized Process Factors","index":5,"n_rows":111,"n_cols":12,"rows_kept":111,"cut":false,"hidden":false,"merged":[[2,4,2,11],[98,0,98,2],[97,4,97,11],[4,0,29,0],[31,0,52,0],[53,0,69,0],[70,0,72,0],[73,0,77,0],[79,0,91,0],[93,0,93,11],[108,0,110,1],[103,0,103,11],[99,0,99,1],[100,0,100,1],[101,0,101,1]]}
["Table 3 : Default and Customized C Content on Mass Basis for Process Materials"]
[]
[null,null,null,null,"Customized C Content on Mass Basis for Process Materials"]
[null,null,null,"Default Carbon Content","Product 1","Product 2","Product 3","Product 4","Product 5","Product 6","Supporting document ","Explaination"]
["Common Process Materials","Dolomite","[kg C/ kg material ]",0.13,null,null,null,null,null,null,"Default value is used"]
[null,"Limestone","[kg C/ kg material ]",0.12,null,null,null,null,null,null,"Default value is used"]
[null,"Purchased pig iron","[kg C/ kg material ]",0.04,null,null,null,null,null,null,"Default value is used"]
[null,"Scrap iron","[kg C/ kg material ]",0.04,null,null,null,null,null,null,"Default value is used"]
[null,"Iron","[kg C/ kg material ]",0.04,null,null,null,null,null,null,"Default value is used"]
[null,"DRI","[kg C/ kg material ]",0.02,null,null,null,null,null,null,"Default value is used"]
[null,"Hot briquetted iron","[kg C/ kg material ]",0.02,null,null,null,null,null,null,"Default value is used"]
[null,"Steel","[kg C/ kg material ]",0.01,null,null,null,null,null,null,"Default value is used"]
[null,"EAF carbon electrodes","[kg C/ kg material ]",0.82199999999999995,null,null,null,null,null,null,"Default value is used"]
[null,"EAF charge carbon","[kg C/ kg material ]",0.83299999999999996,null,null,null,null,null,null,"Default value is used"]
[null,"Natural gas","[kg C/ kg material ]",{"$f":"_xlfn.XLOOKUP(B15,$B$32:$B$92,$D$32:$D$92)","v":0.73440000000000005},null,null,null,null,null,null,"Default value is used"]
[null,"Oxygen steel furnace gas","[kg C/ kg material ]",{"$f":"_xlfn.XLOOKUP(B16,$B$32:$B$92,$D$32:$D$92)","v":0.35017599999999999},null,null,null,null,null,null,"Default value is used"]
[null,"Petro coke","[kg C/ kg material ]",{"$f":"_xlfn.XLOOKUP(B17,$B$32:$B$92,$D$32:$D$92)","v":0.86450000000000005},null,null,null,null,null,null,"Default value is used"]
[null,"Blast furnace gas","[kg C/ kg material ]",{"$f":"_xlfn.XLOOKUP(B18,$B$32:$B$92,$D$32:$D$92)","v":0.174876},null,null,null,null,null,null,"Default value is used"]
[null,"Charcoal","[kg C/ kg material ]",{"$f":"_xlfn.XLOOKUP(B19,$B$32:$B$92,$D$32:$D$92)","v":0.89975000000000005},null,null,null,null,null,null,"Default value is used"]
[null,"Coal","[kg C/ kg material ]",{"$f":"D56","v":0.66564000000000001},null,null,null,null,null,null,"Default value is used"]
[null,"Coal tar","[kg C/ kg material ]",{"$f":"_xlfn.XLOOKUP(B21,$B$32:$B$92,$D$32:$D$92)","v":0.61599999999999999},null,null,null,null,null,null,"Default value is used"]
[null,"Coke","[kg C/ kg material ]",0.83,null,null,null,null,null,null,"Default value is used"]
[null,"Coke oven gas","[kg C/ kg material ]",{"$f":"_xlfn.XLOOKUP(B23,$B$32:$B$92,$D$32:$D$92)","v":0.46827000000000002},null,null,null,null,null,null,"Default value is used"]
[null,"Coking coal","[kg C/ kg material ]",{"$f":"_xlfn.XLOOKUP(B24,$B$32:$B$92,$D$32:$D$92)","v":0.72755999999999998},null,null,null,null,null,null,"Default value is used"]
[null,"Coke breeze",{"$f":"C24","v":"[kg C/ kg material ]"},{"$f":"D62","v":0.82343999999999995},null,null,null,null,null,null,"Default value is used"]
[null,"Fuel oil","[kg C/ kg material ]",{"$f":"D39","v":0.86860000000000004},null,null,null,null,null,null,"Default value is used"]
[null,"Gas coke","[kg C/ kg material ]",{"$f":"_xlfn.XLOOKUP(B27,$B$32:$B$92,$D$32:$D$92)","v":0.82343999999999995},null,null,null,null,null,null,"Default value is used"]
[null,"Sinter off gas","[kg C/ kg material ]","N/A",null,null,null,null,null,null,"Default value is used"]
[null," ","[kg C/ kg material ]","N/A"]
[null," ","[kg C/ kg material ]","N/A"]
["Coke-oven byproducts transferred offsite","Coke-oven byproducts","[kg C/ kg material ]","N/A",null,null,null,null,null,null,"Default value is used"]
["Crude oil and derived substances","Crude oil","[kg C/ kg material ]",0.84599999999999997,null,null,null,null,null,null,"Default value is used"]
[null,"Orimulsion","[kg C/ kg material ]",0.57750000000000001,null,null,null,null,null,null,"Default value is used"]
[null,"Natural gas liquids","[kg C/ kg material ]",0.77349999999999997,null,null,null,null,null,null,"Default value is used"]
[null,"Gasoline","[kg C/ kg material ]",0.83726999999999985,null,null,null,null,null,null,"Default value is used"]
[null,"Jet kerosene","[kg C/ kg material ]",0.85994999999999999,null,null,null,null,null,null,"Default value is used"]
[null,"Other kerosene","[kg C/ kg material ]",0.85848000000000002,null,null,null,null,null,null,"Default value is used"]
[null,"Shale oil","[kg C/ kg material ]",0.76200000000000001,null,null,null,null,null,null,"Default value is used"]
[null,"Diesel oil","[kg C/ kg material ]",0.86860000000000004,null,null,null,null,null,null,"Default value is used"]
[null,"Residual fuel oil","[kg C/ kg material ]",0.85244000000000009,null,null,null,null,null,null,"Default value is used"]
[null,"Liquified petroleum gases","[kg C/ kg material ]",0.81355999999999995,null,null,null,null,null,null,"Default value is used"]
[null,"Ethane","[kg C/ kg material ]",0.77951999999999999,null,null,null,null,null,null,"Default value is used"]
[null,"Naphtha","[kg C/ kg material ]",0.89,null,null,null,null,null,null,"Default value is used"]
[null,"Bitumen","[kg C/ kg material ]",0.88440000000000007,null,null,null,null,null,null,"Default value is used"]
[null,"Lubricants","[kg C/ kg material ]",0.80400000000000005,null,null,null,null,null,null,"Default value is used"]
[null,"Petro coke","[kg C/ kg material ]",0.86450000000000005,{"$f":"E17","v":0},{"$f":"F17","v":0},0,0,0,0,"Default value is used",0]
[null,"Refinery feedstocks","[kg C/ kg material ]",0.86,null,null,null,null,null,null,"Default value is used"]
[null,"Refinery gas","[kg C/ kg material ]",0.77715000000000001,null,null,null,null,null,null,"Default value is used"]
[null,"Paraffin waxes","[kg C/ kg material ]",0.80400000000000005,null,null,null,null,null,null,"Default value is used"]
[null,"White spirit & SBP","[kg C/ kg material ]",0.80400000000000005,null,null,null,null,null,null,"Default value is used"]
[null,"Other petroleum products","[kg C/ kg material ]",0.80400000000000005,null,null,null,null,null,null,"Default value is used"]
[null," ","[kg C/ kg material ]","N/A"]
[null," ","[kg C/ kg material ]","N/A"]
["Coal and derived products","Anthracite","[kg C/ kg material ]",0.71555999999999997,null,null,null,null,null,null,"Default value is used"]
[null,"Coking coal","[kg C/ kg material ]",0.72755999999999998,{"$f":"E24","v":0},{"$f":"F24","v":0},0,0,0,0,"Default value is used",0]
[null,"Other bituminous coal","[kg C/ kg material ]",0.66564000000000001,null,null,null,null,null,null,"Default value is used"]
[null,"Sub-bituminous coal","[kg C/ kg material ]",0.49517999999999995,null,null,null,null,null,null,"Default value is used"]
[null,"Lignite","[kg C/ kg material ]",0.32844000000000007,null,null,null,null,null,null,"Default value is used"]
[null,"Oil shale and tar sands","[kg C/ kg material ]",0.25899,null,null,null,null,null,null,"Default value is used"]
[null,"Brown coal briquettes","[kg C/ kg material ]",0.55062,null,null,null,null,null,null,"Default value is used"]
[null,"Patent fuel","[kg C/ kg material ]",0.55062,null,null,null,null,null,null,"Default value is used"]
[null,"Coke oven coke / lignite coke / coke breeze","[kg C/ kg material ]",0.82343999999999995,null,null,null,null,null,null,"Default value is used"]
[null,"Gas coke","[kg C/ kg material ]",0.82343999999999995,{"$f":"E27","v":0},{"$f":"F27","v":0},0,0,0,0,"Default value is used",0]
[null,"Coal tar","[kg C/ kg material ]",0.61599999999999999,{"$f":"E21","v":0},{"$f":"F21","v":0},0,0,0,0,"Default value is used",0]
[null,"Gas works gas","[kg C/ kg material ]",0.46827000000000002,null,null,null,null,null,null,"Default value is used"]
[null,"Coke oven gas","[kg C/ kg material ]",0.46827000000000002,{"$f":"E23","v":0},{"$f":"F23","v":0},0,0,0,0,"Default value is used",0]
[null,"Blast furnace gas","[kg C/ kg material ]",0.174876,{"$f":"E18","v":0},{"$f":"F18","v":0},0,0,0,0,"Default value is used",0]
[null,"Oxygen steel furnace gas","[kg C/ kg material ]",0.35017599999999999,{"$f":"E16","v":0},{"$f":"F16","v":0},0,0,0,0,"Default value is used",0]
[null," ","[kg C/ kg material ]","N/A"]
[null," ","[kg C/ kg material ]","N/A"]
["Gas","Natural gas","[kg C/ kg material ]",0.73440000000000005,{"$f":"E15","v":0},{"$f":"F15","v":0},0,0,0,0,{"$f":"K15","v":"Default value is used"},{"$f":"L15","v":0}]
[null," ","[kg C/ kg material ]","N/A"]
[null," ","[kg C/ kg material ]","N/A"]
["Non-biomass waste","Municipal wastes (non-biomass fraction)","[kg C/ kg material ]",0.25,null,null,null,null,null,null,"Default value is used"]
[null,"Industrial wastes","[kg C/ kg material ]","NA",null,null,null,null,null,null,"Default value is used"]
[null,"Waste oil","[kg C/ kg material ]",0.80400000000000005,null,null,null,null,null,null,"Default value is used"]
[null," ","[kg C/ kg material ]","N/A"]
[null," ","[kg C/ kg material ]","N/A"]
["Peat","Peat","[kg C/ kg material ]",0.28206399999999998,null,null,null,null,null,null,"Default value is used"]
["Biomass waste","Wood/Wood waste","[kg C/ kg material ]",0.4758,null,null,null,null,null,null,"Default value is used"]
[null,"Sulphite lyes (Black liqour)","[kg C/ kg material ]",0.30680000000000002,null,null,null,null,null,null,"Default value is used"]
[null,"Other primary solid biomass fuels","[kg C/ kg material ]",0.31668000000000002,null,null,null,null,null,null,"Default value is used"]
[null,"Charcoal","[kg C/ kg material ]",0.89975000000000005,{"$f":"E19","v":0},{"$f":"F19","v":0},0,0,0,0,"Default value is used",0]
[null,"Biogasoline","[kg C/ kg material ]",0.52110000000000001,null,null,null,null,null,null,"Default value is used"]
[null,"Biodiesel","[kg C/ kg material ]",0.52110000000000001,null,null,null,null,null,null,"Default value is used"]
[null,"Other liquid biofuels","[kg C/ kg material ]",0.59457999999999989,null,null,null,null,null,null,"Default value is used"]
[null,"Landfill gas","[kg C/ kg material ]",0.75096000000000007,null,null,null,null,null,null,"Default value is used"]
[null,"Sludge gas","[kg C/ kg material ]",0.75096000000000007,null,null,null,null,null,null,"Default value is used"]
[null,"Other biogas","[kg C/ kg material ]",0.75096000000000007,null,null,null,null,null,null,"Default value is used"]
[null,"Municipal wastes (biomass fraction)","[kg C/ kg material ]",0.31668000000000002,null,null,null,null,null,null,"Default value is used"]
[null," ","[kg C/ kg material ]","N/A"]
[null," ","[kg C/ kg material ]","N/A"]
[]
["Factor sheet Guide :\n1. Each process material with a customized factors has its own specific factor type. Even if the applicant decides that certain products will adopt the default value for that process materials, the value must be copied and displayed in the matrix.\n2. The  process material's name must be consistent across all sheets to ensure the Excel file functions as intended.\n3. The \"Supporting Document\" column must be completed by selecting either \"Yes\" or \"No\" if a customized factor is utilized. If the customized row is not applicable, the applicant should select \"Default value is used\". If there is no supporting document , applicant can select “No (Please explain)” and provide explanation for the missing supporting documents."]
[]
["Table 4 : Default and Customized CH4 Emisison Factor on Mass Basis for Process Materials"]
[]
[null,null,null,null,"Customized CH4 Emission Factor on Mass Basis for Process Materials"]
["End products from the industrial processes",null,null,"Default CH4 Content","Product 1","Product 2","Product 3","Product 4","Product 5","Product 6","Supporting document ","Explaination"]
["Coke",null,"[kg CH4/ kg material ]",{"$f":"0.089/1000","v":8.8999999999999995E-5},null,null,null,null,null,null,"Default value is used"]
["Sinter",null,"[kg CH4/ kg material ]",{"$f":"0.07/1000","v":7.0000000000000007E-5},null,null,null,null,null,null,"Default value is used"]
["DRI",null,"[kg CH4/ kg material ]",{"$f":"0.048/1000","v":4.8000000000000001E-5},null,null,null,null,null,null,"Default value is used"]
[]
["Factor sheet Guide :\n1. Each process material with a customized factors has its own specific factor type. Even if the applicant decides that certain products will adopt the default value for that process materials, the value must be copied and displayed in the matrix.\n2. The  process material's name must be consistent across all sheets to ensure the Excel file functions as intended.\n3. The \"Supporting Document\" column must be completed by selecting either \"Yes\" or \"No\" if a customized factor is utilized. If the customized row is not applicable, the applicant should select \"Default value is used\". If there is no supporting document , applicant can select “No (Please explain)” and provide explanation for the missing supporting documents."]
[]
[]
["Table 5 : Global Warming Potential of Greenhouse Gases"]
[]
["Global Warming Potential (100-year horizon), IPCC Sixth Assessment Report, 2021 (AR6)",null,"CH4 (fossil – combustion & non fossil)",27]
[null,null,"CH4 (fossil – fugitive & process)",29.8]
[null,null,"N2O",273]

{"sheet":"Customized Fuel EF","index":6,"n_rows":66,"n_cols":12,"rows_kept":66,"cut":false,"hidden":false,"merged":[[65,0,65,11],[1,4,1,11],[3,0,24,0],[25,0,41,0],[42,0,44,0],[45,0,49,0],[51,0,63,0]]}
[]
[null,null,null,null,"Customized CO2e Direct Emission Factors for Fuel"]
[null,null,null,"Default EF","Product 1","Product 2","Product 3","Product 4","Product 5","Product 6","Supporting document ","Explanation"]
["Crude oil and derived substances","Crude oil","[kg CO2e/ GJ ]",73.303600000000003,null,null,null,null,null,null,"Default value is used"]
[null,"Orimulsion","[kg CO2e/ GJ ]",77.003600000000006,null,null,null,null,null,null,"Default value is used"]
[null,"Natural gas liquids","[kg CO2e/ GJ ]",64.203599999999994,null,null,null,null,null,null,"Default value is used"]
[null,"Gasoline","[kg CO2e/ GJ ]",69.303600000000003,null,null,null,null,null,null,"Default value is used"]
[null,"Jet kerosene","[kg CO2e/ GJ ]",71.503600000000006,null,null,null,null,null,null,"Default value is used"]
[null,"Other kerosene","[kg CO2e/ GJ ]",71.903600000000012,null,null,null,null,null,null,"Default value is used"]
[null,"Shale oil","[kg CO2e/ GJ ]",73.303600000000003,null,null,null,null,null,null,"Default value is used"]
[null,"Diesel oil","[kg CO2e/ GJ ]",74.1036,null,null,null,null,null,null,"Default value is used"]
[null,"Residual fuel oil","[kg CO2e/ GJ ]",77.403600000000012,null,null,null,null,null,null,"Default value is used"]
[null,"Liquified petroleum gases","[kg CO2e/ GJ ]",63.101099999999995,null,null,null,null,null,null,"Default value is used"]
[null,"Ethane","[kg CO2e/ GJ ]",61.601099999999995,null,null,null,null,null,null,"Default value is used"]
[null,"Naphtha","[kg CO2e/ GJ ]",73.303600000000003,null,null,null,null,null,null,"Default value is used"]
[null,"Bitumen","[kg CO2e/ GJ ]",80.703600000000009,null,null,null,null,null,null,"Default value is used"]
[null,"Lubricants","[kg CO2e/ GJ ]",73.303600000000003,null,null,null,null,null,null,"Default value is used"]
[null,"Petrol coke","[kg CO2e/ GJ ]",97.503600000000006,null,null,null,null,null,null,"Default value is used"]
[null,"Refinery feedstocks","[kg CO2e/ GJ ]",73.303600000000003,null,null,null,null,null,null,"Default value is used"]
[null,"Refinery gas","[kg CO2e/ GJ ]",57.601099999999995,null,null,null,null,null,null,"Default value is used"]
[null,"Paraffin waxes","[kg CO2e/ GJ ]",73.303600000000003,null,null,null,null,null,null,"Default value is used"]
[null,"White spirit & SBP","[kg CO2e/ GJ ]",73.303600000000003,null,null,null,null,null,null,"Default value is used"]
[null,"Other petroleum products","[kg CO2e/ GJ ]",73.303600000000003,null,null,null,null,null,null,"Default value is used"]
[null,null,"[kg CO2e/ GJ ]","N/A"]
[null," ","[kg CO2e/ GJ ]","N/A"]
["Coal and derived products","Anthracite","[kg CO2e/ GJ ]",98.302499999999995,null,null,null,null,null,null,"Default value is used"]
[null,"Coking coal","[kg CO2e/ GJ ]",94.611500000000007,null,null,null,null,null,null,"Default value is used"]
[null,"Other bituminous coal","[kg CO2e/ GJ ]",94.611500000000007,null,null,null,null,null,null,"Default value is used"]
[null,"Sub-bituminous coal","[kg CO2e/ GJ ]",96.111500000000007,null,null,null,null,null,null,"Default value is used"]
[null,"Lignite","[kg CO2e/ GJ ]",101.0115,null,null,null,null,null,null,"Default value is used"]
[null,"Oil shale and tar sands","[kg CO2e/ GJ ]",107.0115,null,null,null,null,null,null,"Default value is used"]
[null,"Brown coal briquettes","[kg CO2e/ GJ ]",97.511499999999998,null,null,null,null,null,null,"Default value is used"]
[null,"Patent fuel","[kg CO2e/ GJ ]",97.511499999999998,null,null,null,null,null,null,"Default value is used"]
[null,"Coke oven coke / lignite coke / coke breeze","[kg CO2e/ GJ ]",107.0115,null,null,null,null,null,null,"Default value is used"]
[null,"Gas coke","[kg CO2e/ GJ ]",107.00110000000001,null,null,null,null,null,null,"Default value is used"]
[null,"Coal tar","[kg CO2e/ GJ ]",80.711500000000001,null,null,null,null,null,null,"Default value is used"]
[null,"Gas works gas","[kg CO2e/ GJ ]",44.4011,null,null,null,null,null,null,"Default value is used"]
[null,"Coke oven gas","[kg CO2e/ GJ ]",44.4011,null,null,null,null,null,null,"Default value is used"]
[null,"Blast furnace gas","[kg CO2e/ GJ ]",260.00110000000001,null,null,null,null,null,null,"Default value is used"]
[null,"Oxygen steel furnace gas","[kg CO2e/ GJ ]",182.00110000000001,null,null,null,null,null,null,"Default value is used"]
[null," ","[kg CO2e/ GJ ]","N/A"]
[null," ","[kg CO2e/ GJ ]","N/A"]
["Gas","Natural gas","[kg CO2e/ GJ ]",56.101099999999995,null,null,null,null,null,null,"Default value is used"]
[null," ","[kg CO2e/ GJ ]","N/A"]
[null," ","[kg CO2e/ GJ ]","N/A"]
["Non-biomass waste","Municipal wastes (non-biomass fraction)","[kg CO2e/ GJ ]",91.733999999999995,null,null,null,null,null,null,"Default value is used"]
[null,"Industrial wastes","[kg CO2e/ GJ ]","NA",null,null,null,null,null,null,"Default value is used"]
[null,"Waste oil","[kg CO2e/ GJ ]",73.334000000000003,null,null,null,null,null,null,"Default value is used"]
[null," ","[kg CO2e/ GJ ]","N/A"]
[null," ","[kg CO2e/ GJ ]","N/A"]
["Peat","Peat","[kg CO2e/ GJ ]",106.0035,null,null,null,null,null,null,"Default value is used"]
["Biomass waste","Wood/Wood waste","[kg CO2e/ GJ ]",112.03400000000001,null,null,null,null,null,null,"Default value is used"]
[null,"Sulphite lyes (Black liquor)","[kg CO2e/ GJ ]",95.305000000000007,null,null,null,null,null,null,"Default value is used"]
[null,"Other primary solid biomass fuels","[kg CO2e/ GJ ]",100.03400000000001,null,null,null,null,null,null,"Default value is used"]
[null,"Charcoal","[kg CO2e/ GJ ]",112.20399999999999,null,null,null,null,null,null,"Default value is used"]
[null,"Biogasoline","[kg CO2e/ GJ ]",70.803600000000003,null,null,null,null,null,null,"Default value is used"]
[null,"Biodiesel","[kg CO2e/ GJ ]",70.803600000000003,null,null,null,null,null,null,"Default value is used"]
[null,"Other liquid biofuels","[kg CO2e/ GJ ]",79.6036,null,null,null,null,null,null,"Default value is used"]
[null,"Landfill gas","[kg CO2e/ GJ ]",54.601099999999995,null,null,null,null,null,null,"Default value is used"]
[null,"Sludge gas","[kg CO2e/ GJ ]",54.601099999999995,null,null,null,null,null,null,"Default value is used"]
[null,"Other biogas","[kg CO2e/ GJ ]",54.601099999999995,null,null,null,null,null,null,"Default value is used"]
[null,"Municipal wastes (biomass fraction)","[kg CO2e/ GJ ]",100.03400000000001,null,null,null,null,null,null,"Default value is used"]
[null," ","[kg CO2e/ GJ ]","N/A"]
[null," ","[kg CO2e/ GJ ]","N/A"]
[]
["Factor sheet Guide :\n1. Each energy commodity with a customized EF has its own specific EF type. Even if the applicant decides that certain products will adopt the default EF value for that energy commodity, the value must be copied and displayed in the matrix.\n2. The energy commodity name must be consistent across all sheets to ensure the Excel file functions as intended.\n3. The \"Supporting Document\" column must be completed by selecting either \"Yes\" or \"No\" if a customized factor is utilized. If the customized row is not applicable, the applicant should select \"Default value is used\". If there is no supporting document , applicant can select “No (Please explain)” and provide explanation for the missing supporting documents."]

{"sheet":"Customized Fuel LHV","index":7,"n_rows":66,"n_cols":12,"rows_kept":66,"cut":false,"hidden":false,"merged":[[65,0,65,11],[51,0,63,0],[1,4,1,11],[3,0,24,0],[25,0,41,0],[42,0,44,0],[45,0,49,0]]}
[]
[null,null,null,null,"Customized LHVs for Fuel"]
[null,null,null,"Default LHV","Product 1","Product 2","Product 3","Product 4","Product 5","Product 6","Supporting document ","Explanation"]
["Crude oil and derived substances","Crude oil","MJ/kg",42.3,null,null,null,null,null,null,"Default value is used"]
[null,"Orimulsion","MJ/kg",27.5,null,null,null,null,null,null,"Default value is used"]
[null,"Natural gas liquids","MJ/kg",44.2,null,null,null,null,null,null,"Default value is used"]
[null,"Gasoline","MJ/kg",44.3,null,null,null,null,null,null,"Default value is used"]
[null,"Jet kerosene","MJ/kg",44.1,null,null,null,null,null,null,"Default value is used"]
[null,"Other kerosene","MJ/kg",43.8,null,null,null,null,null,null,"Default value is used"]
[null,"Shale oil","MJ/kg",38.1,null,null,null,null,null,null,"Default value is used"]
[null,"Diesel oil","MJ/kg",43,null,null,null,null,null,null,"Default value is used"]
[null,"Residual fuel oil","MJ/kg",40.4,null,null,null,null,null,null,"Default value is used"]
[null,"Liquified petroleum gases","MJ/kg",47.3,null,null,null,null,null,null,"Default value is used"]
[null,"Ethane","MJ/kg",46.4,null,null,null,null,null,null,"Default value is used"]
[null,"Naphtha","MJ/kg",44.5,null,null,null,null,null,null,"Default value is used"]
[null,"Bitumen","MJ/kg",40.200000000000003,null,null,null,null,null,null,"Default value is used"]
[null,"Lubricants","MJ/kg",40.200000000000003,null,null,null,null,null,null,"Default value is used"]
[null,"Petrol coke","MJ/kg",32.5,null,null,null,null,null,null,"Default value is used"]
[null,"Refinery feedstocks","MJ/kg",43,null,null,null,null,null,null,"Default value is used"]
[null,"Refinery gas","MJ/kg",49.5,null,null,null,null,null,null,"Default value is used"]
[null,"Paraffin waxes","MJ/kg",40.200000000000003,null,null,null,null,null,null,"Default value is used"]
[null,"White spirit & SBP","MJ/kg",40.200000000000003,null,null,null,null,null,null,"Default value is used"]
[null,"Other petroleum products","MJ/kg",40.200000000000003,null,null,null,null,null,null,"Default value is used"]
[null,{"$f":"'Customized Fuel EF'!B24","v":0},"MJ/kg","N/A"]
[null,{"$f":"'Customized Fuel EF'!B25","v":" "},"MJ/kg","N/A"]
["Coal and derived products","Anthracite","MJ/kg",26.7,null,null,null,null,null,null,"Default value is used"]
[null,"Coking coal","MJ/kg",28.2,null,null,null,null,null,null,"Default value is used"]
[null,"Other bituminous coal","MJ/kg",25.8,null,null,null,null,null,null,"Default value is used"]
[null,"Sub-bituminous coal","MJ/kg",18.899999999999999,null,null,null,null,null,null,"Default value is used"]
[null,"Lignite","MJ/kg",11.9,null,null,null,null,null,null,"Default value is used"]
[null,"Oil shale and tar sands","MJ/kg",8.9,null,null,null,null,null,null,"Default value is used"]
[null,"Brown coal briquettes","MJ/kg",20.7,null,null,null,null,null,null,"Default value is used"]
[null,"Patent fuel","MJ/kg",20.7,null,null,null,null,null,null,"Default value is used"]
[null,"Coke oven coke / lignite coke / coke breeze","MJ/kg",28.2,null,null,null,null,null,null,"Default value is used"]
[null,"Gas coke","MJ/kg",28.2,null,null,null,null,null,null,"Default value is used"]
[null,"Coal tar","MJ/kg",28,null,null,null,null,null,null,"Default value is used"]
[null,"Gas works gas","MJ/kg",38.700000000000003,null,null,null,null,null,null,"Default value is used"]
[null,"Coke oven gas","MJ/kg",38.700000000000003,null,null,null,null,null,null,"Default value is used"]
[null,"Blast furnace gas","MJ/kg",2.4700000000000002,null,null,null,null,null,null,"Default value is used"]
[null,"Oxygen steel furnace gas","MJ/kg",7.06,null,null,null,null,null,null,"Default value is used"]
[null,{"$f":"'Customized Fuel EF'!B41","v":" "},"MJ/kg","N/A"]
[null,{"$f":"'Customized Fuel EF'!B42","v":" "},"MJ/kg","N/A"]
["Gas","Natural gas","MJ/kg",48,null,null,null,null,null,null,"Default value is used"]
[null,{"$f":"'Customized Fuel EF'!B44","v":" "},"MJ/kg","N/A"]
[null,{"$f":"'Customized Fuel EF'!B45","v":" "},"MJ/kg","N/A"]
["Non-biomass waste","Municipal wastes (non-biomass fraction)","MJ/kg",10,null,null,null,null,null,null,"Default value is used"]
[null,"Industrial wastes","MJ/kg","NA",null,null,null,null,null,null,"Default value is used"]
[null,"Waste oil","MJ/kg",40.200000000000003,null,null,null,null,null,null,"Default value is used"]
[null,{"$f":"'Customized Fuel EF'!B49","v":" "},"MJ/kg","N/A"]
[null,{"$f":"'Customized Fuel EF'!B50","v":" "},"MJ/kg","N/A"]
["Peat","Peat","MJ/kg",9.76,null,null,null,null,null,null,"Default value is used"]
["Biomass waste","Wood/Wood waste","MJ/kg",15.6,null,null,null,null,null,null,"Default value is used"]
[null,"Sulphite lyes (Black liquor)","MJ/kg",11.8,null,null,null,null,null,null,"Default value is used"]
[null,"Other primary solid biomass fuels","MJ/kg",11.6,null,null,null,null,null,null,"Default value is used"]
[null,"Charcoal","MJ/kg",29.5,null,null,null,null,null,null,"Default value is used"]
[null,"Biogasoline","MJ/kg",27,null,null,null,null,null,null,"Default value is used"]
[null,"Biodiesel","MJ/kg",27,null,null,null,null,null,null,"Default value is used"]
[null,"Other liquid biofuels","MJ/kg",27.4,null,null,null,null,null,null,"Default value is used"]
[null,"Landfill gas","MJ/kg",50.4,null,null,null,null,null,null,"Default value is used"]
[null,"Sludge gas","MJ/kg",50.4,null,null,null,null,null,null,"Default value is used"]
[null,"Other biogas","MJ/kg",50.4,null,null,null,null,null,null,"Default value is used"]
[null,"Municipal wastes (biomass fraction)","MJ/kg",11.6,null,null,null,null,null,null,"Default value is used"]
[null,{"$f":"'Customized Fuel EF'!B63","v":" "},"MJ/kg","N/A"]
[null,{"$f":"'Customized Fuel EF'!B64","v":" "},"MJ/kg","N/A"]
[]
["Factor sheet Guide :\n1. Each energy commodity with a customized LHV has its own specific LHV type. Even if the applicant decides that certain products will adopt the default LHV value for that energy commodity, the value must be copied and displayed in the matrix.\n2. The energy commodity name must be consistent across all sheets to ensure the Excel file functions as intended.\n3. The \"Supporting Document\" column must be completed by selecting either \"Yes\" or \"No\" if a customized factor is utilized. If the customized row is not applicable, the applicant should select \"Default value is used\". If there is no supporting document , applicant can select “No (Please explain)” and provide explanation for the missing supporting documents."]

{"sheet":"Default EF&LHV References ","index":8,"n_rows":61,"n_cols":3,"rows_kept":61,"cut":false,"hidden":false,"merged":[[32,0,32,2],[36,0,36,2],[40,0,40,2],[51,0,51,2],[0,0,0,1],[1,0,1,2],[13,0,13,2],[17,0,17,2],[21,0,21,2]]}
["Date of latest update",null,"2025-03-24"]
["Default CO2e Emission Factors for Raw Materials"]
["Item","Category","References"]
["/","Raw materials","various"]
[1,"Dolomite","World Steel Association (2021). Life cycle inventory (LCI) study 2020 data release. Available from: https://worldsteel.org/wp-content/uploads/Life-cycle-inventory-LCI-study-2020-data-release.pdf"]
[2,"Limestone","ICE Cement, Mortar and Concrete Model – V1.2 (2024)"]
[3,"Iron ore (lump / fine)","World Steel Association (2021). Life cycle inventory (LCI) study 2020 data release. Available from: https://worldsteel.org/wp-content/uploads/Life-cycle-inventory-LCI-study-2020-data-release.pdf"]
[4,"Scrap steel","N/A"]
[5,"Coke","World Steel Association (2021). Life cycle inventory (LCI) study 2020 data release. Available from: https://worldsteel.org/wp-content/uploads/Life-cycle-inventory-LCI-study-2020-data-release.pdf"]
[6,"Coal","World Steel Association (2021). Life cycle inventory (LCI) study 2020 data release. Available from: https://worldsteel.org/wp-content/uploads/Life-cycle-inventory-LCI-study-2020-data-release.pdf"]
[7,"Coating material","World Steel Association (2021). Life cycle inventory (LCI) study 2020 data release. Default of \"Paint (PVDF, acrylic)\" is used.\nAvailable from: https://worldsteel.org/wp-content/uploads/Life-cycle-inventory-LCI-study-2020-data-release.pdf"]
["/","Energy commodity","UK Department for Energy Security and Net Zero (2024). Greenhouse gas reporting: conversion factors 2024."]
[]
["(Table 1) Carbonate-specific emission factors used in onsite lime production"]
["Item","Category","References"]
["/","Carbonate","Volume 3 Chapter 2, Table 2.1 of IPCC 2006 Guideline for National Greenhous Gas Inventories."]
[]
["(Table 2) Lime specific emission factors used in offsite lime production"]
["Item","Category","References"]
["/","Lime","Volume 3 Chapter 2, Table 2.4 of IPCC 2006 Guideline for National Greenhous Gas Inventories."]
[]
["(Table 3) C Content on Mass Basis for Process Materials"]
["Item","Category","References"]
["/","Common Process Materials","WRI & WBCSD (2024). Appendix C of \"Calculating Greenhouse Gas Emissions from Iron and Steel Production\"."]
["/","Coke-oven byproducts transferred offsite","WRI & WBCSD (2024). Appendix A of \"Calculating Greenhouse Gas Emissions from Iron and Steel Production\"."]
["/","Crude oil and derived substances","WRI & WBCSD (2024). Appendix A of \"Calculating Greenhouse Gas Emissions from Iron and Steel Production\"."]
["/","Coal and derived products","WRI & WBCSD (2024). Appendix A of \"Calculating Greenhouse Gas Emissions from Iron and Steel Production\"."]
["/","Gas","WRI & WBCSD (2024). Appendix A of \"Calculating Greenhouse Gas Emissions from Iron and Steel Production\"."]
["/","Non-biomass waste","WRI & WBCSD (2024). Appendix A of \"Calculating Greenhouse Gas Emissions from Iron and Steel Production\"."]
["/","Peat","WRI & WBCSD (2024). Appendix A of \"Calculating Greenhouse Gas Emissions from Iron and Steel Production\"."]
["/","Biomass waste","WRI & WBCSD (2024). Appendix A of \"Calculating Greenhouse Gas Emissions from Iron and Steel Production\"."]
[]
["(Table 4) CH4 Emission Factor on Mass Basis for Process Materials"]
["Item","Category","References"]
["/","End products from the industrial processes","Volume 3 Chapter 4, Table 4.2 of 2019 Refinement of IPCC 2006 Guideline for National Greenhous Gas Inventories."]
[]
["(Table 5) Global Warming Potential of Greenhouse Gases"]
["Item","Category","References"]
["/","Greenhouse gases","Table 7.15 Global Warming Potential (100-year horizon), IPCC Sixth Assessment Report, 2021 (AR6).  Available from: https://www.ipcc.ch/report/ar6/wg1/chapter/chapter-7/"]
[]
["Default CO2e Emission Factors for Fuel"]
["Item","Category","References"]
["/","Common Process Materials","Volume 2 Chapter 2, Table 2.3 of IPCC 2006 Guideline for National Greenhous Gas Inventories."]
["/","Coke-oven byproducts transferred offsite","Volume 2 Chapter 2, Table 2.3 of IPCC 2006 Guideline for National Greenhous Gas Inventories."]
["/","Crude oil and derived substances","Volume 2 Chapter 2, Table 2.3 of IPCC 2006 Guideline for National Greenhous Gas Inventories."]
["/","Coal and derived products","Volume 2 Chapter 2, Table 2.3 of IPCC 2006 Guideline for National Greenhous Gas Inventories."]
["/","Gas","Volume 2 Chapter 2, Table 2.3 of IPCC 2006 Guideline for National Greenhous Gas Inventories."]
["/","Non-biomass waste","Volume 2 Chapter 2, Table 2.3 of IPCC 2006 Guideline for National Greenhous Gas Inventories."]
["/","Peat","Volume 2 Chapter 2, Table 2.3 of IPCC 2006 Guideline for National Greenhous Gas Inventories."]
["/","Biomass waste","Volume 2 Chapter 2, Table 2.3 of IPCC 2006 Guideline for National Greenhous Gas Inventories."]
[]
["Default  LHVs for Fuel"]
["Item","Category","References"]
["/","Common Process Materials","Volume 2 Chapter 1, Tables 1.2 of IPCC 2006 Guideline for National Greenhous Gas Inventories."]
["/","Coke-oven byproducts transferred offsite","Volume 2 Chapter 1, Tables 1.2 of IPCC 2006 Guideline for National Greenhous Gas Inventories."]
["/","Crude oil and derived substances","Volume 2 Chapter 1, Tables 1.2 of IPCC 2006 Guideline for National Greenhous Gas Inventories."]
["/","Coal and derived products","Volume 2 Chapter 1, Tables 1.2 of IPCC 2006 Guideline for National Greenhous Gas Inventories."]
["/","Gas","Volume 2 Chapter 1, Tables 1.2 of IPCC 2006 Guideline for National Greenhous Gas Inventories."]
["/","Non-biomass waste","Volume 2 Chapter 1, Tables 1.2 of IPCC 2006 Guideline for National Greenhous Gas Inventories."]
["/","Peat","Volume 2 Chapter 1, Tables 1.2 of IPCC 2006 Guideline for National Greenhous Gas Inventories."]
["/","Biomass waste","Volume 2 Chapter 1, Tables 1.2 of IPCC 2006 Guideline for National Greenhous Gas Inventories."]